Workbook

Sheet Auslegung
B1: =UPPER(Translation!A4) -> LAYOUT HEAT PUMP
B5: =Translation!A22 -> Heating
C7: =Translation!$A$36 -> Heat source
C9: =Translation!$A$40&" | "&Translation!$A$41 -> Quantity | Type | I9: =Berechnung!$C$72&" x" -> 1 x
C11: =Translation!$A$42 -> Operating mode
C13: =Translation!$A$55&" [KW]" -> 2nd heat source [KW]
C15: =Translation!$A$56 -> Forward flow temperature
C17: =Translation!$A$57 -> Switch off time
B19: =Translation!A61 -> Building
C21: =Translation!$A$63 -> Country selection
C23: =Translation!$A$85&" | "&Translation!$A$104 -> City | Design temperature | N23: =Berechnung!$M$5 -> -12 °C
C25: =Translation!$A$87&" | "&Translation!$A$88 -> Heating treshold | Building type
C27: =Translation!$A$93&" "&FIXED(Berechnung!$C$71,1)&" KW" -> Heating capacity 12,4 KW
I28: 0 KW | N28: =IF(ISERROR(Berechnung!C100),"---",FIXED(Berechnung!$C$100,1)&" KW") -> 17,1 KW
B29: =Translation!A23 -> Warm water
C31: =Translation!$A$144 -> Hot water generation
C33: =IF(Berechnung!$AA$5=Berechnung!$AA$12,Translation!$A$216,IF(Berechnung!$AA$5=Berechnung!$AA$7,"",IF(Berechnung!$AA$5=Berechnung!$AA$13,Translation!$A$173,IF(OR(Berechnung!$AA$5=Berechnung!$AA$8,Berechnung!$AA$5=Berechnung!$AA$9),Translation!$A$145,Translation!$A$146)))) -> Number of Persons
C35: =IF(OR(Berechnung!$AA$5=Berechnung!$AA$7,Berechnung!$AA$5=Berechnung!$AA$13),"",IF(Berechnung!$AA$5=Berechnung!$AA$12,Translation!$A$217,IF(OR(Berechnung!$AA$5=Berechnung!$AA$8,Berechnung!$AA$5=Berechnung!$AA$9),Translation!$A$147,Translation!$A$148))) -> Water consumption per day
C37: =IF(Berechnung!$AA$5=Berechnung!$AA$7,"",Translation!$A$233) -> Heat source DHW
C39: =IF(Berechnung!C152=TRUE,"",IF(Berechnung!$AA$5=Berechnung!$AA$7,"",IF(OR(Berechnung!AA5=Berechnung!AA12,Berechnung!AA5=Berechnung!AA13),Translation!A204,Translation!$A$234))) -> Cylinder temperature
C41: =IF(Berechnung!C152=TRUE,"",IF(Berechnung!$AA$5=Berechnung!$AA$7,"",Translation!$A$106)) -> Covering ratio heat pump
Q43: =IF(Berechnung!C81=TRUE,Translation!A232,"") ->  | Y43: =IF(Berechnung!C81=TRUE,HYPERLINK("https://www.stiebel-eltron.de/de/home/service/tools-apps/alle-tools.html","stiebel-eltron.de/tools"),"") ->  | AF43: IMT v2.52

Sheet Berechnung (hidden)
A1: VBA-Zugriff
A2: Comboboxen | R2: Schnellauswahl
A3: Sprache | C3: Wärmequelle | D3: Typ-WP-Heizung | E3: Anzahl WP | F3: Betriebsart | G3: WW-Temp | H3: VL-Temp | I3: Sperrzeiten | K3: Land | L3: Stadt | M3: Norm-Außentemp. | N3: Heizgrenze | O3: Heizlast | P3: Zähler Bivalenzpunkt | Q3: Leistung 2. WE | R3: Vorlauftemp | S3: Warmwasser | T3: Solar | U3: Lüftung | V3: Kühlung | W3: Heizlast | X3: Außentemp | Y3: Aufstellung | Z3: Heizung | AA3: Warmwasser-bereitung | AB3: Personen | AC3: WP-Typ WWB | AD3: Verbrauch EFH | AE3: Liter/Tag*P | AF3: kWh/Tag*P | AG3: Wohnungen | AH3: Zapfprofil | AI3: Tagesbedarf (kWh, Norm) | AJ3: Spitzenbedarf (kWh, Norm) | AK3: Auswahl Deckungsanteil WWB | AM3: Schwimmbadart
A5: 2 | B5: =VLOOKUP(A5,A6:B50,2,FALSE) -> EN | C5: Air | D5: WPL 18 E / cool | E5: 1 | F5: Monoenergetisch | G5: 50 °C | H5: 35 °C | I5: 3 h/day | J5: =IF(OR(F5=F7,F5=F8,F5=F9),VLOOKUP(I5,I6:J50,2,FALSE),0) -> 0 | K5: Germany | L5: Holzminden | M5: =VLOOKUP(K5,K6:M50,3,FALSE) -> -12 °C | N5: 12 °C | New building | O5: 124 | P5: 0 | Q5: 8,8 | R5: 1 | S5: TRUE | T5: FALSE | U5: FALSE | V5: TRUE | W5: 9 | X5: 2 | Y5: Show all | Z5: TRUE | AA5: Single family house without circulation | AB5: 4 | AC5: with heat pump for heating | AD5: Normal demand (25 L) | AE5: =VLOOKUP(AD5,AD7:AE50,2,FALSE) -> 25 | AF5: =VLOOKUP(AD5,AD7:AF50,3,FALSE) -> 1.45375 | AG5: 30 | AH5: 3 persons (shower+bathing) | AI5: =VLOOKUP(AH5,AH7:AI50,2,FALSE) -> 11.655 | AJ5: =VLOOKUP(AH5,AH7:AJ50,3,FALSE) -> 4.445 | AK5: automatic calculation (100 %) | AL5: =VLOOKUP(AK5,AK6:AL50,2,FALSE) -> 1 | AM5: Indoor pool with cover | AN5: =VLOOKUP(AM5,AM6:AN50,2,FALSE) -> 0.5
L6: Startzeile
A7: 1 | B7: DE | C7: =Translation!A37 -> Air | D7: ="" ->  | F7: =Translation!A45 -> Monovalent | G7: 40 °C | H7: 30 °C | I7: =Translation!A58 -> No switch off times | J7: 0 | K7: =Translation!A64 -> Germany | L7: 100 | M7: -12 °C | N7: ="12 °C | "&Translation!A89 -> 12 °C | New building | P7: Deutschland | R7: =30+R5*5 -> 35 | X7: =-1*(10+X5*2) -> -14 | Y7: =Translation!A30 -> Show all | AA7: =Translation!$A$150 -> Without DHW | AB7: 1 | AD7: =Translation!A157&" ("&AE7&" L)" -> Very low demand (15 L) | AE7: 15 | AF7: =AE7*1.163*(60-Einstellungen!$D$29)/1000 -> 0.87225 | AG7: 1 | AH7: =Translation!A162 -> Single person (shower) | AI7: 2.1 | AJ7: 0.945 | AK7: =Translation!A237&" ("&FIXED(AL7*100,0)&" %)" -> automatic calculation (100 %) | AL7: =IF(X106=0,0,IF(C77=TRUE,0,MIN(SUMPRODUCT(P63:P105,S63:S105)/X106,Berechnung!Y197))) -> 1 | AM7: =Translation!A218 -> Open air swimming pool with cover | AN7: 0.7
A8: 2 | B8: EN | C8: =Translation!A38 -> Brine | F8: =Translation!A47 -> Monoenergetic | G8: 45 °C | H8: 35 °C | I8: =1&" "&Translation!$A$59 -> 1 h/day | J8: =IF(OR(AA5=AA7,AA5=AA8,AA5=AA9),IF(OR(H5=H7,H5=H8,H5=H9),0,0.699),1) -> 0 | K8: =Translation!A65 -> Austria | L8: 150 | M8: =VLOOKUP($L$5,Klimadaten!N:O,2,FALSE) ->  | N8: ="12 °C | "&Translation!A90 -> 12 °C | Renovated old building | P8: Österreich | Y8: =Translation!A28 -> Internal | AA8: =Translation!$A$151 -> Single family house without circulation | AB8: 2 | AD8: =Translation!A158&" ("&AE8&" L)" -> Low demand (20 L) | AE8: 20 | AF8: =AE8*1.163*(60-Einstellungen!$D$29)/1000 -> 1.163 | AG8: 2 | AH8: =Translation!A163 -> 3 persons (shower) | AI8: 5.845 | AJ8: 2.24 | AK8: 100 % | AL8: 1 | AM8: =Translation!A219 -> Open air pool without cover | AN8: 1
A9: 3 | B9: NL | C9: =Translation!A39 -> Water | F9: =Translation!A51 -> Bivalent-parallel with electricity | G9: 50 °C | H9: 40 °C | I9: =2&" "&Translation!$A$60 -> 2 h/day | J9: =IF(OR(AA5=AA7,AA5=AA8,AA5=AA9),IF(OR(H5=H7,H5=H8,H5=H9),0.47,1.142),2) -> 0.47 | K9: =Translation!A66 -> Switzerland | L9: 200 | M9: =VLOOKUP($L$5,Klimadaten!Q:R,2,FALSE) ->  | N9: ="15 °C | "&Translation!A91 -> 15 °C | Not-renovated building | P9: Schweiz | Y9: =Translation!A29 -> External | AA9: =Translation!$A$152 -> Single family house with circulation | AB9: 3 | AD9: =Translation!A159&" ("&AE9&" L)" -> Normal demand (25 L) | AE9: 25 | AF9: =AE9*1.163*(60-Einstellungen!$D$29)/1000 -> 1.45375 | AG9: 3 | AH9: =Translation!A164 -> 3 persons (shower+bathing) | AI9: 11.655 | AJ9: 4.445 | AK9: 95 % | AL9: 0.95 | AM9: =Translation!A220 -> Indoor pool with cover | AN9: 0.5
A10: 4 | B10: FR | F10: =Translation!A48 -> Bivalent-parallel with SBP-Gas | G10: 55 °C | H10: 45 °C | I10: =3&" "&Translation!A60 -> 3 h/day | J10: =IF(OR(AA5=AA7,AA5=AA8,AA5=AA9),IF(OR(H5=H7,H5=H8,H5=H9),0.699,1.57),3) -> 0.699 | K10: =Translation!A67 -> Great Britain | L10: 250 | M10: =VLOOKUP($L$5,Klimadaten!T:U,2,FALSE) ->  | N10: ="10 °C | "&Translation!A92 -> 10 °C | Passive house | P10: England | AA10: =Translation!$A$153 -> Multi-family house without circulation | AB10: 4 | AD10: =Translation!A160&" ("&AE10&" L)" -> High demand (40 L) | AE10: 40 | AF10: =AE10*1.163*(60-Einstellungen!$D$29)/1000 -> 2.326 | AG10: 4 | AH10: =Translation!A165 -> 4 persons (shower+bathing) | AI10: 19.07 | AJ10: =ROUND(AI10*0.375,3) -> 7.151 | AK10: 90 % | AL10: 0.9 | AM10: =Translation!A221 -> Indoor pool without cover | AN10: 1
A11: 5 | B11: FI | F11: =Translation!A49 -> Bivalent-alternativ with SBP-Gas | G11: 60 °C | H11: 50 °C | I11: =4&" "&Translation!A60 -> 4 h/day | J11: =IF(OR(AA5=AA7,AA5=AA8,AA5=AA9),IF(OR(H5=H7,H5=H8,I5=H9),1.142,2.1818),4) -> 1.142 | K11: =Translation!A68 -> Netherlands | L11: 400 | M11: =VLOOKUP($L$5,Klimadaten!W:X,2,FALSE) ->  | N11: 10 °C | KfW-Effizienzhaus 40 | P11: Holland | AA11: =Translation!$A$154 -> Multi-family house with circulation | AB11: 5 | AD11: =Translation!A161&" ("&AE11&" L)" -> Very high demand (60 L) | AE11: 60 | AF11: =AE11*1.163*(60-Einstellungen!$D$29)/1000 -> 3.489 | AG11: 5 | AH11: =Translation!A166 -> 6 persons (shower+bathing) | AI11: 24.53 | AJ11: =ROUND(AI11*0.37,3) -> 9.076 | AK11: 85 % | AL11: 0.85
A12: 6 | B12: ES | F12: =Translation!A50 -> Bivalent-parallel with oil/gas | G12: 65 °C | H12: 55 °C | I12: =5&" "&Translation!A60 -> 5 h/day | J12: =IF(OR(AA5=AA7,AA5=AA8,AA5=AA9),IF(OR(H5=H7,H5=H8,I5=H9),1.6619,3.0909),5) -> 1.6619 | K12: =Translation!A83 -> Belgium | L12: 1000 | M12: =VLOOKUP($L$5,Klimadaten!Z:AA,2,FALSE) ->  | N12: 10 °C | KfW-Effizienzhaus 55 | P12: Belgien | AA12: =Translation!$A$215 -> Swimming pool | AB12: 6 | AG12: 6 | AK12: 80 % | AL12: 0.8
A13: 7 | B13: SK | F13: =Translation!A52 -> Bivalent-alternativ with oil/gas | G13: 70 °C | H13: 60 °C | I13: =6&" "&Translation!A60 -> 6 h/day | J13: =IF(OR(AA5=AA7,AA5=AA8,AA5=AA9),IF(OR(H5=H7,H5=H8,H5=H9),2.1818,4),6) -> 2.1818 | K13: =Translation!A70 -> Finland | L13: 300 | M13: =VLOOKUP($L$5,Klimadaten!AC:AD,2,FALSE) ->  | N13: 10 °C | KfW-Effizienzhaus 70 | P13: Finnland | AA13: =Translation!$A$214 -> Manual Input | AB13: 7 | AG13: 7 | AK13: 75 % | AL13: 0.75
A14: 8 | B14: DA | F14: =Translation!A53 -> Bivalent-part priority mode | G14: 75 °C | H14: 65 °C | K14: =Translation!A80 -> Denmark | L14: 800 | M14: =VLOOKUP($L$5,Klimadaten!AF:AG,2,FALSE) ->  | N14: 12 °C | KfW-Effizienzhaus 85 | P14: Dänemark | AB14: 8 | AG14: 8 | AK14: 70 % | AL14: 0.7
A15: 9 | B15: LT | H15: 70 °C | K15: =Translation!A71 -> Norway | L15: 1100 | M15: =VLOOKUP($L$5,Klimadaten!AI:AJ,2,FALSE) ->  | N15: 12 °C | KfW-Effizienzhaus 100 | P15: Norwegen | AG15: 9 | AK15: 65 % | AL15: 0.65
A16: 10 | B16: LV | H16: 75 °C | K16: =Translation!A77 -> Slovakia | L16: 700 | M16: =VLOOKUP($L$5,Klimadaten!AL:AM,2,FALSE) ->  | N16: 12 °C | KfW-Effizienzhaus 115 | P16: Slowakei | AG16: 10 | AK16: 60 % | AL16: 0.6
A17: 11 | B17: IT | K17: =Translation!A78 -> Latvia | L17: 750 | M17: =VLOOKUP($L$5,Klimadaten!AO:AP,2,FALSE) ->  | N17: 12 °C | Minergie Haus | P17: Lettland | AG17: 11 | AK17: 55 % | AL17: 0.55
A18: 12 | B18: HU | K18: =Translation!A75 -> Russia | L18: 600 | M18: =VLOOKUP($L$5,Klimadaten!AR:AS,2,FALSE) ->  | N18: 10 °C | Minergie-P Haus | P18: Russland | AG18: 12 | AK18: 50 % | AL18: 0.5
A19: 13 | B19: NO | K19: =Translation!A82 -> Lithuania | L19: 900 | M19: =VLOOKUP($L$5,Klimadaten!AU:AV,2,FALSE) ->  | P19: Litauen | AG19: 13 | AK19: 45 % | AL19: 0.45
K20: =Translation!A79 -> Hungary | L20: 1050 | M20: =VLOOKUP($L$5,Klimadaten!AX:AY,2,FALSE) ->  | P20: Ungarn | AG20: 14 | AK20: 40 % | AL20: 0.4
K21: =Translation!A76 -> Bosnia-Herzegovina | L21: 650 | M21: =VLOOKUP($L$5,Klimadaten!BA:BB,2,FALSE) ->  | P21: Bosnien-Herzegowina | AG21: 15 | AK21: 35 % | AL21: 0.35
K22: =Translation!A69 -> Italy | L22: 950 | M22: =VLOOKUP($L$5,Klimadaten!BD:BE,2,FALSE) ->  | P22: Italien | AG22: 16 | AK22: 30 % | AL22: 0.3
K23: =Translation!A72 -> Spain | L23: 550 | M23: =VLOOKUP($L$5,Klimadaten!BG:BH,2,FALSE) ->  | P23: Spanien | AG23: 17 | AK23: 25 % | AL23: 0.25
K24: =Translation!A74 -> Morocco | L24: 500 | M24: =VLOOKUP($L$5,Klimadaten!BJ:BK,2,FALSE) ->  | P24: Marokko | AG24: 18 | AK24: 20 % | AL24: 0.2
K25: =Translation!A81 -> Namibia | L25: 850 | M25: =VLOOKUP($L$5,Klimadaten!BM:BN,2,FALSE) ->  | P25: Namibia | AG25: 19 | AK25: 15 % | AL25: 0.15
K26: =Translation!A84 -> Europe | L26: 450 | M26: =VLOOKUP($L$5,Klimadaten!BP:BQ,2,FALSE) ->  | P26: Europa | AG26: 20 | AK26: 10 % | AL26: 0.1
K27: =Translation!A73 -> Near East | L27: 350 | M27: =VLOOKUP($L$5,Klimadaten!BS:BT,2,FALSE) ->  | P27: Near East | AG27: 21 | AK27: 5 % | AL27: 0.05
AG28: 22 | AK28: 0 % | AL28: 0
AG29: 23
AG30: 24
K31: Bei Änderungen Comboboxen Klimadaten mit anpassen !! | AG31: 25
AG32: 26
AG33: 27
AG34: 28
AG35: 29
AG36: 30
H39: Sperrzeitenfaktor Heizung | J39: =24/(24-VLOOKUP(I5,H41:I50,2,FALSE)) -> 1.142857143
H41: =I7 -> No switch off times | I41: 0
H42: =I8 -> 1 h/day | I42: 1
H43: 2 h/day | I43: 2
H44: 3 h/day | I44: 3
H45: 4 h/day | I45: 4
H46: 5 h/day | I46: 5
H47: 6 h/day | I47: 6
H48: 0 | I48: 0
F49: Biv- Alternativ ? | H49: 0 | I49: 0 | Y49: Aufstellung | AA49: Ausdruck Gebäude | AB49: Ausdruck Personen | AC49: Mit Heizungs-WP ?
A50: Datenblatt | F50: =IF(OR(F5=F11,F5=F13),TRUE,FALSE) -> FALSE | Y50: =IF(Y5=Y7,0,IF(Y5=Y8,1,2)) -> 0 | AA50: =IF(OR(AA5=AA8,AA5=AA9),Translation!A155,IF(OR(AA5=AA10,AA5=AA11),Translation!A156,"---")) -> Single family house | AB50: =IF(OR(AA5=AA8,AA5=AA9),AB5,IF(OR(AA5=AA10,AA5=AA11),AG5,"---")) -> 4 | AC50: =IF(AC5=LeistungsdatenWW!A3,TRUE,FALSE) -> TRUE
A60: Rechenwerte | F60: Import WP-Leistung | L60: Berechnung Jahresheizarbeit/Heizstunden | AQ60: Berechnung Vollbenutzungsstunden
A61: Typ WP | C61: =D5 -> WPL 18 E / cool | F61: Außentemp | G61: Leistung WP | H61: Heizlast Min | I61: COP-Hzg | J61: COP-WWB | L61: Zähler | M61: Außentemp | N61: Heizlast | O61: Heizlast mit Zuschlag | P61: Leistung WP | Q61: Heizlast minus | R61: Biv.punkt | S61: Stunden bei tau | T61: Heizwärmebedarf | U61: Faktor | V61: Arbeit WP | W61: Arbeit 2. WE | X61: Wärmebedarf WW | Y61: Heizarbeit WW | Z61: Heizarbeit WW | AA61: Heizarbeit WW | AB61: COP-Heizung | AC61: COP-WWB | AD61: Endenergie | AE61: Endenergie | AF61: Endenergie | AG61: Endenergie | AH61: Schwimmbad | AI61: Endenergie | AJ61: WRG | AK61: Betriebspunkt | AL61: Betriebspunkt | AM61: Zuschlag | AO61: Summe Jahresstunden | AQ61: Standort | AR61: Heizgradtage | AV61: Vollbenutzungsstunden nach Heizgrenze | AZ61: Heiztage pro Jahr
A62: Datenblatt | C62: =IF(A5=1,VLOOKUP(C61,Leistungsdaten!A:L,11,FALSE),VLOOKUP(C61,Leistungsdaten!A:L,12,FALSE)) -> 5968 | D62: =IF(A5=1,"http://www.stiebel-eltron.de/services/productproxy.html?productnr="&TEXT(C62,"000000"),"http://apps.stiebel-eltron.de/pdf/apps/product/"&C62&"/"&Translation!A3) -> http://apps.stiebel-eltron.de/pdf/apps/product/5968/en_DE | F62: =IF(AND(C5<>C7,C67<F63),-40,-20) -> -20 | G62: =G63 -> 6.9 | M62: °C | N62: KW | O62: KW | P62: KW | Q62: WP-Leistung | S62: =L5 -> Holzminden | T62: kWh/a | U62: bivalenter Betrieb | V62: kWh/a | W62: kWh/a | X62: kWh/a | Y62: Wärmepumpe | Z62: 2. WE | AA62: Schwimmbad | AD62: WP-Heizung | AE62: WP-WWB | AF62: 2. WE-Heizung | AG62: 2. WE-WWB | AH62: Tage | AI62: Lüftung | AJ62: Lüftung | AK62: Heizung | AL62: Warmwasser | AM62: Sperrzeiten | AO62: h/a | AR62: 20° / 10° | AS62: 20° / 12° | AT62: 20° / 15° | AU62: Gewählt | AV62: 10 °C | AW62: 12 °C | AX62: 15 °C | AY62: Gewählt | AZ62: 10 °C | BA62: 12 °C | BB62: 15 °C | BC62: gewählt
A63: Kaskadierbar ? | C63: =VLOOKUP($C$61,Leistungsdaten!$A:$F,3,FALSE) -> TRUE | F63: -20 | G63: 6.9 | H63: -1 | I63: 2.392857143 | J63: 1.727272727 | L63: 3 | M63: < -20 | N63: =C71 -> 12.4 | O63: =C73 -> 12.4 | P63: =IF(C5=C7,0,P64-(P65-P64)) -> 0 | Q63: =O63-P63 -> 12.4 | R63: -20 | S63: =HLOOKUP($C$94,INDIRECT("Klimadaten!M"&$C$95&":BM"&$C$95+44),L63,FALSE) -> 0 | T63: =IF($C$200=FALSE,N63*S63,($C$205*N63+$C$208*(1-$C$206)*$C$204*N63)*S63) -> 0 | U63: =U64 -> 1 | V63: =MAX(0,U63*(T63-W63)) -> 0 | W63: =IF(AND(P63>N63,U63=1),0,MIN((N63-U63*P63)*S63*AM63,T63)) -> 0 | X63: =S63/8760*$AA$197 -> 0 | Y63: =IF(P63=0,0,IF($L$185=TRUE,AA63,IF($AK$5=$AK$7,MIN(P63*S63,X63)*$Z$197,X63*$Z$197))) -> 0 | Z63: =IF($L$185=TRUE,0,X63-Y63) -> 0 | AA63: =AH63*$X$185 -> 0 | AB63: =AB64-(AB65-AB64) -> 2.313061938 | AC63: =AC64-(AC65-AC64) -> 1.665909091 | AD63: =V63/AB63 -> 0 | AE63: =Y63/AC63 -> 0 | AF63: =W63/$C$164 -> 0 | AG63: =Z63/$C$165 -> 0 | AH63: =IF(OR($AM$5=$AM$7,$AM$5=$AM$8),0,S63/24) -> 0 | AI63: =S63*$L$208/8760 -> 0 | AJ63: =N63*S63-T63 -> 0 | AK63: =IF($C$5=$C$7,"A-20/W",IF($C$5=$C$8,$D$137,"W7/W"))&$C$74 -> A-20/W35 | AL63: =IF($C$5=$C$7,"A-20/W",IF($C$5=$C$8,$D$137,"W7/W"))&$C$69 -> A-20/W55 | AM63: =J39 -> 1.142857143 | AO63: =S63 -> 0 | AQ63: =Klimadaten!N$100 -> Aachen | AR63: 964.7 | AS63: 1353.2 | AT63: 2074.9 | AU63: =IF($C$68=10,AR63,IF($C$68=12,AS63,AT63)) -> 1353.2 | AV63: =(AR63/(10-$C$67))*24 -> 1052.4 | AW63: =(AS63/(12-$C$67))*24 -> 1353.2 | AX63: =(AT63/(15-$C$67))*24 -> 1844.355556 | AY63: =IF($C$68=10,AV63,IF($C$68=12,AW63,AX63)) -> 1353.2 | AZ63: 176 | BA63: 211 | BB63: 268 | BC63: =IF($C$68=10,AZ63,IF($C$68=12,BA63,BB63)) -> 211
A64: Monoenergetisch möglich ? | C64: =VLOOKUP($C$61,Leistungsdaten!$A:$F,4,FALSE) -> TRUE | F64: -17.5 | G64: 7.3 | H64: -1 | I64: 2.552447552 | J64: 1.85 | L64: 4 | M64: -20 | N64: =MAX(0,MIN($C$71,$C$71*(M64-$C$68)/($C$67-$C$68))) -> 12.4 | O64: =MAX(0,MIN($C$73,$C$73*(M64-$C$68)/($C$67-$C$68))) -> 12.4 | P64: =G63 -> 6.9 | Q64: =O64-P64 -> 5.5 | R64: =IF(SIGN(Q64)-SIGN(Q65)<>0,M64,-20) -> -20 | S64: =HLOOKUP($C$94,INDIRECT("Klimadaten!M"&$C$95&":BM"&$C$95+44),L64,FALSE) -> 0 | T64: =IF($C$200=FALSE,N64*S64,($C$205*N64+$C$208*(1-$C$206)*$C$204*N64)*S64) -> 0 | U64: =IF(M64<$C$90,0,1) -> 1 | V64: =IF(M64<=$C$68,MAX(0,U64*(T64-W64)),0) -> 0 | W64: 0 | X64: =S64/8760*$AA$197 -> 0 | Y64: =IF($L$185=TRUE,AA64,IF($AK$5=$AK$7,MIN(P64*S64,X64)*$Z$197,X64*$Z$197)) -> 0 | Z64: =IF($L$185=TRUE,0,X64-Y64) -> 0 | AA64: =AH64*$X$185 -> 0 | AB64: =I63 -> 2.392857143 | AC64: =J63 -> 1.727272727 | AD64: 0 | AE64: =Y64/AC64 -> 0 | AF64: 0 | AG64: =Z64/$C$165 -> 0 | AH64: 0 | AI64: 0 | AJ64: 0 | AK64: =IF($C$5=$C$7,"A"&M64&"/W",IF($C$5=$C$8,$D$137,"W7/W"))&$C$74 -> A-20/W35 | AL64: =IF($C$5=$C$7,"A"&M64&"/W",IF($C$5=$C$8,$D$137,"W7/W"))&$C$69 -> A-20/W55 | AM64: =IF(M64<$R$106,$J$39,1) -> 1.142857143 | AO64: =SUM($S$63:$S64) -> 0 | AQ64: =Klimadaten!O$100 -> Augsburg | AR64: 964.7 | AS64: 1353.2 | AT64: 2074.9 | AU64: =IF($C$68=10,AR64,IF($C$68=12,AS64,AT64)) -> 1353.2 | AV64: =(AR64/(10-$C$67))*24 -> 1052.4 | AW64: =(AS64/(12-$C$67))*24 -> 1353.2 | AX64: =(AT64/(15-$C$67))*24 -> 1844.355556 | AY64: =IF($C$68=10,AV64,IF($C$68=12,AW64,AX64)) -> 1353.2 | AZ64: 200 | BA64: 230 | BB64: 278 | BC64: =IF($C$68=10,AZ64,IF($C$68=12,BA64,BB64)) -> 230
A65: Bivalent möglich ? | C65: =VLOOKUP($C$61,Leistungsdaten!$A:$F,5,FALSE) -> TRUE | F65: -15 | G65: 7.8 | H65: -1 | I65: 2.655172414 | J65: 1.931818182 | L65: 5 | M65: -19 | N65: =MAX(0,MIN($C$71,$C$71*(M65-$C$68)/($C$67-$C$68))) -> 12.4 | O65: =MAX(0,MIN($C$73,$C$73*(M65-$C$68)/($C$67-$C$68))) -> 12.4 | P65: =AVERAGE(P64,P66) -> 7.1 | Q65: 5.3 | R65: =IF(SIGN(Q65)-SIGN(Q66)<>0,M65,-20) -> -20 | S65: =HLOOKUP($C$94,INDIRECT("Klimadaten!M"&$C$95&":BM"&$C$95+44),L65,FALSE) -> 0 | T65: 0 | U65: =IF(M65<$C$90,0,1) -> 1 | V65: =IF(M65<=$C$68,MAX(0,U65*(T65-W65)),0) -> 0 | W65: 0 | X65: 0 | Y65: =IF($L$185=TRUE,AA65,IF($AK$5=$AK$7,MIN(P65*S65,X65)*$Z$197,X65*$Z$197)) -> 0 | Z65: 0 | AA65: 0 | AB65: =AVERAGE(AB64,AB66) -> 2.472652348 | AC65: =AVERAGE(AC64,AC66) -> 1.788636364 | AD65: 0 | AE65: 0 | AF65: 0 | AG65: =Z65/$C$165 -> 0 | AH65: 0 | AI65: 0 | AJ65: 0 | AK65: A-19/W35 | AL65: A-19/W55 | AM65: 1.142857143 | AO65: =SUM($S$63:$S65) -> 0 | AQ65: =Klimadaten!P$100 -> Bamberg | AR65: 1361 | AS65: 1778.9 | AT65: 2522.5 | AU65: 1778.9 | AV65: 1484.727273 | AW65: 1778.9 | AX65: 2242.222222 | AY65: 1778.9 | AZ65: 194 | BA65: 223 | BB65: 271 | BC65: 223
A66: Max VorlaufTemp ? | C66: =VLOOKUP($C$61,Leistungsdaten!$A:$F,6,FALSE) -> 55 | D66: =VLOOKUP($C$61,Leistungsdaten!$A:$H,8,FALSE) -> 55 | F66: -12.5 | G66: 8.3 | H66: -1 | I66: 2.865803815 | J66: 2.049575703 | L66: 6 | M66: -18 | N66: =MAX(0,MIN($C$71,$C$71*(M66-$C$68)/($C$67-$C$68))) -> 12.4 | O66: =MAX(0,MIN($C$73,$C$73*(M66-$C$68)/($C$67-$C$68))) -> 12.4 | P66: =G64 -> 7.3 | Q66: =O66-P66 -> 5.1 | R66: =IF(SIGN(Q66)-SIGN(Q67)<>0,M66,-20) -> -20 | S66: =HLOOKUP($C$94,INDIRECT("Klimadaten!M"&$C$95&":BM"&$C$95+44),L66,FALSE) -> 0 | T66: 0 | U66: =IF(M66<$C$90,0,1) -> 1 | V66: =IF(M66<=$C$68,MAX(0,U66*(T66-W66)),0) -> 0 | W66: 0 | X66: 0 | Y66: 0 | Z66: 0 | AA66: 0 | AB66: =I64 -> 2.552447552 | AC66: =J64 -> 1.85 | AD66: 0 | AE66: 0 | AF66: 0 | AG66: =Z66/$C$165 -> 0 | AH66: 0 | AI66: 0 | AJ66: 0 | AK66: A-18/W35 | AL66: A-18/W55 | AM66: 1.142857143 | AO66: =SUM($S$63:$S66) -> 0 | AQ66: =Klimadaten!Q$100 -> Berlin | AR66: 1229.3 | AS66: 1623.9 | AT66: 2328.3 | AU66: 1623.9 | AV66: 1341.054545 | AW66: 1623.9 | AX66: 2069.6 | AY66: 1623.9 | AZ66: 182 | BA66: 211 | BB66: 257 | BC66: 211
A67: Norm-Außentemperatur | C67: =LEFT(M5,FIND(" ",M5)-1)*1 -> -12 | F67: -10 | G67: 8.9 | H67: -1 | I67: 3.003378378 | J67: 2.125827815 | L67: 7 | M67: -17 | N67: 12.4 | O67: =MAX(0,MIN($C$73,$C$73*(M67-$C$68)/($C$67-$C$68))) -> 12.4 | P67: =G64 -> 7.3 | Q67: 5.1 | R67: -20 | S67: 0 | T67: 0 | U67: =IF(M67<$C$90,0,1) -> 1 | V67: =IF(M67<=$C$68,MAX(0,U67*(T67-W67)),0) -> 0 | W67: 0 | X67: 0 | Y67: 0 | Z67: 0 | AA67: 0 | AB67: =I64 -> 2.552447552 | AC67: =J64 -> 1.85 | AD67: 0 | AE67: 0 | AF67: 0 | AG67: 0 | AH67: 0 | AI67: 0 | AJ67: 0 | AK67: A-17/W35 | AL67: A-17/W55 | AM67: 1.142857143 | AO67: =SUM($S$63:$S67) -> 0 | AQ67: =Klimadaten!R$100 -> Bremen | AR67: 1152 | AS67: 1566.2 | AT67: 2323.1 | AU67: 1566.2 | AV67: 1256.727273 | AW67: 1566.2 | AX67: 2064.977778 | AY67: 1566.2 | AZ67: 190 | BA67: 223 | BB67: 281 | BC67: 223
A68: Heizgrenz-Temperatur | C68: =LEFT(N5,FIND(" ",N5)-1)*1 -> 12 | F68: -7.5 | G68: 9.45 | H68: -1 | I68: 3.2 | J68: 2.239130435 | L68: 8 | M68: -16 | N68: 12.4 | O68: 12.4 | P68: =AVERAGE(P67,P69) -> 7.55 | Q68: 4.85 | R68: -20 | S68: 0 | T68: =IF($C$200=FALSE,N68*S68,($C$205*N68+$C$208*(1-$C$206)*$C$204*N68)*S68) -> 0 | U68: =IF(M68<$C$90,0,1) -> 1 | V68: 0 | W68: 0 | X68: 0 | Y68: 0 | Z68: 0 | AA68: =AH68*$X$185 -> 0 | AB68: =AVERAGE(AB67,AB69) -> 2.603809983 | AC68: =AVERAGE(AC67,AC69) -> 1.890909091 | AD68: 0 | AE68: =Y68/AC68 -> 0 | AF68: 0 | AG68: 0 | AH68: 0 | AI68: 0 | AJ68: 0 | AK68: A-16/W35 | AL68: A-16/W55 | AM68: 1.142857143 | AO68: =SUM($S$63:$S68) -> 0 | AQ68: =Klimadaten!S$100 -> Dortmund | AR68: 911.8 | AS68: 1285.1 | AT68: 1976.3 | AU68: 1285.1 | AV68: 994.6909091 | AW68: 1285.1 | AX68: 1756.711111 | AY68: 1285.1 | AZ68: 170 | BA68: 202 | BB68: 258 | BC68: 202
A69: Vorlauftemp-WP Warmwasser für COP | C69: =MIN(C155+C153,C83) -> 55 | F69: -5 | G69: 10 | H69: -1 | I69: 3.325925926 | J69: 2.311594203 | L69: 9 | M69: -15 | N69: 12.4 | O69: 12.4 | P69: =G65 -> 7.8 | Q69: 4.6 | R69: -20 | S69: 0 | T69: 0 | U69: 1 | V69: =IF(M69<=$C$68,MAX(0,U69*(T69-W69)),0) -> 0 | W69: 0 | X69: 0 | Y69: 0 | Z69: 0 | AA69: 0 | AB69: =I65 -> 2.655172414 | AC69: =J65 -> 1.931818182 | AD69: 0 | AE69: 0 | AF69: 0 | AG69: 0 | AH69: 0 | AI69: 0 | AJ69: 0 | AK69: A-15/W35 | AL69: A-15/W55 | AM69: 1.142857143 | AO69: =SUM($S$63:$S69) -> 0 | AQ69: =Klimadaten!T$100 -> Dresden | AR69: 1326.2 | AS69: 1734.4 | AT69: 2464.5 | AU69: 1734.4 | AV69: 1446.763636 | AW69: 1734.4 | AX69: 2190.666667 | AY69: 1734.4 | AZ69: 189 | BA69: 219 | BB69: 266 | BC69: 219
A70: Σ Sperrzeit in h | C70: =J5*1 -> 0 | F70: -2.5 | G70: 10.5 | H70: -1 | I70: 3.514814815 | J70: 2.420289855 | L70: 10 | M70: -14 | N70: 12.4 | O70: 12.4 | P70: =AVERAGE(P69,P71) -> 8.05 | Q70: 4.35 | R70: -20 | S70: 0 | T70: 0 | U70: 1 | V70: 0 | W70: 0 | X70: 0 | Y70: 0 | Z70: 0 | AA70: 0 | AB70: =AVERAGE(AB69,AB71) -> 2.760488114 | AC70: =AVERAGE(AC69,AC71) -> 1.990696943 | AD70: 0 | AE70: 0 | AF70: 0 | AG70: 0 | AH70: 0 | AI70: 0 | AJ70: 0 | AK70: A-14/W35 | AL70: A-14/W55 | AM70: 1.142857143 | AO70: =SUM($S$63:$S70) -> 0 | AQ70: =Klimadaten!U$100 -> Düsseldorf | AR70: 911.8 | AS70: 1285.1 | AT70: 1976.3 | AU70: 1285.1 | AV70: 994.6909091 | AW70: 1285.1 | AX70: 1756.711111 | AY70: 1285.1 | AZ70: 170 | BA70: 202 | BB70: 258 | BC70: 202
A71: Norm-Gebäudeheizlast | C71: =ROUND(O5/10,1) -> 12.4 | F71: 0 | G71: 11 | H71: -1 | I71: 3.934084084 | J71: 2.492753623 | L71: 11 | M71: -13 | N71: 12.4 | O71: 12.4 | P71: =G66 -> 8.3 | Q71: 4.1 | R71: -20 | S71: =HLOOKUP($C$94,INDIRECT("Klimadaten!M"&$C$95&":BM"&$C$95+44),L71,FALSE) -> 0 | T71: 0 | U71: 1 | V71: 0 | W71: 0 | X71: 0 | Y71: 0 | Z71: 0 | AA71: 0 | AB71: =I66 -> 2.865803815 | AC71: =J66 -> 2.049575703 | AD71: 0 | AE71: 0 | AF71: 0 | AG71: 0 | AH71: 0 | AI71: 0 | AJ71: 0 | AK71: A-13/W35 | AL71: A-13/W55 | AM71: 1.142857143 | AO71: =SUM($S$63:$S71) -> 0 | AQ71: =Klimadaten!V$100 -> Emden | AR71: 955.8 | AS71: 1352.8 | AT71: 2087.6 | AU71: 1352.8 | AV71: 1042.690909 | AW71: 1352.8 | AX71: 1855.644444 | AY71: 1352.8 | AZ71: 181 | BA71: 215 | BB71: 276 | BC71: 215
A72: Anzahl WP | C72: =E5*1 -> 1 | F72: 2.5 | G72: 11.45 | H72: -1 | I72: 4.210249386 | J72: 2.592920354 | L72: 12 | M72: -12 | N72: 12.4 | O72: 12.4 | P72: =G66 -> 8.3 | Q72: 4.1 | R72: -20 | S72: 0 | T72: 0 | U72: 1 | V72: =IF(M72<=$C$68,MAX(0,U72*(T72-W72)),0) -> 0 | W72: 0 | X72: 0 | Y72: 0 | Z72: 0 | AA72: 0 | AB72: =I66 -> 2.865803815 | AC72: =J66 -> 2.049575703 | AD72: 0 | AE72: 0 | AF72: 0 | AG72: 0 | AH72: 0 | AI72: 0 | AJ72: 0 | AK72: A-12/W35 | AL72: A-12/W55 | AM72: 1.142857143 | AO72: =SUM($S$63:$S72) -> 0 | AQ72: =Klimadaten!W$100 -> Erfurt | AR72: 1452.6 | AS72: 1888.4 | AT72: 2667.9 | AU72: 1888.4 | AV72: 1584.654545 | AW72: 1888.4 | AX72: 2371.466667 | AY72: 1888.4 | AZ72: 202 | BA72: 233 | BB72: 284 | BC72: 233
A73: Heizlast mit Zuschlägen | C73: =IF(OR(AA5=AA8,AA5=AA9,AC50=FALSE),($C$71*24)/(24-$C$70),($C$71*24+$Z$197*$X$197)/(24-$C$70)) -> 12.4 | F73: 5 | G73: 11.95 | H73: -1 | I73: 4.582541899 | J73: 2.651376147 | L73: 13 | M73: -11 | N73: 11.88333333 | O73: 11.88333333 | P73: =AVERAGE(P72,P74) -> 8.6 | Q73: 3.283333333 | R73: -20 | S73: 6 | T73: =IF($C$200=FALSE,N73*S73,($C$205*N73+$C$208*(1-$C$206)*$C$204*N73)*S73) -> 71.3 | U73: 1 | V73: 48.78571429 | W73: 22.51428571 | X73: 1.421886986 | Y73: 1.421886986 | Z73: 0 | AA73: 0 | AB73: =AVERAGE(AB72,AB74) -> 2.934591097 | AC73: =AVERAGE(AC72,AC74) -> 2.087701759 | AD73: 16.62436526 | AE73: 0.6810776396 | AF73: 25.01587302 | AG73: 0 | AH73: 0.25 | AI73: 0 | AJ73: 0 | AK73: A-11/W35 | AL73: A-11/W55 | AM73: 1.142857143 | AO73: =SUM($S$63:$S73) -> 6 | AQ73: =Klimadaten!X$100 -> Frankfurt am Main | AR73: 1082.2 | AS73: 1464 | AT73: 2152.2 | AU73: 1464 | AV73: 1180.581818 | AW73: 1464 | AX73: 1913.066667 | AY73: 1464 | AZ73: 176 | BA73: 205 | BB73: 252 | BC73: 205
A74: Vorlauftemp Auslegung | C74: =LEFT(H5,FIND(" ",H5)-1)*1 -> 35 | F74: 7.5 | G74: 12.6 | H74: -1 | I74: 4.801149425 | J74: 2.785714286 | L74: 14 | M74: -10 | N74: 11.36666667 | O74: 11.36666667 | P74: =G67 -> 8.9 | Q74: 2.466666667 | R74: -20 | S74: 32 | T74: 363.7333333 | U74: 1 | V74: =IF(M74<=$C$68,MAX(0,U74*(T74-W74)),0) -> 273.5238095 | W74: 90.20952381 | X74: 7.58339726 | Y74: 7.58339726 | Z74: 0 | AA74: 0 | AB74: =I67 -> 3.003378378 | AC74: =J67 -> 2.125827815 | AD74: 91.07204457 | AE74: 3.56726787 | AF74: 100.2328042 | AG74: 0 | AH74: 1.333333333 | AI74: 0 | AJ74: 0 | AK74: A-10/W35 | AL74: A-10/W55 | AM74: 1.142857143 | AO74: =SUM($S$63:$S74) -> 38 | AQ74: =Klimadaten!Y$100 -> Fritzlar | AR74: 1155.6 | AS74: 1555.5 | AT74: 2277 | AU74: 1555.5 | AV74: 1260.654545 | AW74: 1555.5 | AX74: 2024 | AY74: 1555.5 | AZ74: 183 | BA74: 216 | BB74: 265 | BC74: 216
A75: Vorlauftemp Heizgrenze | C75: =IF(C87=TRUE,30,C74) -> 35 | F75: 10 | G75: 13.4 | H75: -1 | I75: 5.050738916 | J75: 2.928571429 | L75: 15 | M75: -9 | N75: 10.85 | O75: 10.85 | P75: =AVERAGE(P74,P76) -> 9.175 | Q75: 1.675 | R75: -20 | S75: 14 | T75: 151.9 | U75: 1 | V75: 125.1 | W75: 26.8 | X75: 3.317736301 | Y75: 3.317736301 | Z75: 0 | AA75: 0 | AB75: =AVERAGE(AB74,AB76) -> 3.101689189 | AC75: =AVERAGE(AC74,AC76) -> 2.182479125 | AD75: 40.33286134 | AE75: 1.52016863 | AF75: 29.77777778 | AG75: 0 | AH75: 0.5833333333 | AI75: 0 | AJ75: 0 | AK75: A-9/W35 | AL75: A-9/W55 | AM75: 1.142857143 | AO75: =SUM($S$63:$S75) -> 52 | AQ75: =Klimadaten!Z$100 -> Görlitz | AR75: 1447.4 | AS75: 1873.1 | AT75: 2628.2 | AU75: 1873.1 | AV75: 1578.981818 | AW75: 1873.1 | AX75: 2336.177778 | AY75: 1873.1 | AZ75: 197 | BA75: 227 | BB75: 275 | BC75: 227
A76: Vorlauftemp. Mittelwert | C76: =IF(C87=TRUE,ROUNDUP(AVERAGE(C74:C75)*2,-1)/2,C74) -> 35 | F76: 12.5 | G76: 14.3 | H76: -1 | I76: 5.376556332 | J76: 3.112676056 | L76: 16 | M76: -8 | N76: 10.33333333 | O76: 10.33333333 | P76: =G68 -> 9.45 | Q76: 0.8833333333 | R76: -20 | S76: 23 | T76: =IF($C$200=FALSE,N76*S76,($C$205*N76+$C$208*(1-$C$206)*$C$204*N76)*S76) -> 237.6666667 | U76: 1 | V76: 214.447619 | W76: 23.21904762 | X76: 5.450566781 | Y76: 5.450566781 | Z76: 0 | AA76: 0 | AB76: =I68 -> 3.2 | AC76: =J68 -> 2.239130435 | AD76: 67.01488095 | AE76: 2.434233708 | AF76: 25.7989418 | AG76: 0 | AH76: 0.9583333333 | AI76: 0 | AJ76: 0 | AK76: A-8/W35 | AL76: A-8/W55 | AM76: 1.142857143 | AO76: =SUM($S$63:$S76) -> 75 | AQ76: =Klimadaten!AA$100 -> Greifswald | AR76: 1337.8 | AS76: 1762.8 | AT76: 2528.7 | AU76: 1762.8 | AV76: 1459.418182 | AW76: 1762.8 | AX76: 2247.733333 | AY76: 1762.8 | AZ76: 197 | BA76: 227 | BB76: 283 | BC76: 227
A77: SBP-Gas gewählt ? | C77: =IF(OR(F5=F10,F5=F11),TRUE,FALSE) -> FALSE | F77: 15 | G77: 15.2 | H77: -1 | I77: 5.586111111 | J77: 3.23255814 | L77: 17 | M77: -7 | N77: 9.816666667 | O77: 9.816666667 | P77: =G68 -> 9.45 | Q77: 0.3666666667 | R77: -7 | S77: 44 | T77: 431.9333333 | U77: 1 | V77: 415.8 | W77: 16.13333333 | X77: 10.42717123 | Y77: 10.42717123 | Z77: 0 | AA77: 0 | AB77: =I68 -> 3.2 | AC77: =J68 -> 2.239130435 | AD77: 129.9375 | AE77: 4.65679492 | AF77: 17.92592593 | AG77: 0 | AH77: 1.833333333 | AI77: 0 | AJ77: 0 | AK77: A-7/W35 | AL77: A-7/W55 | AM77: 1 | AO77: =SUM($S$63:$S77) -> 119 | AQ77: =Klimadaten!AB$100 -> Hamburg | AR77: 1198.1 | AS77: 1616 | AT77: 2376.3 | AU77: 1616 | AV77: 1307.018182 | AW77: 1616 | AX77: 2112.266667 | AY77: 1616 | AZ77: 192 | BA77: 225 | BB77: 282 | BC77: 225
A78: Leistung SBP-Gas (KW) | C78: 30 | F78: 17.5 | G78: 15.8 | H78: -1 | I78: 5.772777778 | J78: 3.372093023 | L78: 18 | M78: -6 | N78: 9.3 | O78: 9.3 | P78: =AVERAGE(P77,P79) -> 9.725 | Q78: -0.425 | R78: -20 | S78: 49 | T78: 455.7 | U78: 1 | V78: 455.7 | W78: 0 | X78: 11.61207705 | Y78: 11.61207705 | Z78: 0 | AA78: 0 | AB78: =AVERAGE(AB77,AB79) -> 3.262962963 | AC78: =AVERAGE(AC77,AC79) -> 2.275362319 | AD78: 139.6583428 | AE78: 5.103396922 | AF78: 0 | AG78: 0 | AH78: 2.041666667 | AI78: 0 | AJ78: 0 | AK78: A-6/W35 | AL78: A-6/W55 | AM78: 1 | AO78: =SUM($S$63:$S78) -> 168 | AQ78: =Klimadaten!AC$100 -> Hannover | AR78: 1176 | AS78: 1585.2 | AT78: 2331.3 | AU78: 1585.2 | AV78: 1282.909091 | AW78: 1585.2 | AX78: 2072.266667 | AY78: 1585.2 | AZ78: 187 | BA78: 220 | BB78: 275 | BC78: 220
A79: SBP-Gas einsetzbar? | C79: =IF(VLOOKUP(D5,Leistungsdaten!A:I,9,FALSE)=FALSE,FALSE,IF(E5*1>VLOOKUP(D5,Leistungsdaten!A:I,9,FALSE),FALSE,TRUE)) -> TRUE | F79: 20 | G79: 16.1 | H79: -1 | I79: 5.897222222 | J79: 3.465116279 | L79: 19 | M79: -5 | N79: 8.783333333 | O79: 8.783333333 | P79: =G69 -> 10 | Q79: -1.216666667 | R79: -20 | S79: 41 | T79: 360.1166667 | U79: =IF(M79<$C$90,0,1) -> 1 | V79: 360.1166667 | W79: 0 | X79: 9.71622774 | Y79: 9.71622774 | Z79: 0 | AA79: 0 | AB79: =I69 -> 3.325925926 | AC79: =J69 -> 2.311594203 | AD79: 108.2756125 | AE79: 4.203258395 | AF79: 0 | AG79: 0 | AH79: 1.708333333 | AI79: 0 | AJ79: 0 | AK79: A-5/W35 | AL79: A-5/W55 | AM79: 1 | AO79: =SUM($S$63:$S79) -> 209 | AQ79: =Klimadaten!AD$100 -> Hof | AR79: 1794.6 | AS79: 2279.5 | AT79: 3124.9 | AU79: 2279.5 | AV79: 1957.745455 | AW79: 2279.5 | AX79: 2777.688889 | AY79: 2279.5 | AZ79: 226 | BA79: 258 | BB79: 303 | BC79: 258
A80: Aktuelle Programmversion | C80: ="AuslegungWP-"&RIGHT(SUBSTITUTE(Auslegung!AF43,".",""),3)&".txt" -> AuslegungWP-252.txt | D80: =RIGHT(Auslegung!AF43,4) -> 2.52 | F80: 22.5 | G80: 16.5 | H80: -1 | L80: 20 | M80: -4 | N80: 8.266666667 | O80: 8.266666667 | P80: =AVERAGE(P79,P81) -> 10.25 | Q80: -1.983333333 | R80: -20 | S80: 89 | T80: 735.7333333 | U80: 1 | V80: 735.7333333 | W80: 0 | X80: 21.09132363 | Y80: 21.09132363 | Z80: 0 | AA80: 0 | AB80: =AVERAGE(AB79,AB81) -> 3.42037037 | AC80: =AVERAGE(AC79,AC81) -> 2.365942029 | AD80: 215.1034109 | AE80: 8.914556389 | AF80: 0 | AG80: 0 | AH80: 3.708333333 | AI80: 0 | AJ80: 0 | AK80: A-4/W35 | AL80: A-4/W55 | AM80: 1 | AO80: =SUM($S$63:$S80) -> 298 | AQ80: =Klimadaten!AE$100 -> Hohenpeißenberg | AR80: 1759.7 | AS80: 2248.7 | AT80: 3100 | AU80: 2248.7 | AV80: 1919.672727 | AW80: 2248.7 | AX80: 2755.555556 | AY80: 2248.7 | AZ80: 227 | BA80: 260 | BB80: 306 | BC80: 260
A81: Update verfügbar ? | C81: FALSE | F81: 25 | G81: 16.9 | H81: -1 | L81: 21 | M81: -3 | N81: 7.75 | O81: 7.75 | P81: =G70 -> 10.5 | Q81: -2.75 | R81: -20 | S81: 161 | T81: 1247.75 | U81: 1 | V81: 1247.75 | W81: 0 | X81: 38.15396747 | Y81: 38.15396747 | Z81: 0 | AA81: 0 | AB81: =I70 -> 3.514814815 | AC81: =J70 -> 2.420289855 | AD81: 354.9973656 | AE81: 15.7642141 | AF81: 0 | AG81: 0 | AH81: 6.708333333 | AI81: 0 | AJ81: 0 | AK81: A-3/W35 | AL81: A-3/W55 | AM81: 1 | AO81: =SUM($S$63:$S81) -> 459 | AQ81: =Klimadaten!AF$100 -> Karlsruhe | AR81: 1006.3 | AS81: 1375.3 | AT81: 2041.6 | AU81: 1375.3 | AV81: 1097.781818 | AW81: 1375.3 | AX81: 1814.755556 | AY81: 1375.3 | AZ81: 169 | BA81: 197 | BB81: 245 | BC81: 197
A82: Warmwasser bei WP integriert ? | C82: =VLOOKUP($C$61,Leistungsdaten!$A:$M,13,FALSE) -> FALSE | F82: 27.5 | G82: 17.3 | H82: -1 | L82: 22 | M82: -2 | N82: 7.233333333 | O82: 7.233333333 | P82: =G70 -> 10.5 | Q82: -3.266666667 | R82: -20 | S82: 207 | T82: 1497.3 | U82: 1 | V82: 1497.3 | W82: 0 | X82: 49.05510103 | Y82: 49.05510103 | Z82: 0 | AA82: 0 | AB82: =I70 -> 3.514814815 | AC82: =J70 -> 2.420289855 | AD82: 425.9968388 | AE82: 20.26827527 | AF82: 0 | AG82: 0 | AH82: 8.625 | AI82: 0 | AJ82: 0 | AK82: A-2/W35 | AL82: A-2/W55 | AM82: 1 | AO82: =SUM($S$63:$S82) -> 666 | AQ82: =Klimadaten!AG$100 -> Kempten | AR82: 1676.8 | AS82: 2145.5 | AT82: 2967.3 | AU82: 2145.5 | AV82: 1829.236364 | AW82: 2145.5 | AX82: 2637.6 | AY82: 2145.5 | AZ82: 217 | BA82: 249 | BB82: 296 | BC82: 249
A83: VorlauftempMax-WP bei WWB | C83: =VLOOKUP(AC5,LeistungsdatenWW!A:M,2,FALSE) -> 55 | F83: 30 | G83: 17.8 | H83: -1 | L83: 23 | M83: -1 | N83: 6.716666667 | O83: 6.716666667 | P83: =AVERAGE(P82,P84) -> 10.75 | Q83: -4.033333333 | R83: -20 | S83: 248 | T83: 1665.733333 | U83: 1 | V83: 1665.733333 | W83: 0 | X83: 58.77132877 | Y83: 58.77132877 | Z83: 0 | AA83: 0 | AB83: =AVERAGE(AB82,AB84) -> 3.724449449 | AC83: =AVERAGE(AC82,AC84) -> 2.456521739 | AD83: 447.2428357 | AE83: 23.92461171 | AF83: 0 | AG83: 0 | AH83: 10.33333333 | AI83: 0 | AJ83: 0 | AK83: A-1/W35 | AL83: A-1/W55 | AM83: 1 | AO83: =SUM($S$63:$S83) -> 914 | AQ83: =Klimadaten!AH$100 -> Konstanz | AR83: 1223 | AS83: 1624.1 | AT83: 2338.6 | AU83: 1624.1 | AV83: 1334.181818 | AW83: 1624.1 | AX83: 2078.755556 | AY83: 1624.1 | AZ83: 186 | BA83: 214 | BB83: 261 | BC83: 214
A84: Bivalent mit Strom möglich ? | C84: =VLOOKUP($C$61,Leistungsdaten!$A:$N,14,FALSE) -> TRUE | L84: 24 | M84: 0 | N84: 6.2 | O84: 6.2 | P84: =G71 -> 11 | Q84: -4.8 | R84: -20 | S84: 263 | T84: 1630.6 | U84: 1 | V84: 1630.6 | W84: 0 | X84: 62.32604623 | Y84: 62.32604623 | Z84: 0 | AA84: 0 | AB84: =I71 -> 3.934084084 | AC84: =J71 -> 2.492753623 | AD84: 414.4802107 | AE84: 25.00289064 | AF84: 0 | AG84: =Z84/$C$165 -> 0 | AH84: 10.95833333 | AI84: 0 | AJ84: 0 | AK84: =IF($C$5=$C$7,"A"&M84&"/W",IF($C$5=$C$8,$D$137,"W7/W"))&$C$76 -> A0/W35 | AL84: A0/W55 | AM84: 1 | AO84: =SUM($S$63:$S84) -> 1177 | AQ84: =Klimadaten!AI$100 -> Leipzig | AR84: 1282.5 | AS84: 1688.8 | AT84: 2417.5 | AU84: 1688.8 | AV84: 1399.090909 | AW84: 1688.8 | AX84: 2148.888889 | AY84: 1688.8 | AZ84: 188 | BA84: 218 | BB84: 267 | BC84: 218
L85: 25 | M85: 1 | N85: 5.683333333 | O85: 5.683333333 | P85: =AVERAGE(P84,P86) -> 11.225 | Q85: -5.541666667 | R85: -20 | S85: 270 | T85: 1534.5 | U85: =IF(M85<$C$90,0,1) -> 1 | V85: 1534.5 | W85: 0 | X85: 63.98491438 | Y85: 63.98491438 | Z85: 0 | AA85: 0 | AB85: =AVERAGE(AB84,AB86) -> 4.072166735 | AC85: =AVERAGE(AC84,AC86) -> 2.542836989 | AD85: 376.826417 | AE85: 25.16280622 | AF85: 0 | AG85: 0 | AH85: 11.25 | AI85: 0 | AJ85: 0 | AK85: A1/W35 | AL85: A1/W55 | AM85: 1 | AO85: =SUM($S$63:$S85) -> 1447 | AQ85: =Klimadaten!AJ$100 -> Lindenberg | AR85: 1378.8 | AS85: 1791.9 | AT85: 2527 | AU85: 1791.9 | AV85: 1504.145455 | AW85: 1791.9 | AX85: 2246.222222 | AY85: 1791.9 | AZ85: 192 | BA85: 221 | BB85: 268 | BC85: 221
L86: 26 | M86: 2 | N86: 5.166666667 | O86: 5.166666667 | P86: =G72 -> 11.45 | Q86: -6.283333333 | R86: -20 | S86: 328 | T86: 1694.666667 | U86: 1 | V86: 1694.666667 | W86: 0 | X86: 77.72982192 | Y86: 77.72982192 | Z86: 0 | AA86: 0 | AB86: =I72 -> 4.210249386 | AC86: =J72 -> 2.592920354 | AD86: 402.5098068 | AE86: 29.97771289 | AF86: 0 | AG86: 0 | AH86: 13.66666667 | AI86: 0 | AJ86: 0 | AK86: A2/W35 | AL86: A2/W55 | AM86: 1 | AO86: =SUM($S$63:$S86) -> 1775 | AQ86: =Klimadaten!AK$100 -> List auf Sylt | AR86: 1172.8 | AS86: 1602.8 | AT86: 2390.5 | AU86: 1602.8 | AV86: 1279.418182 | AW86: 1602.8 | AX86: 2124.888889 | AY86: 1602.8 | AZ86: 199 | BA86: 231 | BB86: 294 | BC86: 231
A87: Regelung außentemperaturgeführt? | C87: =IF(Einstellungen!D18=Einstellungen!K18,TRUE,FALSE) -> FALSE | L87: 27 | M87: 3 | N87: 4.65 | O87: 4.65 | P87: =G72 -> 11.45 | Q87: -6.8 | R87: -20 | S87: 344 | T87: =IF($C$200=FALSE,N87*S87,($C$205*N87+$C$208*(1-$C$206)*$C$204*N87)*S87) -> 1599.6 | U87: 1 | V87: 1599.6 | W87: 0 | X87: 81.52152055 | Y87: 81.52152055 | Z87: 0 | AA87: 0 | AB87: =I72 -> 4.210249386 | AC87: =J72 -> 2.592920354 | AD87: 379.9299883 | AE87: 31.44004035 | AF87: 0 | AG87: 0 | AH87: 14.33333333 | AI87: 0 | AJ87: 0 | AK87: A3/W35 | AL87: A3/W55 | AM87: 1 | AO87: =SUM($S$63:$S87) -> 2119 | AQ87: =Klimadaten!AL$100 -> Magdeburg | AR87: 1267.9 | AS87: 1677.4 | AT87: 2414.4 | AU87: 1677.4 | AV87: 1383.163636 | AW87: 1677.4 | AX87: 2146.133333 | AY87: 1677.4 | AZ87: 189 | BA87: 219 | BB87: 271 | BC87: 219
L88: 28 | M88: 4 | N88: 4.133333333 | O88: 4.133333333 | P88: =AVERAGE(P87,P89) -> 11.7 | Q88: -7.566666667 | R88: -20 | S88: 343 | T88: 1417.733333 | U88: 1 | V88: 1417.733333 | W88: 0 | X88: 81.28453938 | Y88: 81.28453938 | Z88: 0 | AA88: 0 | AB88: =AVERAGE(AB87,AB89) -> 4.396395643 | AC88: =AVERAGE(AC87,AC89) -> 2.62214825 | AD88: 322.4762848 | AE88: 30.99921577 | AF88: 0 | AG88: 0 | AH88: 14.29166667 | AI88: 0 | AJ88: 0 | AK88: A4/W35 | AL88: A4/W55 | AM88: 1 | AO88: =SUM($S$63:$S88) -> 2462 | AQ88: =Klimadaten!AM$100 -> Meiningen | AR88: 1616.3 | AS88: 2076.4 | AT88: 2891.4 | AU88: 2076.4 | AV88: 1763.236364 | AW88: 2076.4 | AX88: 2570.133333 | AY88: 2076.4 | AZ88: 213 | BA88: 246 | BB88: 294 | BC88: 246
A89: Abschaltpunkt - Eingabe | C89: 2.5 | L89: 29 | M89: 5 | N89: 3.616666667 | O89: 3.616666667 | P89: =G73 -> 11.95 | Q89: -8.333333333 | R89: -20 | S89: 414 | T89: 1497.3 | U89: 1 | V89: 1497.3 | W89: 0 | X89: 98.11020205 | Y89: 98.11020205 | Z89: 0 | AA89: 0 | AB89: =I73 -> 4.582541899 | AC89: =J73 -> 2.651376147 | AD89: 326.7400567 | AE89: 37.00350181 | AF89: 0 | AG89: 0 | AH89: 17.25 | AI89: 0 | AJ89: 0 | AK89: A5/W35 | AL89: A5/W55 | AM89: 1 | AO89: =SUM($S$63:$S89) -> 2876 | AQ89: =Klimadaten!AN$100 -> München | AR89: 1395.9 | AS89: 1805 | AT89: 2532.8 | AU89: 1805 | AV89: 1522.8 | AW89: 1805 | AX89: 2251.377778 | AY89: 1805 | AZ89: 190 | BA89: 218 | BB89: 265 | BC89: 218
A90: Abschaltpunkt-Berechnung | C90: =IF(F50=TRUE,C89,-20) -> -20 | L90: 30 | M90: 6 | N90: 3.1 | O90: 3.1 | P90: =AVERAGE(P89,P91) -> 12.275 | Q90: -9.175 | R90: -20 | S90: 397 | T90: 1230.7 | U90: 1 | V90: 1230.7 | W90: 0 | X90: 94.08152226 | Y90: 94.08152226 | Z90: 0 | AA90: 0 | AB90: =AVERAGE(AB89,AB91) -> 4.691845662 | AC90: =AVERAGE(AC89,AC91) -> 2.718545216 | AD90: 262.3061559 | AE90: 34.60730456 | AF90: 0 | AG90: 0 | AH90: 16.54166667 | AI90: 0 | AJ90: 0 | AK90: A6/W35 | AL90: A6/W55 | AM90: 1 | AO90: =SUM($S$63:$S90) -> 3273 | AQ90: =Klimadaten!AO$100 -> Neuruppin | AR90: 1309.8 | AS90: 1725.8 | AT90: 2466 | AU90: 1725.8 | AV90: 1428.872727 | AW90: 1725.8 | AX90: 2192 | AY90: 1725.8 | AZ90: 194 | BA90: 221 | BB90: 272 | BC90: 221
A91: Bivalenter Berieb ? | C91: =IF(OR(F5=F7,F5=F8,F5=F9),FALSE,TRUE) -> TRUE | L91: 31 | M91: 7 | N91: 2.583333333 | O91: 2.583333333 | P91: =G74 -> 12.6 | Q91: -10.01666667 | R91: -20 | S91: 406 | T91: 1048.833333 | U91: 1 | V91: 1048.833333 | W91: 0 | X91: 96.21435274 | Y91: 96.21435274 | Z91: 0 | AA91: 0 | AB91: =I74 -> 4.801149425 | AC91: =J74 -> 2.785714286 | AD91: 218.4546325 | AE91: 34.5384856 | AF91: 0 | AG91: 0 | AH91: 16.91666667 | AI91: 0 | AJ91: 0 | AK91: A7/W35 | AL91: A7/W55 | AM91: 1 | AO91: =SUM($S$63:$S91) -> 3679 | AQ91: =Klimadaten!AP$100 -> Nürburg-Barweiler | AR91: 1356.9 | AS91: 1803 | AT91: 2607.8 | AU91: 1803 | AV91: 1480.254545 | AW91: 1803 | AX91: 2318.044444 | AY91: 1803 | AZ91: 205 | BA91: 240 | BB91: 295 | BC91: 240
L92: 32 | M92: 8 | N92: 2.066666667 | O92: 2.066666667 | P92: =G74 -> 12.6 | Q92: -10.53333333 | R92: -20 | S92: 378 | T92: 781.2 | U92: 1 | V92: 781.2 | W92: 0 | X92: 89.57888014 | Y92: 89.57888014 | Z92: 0 | AA92: 0 | AB92: =I74 -> 4.801149425 | AC92: =J74 -> 2.785714286 | AD92: 162.7110366 | AE92: 32.15652107 | AF92: 0 | AG92: 0 | AH92: 15.75 | AI92: 0 | AJ92: 0 | AK92: A8/W35 | AL92: A8/W55 | AM92: 1 | AO92: =SUM($S$63:$S92) -> 4057 | AQ92: =Klimadaten!AQ$100 -> Nürnberg | AR92: 1342 | AS92: 1755.8 | AT92: 2489.4 | AU92: 1755.8 | AV92: 1464 | AW92: 1755.8 | AX92: 2212.8 | AY92: 1755.8 | AZ92: 192 | BA92: 220 | BB92: 267 | BC92: 220
D93: Drucken ? | L93: 33 | M93: 9 | N93: 1.55 | O93: 1.55 | P93: =AVERAGE(P92,P94) -> 13 | Q93: -11.45 | R93: -20 | S93: 409 | T93: 633.95 | U93: 1 | V93: 633.95 | W93: 0 | X93: 96.92529623 | Y93: 96.92529623 | Z93: 0 | AA93: 0 | AB93: =AVERAGE(AB92,AB94) -> 4.925944171 | AC93: =AVERAGE(AC92,AC94) -> 2.857142857 | AD93: 128.6961399 | AE93: 33.92385368 | AF93: 0 | AG93: 0 | AH93: 17.04166667 | AI93: 0 | AJ93: 0 | AK93: A9/W35 | AL93: A9/W55 | AM93: 1 | AO93: =SUM($S$63:$S93) -> 4466 | AQ93: =Klimadaten!AR$100 -> Potsdam | AR93: 1334.2 | AS93: 1745.7 | AT93: 2481.1 | AU93: 1745.7 | AV93: 1455.490909 | AW93: 1745.7 | AX93: 2205.422222 | AY93: 1745.7 | AZ93: 190 | BA93: 220 | BB93: 268 | BC93: 220
A94: Zugehörige Wetterstation | C94: =IF(K5=K7,VLOOKUP(L5,Klimadaten!B:D,3,FALSE),L5) -> Fritzlar | D94: =IF(ISERROR(C94),FALSE,TRUE) -> TRUE | L94: 34 | M94: 10 | N94: 1.033333333 | O94: 1.033333333 | P94: =G75 -> 13.4 | Q94: -12.36666667 | R94: -20 | S94: 375 | T94: 387.5 | U94: 1 | V94: 387.5 | W94: 0 | X94: 88.86793664 | Y94: 88.86793664 | Z94: 0 | AA94: 0 | AB94: =I75 -> 5.050738916 | AC94: =J75 -> 2.928571429 | AD94: 76.72144738 | AE94: 30.3451491 | AF94: 0 | AG94: 0 | AH94: 15.625 | AI94: 0 | AJ94: 0 | AK94: =IF($C$5=$C$7,"A"&M94&"/W",IF($C$5=$C$8,$D$137,"W7/W"))&$C$75 -> A10/W35 | AL94: A10/W55 | AM94: 1 | AO94: =SUM($S$63:$S94) -> 4841 | AQ94: =Klimadaten!AS$100 -> Rostock | AR94: 1231.5 | AS94: 1654.9 | AT94: 2412.9 | AU94: 1654.9 | AV94: 1343.454545 | AW94: 1654.9 | AX94: 2144.8 | AY94: 1654.9 | AZ94: 196 | BA94: 226 | BB94: 281 | BC94: 226
A95: Startzeile Klimadaten Land | C95: =VLOOKUP(K5,K6:L50,2,FALSE) -> 100 | L95: 35 | M95: 11 | N95: 0.5166666667 | O95: 0.5166666667 | P95: =AVERAGE(P94,P96) -> 13.85 | Q95: -13.33333333 | R95: -20 | S95: 420 | T95: 217 | U95: =IF(M95<$C$90,0,1) -> 1 | V95: 217 | W95: 0 | X95: 99.53208904 | Y95: 99.53208904 | Z95: 0 | AA95: 0 | AB95: =AVERAGE(AB94,AB96) -> 5.213647624 | AC95: =AVERAGE(AC94,AC96) -> 3.020623742 | AD95: 41.62153173 | AE95: 32.9508398 | AF95: 0 | AG95: 0 | AH95: 17.5 | AI95: 0 | AJ95: 0 | AK95: A11/W35 | AL95: A11/W55 | AM95: 1 | AO95: =SUM($S$63:$S95) -> 5261 | AQ95: =Klimadaten!AT$100 -> Saarbrücken | AR95: 1217.7 | AS95: 1632.8 | AT95: 2382.5 | AU95: 1632.8 | AV95: 1328.4 | AW95: 1632.8 | AX95: 2117.777778 | AY95: 1632.8 | AZ95: 191 | BA95: 223 | BB95: 274 | BC95: 223
L96: 36 | M96: 12 | N96: 0 | O96: 0 | P96: =G76 -> 14.3 | Q96: -14.3 | R96: -20 | S96: 378 | T96: 0 | U96: 1 | V96: 0 | W96: 0 | X96: 89.57888014 | Y96: 89.57888014 | Z96: 0 | AA96: 0 | AB96: =I76 -> 5.376556332 | AC96: =J76 -> 3.112676056 | AD96: 0 | AE96: 28.77873525 | AF96: 0 | AG96: 0 | AH96: 15.75 | AI96: 0 | AJ96: 0 | AK96: A12/W35 | AL96: A12/W55 | AM96: 1 | AO96: =SUM($S$63:$S96) -> 5639 | AQ96: =Klimadaten!AU$100 -> Schleswig | AR96: 1293.8 | AS96: 1737.2 | AT96: 2547 | AU96: 1737.2 | AV96: 1411.418182 | AW96: 1737.2 | AX96: 2264 | AY96: 1737.2 | AZ96: 204 | BA96: 239 | BB96: 300 | BC96: 239
A97: Leistung 2. WE | C97: =Q5*1 -> 8.8 | L97: 37 | M97: 13 | N97: 0 | O97: 0 | P97: =G76 -> 14.3 | Q97: -14.3 | R97: -20 | S97: 349 | T97: 0 | U97: 1 | V97: 0 | W97: 0 | X97: 82.70642637 | Y97: 82.70642637 | Z97: 0 | AA97: 0 | AB97: =I76 -> 5.376556332 | AC97: =J76 -> 3.112676056 | AD97: 0 | AE97: 26.57084286 | AF97: 0 | AG97: 0 | AH97: 14.54166667 | AI97: 0 | AJ97: 0 | AK97: A13/W35 | AL97: A13/W55 | AM97: 1 | AO97: =SUM($S$63:$S97) -> 5988 | AQ97: =Klimadaten!AV$100 -> Schwerin | AR97: 1307.2 | AS97: 1733 | AT97: 2499.9 | AU97: 1733 | AV97: 1426.036364 | AW97: 1733 | AX97: 2222.133333 | AY97: 1733 | AZ97: 197 | BA97: 227 | BB97: 283 | BC97: 227
A98: Leistung WP bei Außentemp. | C98: =IF(OR(F5=F11,F5=F13,F5=F14),0,IF(C67<-20,VLOOKUP(-20,M63:P105,4,FALSE),VLOOKUP(C67,M63:P105,4,FALSE))) -> 8.3 | L98: 38 | M98: 14 | N98: 0 | O98: 0 | P98: =AVERAGE(P97,P99) -> 14.75 | Q98: -14.75 | R98: -20 | S98: 370 | T98: 0 | U98: 1 | V98: 0 | W98: 0 | X98: 87.68303082 | Y98: 87.68303082 | Z98: 0 | AA98: 0 | AB98: =AVERAGE(AB97,AB99) -> 5.481333721 | AC98: =AVERAGE(AC97,AC99) -> 3.172617098 | AD98: 0 | AE98: 27.63744509 | AF98: 0 | AG98: 0 | AH98: 15.41666667 | AI98: 0 | AJ98: 0 | AK98: A14/W35 | AL98: A14/W55 | AM98: 1 | AO98: =SUM($S$63:$S98) -> 6358 | AQ98: =Klimadaten!AW$100 -> Straubing | AR98: 1475.4 | AS98: 1892.8 | AT98: 2630.5 | AU98: 1892.8 | AV98: 1609.527273 | AW98: 1892.8 | AX98: 2338.222222 | AY98: 1892.8 | AZ98: 194 | BA98: 222 | BB98: 267 | BC98: 222
A99: Leistung DHC ? | C99: =VLOOKUP($C$61,Leistungsdaten!$A:$F,2,FALSE) -> 8.8 | L99: 39 | M99: 15 | N99: 0 | O99: 0 | P99: =G77 -> 15.2 | Q99: -15.2 | R99: -20 | S99: 333 | T99: 0 | U99: 1 | V99: 0 | W99: 0 | X99: 78.91472774 | Y99: 78.91472774 | Z99: 0 | AA99: 0 | AB99: =I77 -> 5.586111111 | AC99: =J77 -> 3.23255814 | AD99: 0 | AE99: 24.41246973 | AF99: 0 | AG99: 0 | AH99: =S99/24 -> 13.875 | AI99: 0 | AJ99: 0 | AK99: A15/W35 | AL99: A15/W55 | AM99: 1 | AO99: =SUM($S$63:$S99) -> 6691 | AQ99: =Klimadaten!AX$100 -> Stuttgart | AR99: 1290.3 | AS99: 1702.9 | AT99: 2440.1 | AU99: 1702.9 | AV99: 1407.6 | AW99: 1702.9 | AX99: 2168.977778 | AY99: 1702.9 | AZ99: 190 | BA99: 221 | BB99: 269 | BC99: 221
A100: Max Heizleistung WP (Slider) | C100: =IF(OR(AA5=AA8,AA5=AA9,AC50=FALSE),MAX(0,($C$97+$C$98)*(24-$C$70)/24),MAX(0,($C$97+$C$98)*(24-$C$70)-$Z$197*$X$197)/24) -> 17.1 | L100: 40 | M100: 16 | N100: 0 | O100: 0 | P100: =AVERAGE(P99,P101) -> 15.5 | Q100: -15.5 | R100: -20 | S100: 310 | T100: 0 | U100: 1 | V100: 0 | W100: 0 | X100: 73.46416096 | Y100: 73.46416096 | Z100: 0 | AA100: 0 | AB100: =AVERAGE(AB99,AB101) -> 5.679444444 | AC100: =AVERAGE(AC99,AC101) -> 3.302325581 | AD100: 0 | AE100: 22.24618959 | AF100: 0 | AG100: 0 | AH100: 12.91666667 | AI100: 0 | AJ100: 0 | AK100: A16/W35 | AL100: A16/W55 | AM100: 1 | AO100: =SUM($S$63:$S100) -> 7001 | AQ100: =Klimadaten!AY$100 -> Trier | AR100: 1146.7 | AS100: 1552.7 | AT100: 2291.2 | AU100: 1552.7 | AV100: 1250.945455 | AW100: 1552.7 | AX100: 2036.622222 | AY100: 1552.7 | AZ100: 186 | BA100: 219 | BB100: 271 | BC100: 219
L101: 41 | M101: 17 | N101: 0 | O101: 0 | P101: =G78 -> 15.8 | Q101: -15.8 | R101: -20 | S101: 322 | T101: 0 | U101: 1 | V101: 0 | W101: 0 | X101: 76.30793493 | Y101: 76.30793493 | Z101: 0 | AA101: 0 | AB101: =I78 -> 5.772777778 | AC101: =J78 -> 3.372093023 | AD101: 0 | AE101: 22.62924967 | AF101: 0 | AG101: 0 | AH101: 13.41666667 | AI101: 0 | AJ101: 0 | AK101: A17/W35 | AL101: A17/W55 | AM101: 1 | AO101: =SUM($S$63:$S101) -> 7323 | AQ101: =Klimadaten!AZ$100 -> Westermakelsdorf | AR101: 1251.1 | AS101: 1682.6 | AT101: 2455.5 | AU101: 1682.6 | AV101: 1364.836364 | AW101: 1682.6 | AX101: 2182.666667 | AY101: 1682.6 | AZ101: 202 | BA101: 230 | BB101: 285 | BC101: 230
A102: Max-Abschaltpunkt (biv-teilpar.) | C102: =MAX(-20,ROUND(C103,0)) -> -7 | D102: =C102&" °C" -> -7 °C | L102: 42 | M102: 18 | N102: 0 | O102: 0 | P102: =G78 -> 15.8 | Q102: -15.8 | R102: -20 | S102: 280 | T102: 0 | U102: 1 | V102: 0 | W102: 0 | X102: 66.35472603 | Y102: 66.35472603 | Z102: 0 | AA102: 0 | AB102: =I78 -> 5.772777778 | AC102: =J78 -> 3.372093023 | AD102: 0 | AE102: 19.67760841 | AF102: 0 | AG102: 0 | AH102: 11.66666667 | AI102: 0 | AJ102: 0 | AK102: A18/W35 | AL102: A18/W55 | AM102: 1 | AO102: =SUM($S$63:$S102) -> 7603 | AQ102: =Klimadaten!BA$100 -> Würzburg | AR102: 1255.8 | AS102: 1659.5 | AT102: 2381.7 | AU102: 1659.5 | AV102: 1369.963636 | AW102: 1659.5 | AX102: 2117.066667 | AY102: 1659.5 | AZ102: 186 | BA102: 216 | BB102: 265 | BC102: 216
A103: Bivalenzpunkt | C103: =ROUND(L131,0) -> -7 | L103: 43 | M103: 19 | N103: 0 | O103: 0 | P103: =AVERAGE(P102,P104) -> 15.95 | Q103: -15.95 | R103: -20 | S103: 217 | T103: 0 | U103: 1 | V103: 0 | W103: 0 | X103: 51.42491267 | Y103: 51.42491267 | Z103: 0 | AA103: 0 | AB103: =AVERAGE(AB102,AB104) -> 5.835 | AC103: =AVERAGE(AC102,AC104) -> 3.418604651 | AD103: 0 | AE103: 15.04266153 | AF103: 0 | AG103: 0 | AH103: 9.041666667 | AI103: 0 | AJ103: 0 | AK103: A19/W35 | AL103: A19/W55 | AM103: 1 | AO103: =SUM($S$63:$S103) -> 7820 | AU103: 0 | AV103: 0 | AW103: 0 | AX103: 0 | AY103: 0 | BC103: 0
L104: 44 | M104: 20 | N104: 0 | O104: 0 | P104: =G79 -> 16.1 | Q104: -16.1 | R104: -20 | S104: 196 | T104: 0 | U104: =IF(M104<$C$90,0,1) -> 1 | V104: 0 | W104: 0 | X104: 46.44830822 | Y104: 46.44830822 | Z104: 0 | AA104: 0 | AB104: =I79 -> 5.897222222 | AC104: =J79 -> 3.465116279 | AD104: 0 | AE104: 13.40454532 | AF104: 0 | AG104: 0 | AH104: 8.166666667 | AI104: 0 | AJ104: 0 | AK104: A20/W35 | AL104: A20/W55 | AM104: 1 | AO104: =SUM($S$63:$S104) -> 8016 | AU104: 0 | AV104: 0 | AW104: 0 | AX104: 0 | AY104: 0 | BC104: 0
A105: Datenblatt Warmwasser | C105: =IF(A5=1,VLOOKUP(AC5,LeistungsdatenWW!A:L,11,FALSE),VLOOKUP(AC5,LeistungsdatenWW!A:L,12,FALSE)) -> 5968 | D105: =IF(A5=1,"http://www.stiebel-eltron.de/services/productproxy.html?productnr="&TEXT(C105,"000000"),"http://apps.stiebel-eltron.de/pdf/apps/product/"&C105&"/"&Translation!A3) -> http://apps.stiebel-eltron.de/pdf/apps/product/5968/en_DE | L105: 45 | M105: > 20 | N105: 0 | O105: 0 | P105: =P104+(P104-P103) -> 16.25 | Q105: -16.25 | R105: > 20 | S105: 744 | T105: 0 | U105: =U104 -> 1 | V105: 0 | W105: 0 | X105: 176.3139863 | Y105: 176.3139863 | Z105: 0 | AA105: 0 | AB105: =AB104+(AB104-AB103) -> 5.959444444 | AC105: =AC104+(AC104-AC103) -> 3.511627907 | AD105: 0 | AE105: 50.20861862 | AF105: 0 | AG105: 0 | AH105: 31 | AI105: 0 | AJ105: 0 | AK105: =IF($C$5=$C$7,"A20/W",IF($C$5=$C$8,$D$137,"W7/W"))&$C$75 -> A20/W35 | AL105: =IF($C$5=$C$7,"A20/W",IF($C$5=$C$8,$D$137,"W7/W"))&$C$69 -> A20/W55 | AM105: 1 | AO105: =SUM($S$63:$S105) -> 8760 | AU105: 0 | AV105: 0 | AW105: 0 | AX105: 0 | AY105: 0 | BC105: 0
R106: =MAX(R63:R105) -> -7 | S106: =SUM(S63:S105) -> 8760 | T106: =SUM(T63:T105) -> 20892.45 | U106: 1 | V106: =ROUND(SUM(V63:V105),0) -> 20714 | W106: =SUM(W63:W105) -> 178.8761905 | X106: =SUM(X63:X105) -> 2075.955 | Y106: =SUM(Y63:Y105) -> 2075.955 | Z106: =SUM(Z63:Z105) -> 0 | AA106: =SUM(AA63:AA105) -> 0 | AB106: =AVERAGE(AB63:AB105) -> 4.043370423 | AC106: =AVERAGE(AC63:AC105) -> 2.548426017 | AD106: =MAX(0,SUM(AD63:AD105)) -> 5149.729767 | AE106: =SUM(AE63:AE105) -> 719.7545431 | AF106: =SUM(AF63:AF105) -> 198.7513228 | AG106: 0 | AH106: =SUM(AH63:AH105) -> 365 | AI106: =SUM(AI63:AI105) -> 0 | AJ106: =SUM(AJ63:AJ105) -> 0 | AU106: 0 | AV106: 0 | AW106: 0 | AX106: 0 | AY106: 0 | BC106: 0
AU107: 0 | AV107: 0 | AW107: 0 | AX107: 0 | AY107: 0 | BC107: 0
AU108: 0 | AV108: 0 | AW108: 0 | AX108: 0 | AY108: 0 | BC108: 0
A109: Klimadaten - Heizgradtage | C109: =VLOOKUP($C$94,$AQ$63:$BC$128,5,FALSE) -> 1555.5 | AU109: 0 | AV109: 0 | AW109: 0 | AX109: 0 | AY109: 0 | BC109: 0
A110: Klimadaten - Vollbenutzungsstunden | C110: =VLOOKUP($C$94,$AQ$63:$BC$128,9,FALSE) -> 1555.5 | AU110: 0 | AV110: 0 | AW110: 0 | AX110: 0 | AY110: 0 | BC110: 0
A111: Klimadaten - Heiztage | C111: =VLOOKUP($C$94,$AQ$63:$BC$128,13,FALSE) -> 216 | AU111: 0 | AV111: 0 | AW111: 0 | AX111: 0 | AY111: 0 | BC111: 0
AU112: 0 | AV112: 0 | AW112: 0 | AX112: 0 | AY112: 0 | BC112: 0
AU113: 0 | AV113: 0 | AW113: 0 | AX113: 0 | AY113: 0 | BC113: 0
L114: Darstellung Diagramm Heizlast | AU114: 0 | AV114: 0 | AW114: 0 | AX114: 0 | AY114: 0 | BC114: 0
M115: Kennlinie Heizlast | Q115: Kennlinie Heizlast+Sperrzeit+Warmwasserzuschlag | S115: Hilfslinie Bivalenzpunkt | U115: Punktdarstellung | W115: Linie Bivalenzpunkt Heizarbeit | Y115: Linie Abschaltpunkt WP Heizarbeit | AU115: 0 | AV115: 0 | AW115: 0 | AX115: 0 | AY115: 0 | BC115: 0
M116: Temp | N116: Leistung | O116: m | P116: n | Q116: Temp | R116: Leistung | S116: Temp | T116: Leistung | U116: Temp | V116: Leistung | W116: Temp | X116: kWh | Y116: Temp | Z116: KWh | AU116: 0 | AV116: 0 | AW116: 0 | AX116: 0 | AY116: 0 | BC116: 0
L117: Heizgrenze | M117: =IF(C71=0,-30,C68) -> 12 | N117: 0 | O117: =(T118-N117)/(S118-M117) -> -0.5182432432 | P117: =T118-O117*S118 -> 6.218918919 | Q117: =IF(C73=0,-30,C68) -> 12 | R117: =IF(C72=TRUE,N117/(24/(24-$C$70)),N117*(24/(24-$C$70))) -> 0 | S117: =S118 -> -6.5 | T117: =IF(S117<20,-100,0) -> -100 | U117: =-20 -> -20 | V117: =R118 -> 12.4 | W117: =IF(OR(S118<-20,W106=0),0,ROUND(S118,0)+21) -> 14 | X117: 0 | Y117: =IF(F5=F14,C90+21,0) -> 0 | Z117: 0 | AU117: 0 | AV117: 0 | AW117: 0 | AX117: 0 | AY117: 0 | BC117: 0
A118: Ausgabe Heizlast | C118: =FIXED(Berechnung!$C$71,1) -> 12,4 | L118: Außentemp | M118: =IF(C71=0,-30,C67) -> -12 | N118: =C71 -> 12.4 | Q118: =IF(C73=0,-30,C67) -> -12 | R118: =C73 -> 12.4 | S118: =IF(F50=TRUE,C89,L131) -> -6.5 | T118: =IF(S118<-20,-100,IF(S118<>L131,VLOOKUP(ROUND(S118,0),M63:P105,4,FALSE),N131)) -> 9.5875 | U118: =S118 -> -6.5 | V118: =T118 -> 9.5875 | W118: =W117 -> 14 | X118: =IF(C90>W118-21,0,IF(ISERROR(VLOOKUP(W118-21,M64:V104,9,FALSE)),0,VLOOKUP(W118-21,M64:V104,9,FALSE))) -> 1 | Y118: =Y117 -> 0 | Z118: =IF(ISERROR(VLOOKUP(Y118-21,M64:T104,7,FALSE)),0,VLOOKUP(Y118-21,M64:T104,7,FALSE)) -> 0 | AU118: 0 | AV118: 0 | AW118: 0 | AX118: 0 | AY118: 0 | BC118: 0
AU119: 0 | AV119: 0 | AW119: 0 | AX119: 0 | AY119: 0 | BC119: 0
A120: Ausgabe Sperrzeitenfaktor | C120: =FIXED(C70,2) -> 0,00 | AU120: 0 | AV120: 0 | AW120: 0 | AX120: 0 | AY120: 0 | BC120: 0
AU121: 0 | AV121: 0 | AW121: 0 | AX121: 0 | AY121: 0 | BC121: 0
A122: Ausgabe max. Heizlast | C122: =IF(ISERROR(R118),"---",FIXED(R118,1)&" KW") -> 12,4 KW | AU122: 0 | AV122: 0 | AW122: 0 | AX122: 0 | AY122: 0 | BC122: 0
A123: Ausgabe Bivalenzpunkt | C123: =IF(ISERROR(S118),"---",IF(F50=TRUE,FIXED(S118,1)&" °C",IF(ROUND(L131,0)<=C67,Translation!A46,FIXED(S118,1)&" °C"))) -> -6,5 °C | AU123: 0 | AV123: 0 | AW123: 0 | AX123: 0 | AY123: 0 | BC123: 0
A124: Ausgabe Heizarbeit WP | C124: =IF(ISERROR(V106),"---",FIXED(V106+C159,0)&" "&Translation!A225) -> 22.790 kWh/a | D124: =IF(ISERROR(V106),Translation!$A$22&" ---",Translation!$A$22&" "&FIXED(V106,0)&" "&Translation!A225) -> Heating 20.714 kWh/a | AU124: 0 | AV124: 0 | AW124: 0 | AX124: 0 | AY124: 0 | BC124: 0
A125: Ausgabe Heizarbeit 2. WE | C125: =IF(ISERROR(W106),"---",FIXED(W106+C160,0)&" "&Translation!A225) -> 179 kWh/a | D125: =IF(ISERROR(W106),Translation!$A$22&" ---",Translation!$A$22&" "&FIXED(W106,0)&" "&Translation!A225) -> Heating 179 kWh/a | AU125: 0 | AV125: 0 | AW125: 0 | AX125: 0 | AY125: 0 | BC125: 0
A126: Ausgabe Deckungsanteil WP | C126: =IF(ISERROR(V106),"---",FIXED(100*(V106+C159)/(V106+C159+W106+C160),1)&" %") -> 99,2 % | AU126: 0 | AV126: 0 | AW126: 0 | AX126: 0 | AY126: 0 | BC126: 0
L127: Berechnung Bivalenzpunkt aus eingegebener Heizlast berechnen | AU127: 0 | AV127: 0 | AW127: 0 | AX127: 0 | AY127: 0 | BC127: 0
A128: Ausgabe Vollbenutzungsstunde | C128: =IF(ISERROR(C110),"---",FIXED(C110,0)&" "&Translation!A227) -> 1.556 h/a | L128: Temp | M128: Differenz | N128: Leistung WP | O128: m | P128: n | AU128: =IF($C$68=10,AR128,IF($C$68=12,AS128,AT128)) -> 0 | AV128: =(AR128/(10-$C$67))*24 -> 0 | AW128: =(AS128/(12-$C$67))*24 -> 0 | AX128: =(AT128/(15-$C$67))*24 -> 0 | AY128: =IF($C$68=10,AV128,IF($C$68=12,AW128,AX128)) -> 0 | BC128: =IF($C$68=10,AZ128,IF($C$68=12,BA128,BB128)) -> 0
A129: Ausgabe Heiztage | C129: =IF(ISERROR(C111),"---",FIXED(C111,0)&" "&Translation!A228) -> 216 days/year | L129: =R106 -> -7 | M129: =VLOOKUP(L129,$M$63:$Q$105,5,FALSE) -> 0.3666666667 | N129: =VLOOKUP(L129,$M$63:$Q$105,4,FALSE) -> 9.45 | O129: =(M130-M129)/(L130-L129) -> -0.7916666667 | P129: =M129-L129*O129 -> -5.175 | AQ129: (aus IWU-Tool, Stand März 2009)
A130: Ausgabe Heizgradtage | C130: =IF(ISERROR(C109),"---",FIXED(C109,0)&" "&Translation!A227) -> 1.556 h/a | L130: =L129+1 -> -6 | M130: =VLOOKUP(L130,$M$63:$Q$105,5,FALSE) -> -0.425 | N130: =VLOOKUP(L130,$M$63:$Q$105,4,FALSE) -> 9.725
A131: Ausgabe Jahresstunden <0 | C131: =IF(ISERROR(AO84),"---",FIXED(AO84,0)) -> 1.177 | L131: =IF(OR(O129=0,R106<=C67),-30,ROUND(-P129/O129,1)) -> -6.5 | M131: 0 | N131: =IF(ROUND(L131/5,1)*5=L129,N129,IF(ROUND(L131/5,1)*5=L130,N130,AVERAGE(N129:N130))) -> 9.5875
A132: Ausgabe Heizgradtage <-5 | C132: =IF(ISERROR(AO79),"---",FIXED(AO79,0)) -> 209
A133: Ausgabe Heizgradtage <-10 | C133: =IF(ISERROR(AO74),"---",FIXED(AO74,0)) -> 38
A134: Ausgabe Heizgradtage <-15 | C134: =IF(ISERROR(AO69),"---",FIXED(AO69,0)) -> 0
A135: Ausgabe Tempverhältnis | C135: =IF(C5=C7,"",IF(C5=C8,D137&LEFT(H5,FIND(" ",H5)-1),"B7/W"&LEFT(H5,FIND(" ",H5)-1))) -> 
A136: Übersetzung - 1 | C136: =Translation!A95 -> Please insert numerical values only
A137: Direktverdampfer ? | C137: =VLOOKUP(D5,Leistungsdaten!A:M,10,FALSE) -> FALSE | D137: =IF(C137=TRUE,"E-1/W","B0/W") -> B0/W
A139: Chk Ausdruck Projektdaten | C139: TRUE | L139: Anzeige Diagrammlegende
A140: Chk Ausdruck Anlagendaten | C140: TRUE | L140: Legende | M140: Bivalenzpnkt | N140: Wärmebedarf | O140: Strombedarf | P140: Energiekosten | Q140: Klimadaten
A141: Chk Ausdruck Bivalenzpunkt | C141: TRUE | L141: Wert 1 | M141: =Translation!$A$54&" "&Translation!$A$35&" "&Berechnung!C135 -> Heating Capacity Heat pump | N141: =Translation!$A$22&" "&Translation!$A$35&" "&Berechnung!$C$135 -> Heating Heat pump | O141: =Translation!$A$22&" "&Translation!$A$35&" "&Berechnung!$C$135 -> Heating Heat pump | P141: =Translation!$A$35 -> Heat pump | Q141: =Translation!A117 -> Yearly hours with temperature
A142: Chk Ausdruck Wärmebedarf | C142: TRUE | L142: Wert 2 | M142: =Translation!A93 -> Heating capacity | N142: =Translation!$A$22&" "&Translation!$A$55 -> Heating 2nd heat source | O142: =Translation!$A$22&" "&Translation!$A$55 -> Heating 2nd heat source | P142: =Translation!$A$55 -> 2nd heat source | Q142: =Translation!A118 -> Sum of yearly hours with temperatures < outside temperature
A143: Chk Ausdruck Strombedarf | C143: TRUE | L143: Wert 3 | M143: =IF(OR(AA5=AA7,AA5=AA8,AA5=AA9,AC50=FALSE),Translation!$A$98,Translation!$A$97) -> Heat demand with switch off time factor | N143: =Translation!$A$23&" "&Translation!$A$35 -> Warm water Heat pump | O143: =Translation!$A$23&" "&Translation!$A$35 -> Warm water Heat pump | P143: =Translation!A22 -> Heating
A144: Chk Ausdruck Energiekosten | C144: TRUE | L144: Wert 4 | N144: =Translation!$A$23&" "&Translation!$A$55 -> Warm water 2nd heat source | O144: =Translation!$A$23&" "&Translation!$A$55 -> Warm water 2nd heat source | P144: =Translation!A23 -> Warm water
A145: Chk Ausdruck Klimadaten | C145: TRUE | L145: Wert 5
A146: Chk Ausdruck Datenblatt | C146: FALSE | L146: Wert 6
A147: Chk Ausdruck Ergebnistabellen | C147: TRUE | L147: Wert 7
A148: Platzhalter | C148: TRUE | L148: Wert 8
A149: Alles gewählt? | C149: =IF(COUNTIF(C139:C148,TRUE)=10,TRUE,FALSE) -> FALSE | L149: Wert 9
L150: Wert 10
A151: WW bivalent möglich ? | C151: =VLOOKUP(AC5,LeistungsdatenWW!A:M,5,FALSE) -> TRUE
A152: WW mit Durchlauferhitzer ? | C152: =VLOOKUP(AC5,LeistungsdatenWW!A:M,4,FALSE) -> FALSE
A153: Übertemperatur WP<>Speicher WW | C153: =IF(OR(AA5=AA12,AA5=AA13),0,5) -> 5
A154: Vorlauftemp-WP für COP
A155: Speichertemperatur | C155: =LEFT(G5,FIND(" ",G5)-1)*1 -> 50
A156: WW-manuell [kWH/Tag]/Schwimmbad m³ | C156: 5,4
A157: Nutzungsdauer WW [Tage/Jahr] | C157: =Einstellungen!D31 -> 340
A158: Deckungsanteil WP an WWB | C158: =Einstellungen!D27/100 -> 0.8
A159: Heizarbeit WW Wärmepumpe [kWh/a] | C159: =Y106 -> 2075.955 | D159: =IF(ISERROR(C159),Translation!$A$23&" ---",Translation!$A$23&" "&FIXED(C159,0)&" "&Translation!A225) -> Warm water 2.076 kWh/a | L159: Anzeige Ergebnisse
A160: Heizarbeit WW 2. WE [kWh/a] | C160: =Z106 -> 0 | D160: =IF(ISERROR(C160),Translation!$A$23&" ---",Translation!$A$23&" "&FIXED(C160,0)&" "&Translation!A225) -> Warm water 0 kWh/a | L160: Legende | M160: Bivalenzpunkt | N160: Wärmebedarf | O160: Strombedarf | P160: Energiekosten | Q160: Klimadaten
A161: Heizenergie Schwimmbad [kWh/Tag] | C161: =IF(C162=TRUE,C156*1.163*AN5,0) -> 0 | L161: Wert 1 | M161: =IF(F50=TRUE,Translation!$A$109&": "&$C$123,Translation!$A$108&": "&$C$123) -> Dual-mode point: -6,5 °C | N161: =Translation!$A$112&": "&$C$124 -> Heating power heat pump: 22.790 kWh/a | O161: =Translation!$A$175&": "&$D$166 -> Electricity requirement heat pump: 5.869 kWh/a | P161: =IF(ISERROR(D190),Translation!A185&": "&"---",Translation!A185&": "&D190) -> Energy costs: 1.187 €/a
A162: Schwimmbad gewählt ? | C162: =IF($AA$5=$AA$12,TRUE,FALSE) -> FALSE | L162: Wert 2 | N162: =$D$124&" | "&$D$159&IF(C201>0," | "&D207,"") -> Heating 20.714 kWh/a | Warm water 2.076 kWh/a | O162: =$D$167&" | "&$D$168&IF(C201>0," | "&D202,"") -> Heating 5.150 kWh/a | Warm water 720 kWh/a | P162: =D182&" | "&D183&IF(C201>0," | "&D203,"") -> Heating 1.043 €/a | Warm water 144 €/a | Q162: =IF(ISERROR(C111),"",Translation!A121&": "&$C$129) -> Annual heating days: 216 days/year
A163: Ohne Warmwasserbereitung ? | C163: =IF(AA5=AA7,TRUE,FALSE) -> FALSE | D163: für Ausdruck | L163: Wert 3 | M163: =Translation!A100&": "&FIXED($C$73,1)&" KW" -> Calculated heating-load: 12,4 KW | N163: =Translation!$A$113&": "&$C$125 -> Heating power 2. heat source: 179 kWh/a | O163: =$D$173&": "&$D$169 -> End energy 2. heat source: 199 kWh/a | P163: =D180&" | "&D181 -> Heat pump 1.174 €/a | 2nd heat source 13 €/a | Q163: =IF(C132="---","",C132&" "&Translation!$A$123&" -5 °C") -> 209 Yearly hours < -5 °C
A164: Kesselwirkungsgrad Heizung | C164: =IF(OR(F5=F7,F5=F8,F5=F9),1,Einstellungen!$D$16/100) -> 0.9 | L164: Wert 4 | M164: =Translation!A94&": "&FIXED($C$118,1)&" KW" -> Heating capacity: 12,4 KW | N164: =$D$125&" | "&$D$160 -> Heating 179 kWh/a | Warm water 0 kWh/a | O164: =$D$170&" | "&$D$171 -> Heating 199 kWh/a | Warm water 0 kWh/a | P164: =Translation!$A$189&" "&FIXED(R215,0)&" "&Translation!A226 -> CO2-Emmision 3.695 kg/a | Q164: =IF(C131="---","",C131&" "&Translation!$A$123&" 0 °C") -> 1.177 Yearly hours < 0 °C
A165: Kesselwirkungsgrad WWB | C165: =IF(OR(F5=F7,F5=F8,F5=F9,C151=FALSE),1,Einstellungen!$D$27/100) -> 0.8 | L165: Wert 5 | M165: =(IF(OR(AA5=AA7,AA5=AA8,AA5=AA9,AC50=FALSE),Translation!A102,Translation!A101)&": "&FIXED(C73-$C$118,1)&" KW") -> Extra amount for switch off times: 0,0 KW | N165: =Translation!$A$106&": "&C126 -> Covering ratio heat pump: 99,2 % | O165: =IF(C173=1,"",IF($C$77=TRUE,D175,D174&" | "&D175)) -> 20 Liter oil | 19 m³ gas | P165: =Translation!A188&": "&Berechnung!D191 -> Ersparnis gegenüber Öl-/Gasheizung: 491 €/a | Q165: =IF(C133="---","",C133&" "&Translation!$A$123&" -10 °C") -> 38 Yearly hours < -10 °C
A166: Endenergie WP gesamt | C166: =L204+L206+L208 -> 5869.48431 | D166: =IF(ISERROR(C166)," ---",FIXED(C166,0)&" "&Translation!A225) -> 5.869 kWh/a | L166: Wert 6 | P166: =Translation!A212&": "&FIXED(Einstellungen!D5,1)&" "&Translation!A224&" | "&Translation!A213&": "&FIXED(Einstellungen!D7,1)&" "&Translation!A224&" | "&Translation!A190&"/"&Translation!A191&": "&FIXED(Einstellungen!D9,1)&" "&Translation!A224 -> HP-electricity: 20,0 Ct/kWh | Household electricity: 26,0 Ct/kWh | Oil/Gas: 6,5 Ct/kWh | Q166: =IF(C134="---","",C134&" "&Translation!$A$123&" -15 °C") -> 0 Yearly hours < -15 °C
A167: Endenergie WP Heizung | D167: =IF(ISERROR(L204),Translation!$A$22&" ---",Translation!$A$22&" "&FIXED(L204,0)&" "&Translation!$A$225) -> Heating 5.150 kWh/a | L167: Wert 7
A168: Endenergie WP WWB | D168: =IF(ISERROR(L206),Translation!$A$23&" ---",Translation!$A$23&" "&FIXED(L206,0)&" "&Translation!A225) -> Warm water 720 kWh/a | L168: Wert 8
A169: Endenergie 2. WE gesamt | C169: =L205+L207 -> 198.7513228 | D169: =IF(ISERROR(C169)," ---",FIXED(C169,0)&" "&Translation!A225) -> 199 kWh/a | L169: Wert 9
A170: Endenergie 2. WE Heizung | D170: =IF(ISERROR(L205),Translation!$A$22&" ---",Translation!$A$22&" "&FIXED(L205,0)&" "&Translation!A225) -> Heating 199 kWh/a | L170: Wert 10 | Q170: =IF(ISERROR(C110),"",Translation!A120&": "&$C$128) -> Seasonal heating hours: 1.556 h/a
A171: Endenergie 2. WE WWB | D171: =IF(ISERROR(L207),Translation!$A$23&" ---",Translation!$A$23&" "&FIXED(L207,0)&" "&Translation!A225) -> Warm water 0 kWh/a
A173: Typ 2. WE Heizung (1=Strom, 2=bivalent) | C173: =IF(OR(F5=F7,F5=F8,F5=F9),1,2) -> 2 | D173: =IF(C173=1,Translation!A178,Translation!A177) -> End energy 2. heat source
D174: =IF(ISERROR(O215)," ---",FIXED(O215,0)&" "&Translation!A179) -> 20 Liter oil
D175: =IF(ISERROR(P215)," ---",FIXED(P215,0)&" "&Translation!A180) -> 19 m³ gas
L178: Berechnung Warmwasser
K179: Art WWB | L179: Gewählt ? | M179: KW-Temp | N179: Speichertemp mit WP | O179: WW-Temp Soll | P179: Einheit(zB Pers.) | Q179: spez. Bedarf (kWh) | R179: Tagesbedarf [kWh] | S179: Anteil WP (Temp) | T179: WP-kWh | U179: 2.WE kWh | V179: Verlustfaktor | W179: Verteilverluste | X179: kWh-Gesamt-Tag | Y179: Deckung WP (berechnet) | Z179: Deckung gewählt | AA179: WW-kWh Jahr | AB179: Volumen Speicher
A180: Kosten Wärmepumpe | C180: =N204+N206+N208 -> 1173.896862 | D180: =IF(ISERROR(C180),Translation!$A$35&" ---",Translation!$A$35&" "&FIXED(C180,0)&" "&Translation!A223) -> Heat pump 1.174 €/a | K180: =Translation!$A$150 -> Without DHW | L180: =IF($AA$5=K180,TRUE,FALSE) -> FALSE | M180: =Einstellungen!$D$29 -> 10 | N180: =MIN($C$83-5,$C$155) -> 50 | O180: =$C$155 -> 50 | P180: 0 | Q180: 0 | R180: 0 | S180: 0 | T180: 0 | U180: 0 | V180: 1 | W180: 0 | X180: 0 | Y180: 0 | Z180: 0
A181: Kosten 2. WE | C181: =N205+N207 -> 12.91883598 | D181: =IF(ISERROR(C181),Translation!$A$55&" ---",Translation!$A$55&" "&FIXED(C181,0)&" "&Translation!A223) -> 2nd heat source 13 €/a | K181: =Translation!$A$151 -> Single family house without circulation | L181: =IF($AA$5=K181,TRUE,FALSE) -> TRUE | M181: =Einstellungen!$D$29 -> 10 | N181: =MIN($C$83-5,$C$155) -> 50 | O181: =$C$155 -> 50 | P181: =AB5 -> 4 | Q181: =AF5 -> 1.45375 | R181: =P181*Q181 -> 5.815 | S181: =MAX(0,(N181-M181)/(O181-M181)) -> 1 | T181: =R181*S181 -> 5.815 | U181: =R181-T181 -> 0 | V181: =ROUND(1+Einstellungen!$D$33/100,2) -> 1.05 | W181: =(Einstellungen!$D$33/100)*R181 -> 0.29075 | X181: =IF(L181=FALSE,0,T181+U181+W181) -> 6.10575 | Y181: =IF(L181=FALSE,0,IF(U181=0,1,ROUND(T181/X181,3))) -> 1 | Z181: =IF($C$152=TRUE,0,$AL$5) -> 1 | AA181: =X181*Einstellungen!$D$31 -> 2075.955 | AB181: =ROUND(P181*$AE$5*2*(60-M181)/($C$155-M181),0) -> 250
A182: Kosten Heizung | C182: =N204+N205 -> 1042.864789 | D182: =IF(ISERROR(C182),Translation!$A$22&" ---",Translation!$A$22&" "&FIXED(C182,0)&" "&Translation!A223) -> Heating 1.043 €/a | K182: =Translation!$A$152 -> Single family house with circulation | L182: FALSE | M182: =Einstellungen!$D$29 -> 10 | N182: 50 | O182: =$C$155 -> 50 | P182: =AB5 -> 4 | Q182: =AF5 -> 1.45375 | R182: =P182*Q182 -> 5.815 | S182: =MAX(0,(N182-M182)/(O182-M182)) -> 1 | T182: =R182*S182 -> 5.815 | U182: =R182-T182 -> 0 | V182: =ROUND(1+Einstellungen!$D$35/100,2) -> 1.5 | W182: =(Einstellungen!$D$35/100)*R182 -> 2.9075 | X182: =IF(L182=FALSE,0,T182+U182+W182) -> 0 | Y182: =IF(L182=FALSE,0,IF(U182=0,1,ROUND(T182/X182,3))) -> 0 | Z182: 1 | AA182: =X182*Einstellungen!$D$31 -> 0 | AB182: =ROUND(P182*$AE$5*2*(60-M182)/($C$155-M182),0) -> 250
A183: Kosten WWB | C183: =N206+N207 -> 143.9509086 | D183: =IF(ISERROR(C183),Translation!$A$23&" ---",Translation!$A$23&" "&FIXED(C183,0)&" "&Translation!A223) -> Warm water 144 €/a | K183: =Translation!$A$153 -> Multi-family house without circulation | L183: FALSE | M183: =Einstellungen!$D$29 -> 10 | N183: =MIN($C$83-5,$C$155) -> 50 | O183: 50 | P183: =AG5 -> 30 | Q183: =AI5 -> 11.655 | R183: 349.65 | S183: 1 | T183: =R183*S183 -> 349.65 | U183: 0 | V183: =ROUND(1+Einstellungen!$D$33/100,2) -> 1.05 | W183: =(Einstellungen!$D$33/100)*R183 -> 17.4825 | X183: =IF(L183=FALSE,0,T183+U183+W183) -> 0 | Y183: =IF(L183=FALSE,0,IF(U183=0,1,ROUND(T183/X183,3))) -> 0 | Z183: 1 | AA183: =X183*Einstellungen!$D$31 -> 0 | AB183: =ROUND(1.15*ROUND(P183*$AJ$5/(1.163/1000*(O183-M183)),0),0) -> 3297
A184: WWB mit Haushaltsstrom ? | C184: =VLOOKUP(AC5,LeistungsdatenWW!A:C,3,FALSE) -> FALSE | K184: =Translation!$A$154 -> Multi-family house with circulation | L184: FALSE | M184: =Einstellungen!$D$29 -> 10 | N184: 50 | O184: 50 | P184: =AG5 -> 30 | Q184: =AI5 -> 11.655 | R184: 349.65 | S184: 1 | T184: =R184*S184 -> 349.65 | U184: 0 | V184: =ROUND(1+Einstellungen!$D$35/100,2) -> 1.5 | W184: =(Einstellungen!$D$35/100)*R184 -> 174.825 | X184: 0 | Y184: 0 | Z184: 1 | AA184: =X184*Einstellungen!$D$31 -> 0 | AB184: =ROUND(1.15*ROUND(P184*$AJ$5/(1.163/1000*(O184-M184)),0),0) -> 3297
A185: Kosten Wärmepumpe Heizung | C185: =N204 -> 1029.945953 | D185: Diagrammausgabe | K185: =Translation!$A$215 -> Swimming pool | L185: FALSE | M185: =Einstellungen!$D$29 -> 10 | N185: =MIN($C$83-5,$C$155) -> 50 | O185: 50 | P185: =C156 -> 5,4 | Q185: =AN5*1.163 -> 0.5815 | R185: 3.1401 | S185: 1 | T185: =R185*S185 -> 3.1401 | U185: =R185-T185 -> 0 | V185: =ROUND(1+Einstellungen!$D$33/100,2) -> 1.05 | W185: =(Einstellungen!$D$33/100)*R185 -> 0.157005 | X185: =IF(L185=FALSE,0,T185+U185+W185) -> 0 | Y185: 0 | Z185: 1 | AA185: =X185*365 -> 0 | AB185: 0
A186: Kosten Wärmepumpe Warmwasser | C186: =N206 -> 143.9509086 | D186: Diagrammausgabe | K186: =Translation!$A$214 -> Manual Input | L186: FALSE | M186: =Einstellungen!$D$29 -> 10 | N186: 50 | O186: 50 | P186: 1 | Q186: =C156 -> 5,4 | R186: 5.4 | S186: 1 | T186: =R186*S186 -> 5.4 | U186: =R186-T186 -> 0 | V186: =ROUND(1+Einstellungen!$D$33/100,2) -> 1.05 | W186: =(Einstellungen!$D$33/100)*R186 -> 0.27 | X186: 0 | Y186: 0 | Z186: 1 | AA186: =X186*Einstellungen!$D$31 -> 0 | AB186: 0
A187: Kosten Wärmepumpe Lüftung | C187: =N208 -> 0 | D187: Diagrammausgabe | L187: FALSE
A188: Kosten 2. WE Heizung | C188: =N205 -> 12.91883598 | D188: Diagrammausgabe | L188: FALSE
A189: Kosten 2. WE Warmwasser | C189: =N207 -> 0 | D189: Diagrammausgabe | L189: FALSE
A190: Kosten gesamt | D190: =IF(ISERROR(C163)," ---",FIXED(N215,0)&" "&Translation!$A$223) -> 1.187 €/a | L190: FALSE
A191: Ersparnis ggü. Rein Öl/Gas | C191: =T215-N215 -> 490.7548125 | D191: =IF(ISERROR(C191)," ---",FIXED(C191,0)&" "&Translation!$A$223) -> 491 €/a | L191: FALSE
L192: FALSE
L193: FALSE
L194: FALSE
L195: FALSE
A196: Text Einstellungen zurücksetzen ? | C196: =Translation!A192 -> Restore to standard values ? | K196: Spalte | L196: 2 | M196: 3 | N196: 4 | O196: 5 | P196: 6 | Q196: 7 | R196: 8 | S196: 9 | T196: 10 | U196: 11 | V196: 12 | W196: 13 | X196: 14 | Y196: 15 | Z196: 16 | AA196: 17 | AB196: 18 | AC196: 19 | AD196: 20 | AE196: 21 | AF196: 22
A197: Text Einstellungen zurücksetzen ? | C197: =Translation!A193 -> Default values | K197: Gewählt | L197: =VLOOKUP($AA$5,$K$180:$AF$196,L196,FALSE) -> TRUE | M197: 10 | N197: 50 | O197: 50 | P197: 4 | Q197: 1.45375 | R197: 5.815 | S197: 1 | T197: 5.815 | U197: 0 | V197: 1.05 | W197: =VLOOKUP($AA$5,$K$180:$AF$196,W196,FALSE) -> 0.29075 | X197: =VLOOKUP($AA$5,$K$180:$AF$196,X196,FALSE) -> 6.10575 | Y197: 1 | Z197: 1 | AA197: 2075.955 | AB197: 250 | AC197: 0 | AD197: 0 | AE197: 0 | AF197: 0
A198: Text Fehler Ortsauswahl | C198: =Translation!A231 -> No weather data was found. Please choose another location.
A200: WRG mit Berechnen ? | C200: =IF(OR(C201=0,Einstellungen!D40=0,Einstellungen!D42=0,Einstellungen!D46=0),FALSE,TRUE) -> FALSE
A201: Ventilatoren gesamt | C201: =VLOOKUP(D5,Leistungsdaten!A:G,7,FALSE) -> 0
A202: Endenergiebedarf Lüftung [kWh/Jahr] | D202: =IF(ISERROR(L208),Translation!$A$242&" ---",Translation!$A$242&" "&FIXED(L208,0)&" "&Translation!$A$225) -> Ventilation 0 kWh/a | K202: Berechnung Energiekosten, Öl/Gasverbrauch & CO2
A203: Stromkosten Lüfter [€/Jahr] | D203: =IF(ISERROR(N208),Translation!$A$242&" ---",Translation!$A$242&" "&FIXED(N208,0)&" "&Translation!A223) -> Ventilation 0 €/a | K203: Wert | L203: kWh-End | M203: E-Preis Ct/kWh | N203: Kosten €/Jahr | O203: Liter Öl | P203: m³ Gas | Q203: CO2-Faktor | R203: kg Co2 | S203: kWh Öl/Gas | T203: € für Öl/Gas
A204: Anteil Lüftung an Heizlast | C204: =Einstellungen!D42/100 -> 0.3 | K204: Heizung WP | L204: =AD106 -> 5149.729767 | M204: =M212 -> 20 | N204: =L204*M204/100 -> 1029.945953 | O204: 0 | P204: 0 | Q204: =Q212 -> 621 | R204: =L204*Q204/1000 -> 3197.982185 | S204: =T106/(Einstellungen!D16/100) -> 23213.83333 | T204: =S204*M214/100 -> 1508.899167
A205: Anteil Transmission an Heizlast | C205: =1-C204 -> 0.7 | K205: Heizung 2. WE | L205: =AF106 -> 198.7513228 | M205: =IF(C173<>1,M214,IF(Einstellungen!D11=Einstellungen!K11,M213,M212)) -> 6.5 | N205: =L205*M205/100 -> 12.91883598 | O205: =L205/O214 -> 19.71739313 | P205: =L205/P214 -> 19.11070411 | Q205: =IF(C173=1,Q213,Q214) -> 253 | R205: =L205*Q205/1000 -> 50.28408466
A206: WRG Lüftung [%/a] | C206: =IF(C201=0,0,Einstellungen!D40/100) -> 0 | K206: WWB WP | L206: =AE106 -> 719.7545431 | M206: =IF(C184=TRUE,M213,M212) -> 20 | N206: =L206*M206/100 -> 143.9509086 | O206: 0 | P206: 0 | Q206: =Q212 -> 621 | R206: =L206*Q206/1000 -> 446.9675713 | S206: =AA197/(Einstellungen!D27/100) -> 2594.94375 | T206: =S206*M214/100 -> 168.6713437
A207: Wärmerückgewinnung [kWh/a] | C207: =IF(C200=FALSE,0,AJ106) -> 0 | D207: =IF(ISERROR(C207),Translation!$A$242&" ---",Translation!A248&" "&FIXED(C207,0)&" "&Translation!$A$225) -> Heat recovery 0 kWh/a | K207: WWB 2. WE | L207: =AG106 -> 0 | M207: =IF(C151=TRUE,M205,M213) -> 6.5 | N207: =L207*M207/100 -> 0 | O207: =IF(C151=FALSE,0,L207/O214) -> 0 | P207: =IF(C151=FALSE,0,L207/P214) -> 0 | Q207: =IF(C151=FALSE,Q213,Q205) -> 253 | R207: =L207*Q207/1000 -> 0
A208: Faktor Lüfterlaufzeit [%/a] | C208: =8760/(Einstellungen!D46*24) -> 1.216666667 | K208: Strom Lüftung | L208: =IF(C200=FALSE,0,(C201*Einstellungen!D44/1000)*(Einstellungen!D46*24)/0.95) -> 0 | M208: =M213 -> 26 | N208: =L208*M208/100 -> 0 | S208: =L208 -> 0 | T208: =N208 -> 0
A211: Umrechnung Cent/Euro | C211: =IF(B5=B18,100,1) -> 1
K212: Strom WP | M212: =Einstellungen!D5*$C$211 -> 20 | Q212: =Einstellungen!$D$20 -> 621 | S212: =Einstellungen!J5*$C$211 -> 0
K213: Strom Haushalt | M213: =Einstellungen!D7*$C$211 -> 26 | Q213: =Einstellungen!$D$20 -> 621 | S213: =Einstellungen!J7*$C$211 -> 0
A214: Info Mindestspeichergröße zeigen ? | C214: =IF(A5<>1,FALSE,IF(OR(AA5=AA7,AA5=AA12),FALSE,IF(C82=TRUE,FALSE,IF(C215<=0,FALSE,TRUE)))) -> FALSE | K214: Öl/Gas | M214: =Einstellungen!D9*$C$211 -> 6.5 | O214: 10.08 | P214: 10.4 | Q214: =Einstellungen!$D$22 -> 253 | S214: =Einstellungen!J9*$C$211 -> 0
A215: Text Infobutton Mindestspeichergröße | C215: =AB197 -> 250 | D215: ="Nach DIN EN 15450 beträgt die empfohlene Mindestgröße für den Warmwasserspeicher "&C215&" Liter." -> Nach DIN EN 15450 beträgt die empfohlene Mindestgröße für den Warmwasserspeicher 250 Liter. | K215: Gesamt | L215: =SUM(L204:L211) -> 6068.235633 | N215: =SUM(N204:N211) -> 1186.815698 | O215: =SUM(O204:O211) -> 19.71739313 | P215: =SUM(P204:P211) -> 19.11070411 | R215: =SUM(R204:R212) -> 3695.233841 | T215: =SUM(T204:T211) -> 1677.57051

Sheet Einstellungen (hidden)
C2: =Translation!A186 -> Options
C5: =Translation!A196 -> Heat pump rate | D5: 20 | E5: =Translation!A224 -> Ct/kWh
C7: =Translation!A197 -> Household electricity | D7: 26 | E7: =Translation!A224 -> Ct/kWh
C9: =Translation!A198 -> Oil-/gas price | D9: 6.5 | E9: =Translation!A224 -> Ct/kWh
K10: =Translation!A196 -> Heat pump rate
C11: =Translation!A222 -> Rate electricity auxiliary heating | D11: Haushaltsstrom | K11: =Translation!A197 -> Household electricity
C16: =Translation!A199 -> Boiler efficiency oil/gas | D16: 90 | E16: %
C18: =Translation!A238 -> Control heat curve | D18: Außentemperaturgeführt | E18: - | K18: =Translation!A239 -> Outside temperature driven
K19: =Translation!A240 -> Fixed value control
C20: =Translation!A200 -> CO2-emmision electricity | D20: 621 | E20: g/kWh
C22: =Translation!A201 -> CO2-emmision oil/gas | D22: 253 | E22: g/kWh
C27: =Translation!$A$199 -> Boiler efficiency oil/gas | D27: 80 | E27: %
C29: =Translation!$A$202 -> Cold water temperature | D29: 10 | E29: °C
C31: =Translation!$A$170 -> Up-time DHW | D31: 340 | E31: =Translation!A228 -> days/year
C33: =Translation!$A$205 -> Heat loss distribution without circulation | D33: 5 | E33: %
C35: =Translation!$A$206 -> Heat loss distribution with circulation | D35: 50 | E35: %
C40: =Translation!A243 -> Heat recovery rate | D40: 95 | E40: %
C42: =Translation!A244 -> Ventilation heat content on the heat load | D42: 30 | E42: %
C44: =Translation!A245 -> Power consumption fan | D44: 50 | E44: W
C46: =Translation!A246 -> Running time ventilation system | D46: 300 | E46: =Translation!A228 -> days/year

Sheet Ausdruck (hidden)
A1: =UPPER(Translation!A4) -> LAYOUT HEAT PUMP
Z2: =RIGHT(Auslegung!AF43,FIND(" ",Auslegung!AF43)+1) -> v2.52
B4: =Translation!A9 -> Project data
B6: =Translation!A10 -> Project
B7: =Translation!A11 -> Name | J7: =IF(Druckauswahl!$D$6="","",Druckauswahl!$D$6) -> 
B8: =Translation!A12 -> Street | J8: =IF(Druckauswahl!$D$8="","",Druckauswahl!$D$8) -> 
B9: =Translation!A13 -> Postcode/Town | J9: =IF(Druckauswahl!$D$10="","",Druckauswahl!$D$10) -> 
B10: =Translation!A14 -> Phone | J10: =IF(Druckauswahl!$D$12="","",Druckauswahl!$D$12) -> 
B12: =Translation!A17 -> Customer
B13: =B7 -> Name | G13: Stiebel Eltron GmbH & Co. KG | J13: =IF(Druckauswahl!$H$6="","",Druckauswahl!$H$6) -> 
B14: =B8 -> Street | G14: Dr.-Stiebel-Straße | J14: =IF(Druckauswahl!$H$8="","",Druckauswahl!$H$8) -> 
B15: =B9 -> Postcode/Town | G15: 37603 Holzminden | J15: =IF(Druckauswahl!$H$10="","",Druckauswahl!$H$10) -> 
B16: =B10 -> Phone | G16: 05531 / 702 110 | J16: =IF(Druckauswahl!$H$12="","",Druckauswahl!$H$12) -> 
B18: =Translation!A9 -> Project data
B19: =Translation!A15 -> Project.-Nr. | J19: =IF(Druckauswahl!$D$17="","",Druckauswahl!$D$17) -> 
B20: =Translation!A16 -> Processed by | J20: =IF(Druckauswahl!$D$19="","",Druckauswahl!$D$19) -> 
B22: =IF(Druckauswahl!$H$17="","",Druckauswahl!$H$17) -> 
B52: =Translation!A241 -> System data
B54: =Translation!A61 -> Building
B55: =Translation!A62 -> Country | J55: =Berechnung!K5 -> Germany
B56: =Translation!A85 -> City | J56: =Berechnung!L5 -> Holzminden
B57: =Translation!A119 -> Weather station | J57: =Berechnung!C94&" ("&Translation!A116&" Meteonorm 1995-2005)" -> Fritzlar (Climate data Meteonorm 1995-2005)
B58: =Translation!A104 -> Design temperature | J58: =Berechnung!M5 -> -12 °C
B59: =Translation!A88 -> Building type | J59: =Berechnung!AA50 -> Single family house
B60: =IF(OR(Berechnung!AA5=Berechnung!AA10,Berechnung!AA5=Berechnung!AA11),Translation!A146,Translation!A145) -> Number of Persons | J60: =Berechnung!AB50 -> 4
B61: =Translation!A87 -> Heating treshold | J61: =Berechnung!N5 -> 12 °C | New building
B62: =Translation!A34 -> Heat demand building | J62: =FIXED(Berechnung!C71,1)&" kW" -> 12,4 kW
B64: =Translation!A22 -> Heating
B65: =Translation!A36 -> Heat source | J65: =Berechnung!C5 -> Air
B66: =IF(Berechnung!C72=1,Translation!A41,Translation!A40&" | "&Translation!A41) -> Type | J66: =IF(Berechnung!C72=1,Berechnung!D5,Berechnung!C72&" x "&Berechnung!D5) -> WPL 18 E / cool
B67: =Translation!A42 -> Operating mode | J67: =Berechnung!F5 -> Monoenergetisch
B68: =Translation!A56 -> Forward flow temperature | J68: =Berechnung!H5 -> 35 °C
B69: =Translation!A54&" "&Translation!A35 -> Heating Capacity Heat pump | J69: =FIXED(Berechnung!C98,1)&" kW" -> 8,3 kW
B70: =Translation!A54&" "&Translation!A55 -> Heating Capacity 2nd heat source | J70: =FIXED(Berechnung!C97,1)&" kW" -> 8,8 kW
B71: =Translation!A207 -> Covering ratio 2. heat source | J71: =FIXED(Berechnung!C164*100,0)&" %" -> 90 %
B72: =Translation!A238 -> Control heat curve | J72: =Einstellungen!D18 -> Außentemperaturgeführt
B102: =Translation!A241 -> System data
B104: =Translation!A23 -> Warm water
B105: =Translation!A144 -> Hot water generation | J105: =Berechnung!AA5 -> Single family house without circulation
B106: =Auslegung!C33 -> Number of Persons | J106: =IF(OR(Berechnung!AA5=Berechnung!AA12,Berechnung!AA5=Berechnung!AA13),Berechnung!C156,Berechnung!AB50) -> 4
B107: =Auslegung!C35 -> Water consumption per day | J107: =IF(Berechnung!AA5=Berechnung!AA13,"",IF(Berechnung!AA5=Berechnung!AA12,Berechnung!AM5,IF(OR(Berechnung!AA5=Berechnung!AA8,Berechnung!AA5=Berechnung!AA9),Berechnung!AD5,Berechnung!AH5))) -> Normal demand (25 L)
B108: =Auslegung!C37 -> Heat source DHW | J108: =Berechnung!AC5 -> with heat pump for heating
B109: =IF(Berechnung!$AA$5=Berechnung!$AA$7,"",IF(OR(Berechnung!AA5=Berechnung!AA12,Berechnung!AA5=Berechnung!AA13),Translation!A204,Translation!$A$234)) -> Cylinder temperature | J109: =IF(Berechnung!C152=TRUE,"---",Berechnung!G5) -> 50 °C
B110: =Translation!A167 -> cold water | J110: =IF(Berechnung!AA5=Berechnung!AA12,"---",Einstellungen!D29&" °C") -> 10 °C
B111: =Translation!A170 -> Up-time DHW | J111: =IF(Berechnung!AA5=Berechnung!AA12,FIXED(Berechnung!AH106,0)&" "&Translation!A171,Einstellungen!D31&" "&Translation!A171) -> 340 Days per year
B112: =Translation!A169 -> Loss factor distribution | J112: =Berechnung!V197 -> 1.05
B113: =Translation!A106 -> Covering ratio heat pump | J113: =FIXED(Berechnung!Z197*100,1)&" % " -> 100,0 %
B114: =Translation!A207 -> Covering ratio 2. heat source | J114: =IF(Berechnung!AA5=Berechnung!AA12,"---",FIXED(Berechnung!C165*100,1)&" %") -> 80,0 %
B115: =Translation!A172 -> Energy consumption | J115: =FIXED(Berechnung!X197,2)&" "&Translation!A208 -> 6,11 kWh per day
B152: =IF(Berechnung!F50=TRUE,Translation!A44,Translation!A43) -> Dual-mode point
B155: =B62 -> Heat demand building | J155: =J62 -> 12,4 kW
B156: =Translation!A57 -> Switch off time | J156: =Berechnung!I5 -> 3 h/day
B157: =Translation!A172 -> Energy consumption | J157: =FIXED(Berechnung!X197,2)&" "&Translation!A208 -> 6,11 kWh per day
B158: =Translation!A209 -> Heating load with surcharges | J158: =FIXED(Berechnung!C73,1)&" KW" -> 12,4 KW
B159: =IF(Berechnung!F50=TRUE,Translation!A44,Translation!A43) -> Dual-mode point | J159: =Berechnung!$C$123 -> -6,5 °C
F164: =Berechnung!$M$141 -> Heating Capacity Heat pump
F165: =Berechnung!$M$142 -> Heating capacity
F166: =Berechnung!$M$143 -> Heat demand with switch off time factor
B202: =Translation!A141 -> Annual heat demand
B205: =Translation!A112 -> Heating power heat pump | J205: =Berechnung!C124 -> 22.790 kWh/a
B206: =Translation!$A$22 -> Heating | J206: =IF(ISERROR(Berechnung!$V$106),"---",FIXED(Berechnung!$V$106,0)&" "&Translation!A225) -> 20.714 kWh/a
B207: =Translation!$A$23 -> Warm water | J207: =IF(ISERROR(Berechnung!C159),"---",FIXED(Berechnung!C159,0)&" "&Translation!A225) -> 2.076 kWh/a
B208: =Translation!A248 -> Heat recovery | J208: =IF(ISERROR(Berechnung!AJ106),"---",FIXED(Berechnung!AJ106,0)&" "&Translation!A225) -> 0 kWh/a
B209: =Translation!A113 -> Heating power 2. heat source | J209: =Berechnung!C125 -> 179 kWh/a
B210: =Translation!A22 -> Heating | J210: =IF(ISERROR(Berechnung!$W$106),"---",FIXED(Berechnung!$W$106,0)&" "&Translation!A225) -> 179 kWh/a
B211: =Translation!A23 -> Warm water | J211: =IF(ISERROR(Berechnung!C160),"---",FIXED(Berechnung!C160,0)&" "&Translation!A225) -> 0 kWh/a
B212: =Translation!A106 -> Covering ratio heat pump | J212: =Berechnung!C126 -> 99,2 %
B213: =Translation!A114 -> The determination of the heating power is a calculation of heat demand, heat pump capacity and annual hours for each outside temperature. Internal & solar gains and set-back periods are not considered.
F215: =Berechnung!N141 -> Heating Heat pump | Q215: =Berechnung!N143 -> Warm water Heat pump
F216: =Berechnung!N142 -> Heating 2nd heat source | Q216: =Berechnung!N144 -> Warm water 2nd heat source
B251: =Translation!$A$141&" "&Translation!$A$22 -> Annual heat demand Heating
B252: =Translation!$A$140 -> Temperature | E252: =Translation!$A$96 -> Heat demand | H252: =Translation!$A$54 -> Heating Capacity | K252: =Translation!$A$122 -> Yearly hours | O252: =Translation!$A$141 -> Annual heat demand | S252: =Translation!$A$142 -> Heating power HP | W252: =Translation!$A$143 -> Heating power 2. HS
B253: [°C] | E253: [KW] | H253: [KW] | K253: ="["&Translation!A227&"]" -> [h/a] | O253: ="["&Translation!A225&"]" -> [kWh/a] | S253: ="["&Translation!A225&"]" -> [kWh/a] | W253: ="["&Translation!A225&"]" -> [kWh/a]
B254: =Berechnung!M63 -> < -20 | E254: =FIXED(Berechnung!N63,1) -> 12,4 | H254: =FIXED(Berechnung!P63,1) -> 0,0 | K254: =Berechnung!S63 -> 0 | O254: =FIXED(Berechnung!T63,1) -> 0,0 | S254: =FIXED(Berechnung!V63,1) -> 0,0 | W254: =FIXED(Berechnung!W63,1) -> 0,0
B255: =Berechnung!M64 -> -20 | E255: =FIXED(Berechnung!N64,1) -> 12,4 | H255: =FIXED(Berechnung!P64,1) -> 6,9 | K255: =Berechnung!S64 -> 0 | O255: =FIXED(Berechnung!T64,1) -> 0,0 | S255: =FIXED(Berechnung!V64,1) -> 0,0 | W255: =FIXED(Berechnung!W64,1) -> 0,0
B256: =Berechnung!M65 -> -19 | E256: =FIXED(Berechnung!N65,1) -> 12,4 | H256: =FIXED(Berechnung!P65,1) -> 7,1 | K256: =Berechnung!S65 -> 0 | O256: =FIXED(Berechnung!T65,1) -> 0,0 | S256: =FIXED(Berechnung!V65,1) -> 0,0 | W256: =FIXED(Berechnung!W65,1) -> 0,0
B257: =Berechnung!M66 -> -18 | E257: =FIXED(Berechnung!N66,1) -> 12,4 | H257: =FIXED(Berechnung!P66,1) -> 7,3 | K257: =Berechnung!S66 -> 0 | O257: =FIXED(Berechnung!T66,1) -> 0,0 | S257: =FIXED(Berechnung!V66,1) -> 0,0 | W257: =FIXED(Berechnung!W66,1) -> 0,0
B258: =Berechnung!M67 -> -17 | E258: =FIXED(Berechnung!N67,1) -> 12,4 | H258: =FIXED(Berechnung!P67,1) -> 7,3 | K258: =Berechnung!S67 -> 0 | O258: =FIXED(Berechnung!T67,1) -> 0,0 | S258: =FIXED(Berechnung!V67,1) -> 0,0 | W258: =FIXED(Berechnung!W67,1) -> 0,0
B259: =Berechnung!M68 -> -16 | E259: =FIXED(Berechnung!N68,1) -> 12,4 | H259: =FIXED(Berechnung!P68,1) -> 7,6 | K259: =Berechnung!S68 -> 0 | O259: =FIXED(Berechnung!T68,1) -> 0,0 | S259: =FIXED(Berechnung!V68,1) -> 0,0 | W259: =FIXED(Berechnung!W68,1) -> 0,0
B260: =Berechnung!M69 -> -15 | E260: =FIXED(Berechnung!N69,1) -> 12,4 | H260: =FIXED(Berechnung!P69,1) -> 7,8 | K260: =Berechnung!S69 -> 0 | O260: =FIXED(Berechnung!T69,1) -> 0,0 | S260: =FIXED(Berechnung!V69,1) -> 0,0 | W260: =FIXED(Berechnung!W69,1) -> 0,0
B261: =Berechnung!M70 -> -14 | E261: =FIXED(Berechnung!N70,1) -> 12,4 | H261: =FIXED(Berechnung!P70,1) -> 8,1 | K261: =Berechnung!S70 -> 0 | O261: =FIXED(Berechnung!T70,1) -> 0,0 | S261: =FIXED(Berechnung!V70,1) -> 0,0 | W261: =FIXED(Berechnung!W70,1) -> 0,0
B262: =Berechnung!M71 -> -13 | E262: =FIXED(Berechnung!N71,1) -> 12,4 | H262: =FIXED(Berechnung!P71,1) -> 8,3 | K262: =Berechnung!S71 -> 0 | O262: =FIXED(Berechnung!T71,1) -> 0,0 | S262: =FIXED(Berechnung!V71,1) -> 0,0 | W262: =FIXED(Berechnung!W71,1) -> 0,0
B263: =Berechnung!M72 -> -12 | E263: =FIXED(Berechnung!N72,1) -> 12,4 | H263: =FIXED(Berechnung!P72,1) -> 8,3 | K263: =Berechnung!S72 -> 0 | O263: =FIXED(Berechnung!T72,1) -> 0,0 | S263: =FIXED(Berechnung!V72,1) -> 0,0 | W263: =FIXED(Berechnung!W72,1) -> 0,0
B264: =Berechnung!M73 -> -11 | E264: =FIXED(Berechnung!N73,1) -> 11,9 | H264: =FIXED(Berechnung!P73,1) -> 8,6 | K264: =Berechnung!S73 -> 6 | O264: =FIXED(Berechnung!T73,1) -> 71,3 | S264: =FIXED(Berechnung!V73,1) -> 48,8 | W264: =FIXED(Berechnung!W73,1) -> 22,5
B265: =Berechnung!M74 -> -10 | E265: =FIXED(Berechnung!N74,1) -> 11,4 | H265: =FIXED(Berechnung!P74,1) -> 8,9 | K265: =Berechnung!S74 -> 32 | O265: =FIXED(Berechnung!T74,1) -> 363,7 | S265: =FIXED(Berechnung!V74,1) -> 273,5 | W265: =FIXED(Berechnung!W74,1) -> 90,2
B266: =Berechnung!M75 -> -9 | E266: =FIXED(Berechnung!N75,1) -> 10,9 | H266: =FIXED(Berechnung!P75,1) -> 9,2 | K266: =Berechnung!S75 -> 14 | O266: =FIXED(Berechnung!T75,1) -> 151,9 | S266: =FIXED(Berechnung!V75,1) -> 125,1 | W266: =FIXED(Berechnung!W75,1) -> 26,8
B267: =Berechnung!M76 -> -8 | E267: =FIXED(Berechnung!N76,1) -> 10,3 | H267: =FIXED(Berechnung!P76,1) -> 9,5 | K267: =Berechnung!S76 -> 23 | O267: =FIXED(Berechnung!T76,1) -> 237,7 | S267: =FIXED(Berechnung!V76,1) -> 214,4 | W267: =FIXED(Berechnung!W76,1) -> 23,2
B268: =Berechnung!M77 -> -7 | E268: =FIXED(Berechnung!N77,1) -> 9,8 | H268: =FIXED(Berechnung!P77,1) -> 9,5 | K268: =Berechnung!S77 -> 44 | O268: =FIXED(Berechnung!T77,1) -> 431,9 | S268: =FIXED(Berechnung!V77,1) -> 415,8 | W268: =FIXED(Berechnung!W77,1) -> 16,1
B269: =Berechnung!M78 -> -6 | E269: =FIXED(Berechnung!N78,1) -> 9,3 | H269: =FIXED(Berechnung!P78,1) -> 9,7 | K269: =Berechnung!S78 -> 49 | O269: =FIXED(Berechnung!T78,1) -> 455,7 | S269: =FIXED(Berechnung!V78,1) -> 455,7 | W269: =FIXED(Berechnung!W78,1) -> 0,0
B270: =Berechnung!M79 -> -5 | E270: =FIXED(Berechnung!N79,1) -> 8,8 | H270: =FIXED(Berechnung!P79,1) -> 10,0 | K270: =Berechnung!S79 -> 41 | O270: =FIXED(Berechnung!T79,1) -> 360,1 | S270: =FIXED(Berechnung!V79,1) -> 360,1 | W270: =FIXED(Berechnung!W79,1) -> 0,0
B271: =Berechnung!M80 -> -4 | E271: =FIXED(Berechnung!N80,1) -> 8,3 | H271: =FIXED(Berechnung!P80,1) -> 10,3 | K271: =Berechnung!S80 -> 89 | O271: =FIXED(Berechnung!T80,1) -> 735,7 | S271: =FIXED(Berechnung!V80,1) -> 735,7 | W271: =FIXED(Berechnung!W80,1) -> 0,0
B272: =Berechnung!M81 -> -3 | E272: =FIXED(Berechnung!N81,1) -> 7,8 | H272: =FIXED(Berechnung!P81,1) -> 10,5 | K272: =Berechnung!S81 -> 161 | O272: =FIXED(Berechnung!T81,1) -> 1.247,8 | S272: =FIXED(Berechnung!V81,1) -> 1.247,8 | W272: =FIXED(Berechnung!W81,1) -> 0,0
B273: =Berechnung!M82 -> -2 | E273: =FIXED(Berechnung!N82,1) -> 7,2 | H273: =FIXED(Berechnung!P82,1) -> 10,5 | K273: =Berechnung!S82 -> 207 | O273: =FIXED(Berechnung!T82,1) -> 1.497,3 | S273: =FIXED(Berechnung!V82,1) -> 1.497,3 | W273: =FIXED(Berechnung!W82,1) -> 0,0
B274: =Berechnung!M83 -> -1 | E274: =FIXED(Berechnung!N83,1) -> 6,7 | H274: =FIXED(Berechnung!P83,1) -> 10,8 | K274: =Berechnung!S83 -> 248 | O274: =FIXED(Berechnung!T83,1) -> 1.665,7 | S274: =FIXED(Berechnung!V83,1) -> 1.665,7 | W274: =FIXED(Berechnung!W83,1) -> 0,0
B275: =Berechnung!M84 -> 0 | E275: =FIXED(Berechnung!N84,1) -> 6,2 | H275: =FIXED(Berechnung!P84,1) -> 11,0 | K275: =Berechnung!S84 -> 263 | O275: =FIXED(Berechnung!T84,1) -> 1.630,6 | S275: =FIXED(Berechnung!V84,1) -> 1.630,6 | W275: =FIXED(Berechnung!W84,1) -> 0,0
B276: =Berechnung!M85 -> 1 | E276: =FIXED(Berechnung!N85,1) -> 5,7 | H276: =FIXED(Berechnung!P85,1) -> 11,2 | K276: =Berechnung!S85 -> 270 | O276: =FIXED(Berechnung!T85,1) -> 1.534,5 | S276: =FIXED(Berechnung!V85,1) -> 1.534,5 | W276: =FIXED(Berechnung!W85,1) -> 0,0
B277: =Berechnung!M86 -> 2 | E277: =FIXED(Berechnung!N86,1) -> 5,2 | H277: =FIXED(Berechnung!P86,1) -> 11,5 | K277: =Berechnung!S86 -> 328 | O277: =FIXED(Berechnung!T86,1) -> 1.694,7 | S277: =FIXED(Berechnung!V86,1) -> 1.694,7 | W277: =FIXED(Berechnung!W86,1) -> 0,0
B278: =Berechnung!M87 -> 3 | E278: =FIXED(Berechnung!N87,1) -> 4,7 | H278: =FIXED(Berechnung!P87,1) -> 11,5 | K278: =Berechnung!S87 -> 344 | O278: =FIXED(Berechnung!T87,1) -> 1.599,6 | S278: =FIXED(Berechnung!V87,1) -> 1.599,6 | W278: =FIXED(Berechnung!W87,1) -> 0,0
B279: =Berechnung!M88 -> 4 | E279: =FIXED(Berechnung!N88,1) -> 4,1 | H279: =FIXED(Berechnung!P88,1) -> 11,7 | K279: =Berechnung!S88 -> 343 | O279: =FIXED(Berechnung!T88,1) -> 1.417,7 | S279: =FIXED(Berechnung!V88,1) -> 1.417,7 | W279: =FIXED(Berechnung!W88,1) -> 0,0
B280: =Berechnung!M89 -> 5 | E280: =FIXED(Berechnung!N89,1) -> 3,6 | H280: =FIXED(Berechnung!P89,1) -> 12,0 | K280: =Berechnung!S89 -> 414 | O280: =FIXED(Berechnung!T89,1) -> 1.497,3 | S280: =FIXED(Berechnung!V89,1) -> 1.497,3 | W280: =FIXED(Berechnung!W89,1) -> 0,0
B281: =Berechnung!M90 -> 6 | E281: =FIXED(Berechnung!N90,1) -> 3,1 | H281: =FIXED(Berechnung!P90,1) -> 12,3 | K281: =Berechnung!S90 -> 397 | O281: =FIXED(Berechnung!T90,1) -> 1.230,7 | S281: =FIXED(Berechnung!V90,1) -> 1.230,7 | W281: =FIXED(Berechnung!W90,1) -> 0,0
B282: =Berechnung!M91 -> 7 | E282: =FIXED(Berechnung!N91,1) -> 2,6 | H282: =FIXED(Berechnung!P91,1) -> 12,6 | K282: =Berechnung!S91 -> 406 | O282: =FIXED(Berechnung!T91,1) -> 1.048,8 | S282: =FIXED(Berechnung!V91,1) -> 1.048,8 | W282: =FIXED(Berechnung!W91,1) -> 0,0
B283: =Berechnung!M92 -> 8 | E283: =FIXED(Berechnung!N92,1) -> 2,1 | H283: =FIXED(Berechnung!P92,1) -> 12,6 | K283: =Berechnung!S92 -> 378 | O283: =FIXED(Berechnung!T92,1) -> 781,2 | S283: =FIXED(Berechnung!V92,1) -> 781,2 | W283: =FIXED(Berechnung!W92,1) -> 0,0
B284: =Berechnung!M93 -> 9 | E284: =FIXED(Berechnung!N93,1) -> 1,6 | H284: =FIXED(Berechnung!P93,1) -> 13,0 | K284: =Berechnung!S93 -> 409 | O284: =FIXED(Berechnung!T93,1) -> 634,0 | S284: =FIXED(Berechnung!V93,1) -> 634,0 | W284: =FIXED(Berechnung!W93,1) -> 0,0
B285: =Berechnung!M94 -> 10 | E285: =FIXED(Berechnung!N94,1) -> 1,0 | H285: =FIXED(Berechnung!P94,1) -> 13,4 | K285: =Berechnung!S94 -> 375 | O285: =FIXED(Berechnung!T94,1) -> 387,5 | S285: =FIXED(Berechnung!V94,1) -> 387,5 | W285: =FIXED(Berechnung!W94,1) -> 0,0
B286: =Berechnung!M95 -> 11 | E286: =FIXED(Berechnung!N95,1) -> 0,5 | H286: =FIXED(Berechnung!P95,1) -> 13,9 | K286: =Berechnung!S95 -> 420 | O286: =FIXED(Berechnung!T95,1) -> 217,0 | S286: =FIXED(Berechnung!V95,1) -> 217,0 | W286: =FIXED(Berechnung!W95,1) -> 0,0
B287: =Berechnung!M96 -> 12 | E287: =FIXED(Berechnung!N96,1) -> 0,0 | H287: =FIXED(Berechnung!P96,1) -> 14,3 | K287: =Berechnung!S96 -> 378 | O287: =FIXED(Berechnung!T96,1) -> 0,0 | S287: =FIXED(Berechnung!V96,1) -> 0,0 | W287: =FIXED(Berechnung!W96,1) -> 0,0
B288: =Berechnung!M97 -> 13 | E288: =FIXED(Berechnung!N97,1) -> 0,0 | H288: =FIXED(Berechnung!P97,1) -> 14,3 | K288: =Berechnung!S97 -> 349 | O288: =FIXED(Berechnung!T97,1) -> 0,0 | S288: =FIXED(Berechnung!V97,1) -> 0,0 | W288: =FIXED(Berechnung!W97,1) -> 0,0
B289: =Berechnung!M98 -> 14 | E289: =FIXED(Berechnung!N98,1) -> 0,0 | H289: =FIXED(Berechnung!P98,1) -> 14,8 | K289: =Berechnung!S98 -> 370 | O289: =FIXED(Berechnung!T98,1) -> 0,0 | S289: =FIXED(Berechnung!V98,1) -> 0,0 | W289: =FIXED(Berechnung!W98,1) -> 0,0
B290: =Berechnung!M99 -> 15 | E290: =FIXED(Berechnung!N99,1) -> 0,0 | H290: =FIXED(Berechnung!P99,1) -> 15,2 | K290: =Berechnung!S99 -> 333 | O290: =FIXED(Berechnung!T99,1) -> 0,0 | S290: =FIXED(Berechnung!V99,1) -> 0,0 | W290: =FIXED(Berechnung!W99,1) -> 0,0
B291: =Berechnung!M100 -> 16 | E291: =FIXED(Berechnung!N100,1) -> 0,0 | H291: =FIXED(Berechnung!P100,1) -> 15,5 | K291: =Berechnung!S100 -> 310 | O291: =FIXED(Berechnung!T100,1) -> 0,0 | S291: =FIXED(Berechnung!V100,1) -> 0,0 | W291: =FIXED(Berechnung!W100,1) -> 0,0
B292: =Berechnung!M101 -> 17 | E292: =FIXED(Berechnung!N101,1) -> 0,0 | H292: =FIXED(Berechnung!P101,1) -> 15,8 | K292: =Berechnung!S101 -> 322 | O292: =FIXED(Berechnung!T101,1) -> 0,0 | S292: =FIXED(Berechnung!V101,1) -> 0,0 | W292: =FIXED(Berechnung!W101,1) -> 0,0
B293: =Berechnung!M102 -> 18 | E293: =FIXED(Berechnung!N102,1) -> 0,0 | H293: =FIXED(Berechnung!P102,1) -> 15,8 | K293: =Berechnung!S102 -> 280 | O293: =FIXED(Berechnung!T102,1) -> 0,0 | S293: =FIXED(Berechnung!V102,1) -> 0,0 | W293: =FIXED(Berechnung!W102,1) -> 0,0
B294: =Berechnung!M103 -> 19 | E294: =FIXED(Berechnung!N103,1) -> 0,0 | H294: =FIXED(Berechnung!P103,1) -> 16,0 | K294: =Berechnung!S103 -> 217 | O294: =FIXED(Berechnung!T103,1) -> 0,0 | S294: =FIXED(Berechnung!V103,1) -> 0,0 | W294: =FIXED(Berechnung!W103,1) -> 0,0
B295: =Berechnung!M104 -> 20 | E295: =FIXED(Berechnung!N104,1) -> 0,0 | H295: =FIXED(Berechnung!P104,1) -> 16,1 | K295: =Berechnung!S104 -> 196 | O295: =FIXED(Berechnung!T104,1) -> 0,0 | S295: =FIXED(Berechnung!V104,1) -> 0,0 | W295: =FIXED(Berechnung!W104,1) -> 0,0
B296: =Berechnung!M105 -> > 20 | E296: =FIXED(Berechnung!N105,1) -> 0,0 | H296: =FIXED(Berechnung!P105,1) -> 16,3 | K296: =Berechnung!S105 -> 744 | O296: =FIXED(Berechnung!T105,1) -> 0,0 | S296: =FIXED(Berechnung!V105,1) -> 0,0 | W296: =FIXED(Berechnung!W105,1) -> 0,0
K297: =Berechnung!S106 -> 8760 | O297: =FIXED(Berechnung!T106,0) -> 20.892 | S297: =FIXED(Berechnung!V106,0) -> 20.714 | W297: =FIXED(Berechnung!W106,0) -> 179
B301: =Translation!$A$141&" "&Translation!$A$23 -> Annual heat demand Warm water
B302: =Translation!$A$140 -> Temperature | E302: =Translation!$A$122 -> Yearly hours | I302: =Translation!A210 -> daily requirements | M302: =Translation!A141 -> Annual heat demand | Q302: =Translation!$A$142 -> Heating power HP | V302: =Translation!$A$143 -> Heating power 2. HS
B303: [°C] | E303: ="["&Translation!A227&"]" -> [h/a] | I303: =Translation!A23 -> Warm water | M303: ="["&Translation!A225&"]" -> [kWh/a] | Q303: ="["&Translation!A225&"]" -> [kWh/a] | V303: ="["&Translation!A225&"]" -> [kWh/a]
B304: =Berechnung!M63 -> < -20 | E304: =Berechnung!S63 -> 0 | I304: =IF(Berechnung!$C$162=TRUE,FIXED(Berechnung!AH63,2),FIXED(E304/24*Berechnung!$C$157/365,2)) -> 0,00 | M304: =FIXED(Berechnung!X63,1) -> 0,0 | Q304: =FIXED(Berechnung!Y63,1) -> 0,0 | V304: =FIXED(Berechnung!Z63,1) -> 0,0
B305: =Berechnung!M64 -> -20 | E305: =Berechnung!S64 -> 0 | I305: =IF(Berechnung!$C$162=TRUE,FIXED(Berechnung!AH64,2),FIXED(E305/24*Berechnung!$C$157/365,2)) -> 0,00 | M305: =FIXED(Berechnung!X64,1) -> 0,0 | Q305: =FIXED(Berechnung!Y64,1) -> 0,0 | V305: =FIXED(Berechnung!Z64,1) -> 0,0
B306: =Berechnung!M65 -> -19 | E306: =Berechnung!S65 -> 0 | I306: =IF(Berechnung!$C$162=TRUE,FIXED(Berechnung!AH65,2),FIXED(E306/24*Berechnung!$C$157/365,2)) -> 0,00 | M306: =FIXED(Berechnung!X65,1) -> 0,0 | Q306: =FIXED(Berechnung!Y65,1) -> 0,0 | V306: =FIXED(Berechnung!Z65,1) -> 0,0
B307: =Berechnung!M66 -> -18 | E307: =Berechnung!S66 -> 0 | I307: =IF(Berechnung!$C$162=TRUE,FIXED(Berechnung!AH66,2),FIXED(E307/24*Berechnung!$C$157/365,2)) -> 0,00 | M307: =FIXED(Berechnung!X66,1) -> 0,0 | Q307: =FIXED(Berechnung!Y66,1) -> 0,0 | V307: =FIXED(Berechnung!Z66,1) -> 0,0
B308: =Berechnung!M67 -> -17 | E308: =Berechnung!S67 -> 0 | I308: =IF(Berechnung!$C$162=TRUE,FIXED(Berechnung!AH67,2),FIXED(E308/24*Berechnung!$C$157/365,2)) -> 0,00 | M308: =FIXED(Berechnung!X67,1) -> 0,0 | Q308: =FIXED(Berechnung!Y67,1) -> 0,0 | V308: =FIXED(Berechnung!Z67,1) -> 0,0
B309: =Berechnung!M68 -> -16 | E309: =Berechnung!S68 -> 0 | I309: =IF(Berechnung!$C$162=TRUE,FIXED(Berechnung!AH68,2),FIXED(E309/24*Berechnung!$C$157/365,2)) -> 0,00 | M309: =FIXED(Berechnung!X68,1) -> 0,0 | Q309: =FIXED(Berechnung!Y68,1) -> 0,0 | V309: =FIXED(Berechnung!Z68,1) -> 0,0
B310: =Berechnung!M69 -> -15 | E310: =Berechnung!S69 -> 0 | I310: =IF(Berechnung!$C$162=TRUE,FIXED(Berechnung!AH69,2),FIXED(E310/24*Berechnung!$C$157/365,2)) -> 0,00 | M310: =FIXED(Berechnung!X69,1) -> 0,0 | Q310: =FIXED(Berechnung!Y69,1) -> 0,0 | V310: =FIXED(Berechnung!Z69,1) -> 0,0
B311: =Berechnung!M70 -> -14 | E311: =Berechnung!S70 -> 0 | I311: =IF(Berechnung!$C$162=TRUE,FIXED(Berechnung!AH70,2),FIXED(E311/24*Berechnung!$C$157/365,2)) -> 0,00 | M311: =FIXED(Berechnung!X70,1) -> 0,0 | Q311: =FIXED(Berechnung!Y70,1) -> 0,0 | V311: =FIXED(Berechnung!Z70,1) -> 0,0
B312: =Berechnung!M71 -> -13 | E312: =Berechnung!S71 -> 0 | I312: =IF(Berechnung!$C$162=TRUE,FIXED(Berechnung!AH71,2),FIXED(E312/24*Berechnung!$C$157/365,2)) -> 0,00 | M312: =FIXED(Berechnung!X71,1) -> 0,0 | Q312: =FIXED(Berechnung!Y71,1) -> 0,0 | V312: =FIXED(Berechnung!Z71,1) -> 0,0
B313: =Berechnung!M72 -> -12 | E313: =Berechnung!S72 -> 0 | I313: =IF(Berechnung!$C$162=TRUE,FIXED(Berechnung!AH72,2),FIXED(E313/24*Berechnung!$C$157/365,2)) -> 0,00 | M313: =FIXED(Berechnung!X72,1) -> 0,0 | Q313: =FIXED(Berechnung!Y72,1) -> 0,0 | V313: =FIXED(Berechnung!Z72,1) -> 0,0
B314: =Berechnung!M73 -> -11 | E314: =Berechnung!S73 -> 6 | I314: =IF(Berechnung!$C$162=TRUE,FIXED(Berechnung!AH73,2),FIXED(E314/24*Berechnung!$C$157/365,2)) -> 0,23 | M314: =FIXED(Berechnung!X73,1) -> 1,4 | Q314: =FIXED(Berechnung!Y73,1) -> 1,4 | V314: =FIXED(Berechnung!Z73,1) -> 0,0
B315: =Berechnung!M74 -> -10 | E315: =Berechnung!S74 -> 32 | I315: =IF(Berechnung!$C$162=TRUE,FIXED(Berechnung!AH74,2),FIXED(E315/24*Berechnung!$C$157/365,2)) -> 1,24 | M315: =FIXED(Berechnung!X74,1) -> 7,6 | Q315: =FIXED(Berechnung!Y74,1) -> 7,6 | V315: =FIXED(Berechnung!Z74,1) -> 0,0
B316: =Berechnung!M75 -> -9 | E316: =Berechnung!S75 -> 14 | I316: =IF(Berechnung!$C$162=TRUE,FIXED(Berechnung!AH75,2),FIXED(E316/24*Berechnung!$C$157/365,2)) -> 0,54 | M316: =FIXED(Berechnung!X75,1) -> 3,3 | Q316: =FIXED(Berechnung!Y75,1) -> 3,3 | V316: =FIXED(Berechnung!Z75,1) -> 0,0
B317: =Berechnung!M76 -> -8 | E317: =Berechnung!S76 -> 23 | I317: =IF(Berechnung!$C$162=TRUE,FIXED(Berechnung!AH76,2),FIXED(E317/24*Berechnung!$C$157/365,2)) -> 0,89 | M317: =FIXED(Berechnung!X76,1) -> 5,5 | Q317: =FIXED(Berechnung!Y76,1) -> 5,5 | V317: =FIXED(Berechnung!Z76,1) -> 0,0
B318: =Berechnung!M77 -> -7 | E318: =Berechnung!S77 -> 44 | I318: =IF(Berechnung!$C$162=TRUE,FIXED(Berechnung!AH77,2),FIXED(E318/24*Berechnung!$C$157/365,2)) -> 1,71 | M318: =FIXED(Berechnung!X77,1) -> 10,4 | Q318: =FIXED(Berechnung!Y77,1) -> 10,4 | V318: =FIXED(Berechnung!Z77,1) -> 0,0
B319: =Berechnung!M78 -> -6 | E319: =Berechnung!S78 -> 49 | I319: =IF(Berechnung!$C$162=TRUE,FIXED(Berechnung!AH78,2),FIXED(E319/24*Berechnung!$C$157/365,2)) -> 1,90 | M319: =FIXED(Berechnung!X78,1) -> 11,6 | Q319: =FIXED(Berechnung!Y78,1) -> 11,6 | V319: =FIXED(Berechnung!Z78,1) -> 0,0
B320: =Berechnung!M79 -> -5 | E320: =Berechnung!S79 -> 41 | I320: =IF(Berechnung!$C$162=TRUE,FIXED(Berechnung!AH79,2),FIXED(E320/24*Berechnung!$C$157/365,2)) -> 1,59 | M320: =FIXED(Berechnung!X79,1) -> 9,7 | Q320: =FIXED(Berechnung!Y79,1) -> 9,7 | V320: =FIXED(Berechnung!Z79,1) -> 0,0
B321: =Berechnung!M80 -> -4 | E321: =Berechnung!S80 -> 89 | I321: =IF(Berechnung!$C$162=TRUE,FIXED(Berechnung!AH80,2),FIXED(E321/24*Berechnung!$C$157/365,2)) -> 3,45 | M321: =FIXED(Berechnung!X80,1) -> 21,1 | Q321: =FIXED(Berechnung!Y80,1) -> 21,1 | V321: =FIXED(Berechnung!Z80,1) -> 0,0
B322: =Berechnung!M81 -> -3 | E322: =Berechnung!S81 -> 161 | I322: =IF(Berechnung!$C$162=TRUE,FIXED(Berechnung!AH81,2),FIXED(E322/24*Berechnung!$C$157/365,2)) -> 6,25 | M322: =FIXED(Berechnung!X81,1) -> 38,2 | Q322: =FIXED(Berechnung!Y81,1) -> 38,2 | V322: =FIXED(Berechnung!Z81,1) -> 0,0
B323: =Berechnung!M82 -> -2 | E323: =Berechnung!S82 -> 207 | I323: =IF(Berechnung!$C$162=TRUE,FIXED(Berechnung!AH82,2),FIXED(E323/24*Berechnung!$C$157/365,2)) -> 8,03 | M323: =FIXED(Berechnung!X82,1) -> 49,1 | Q323: =FIXED(Berechnung!Y82,1) -> 49,1 | V323: =FIXED(Berechnung!Z82,1) -> 0,0
B324: =Berechnung!M83 -> -1 | E324: =Berechnung!S83 -> 248 | I324: =IF(Berechnung!$C$162=TRUE,FIXED(Berechnung!AH83,2),FIXED(E324/24*Berechnung!$C$157/365,2)) -> 9,63 | M324: =FIXED(Berechnung!X83,1) -> 58,8 | Q324: =FIXED(Berechnung!Y83,1) -> 58,8 | V324: =FIXED(Berechnung!Z83,1) -> 0,0
B325: =Berechnung!M84 -> 0 | E325: =Berechnung!S84 -> 263 | I325: =IF(Berechnung!$C$162=TRUE,FIXED(Berechnung!AH84,2),FIXED(E325/24*Berechnung!$C$157/365,2)) -> 10,21 | M325: =FIXED(Berechnung!X84,1) -> 62,3 | Q325: =FIXED(Berechnung!Y84,1) -> 62,3 | V325: =FIXED(Berechnung!Z84,1) -> 0,0
B326: =Berechnung!M85 -> 1 | E326: =Berechnung!S85 -> 270 | I326: =IF(Berechnung!$C$162=TRUE,FIXED(Berechnung!AH85,2),FIXED(E326/24*Berechnung!$C$157/365,2)) -> 10,48 | M326: =FIXED(Berechnung!X85,1) -> 64,0 | Q326: =FIXED(Berechnung!Y85,1) -> 64,0 | V326: =FIXED(Berechnung!Z85,1) -> 0,0
B327: =Berechnung!M86 -> 2 | E327: =Berechnung!S86 -> 328 | I327: =IF(Berechnung!$C$162=TRUE,FIXED(Berechnung!AH86,2),FIXED(E327/24*Berechnung!$C$157/365,2)) -> 12,73 | M327: =FIXED(Berechnung!X86,1) -> 77,7 | Q327: =FIXED(Berechnung!Y86,1) -> 77,7 | V327: =FIXED(Berechnung!Z86,1) -> 0,0
B328: =Berechnung!M87 -> 3 | E328: =Berechnung!S87 -> 344 | I328: =IF(Berechnung!$C$162=TRUE,FIXED(Berechnung!AH87,2),FIXED(E328/24*Berechnung!$C$157/365,2)) -> 13,35 | M328: =FIXED(Berechnung!X87,1) -> 81,5 | Q328: =FIXED(Berechnung!Y87,1) -> 81,5 | V328: =FIXED(Berechnung!Z87,1) -> 0,0
B329: =Berechnung!M88 -> 4 | E329: =Berechnung!S88 -> 343 | I329: =IF(Berechnung!$C$162=TRUE,FIXED(Berechnung!AH88,2),FIXED(E329/24*Berechnung!$C$157/365,2)) -> 13,31 | M329: =FIXED(Berechnung!X88,1) -> 81,3 | Q329: =FIXED(Berechnung!Y88,1) -> 81,3 | V329: =FIXED(Berechnung!Z88,1) -> 0,0
B330: =Berechnung!M89 -> 5 | E330: =Berechnung!S89 -> 414 | I330: =IF(Berechnung!$C$162=TRUE,FIXED(Berechnung!AH89,2),FIXED(E330/24*Berechnung!$C$157/365,2)) -> 16,07 | M330: =FIXED(Berechnung!X89,1) -> 98,1 | Q330: =FIXED(Berechnung!Y89,1) -> 98,1 | V330: =FIXED(Berechnung!Z89,1) -> 0,0
B331: =Berechnung!M90 -> 6 | E331: =Berechnung!S90 -> 397 | I331: =IF(Berechnung!$C$162=TRUE,FIXED(Berechnung!AH90,2),FIXED(E331/24*Berechnung!$C$157/365,2)) -> 15,41 | M331: =FIXED(Berechnung!X90,1) -> 94,1 | Q331: =FIXED(Berechnung!Y90,1) -> 94,1 | V331: =FIXED(Berechnung!Z90,1) -> 0,0
B332: =Berechnung!M91 -> 7 | E332: =Berechnung!S91 -> 406 | I332: =IF(Berechnung!$C$162=TRUE,FIXED(Berechnung!AH91,2),FIXED(E332/24*Berechnung!$C$157/365,2)) -> 15,76 | M332: =FIXED(Berechnung!X91,1) -> 96,2 | Q332: =FIXED(Berechnung!Y91,1) -> 96,2 | V332: =FIXED(Berechnung!Z91,1) -> 0,0
B333: =Berechnung!M92 -> 8 | E333: =Berechnung!S92 -> 378 | I333: =IF(Berechnung!$C$162=TRUE,FIXED(Berechnung!AH92,2),FIXED(E333/24*Berechnung!$C$157/365,2)) -> 14,67 | M333: =FIXED(Berechnung!X92,1) -> 89,6 | Q333: =FIXED(Berechnung!Y92,1) -> 89,6 | V333: =FIXED(Berechnung!Z92,1) -> 0,0
B334: =Berechnung!M93 -> 9 | E334: =Berechnung!S93 -> 409 | I334: =IF(Berechnung!$C$162=TRUE,FIXED(Berechnung!AH93,2),FIXED(E334/24*Berechnung!$C$157/365,2)) -> 15,87 | M334: =FIXED(Berechnung!X93,1) -> 96,9 | Q334: =FIXED(Berechnung!Y93,1) -> 96,9 | V334: =FIXED(Berechnung!Z93,1) -> 0,0
B335: =Berechnung!M94 -> 10 | E335: =Berechnung!S94 -> 375 | I335: =IF(Berechnung!$C$162=TRUE,FIXED(Berechnung!AH94,2),FIXED(E335/24*Berechnung!$C$157/365,2)) -> 14,55 | M335: =FIXED(Berechnung!X94,1) -> 88,9 | Q335: =FIXED(Berechnung!Y94,1) -> 88,9 | V335: =FIXED(Berechnung!Z94,1) -> 0,0
B336: =Berechnung!M95 -> 11 | E336: =Berechnung!S95 -> 420 | I336: =IF(Berechnung!$C$162=TRUE,FIXED(Berechnung!AH95,2),FIXED(E336/24*Berechnung!$C$157/365,2)) -> 16,30 | M336: =FIXED(Berechnung!X95,1) -> 99,5 | Q336: =FIXED(Berechnung!Y95,1) -> 99,5 | V336: =FIXED(Berechnung!Z95,1) -> 0,0
B337: =Berechnung!M96 -> 12 | E337: =Berechnung!S96 -> 378 | I337: =IF(Berechnung!$C$162=TRUE,FIXED(Berechnung!AH96,2),FIXED(E337/24*Berechnung!$C$157/365,2)) -> 14,67 | M337: =FIXED(Berechnung!X96,1) -> 89,6 | Q337: =FIXED(Berechnung!Y96,1) -> 89,6 | V337: =FIXED(Berechnung!Z96,1) -> 0,0
B338: =Berechnung!M97 -> 13 | E338: =Berechnung!S97 -> 349 | I338: =IF(Berechnung!$C$162=TRUE,FIXED(Berechnung!AH97,2),FIXED(E338/24*Berechnung!$C$157/365,2)) -> 13,55 | M338: =FIXED(Berechnung!X97,1) -> 82,7 | Q338: =FIXED(Berechnung!Y97,1) -> 82,7 | V338: =FIXED(Berechnung!Z97,1) -> 0,0
B339: =Berechnung!M98 -> 14 | E339: =Berechnung!S98 -> 370 | I339: =IF(Berechnung!$C$162=TRUE,FIXED(Berechnung!AH98,2),FIXED(E339/24*Berechnung!$C$157/365,2)) -> 14,36 | M339: =FIXED(Berechnung!X98,1) -> 87,7 | Q339: =FIXED(Berechnung!Y98,1) -> 87,7 | V339: =FIXED(Berechnung!Z98,1) -> 0,0
B340: =Berechnung!M99 -> 15 | E340: =Berechnung!S99 -> 333 | I340: =IF(Berechnung!$C$162=TRUE,FIXED(Berechnung!AH99,2),FIXED(E340/24*Berechnung!$C$157/365,2)) -> 12,92 | M340: =FIXED(Berechnung!X99,1) -> 78,9 | Q340: =FIXED(Berechnung!Y99,1) -> 78,9 | V340: =FIXED(Berechnung!Z99,1) -> 0,0
B341: =Berechnung!M100 -> 16 | E341: =Berechnung!S100 -> 310 | I341: =IF(Berechnung!$C$162=TRUE,FIXED(Berechnung!AH100,2),FIXED(E341/24*Berechnung!$C$157/365,2)) -> 12,03 | M341: =FIXED(Berechnung!X100,1) -> 73,5 | Q341: =FIXED(Berechnung!Y100,1) -> 73,5 | V341: =FIXED(Berechnung!Z100,1) -> 0,0
B342: =Berechnung!M101 -> 17 | E342: =Berechnung!S101 -> 322 | I342: =IF(Berechnung!$C$162=TRUE,FIXED(Berechnung!AH101,2),FIXED(E342/24*Berechnung!$C$157/365,2)) -> 12,50 | M342: =FIXED(Berechnung!X101,1) -> 76,3 | Q342: =FIXED(Berechnung!Y101,1) -> 76,3 | V342: =FIXED(Berechnung!Z101,1) -> 0,0
B343: =Berechnung!M102 -> 18 | E343: =Berechnung!S102 -> 280 | I343: =IF(Berechnung!$C$162=TRUE,FIXED(Berechnung!AH102,2),FIXED(E343/24*Berechnung!$C$157/365,2)) -> 10,87 | M343: =FIXED(Berechnung!X102,1) -> 66,4 | Q343: =FIXED(Berechnung!Y102,1) -> 66,4 | V343: =FIXED(Berechnung!Z102,1) -> 0,0
B344: =Berechnung!M103 -> 19 | E344: =Berechnung!S103 -> 217 | I344: =IF(Berechnung!$C$162=TRUE,FIXED(Berechnung!AH103,2),FIXED(E344/24*Berechnung!$C$157/365,2)) -> 8,42 | M344: =FIXED(Berechnung!X103,1) -> 51,4 | Q344: =FIXED(Berechnung!Y103,1) -> 51,4 | V344: =FIXED(Berechnung!Z103,1) -> 0,0
B345: =Berechnung!M104 -> 20 | E345: =Berechnung!S104 -> 196 | I345: =IF(Berechnung!$C$162=TRUE,FIXED(Berechnung!AH104,2),FIXED(E345/24*Berechnung!$C$157/365,2)) -> 7,61 | M345: =FIXED(Berechnung!X104,1) -> 46,4 | Q345: =FIXED(Berechnung!Y104,1) -> 46,4 | V345: =FIXED(Berechnung!Z104,1) -> 0,0
B346: =Berechnung!M105 -> > 20 | E346: =Berechnung!S105 -> 744 | I346: =IF(Berechnung!$C$162=TRUE,FIXED(Berechnung!AH105,2),FIXED(E346/24*Berechnung!$C$157/365,2)) -> 28,88 | M346: =FIXED(Berechnung!X105,1) -> 176,3 | Q346: =FIXED(Berechnung!Y105,1) -> 176,3 | V346: =FIXED(Berechnung!Z105,1) -> 0,0
E347: =Berechnung!S106 -> 8760 | I347: =IF(Berechnung!$C$162=TRUE,FIXED(Berechnung!AH106,2),Berechnung!C157) -> 340 | M347: =FIXED(Berechnung!X106,0) -> 2.076 | Q347: =FIXED(Berechnung!Y106,0) -> 2.076 | V347: =FIXED(Berechnung!Z106,0) -> 0
B352: =Translation!A182 -> Electricity requirement
B355: =Translation!$A$175 -> Electricity requirement heat pump | J355: =Berechnung!$D$166 -> 5.869 kWh/a
B356: =Translation!$A$22 -> Heating | J356: =IF(ISERROR(Berechnung!L204)," ---",FIXED(Berechnung!L204,0)&" "&Translation!A225) -> 5.150 kWh/a
B357: =Translation!$A$23 -> Warm water | J357: =IF(ISERROR(Berechnung!L206)," ---",FIXED(Berechnung!L206,0)&" "&Translation!A225) -> 720 kWh/a
B358: =Translation!A242 -> Ventilation | J358: =IF(ISERROR(Berechnung!L208)," ---",FIXED(Berechnung!L208,0)&" "&Translation!A225) -> 0 kWh/a
B359: =Berechnung!$D$173 -> End energy 2. heat source | J359: =Berechnung!$D$169 -> 199 kWh/a
B360: =Translation!$A$22 -> Heating | J360: =IF(ISERROR(Berechnung!L205)," ---",FIXED(Berechnung!L205,0)&" "&Translation!A225) -> 199 kWh/a
B361: =Translation!$A$23 -> Warm water | J361: =IF(ISERROR(Berechnung!L207)," ---",FIXED(Berechnung!L207,0)&" "&Translation!A225) -> 0 kWh/a
F363: =Berechnung!$O$141 -> Heating Heat pump | Q363: =Berechnung!$O$143 -> Warm water Heat pump
F364: =Berechnung!$O$142 -> Heating 2nd heat source | Q364: =Berechnung!$O$144 -> Warm water 2nd heat source
F365: =Translation!A242 -> Ventilation
B401: =Translation!A183&" "&Translation!$A$22 -> End energy Heating
B402: =Translation!$A$140 -> Temperature | E402: =Translation!$A$142 -> Heating power HP | I402: =Translation!$A$143 -> Heating power 2. HS | M402: =Translation!$A$211 -> operating point | Q402: COP | T402: =Translation!$A$176 -> Electricitiy heat pump | X402: =Translation!$A$55 -> 2nd heat source
B403: [°C] | E403: ="["&Translation!A225&"]" -> [kWh/a] | I403: ="["&Translation!A225&"]" -> [kWh/a] | M403: - | Q403: - | T403: ="["&Translation!A225&"]" -> [kWh/a] | X403: ="["&Translation!A225&"]" -> [kWh/a]
B404: =Berechnung!M63 -> < -20 | E404: =FIXED(Berechnung!V63,1) -> 0,0 | I404: =FIXED(Berechnung!W63,1) -> 0,0 | M404: =Berechnung!AK63 -> A-20/W35 | Q404: =FIXED(Berechnung!AB63,2) -> 2,31 | T404: =FIXED(Berechnung!AD63,1) -> 0,0 | X404: =FIXED(Berechnung!AF63,1) -> 0,0
B405: =Berechnung!M64 -> -20 | E405: =FIXED(Berechnung!V64,1) -> 0,0 | I405: =FIXED(Berechnung!W64,1) -> 0,0 | M405: =Berechnung!AK64 -> A-20/W35 | Q405: =FIXED(Berechnung!AB64,2) -> 2,39 | T405: =FIXED(Berechnung!AD64,1) -> 0,0 | X405: =FIXED(Berechnung!AF64,1) -> 0,0
B406: =Berechnung!M65 -> -19 | E406: =FIXED(Berechnung!V65,1) -> 0,0 | I406: =FIXED(Berechnung!W65,1) -> 0,0 | M406: =Berechnung!AK65 -> A-19/W35 | Q406: =FIXED(Berechnung!AB65,2) -> 2,47 | T406: =FIXED(Berechnung!AD65,1) -> 0,0 | X406: =FIXED(Berechnung!AF65,1) -> 0,0
B407: =Berechnung!M66 -> -18 | E407: =FIXED(Berechnung!V66,1) -> 0,0 | I407: =FIXED(Berechnung!W66,1) -> 0,0 | M407: =Berechnung!AK66 -> A-18/W35 | Q407: =FIXED(Berechnung!AB66,2) -> 2,55 | T407: =FIXED(Berechnung!AD66,1) -> 0,0 | X407: =FIXED(Berechnung!AF66,1) -> 0,0
B408: =Berechnung!M67 -> -17 | E408: =FIXED(Berechnung!V67,1) -> 0,0 | I408: =FIXED(Berechnung!W67,1) -> 0,0 | M408: =Berechnung!AK67 -> A-17/W35 | Q408: =FIXED(Berechnung!AB67,2) -> 2,55 | T408: =FIXED(Berechnung!AD67,1) -> 0,0 | X408: =FIXED(Berechnung!AF67,1) -> 0,0
B409: =Berechnung!M68 -> -16 | E409: =FIXED(Berechnung!V68,1) -> 0,0 | I409: =FIXED(Berechnung!W68,1) -> 0,0 | M409: =Berechnung!AK68 -> A-16/W35 | Q409: =FIXED(Berechnung!AB68,2) -> 2,60 | T409: =FIXED(Berechnung!AD68,1) -> 0,0 | X409: =FIXED(Berechnung!AF68,1) -> 0,0
B410: =Berechnung!M69 -> -15 | E410: =FIXED(Berechnung!V69,1) -> 0,0 | I410: =FIXED(Berechnung!W69,1) -> 0,0 | M410: =Berechnung!AK69 -> A-15/W35 | Q410: =FIXED(Berechnung!AB69,2) -> 2,66 | T410: =FIXED(Berechnung!AD69,1) -> 0,0 | X410: =FIXED(Berechnung!AF69,1) -> 0,0
B411: =Berechnung!M70 -> -14 | E411: =FIXED(Berechnung!V70,1) -> 0,0 | I411: =FIXED(Berechnung!W70,1) -> 0,0 | M411: =Berechnung!AK70 -> A-14/W35 | Q411: =FIXED(Berechnung!AB70,2) -> 2,76 | T411: =FIXED(Berechnung!AD70,1) -> 0,0 | X411: =FIXED(Berechnung!AF70,1) -> 0,0
B412: =Berechnung!M71 -> -13 | E412: =FIXED(Berechnung!V71,1) -> 0,0 | I412: =FIXED(Berechnung!W71,1) -> 0,0 | M412: =Berechnung!AK71 -> A-13/W35 | Q412: =FIXED(Berechnung!AB71,2) -> 2,87 | T412: =FIXED(Berechnung!AD71,1) -> 0,0 | X412: =FIXED(Berechnung!AF71,1) -> 0,0
B413: =Berechnung!M72 -> -12 | E413: =FIXED(Berechnung!V72,1) -> 0,0 | I413: =FIXED(Berechnung!W72,1) -> 0,0 | M413: =Berechnung!AK72 -> A-12/W35 | Q413: =FIXED(Berechnung!AB72,2) -> 2,87 | T413: =FIXED(Berechnung!AD72,1) -> 0,0 | X413: =FIXED(Berechnung!AF72,1) -> 0,0
B414: =Berechnung!M73 -> -11 | E414: =FIXED(Berechnung!V73,1) -> 48,8 | I414: =FIXED(Berechnung!W73,1) -> 22,5 | M414: =Berechnung!AK73 -> A-11/W35 | Q414: =FIXED(Berechnung!AB73,2) -> 2,93 | T414: =FIXED(Berechnung!AD73,1) -> 16,6 | X414: =FIXED(Berechnung!AF73,1) -> 25,0
B415: =Berechnung!M74 -> -10 | E415: =FIXED(Berechnung!V74,1) -> 273,5 | I415: =FIXED(Berechnung!W74,1) -> 90,2 | M415: =Berechnung!AK74 -> A-10/W35 | Q415: =FIXED(Berechnung!AB74,2) -> 3,00 | T415: =FIXED(Berechnung!AD74,1) -> 91,1 | X415: =FIXED(Berechnung!AF74,1) -> 100,2
B416: =Berechnung!M75 -> -9 | E416: =FIXED(Berechnung!V75,1) -> 125,1 | I416: =FIXED(Berechnung!W75,1) -> 26,8 | M416: =Berechnung!AK75 -> A-9/W35 | Q416: =FIXED(Berechnung!AB75,2) -> 3,10 | T416: =FIXED(Berechnung!AD75,1) -> 40,3 | X416: =FIXED(Berechnung!AF75,1) -> 29,8
B417: =Berechnung!M76 -> -8 | E417: =FIXED(Berechnung!V76,1) -> 214,4 | I417: =FIXED(Berechnung!W76,1) -> 23,2 | M417: =Berechnung!AK76 -> A-8/W35 | Q417: =FIXED(Berechnung!AB76,2) -> 3,20 | T417: =FIXED(Berechnung!AD76,1) -> 67,0 | X417: =FIXED(Berechnung!AF76,1) -> 25,8
B418: =Berechnung!M77 -> -7 | E418: =FIXED(Berechnung!V77,1) -> 415,8 | I418: =FIXED(Berechnung!W77,1) -> 16,1 | M418: =Berechnung!AK77 -> A-7/W35 | Q418: =FIXED(Berechnung!AB77,2) -> 3,20 | T418: =FIXED(Berechnung!AD77,1) -> 129,9 | X418: =FIXED(Berechnung!AF77,1) -> 17,9
B419: =Berechnung!M78 -> -6 | E419: =FIXED(Berechnung!V78,1) -> 455,7 | I419: =FIXED(Berechnung!W78,1) -> 0,0 | M419: =Berechnung!AK78 -> A-6/W35 | Q419: =FIXED(Berechnung!AB78,2) -> 3,26 | T419: =FIXED(Berechnung!AD78,1) -> 139,7 | X419: =FIXED(Berechnung!AF78,1) -> 0,0
B420: =Berechnung!M79 -> -5 | E420: =FIXED(Berechnung!V79,1) -> 360,1 | I420: =FIXED(Berechnung!W79,1) -> 0,0 | M420: =Berechnung!AK79 -> A-5/W35 | Q420: =FIXED(Berechnung!AB79,2) -> 3,33 | T420: =FIXED(Berechnung!AD79,1) -> 108,3 | X420: =FIXED(Berechnung!AF79,1) -> 0,0
B421: =Berechnung!M80 -> -4 | E421: =FIXED(Berechnung!V80,1) -> 735,7 | I421: =FIXED(Berechnung!W80,1) -> 0,0 | M421: =Berechnung!AK80 -> A-4/W35 | Q421: =FIXED(Berechnung!AB80,2) -> 3,42 | T421: =FIXED(Berechnung!AD80,1) -> 215,1 | X421: =FIXED(Berechnung!AF80,1) -> 0,0
B422: =Berechnung!M81 -> -3 | E422: =FIXED(Berechnung!V81,1) -> 1.247,8 | I422: =FIXED(Berechnung!W81,1) -> 0,0 | M422: =Berechnung!AK81 -> A-3/W35 | Q422: =FIXED(Berechnung!AB81,2) -> 3,51 | T422: =FIXED(Berechnung!AD81,1) -> 355,0 | X422: =FIXED(Berechnung!AF81,1) -> 0,0
B423: =Berechnung!M82 -> -2 | E423: =FIXED(Berechnung!V82,1) -> 1.497,3 | I423: =FIXED(Berechnung!W82,1) -> 0,0 | M423: =Berechnung!AK82 -> A-2/W35 | Q423: =FIXED(Berechnung!AB82,2) -> 3,51 | T423: =FIXED(Berechnung!AD82,1) -> 426,0 | X423: =FIXED(Berechnung!AF82,1) -> 0,0
B424: =Berechnung!M83 -> -1 | E424: =FIXED(Berechnung!V83,1) -> 1.665,7 | I424: =FIXED(Berechnung!W83,1) -> 0,0 | M424: =Berechnung!AK83 -> A-1/W35 | Q424: =FIXED(Berechnung!AB83,2) -> 3,72 | T424: =FIXED(Berechnung!AD83,1) -> 447,2 | X424: =FIXED(Berechnung!AF83,1) -> 0,0
B425: =Berechnung!M84 -> 0 | E425: =FIXED(Berechnung!V84,1) -> 1.630,6 | I425: =FIXED(Berechnung!W84,1) -> 0,0 | M425: =Berechnung!AK84 -> A0/W35 | Q425: =FIXED(Berechnung!AB84,2) -> 3,93 | T425: =FIXED(Berechnung!AD84,1) -> 414,5 | X425: =FIXED(Berechnung!AF84,1) -> 0,0
... 91 more rows

Sheet Druckauswahl (hidden)
C2: =Translation!A131 -> Select printout
C4: =Translation!$A$10 -> Project | G4: =Translation!A17 -> Customer | K4: =Translation!A131 -> Select printout
D5: =Translation!$A$11 -> Name | H5: =Translation!$A$11 -> Name
D7: =Translation!$A$12 -> Street | H7: =Translation!$A$12 -> Street
D9: =Translation!$A$13 -> Postcode/Town | H9: =Translation!$A$13 -> Postcode/Town
D11: =Translation!$A$14 -> Phone | H11: =Translation!$A$14 -> Phone
C15: =Translation!$A$9 -> Project data | G15: =Translation!$A$18 -> Notes
D16: =Translation!A15 -> Project.-Nr.
D18: =Translation!A16 -> Processed by

Sheet Translation (hidden)
A2: English | B2: Deutsch | C2: English | D2: Holländisch | E2: Französisch | F2: Finnisch | G2: Spanish | H2: Slovak | I2: Dansk | J2: Litauisch | K2: Latviski | L2: Italienisch | M2: Hungarian | N2: Nowegisch
A3: en_DE | B3: de_DE | C3: en_DE | D3: nl_NL | E3: fr_BE | F3: fi_FI | G3: en_DE | H3: sk_SK | I3: da_DK | J3: en_DE | K3: en_DE | L3: it_AT | M3: en_DE | N3: no_NO
A4: Layout heat pump | B4: Auslegung Wärmepumpe | C4: Layout heat pump | D4: Keuze warmtepomp | E4: dimennsionnement pompes à chaleur | F4: Lämpöpumpun energialaskelmat | G4: Manual de la bomba de calor | H4: Špecifikácia tepelného čerpadla | I4: Dimensionering af varmepumpe | J4: Šilumos siurblio sistema | K4: Siltumsūkņu sistēma | L4: Dimensionamento sistema in pompa di calore | M4: Hőszivattyú kiválasztás | N4: Dimensjonering varmepumpe
A5: The fast and easy way to generate a detailed specification | B5: Mit wenigen Klicks zum idealen Wärmepumpensystem | C5: The fast and easy way to generate a detailed specification | D5: In enkele stappen naar de juiste warmtepomp | E5: The fast and easy way to generate a detailed specification | F5: Nopea ja helppo tapa laatia yksityiskohtainen mitoitus | G5: The fast and easy way to generate a detailed specification | H5: Rýchly a jednoduchý spôsob, ako vytvoriť podrobnú špecifikáciu. | I5: Den lette vej til den rigtige varmepumpe | J5: Keli žingsniai tinkamo šilumos siurblio parinkimui | K5: Ātra un viegla sistēmas specifikācija! | L5: Il modo facile e veloce per definire il sistema in pompa di calore più adatto alle proprie esigenze | M5: Pár lépés a megfelelő hőszivattyú kiválasztásához | N5: Velg riktig varmepumpesystem med noen få klikk
A6: Back | B6: Zurück | C6: Back | D6: Terug | E6: retour | F6: Takaisin | G6: atrás/anterior | H6: Späť | I6: Tilbage | J6: Atgal | K6: Atpakaļ | L6: Indietro | M6: Vissza | N6: Tilbake
A7: Back to main window | B7: Zurück zur Auswahl | C7: Back to main window | D7: Terug | E7: retour | F7: Takaisin | G7: atrás/anterior | H7: Späť | I7: Tilbage til hovedskærmbillede | J7: Atgal | K7: Atpakaļ | L7: Indietro | M7: Vissza a kiválasztáshoz | N7: Retur til hovedvindu
A9: Project data | B9: Projektdaten | C9: Project data | D9: Projectdata | E9: Données du projet | F9: Projektin tiedot | G9: data del proyecto | H9: Informácie o projekte | I9: Projekt data | J9: Projekto duomenys | K9: Projekta dati | L9: Dati del progetto | M9: Projekt adatok | N9: Prosjektinfo
A10: Project | B10: Bauvorhaben | C10: Project | D10: Project | E10: Projet | F10: Projekti | G10: proyecto | H10: Projekt | I10: Projekt | J10: Statinys/pastatas | K10: Projekts | L10: Progetto | M10: Projekt adatok | N10: Prosjekt
A11: Name | B11: Name | C11: Name | D11: Naam | E11: Nom | F11: Nimi | G11: nombre | H11: Meno | I11: Navn | J11: Vardas, pavardė | K11: Nosaukums | Vārds | L11: Nominativo | M11: Név | N11: Navn
A12: Street | B12: Straße | C12: Street | D12: Straat | E12: Rue | F12: Katuosoite | G12: calle | H12: Ulica | I12: Gade | J12: Gatvė | K12: Iela | L12: Via | M12: Utca | N12: Gate
A13: Postcode/Town | B13: PLZ/Ort | C13: Postcode/Town | D13: Postcode/ Plaats | E13: code postal/Ville | F13: Postinumero- ja toimipaikka | G13: codigo postal/localidad | H13: PSČ/Mesto | I13: Postnr./By | J13: Pašto kodas/Vietovė | K13: Pasta indekss | L13: CAP/Città | M13: Irányítószám/Helyiség | N13: Postnr./by
A14: Phone | B14: Telefon | C14: Phone | D14: Telefoon | E14: Téléphone | F14: Puhelinnumero | G14: teléfono | H14: Telefón | I14: Telefon | J14: Telefonas | K14: Tālrunis | L14: Telefono | M14: Telefonszám | N14: Telefon
A15: Project.-Nr. | B15: Projekt.-Nr. | C15: Project.-Nr. | D15: Project.-Nr. | E15: Project.-Nr. | F15: Projektinumero | G15: Project.-Nr. | H15: Projekt č. | I15: Projekt-nr. | J15: Projekto Nr. | K15: Projekta numurs | L15: Progetto-N° | M15: Projekt szám | N15: Prosjekt.-Nr
A16: Processed by | B16: Bearbeiter | C16: Processed by | D16: Gemaakt door | E16: Réalisé par | F16: Laatija | G16: procesado por | H16: Spracované | I16: Udført af | J16: Pasiūlymą pateikė | K16: Izstrādājis | L16: Elaborato da | M16: Kivitelező | N16: Utarbeidet av
A17: Customer | B17: Auftraggeber | C17: Customer | D17: Opdrachtgever | E17: Client | F17: Asiakas | G17: cliente | H17: Zákazník | I17: Kunde | J17: Užsakovas | K17: Klients | Partneris | L17: Cliente | M17: Megbízó | N17: Kunde
A18: Notes | B18: Bemerkungen | C18: Notes | D18: Notes | E18: Notes | F18: Muistiinpanot | G18: Notes | H18: Poznámky | I18: Bemærkninger | J18: Pastabos | K18: Pieraksti | L18: Note | M18: Megjegyzés | N18: Notater
A19: reset values | B19: Projektdaten zurücksetzen | C19: reset values | D19: Beginwaarden | E19: Réinitialiser les valeurs | F19: Tyhjennä kentät | G19: restablecer valores | H19: vymazať kolónky | I19: Nulstil værdier | J19: Skaičiuoti iš naujo | K19: Pamatiestatījumi | L19: Reset valori | M19: Projekt adatok visszaállítása | N19: Tilbakestill verdier
A21: Heat pump finder | B21: WP-Schnellauswahl | C21: Heat pump finder | D21: Snelkeuze warmtepomp | E21: Heat pump finder | F21: Lämpöpumppuvalitsin | G21: Heat pump finder | H21: Rýchly výber tepelného čerpadla | I21: Varmepumpevælger | J21: Greitas šilumos siurblio pasirinkimas | K21: Siltumsūkņu meklētājs | L21: Trova pompa di calore | M21: Hőszivattyú gyorskiválasztás | N21: Varmepumpe velger
A22: Heating | B22: Heizung | C22: Heating | D22: Verwarming | E22: Heating | F22: Lämmitys | G22: Heating | H22: Vykurovanie | I22: Varme | J22: Šildymas | K22: Apkure | L22: Riscaldamento | M22: Fűtés | N22: Varme
A23: Warm water | B23: Warmwasser | C23: Warm water | D23: Warm water | E23: Warm water | F23: Käyttövesi | G23: Warm water | H23: Teplá voda | I23: Varmtvand | J23: Karštas vanduo | K23: Karstais ūdens | L23: Acqua calda | M23: Melegvíz | N23: Varmtvann
A24: Solar | B24: Solar | C24: Solar | D24: Solar | E24: Solar | F24: Aurinko | G24: Solar | H24: Solár | I24: Solar | J24: Saulė | K24: Saule | L24: Solare | M24: Szolár | N24: Solvarme
A25: Ventilation | B25: Lüftung | C25: Ventilation | D25: Ventilatie | E25: Ventilation | F25: Ilmanvaihto | G25: Ventilation | H25: Ventilácia | I25: Ventilation | J25: Vėdinimas | K25: Vēdināšana | L25: Ventilazione | M25: Szellőzés | N25: Ventilasjon
A26: Cooling | B26: Kühlung | C26: Cooling | D26: Koeling | E26: Cooling | F26: Viilennys | G26: Cooling | H26: Chladenie | I26: Kølling | J26: Vėsinimas | K26: Dzesēšana | L26: Raffrescamento | M26: Hűtés | N26: Kjøling
A27: Installation | B27: Aufstellung | C27: Installation | D27: Installatie | E27: Installation | F27: Asennuspaikka | G27: Installation | H27: Inštalácia | I27: Installationssted | J27: Montavimas | K27: Iekārtas tips | L27: Installazione | M27: Elhelyezés | N27: Oppstilling
A28: Internal | B28: Innenaufstellung | C28: Internal | D28: Intern | E28: Internal | F28: Sisällä | G28: Internal | H28: Vnútorná | I28: Indendørs Installation | J28: Vidinė instaliacija | K28: Iekštelpu | L28: Interna | M28: Belső elhelyezés | N28: Utendørs
A29: External | B29: Außenaufstellung | C29: External | D29: Extern | E29: External | F29: Ulkona | G29: External | H29: Vonkajšia | I29: Udendørs Installation | J29: Lauko instaliacija | K29: Ārtelpu | L29: Esterna | M29: Külső elhelyezés | N29: Innendørs
A30: Show all | B30: Alle anzeigen | C30: Show all | D30: Alles tonen | E30: Show all | F30: Näytä kaikki | G30: Show all | H30: Ukáž všetko | I30: Vis alt | J30: Rodyti viską | K30: Rādīt visus | L30: Mostra tutto | M30: Minden megmutatása | N30: Vis alle
A31: Estimated assumption dosen't replace a detailed calculation,Heating threshold -15°C, Calculation without switch off time, Heat source air: monoenergetic operation, Bivalence point -3°C…-7°C, Heat Source Brine/Well Water monovalent operation | B31: Überschlägige Auslegung, ersetzt nicht die detaillierte Dimensionierung Für Heizgrenztemperatur -15°C, Berechnung ohne EVU-Sperrzeiten Wärmequelle Luft: monoenergetischer Betrieb, Bivalenzpunkt -3°C…-7°C Wärmequelle Erdreich/Grundwasser: monovalenter Betrieb | C31: Estimated assumption dosen't replace a detailed calculation,Heating threshold -15°C, Calculation without switch off time, Heat source air: monoenergetic operation, Bivalence point -3°C…-7°C, Heat Source Brine/Well Water monovalent operation | D31: Ruwe interpretatie, geen vervanging van de gedetailleerde calculatie, Verwarmingsdrempel -15°C. Berekening zonder uitschakeltijd, Warmtebron lucht: mono-energetische werking, bivalentiepunt -3 ° C ... -7 ° C. Warmtebron collector/grondwater: Monovalent bedrijf. | H31: Približný návrh nenahrádza podrobné dimenzovanie pre vykurvanie -15 °C, bez započítania HDO výpadku, Vzduch ako zdroj tepla: monoenergetická prevádzka, bivalnetný bod -3°C…-7°C Zem/voda ako zdroj tepla: monovalentná prevádzka | I31: Overslagsberegning, erstatter ikke den detaljerede dimensionering. For varmegrænse temperatur -15 ° C, beregning uden maks. spærretid Varmekilde luft: Monoenergetisk drift, bivalenspunkt -3 ° C... -7 ° C Varmekilde Jordvarme / grundvand: Monovalent drift | J31: Bendras išankstinis pasiūlymas negali pakeisti detalaus projektavimo: Ribinės šildymo temperatūros -15C. Šilumos šaltinis oras : monoenerginis veikimas ,bivalentinis taškas -3 C ... -7 C. Šilumos šaltinis gruntas/ gruntiniai vandenys: monovalentinis veikimas | K31: Esošās aplēses neaizstāj detalizētu aprēķinu, Apkures 5 dienu zemāko temperatūru slieksni -21°C, aprēķini bez sistēmas dīkstāves. Apkures avots Gaiss: monoenerģētiska darbība, bivalences punkts -7°C....-12°C Apkures avots Zeme | Aka: monovalenta darbība | L31: Una stima preliminare non può sostituire un calcolo esecutivo, Soglia di ricaldamento -15°C, Calcolo senza tempo di spegimento; Sistemi ad aria: funzionamento monoenergetico, punto di bivalenza -3°C…-7°C, Sorgente geotermica / acqua di falda: funzionamento monovalente | M31: Megközelítő kiválasztás, nem helyettesíti a pontos méretezést. A méretezési külső hőmérséklet -15°C a szolgáltatói zárásidő nincs figyelembe véve. Levegő, mint hőforrás esetén: monoenergetikus üzemmód, bivalenciapont -3°C…-7°C Talajvíz illetve talaj, mint hőforrás esetén: monovalens üzemmód | N31: Estimert overslag erstatter ikke en detaljert prosjektering. For temperaturer under -15°C beregnes uten sperretider. Med varmekilde uteluft mono-energetisk drift, bivalens punkt -3°C…..-7°C. Varmekilde berg med monvalent drift.
A33: Selection | B33: Auswahl | C33: Selection | D33: Selectie | E33: Choix | F33: Valinnat | G33: selección | H33: Výber | I33: Valg | J33: Pasirinkimas | K33: Izvēle | L33: Selezione | M33: Kiválasztás | N33: Valg
A34: Heat demand building | B34: Gebäudeheizlast | C34: Heat demand building | D34: Warmteverlies gebouw | E34: Puissance du bâtiment | F34: Rakennuksen lämmöntarve | G34: demanda térmica del edificio | H34: Tepelná strata | I34: Bygningens varmebehov | J34: Pastato šilumos galios poreikis | K34: Ēkas siltumslodze | L34: Fabbisogno termico dell'edificio | M34: Épület hőszükséglete | N34: Varmebehov bygg
A35: Heat pump | B35: Wärmepumpe | C35: Heat pump | D35: Warmtepomp | E35: Pompe à Chaleur | F35: Lämpöpumppu | G35: bomba de calor | H35: Tepelné čerpadlo | I35: Varmepumpe | J35: Šilumos siurblys | K35: Siltumsūknis | L35: Pompa di calore | M35: Hőszivattyú | N35: Varmepumpe
A36: Heat source | B36: Wärmequelle | C36: Heat source | D36: Bron | E36: source de chaleur | F36: Lämmönlähde | G36: fuente de calor | H36: Zdroj tepla | I36: Energikilde | J36: Šilumos šaltinis | K36: Siltuma avots | L36: Sorgente di calore | M36: Hőforrás | N36: Varmkilde
A37: Air | B37: Außenluft | C37: Air | D37: Buitenlucht | E37: air | F37: Ilma | G37: aire | H37: Vzduch | I37: Luft | J37: Lauko oras | K37: Gaiss | L37: Aria | M37: Levegő | N37: Uteluft
A38: Brine | B38: Erdreich | C38: Brine | D38: Horizontale bodemcollector | E38: sol | F38: Liuos | G38: agua glicolada | H38: Zem | I38: Brine | J38: Gruntas | K38: Zeme | L38: Acqua glicolata | M38: Talaj | N38: Berg/jord
A39: Water | B39: Grundwasser | C39: Water | D39: Grondwater | E39: eau | F39: Muu | G39: agua | H39: Podzemná voda | I39: Grundvand | J39: Gruntiniai vandenys | K39: Ūdens | L39: Acqua | M39: Talajvíz | N39: Vann
A40: Quantity | B40: Anzahl | C40: Quantity | D40: Aantal | E40: Nombre | F40: Määrä | G40: cantidad | H40: Množstvo | I40: Mængde | J40: Kiekis | K40: Skaits | L40: Quantità | M40: Darabszám | N40: Antall
A41: Type | B41: Typ | C41: Type | D41: Type | E41: Type | F41: Laite | G41: tipo | H41: Typ | I41: Type | J41: Tipas | K41: Tips | L41: Tipo | M41: Tipus | N41: Type
A42: Operating mode | B42: Betriebsweise | C42: Operating mode | D42: Werkwijze | E42: mode de fonctionnement | F42: Käyttötapa | G42: Modo de operación | H42: Prevádzka | I42: Driftstype | J42: Veikimo būdas | K42: Darbības režīms | L42: Modalità di funzionamento | M42: Üzemmód | N42: Driftsmodus
A43: Dual-mode point | B43: Bivalenzpunkt | C43: Dual-mode point | D43: Bivalentiepunt | E43: bivalence | F43: Rinnakkaispiste | G43: Punto bivalente | H43: Bivalentný bod | I43: Bivalenspunkt | J43: Bivalentinis taškas | K43: Bivalenta darbība | L43: Punto di bivalenza | M43: Bivalenciapont | N43: Bivalenspunkt
A44: Switch-Off point | B44: Abschaltpunkt | C44: Switch-Off point | D44: Afschakeling | E44: point d'arrêt | F44: Keskeytyspiste | G44: punto de parada | H44: Switch-Off point | I44: Switch-Off point | J44: Išjungimo momentas | K44: Bivalenta darbība | L44: Switch-Off point | M44: Switch-Off point | N44: Grenseverdi f. stopp
A45: Monovalent | B45: Monovalent | C45: Monovalent | D45: Monovalent | E45: monovalent | F45: Monovalentti (täystehoinen) | G45: monovalente | H45: Monovalent | I45: Monovalent | J45: Monovalentinis | K45: Monovalenta | L45: Monovalente | M45: Monovalens | N45: Monovalent
A46: Mono-mode | B46: Monovalenter Betrieb | C46: Mono-mode | D46: Monovalent | E46: monovalent | F46: Monovalentti (täystehoinen) | G46: mono modo | H46: Monovalentná prevádzka | I46: Monovalent drift | J46: Monovalentinis veikimas | K46: Mono-darbība | L46: Monovalente | M46: Monovalens üzem | N46: Monovalent drift
A47: Monoenergetic | B47: Monoenergetisch | C47: Monoenergetic | D47: Monoenergetisch | E47: mono-énergétique | F47: Monoenerginen (LP + sähkövastus) | G47: monoenergético | H47: Monoenergetická | I47: Monoenergetisk | J47: Monoenerginis | K47: Monoenerģētiska | L47: Monoenergetico | M47: Monoergiás üzem | N47: Monoenergetisk
A48: Bivalent-parallel with SBP-Gas | B48: Bivalent-Parallel mit SBP-Gas | C48: Bivalent-parallel with SBP-Gas | D48: Bivalent-parallel SBP-Gas | E48: Bivalent-parallel with SBP-Gas | F48: Bivalenttinen-rinnakkainen SBP-G | G48: Bivalent-parallel with SBP-Gas | H48: Bivalentná-paralelná s SBP-plynovým | I48: Bivalent-parallel med SBP-Gas | J48: Bivalentinis-lygiagretus su susk.dujomis | K48: Bivalenta-paralēla ar SBP-Gāze | L48: Con SBP e caldaia a gas metano (parallelo) | M48: Bivalens Párhuzamos SBP-Gáz tárolóval | N48: Bivalent parallel med gass
A49: Bivalent-alternativ with SBP-Gas | B49: Bivalent-Alternativ mit SBP-Gas | C49: Bivalent-alternativ with SBP-Gas | D49: Bivalent-alternatief SBP-Gas | E49: Bivalent-alternativ with SBP-Gas | F49: Bivalenttinen-vaihtoehtoinen SBP-G | G49: Bivalent-alternativ with SBP-Gas | H49: Bivalentná-alternatívna s SBP-plynovým | I49: Bivalent-alternativ med SBP-Gas | J49: Bivalentinis-lalternatyvus su susk.dujomis | K49: Bivalenta-alternatīva ar SBP-Gāze | L49: Con SBP e caldaia a gas metano (alternativo) | M49: Bivalens Alternatív SBP-Gáz tárolóval | N49: Bivalent alternativ med gass
A50: Bivalent-parallel with oil/gas | B50: Bivalent-Parallel mit Öl/Gas | C50: Bivalent-parallel with oil/gas | D50: Bivalent-parallel Olie/Gas | E50: Bivalent-parallel with oil/gas | F50: Bivalenttinen-rinnakkainen öljy/kaasu | G50: Bivalent-parallel with oil/gas | H50: Bivalentná-paralelná s plynovým kotlom | I50: Bivalent-parallel olie/gas | J50: Bivalentinis - lygiagretus kuro/dujų | K50: Bivalenta-paralēla ar dīzeli/gāzi | L50: Bivalente-parallelo with gasolio / gas metano | M50: Bivalens Párhuzamos Olaj/Gáz | N50: Bivalent parallel med oljekjel
A51: Bivalent-parallel with electricity | B51: Bivalent-Parallel mit Strom | C51: Bivalent-parallel with electricity | D51: Bivalent-parallel stroom | E51: Bivalent-parallel with electricity | F51: Bivalenttinen-rinnakkainen sähkö | G51: Bivalent-parallel with electricity | H51: Bivalentná-paralelná s elektrokotlom | I51: Bivalent-parallel strøm | J51: Bivalentinis - lygiagretus Elektra | K51: Bivalenta-paralēla ar elektrību | L51: Bivalente-parallelo with elettricità | M51: Bivalens Párhuzamos Elektromos | N51: Bivalent parallell med elektrisk
A52: Bivalent-alternativ with oil/gas | B52: Bivalent-Alternativ mit Öl/Gas | C52: Bivalent-alternativ with oil/gas | D52: Bivalent-alternatief Olie/Gas | E52: Bivalent-alternativ with oil/gas | F52: Bivalenttinen-vaihtoehtoinen öljy/kaasu | G52: Bivalent-alternativ with oil/gas | H52: Bivalentná-alternatívna s plynovým kotlom | I52: Bivalent-alternativ olie/gas | J52: Bivalentinis - alternatyvus kuro/dujų | K52: Bivalenta-alternatīva ar dīzeli/gāzi | L52: Bivalente-alternativo with gasolio / gas metano | M52: Bivalens Alternatív Olaj/Gáz | N52: Bivalent alternativ med olje/gass
A53: Bivalent-part priority mode | B53: Bivalent-Teilparallel mit Öl/Gas | C53: Bivalent-part priority mode | D53: Bivalent-gedeeltelijk parallel Olie/Gas | E53: bivalent-parallèle partiel | F53: Bivalentti/osittain etusijainen käyttö | G53: Modo prioritario parte bivalente | H53: Bivalentná - čiastočná | I53: Bivalent-delvist prioriteret | J53: Bivalentinis-dalinis prioritetas | K53: Bivalenti - daļēji prioritāri | L53: Priorità nella zona di bivalenza | M53: Bivalens Részpárhuzamos Olaj/Gáz | N53: Bivalent-delt prioritert modus
A54: Heating Capacity | B54: Heizleistung | C54: Heating Capacity | D54: Verwarmingscapaciteit | E54: capacité de chauffe | F54: Lämpöteho | G54: Capacidad de calefacción | H54: Potreba tepla | I54: Varmeeffekt | J54: Šildymo galia | K54: Siltumslodze | L54: Capacità di riscaldamento | M54: Fűtési teljesítmény | N54: Varmekapasitet
A55: 2nd heat source | B55: 2. Wärmeerzeuger | C55: 2nd heat source | D55: Additioneel toestel | E55: 2ième source de chaleur | F55: 2. lämmöntuottaja | G55: segunda fuente de calor | H55: Druhý zdroj | I55: 2. varmekilde | J55: 2-inis šilumos šaltinis | K55: 2-ais siltumavots | L55: Seconda sorgente di calore | M55: 2. Hőtermelő | N55: Tilskudds varme
A56: Forward flow temperature | B56: Vorlauftemperatur | C56: Forward flow temperature | D56: Aanvoertemperatuur | E56: température de départ | F56: Menovirtauslämpötila | G56: Temperatura de impulsión | H56: Výstupná teplota | I56: Fremløbstemperatur | J56: Tiekiamo srauto temperatūra | K56: Turpgaitas temperatūra | L56: Temperatura di mandata | M56: Előremenő hőmérséklet | N56: Turløpstemperatur
A57: Switch off time | B57: EVU-Sperrzeiten | C57: Switch off time | D57: EVU-Spertijden | E57: interdiction tarifaire journalière | F57: Keskeytystilat | G57: tiempo de parada | H57: Doba HDO | I57: Spærretid | J57: Elektros tinklų išjungimo laikas | K57: Elektrotīkla atslēgšana | L57: Tempo di spegnimento | M57: GEO zárásidő | N57: Sperretider
A58: No switch off times | B58: Keine Sperrzeiten | C58: No switch off times | D58: Geen spertijden | E58: pas d'interdiction tarifaire journalière | F58: Ei keskeytystiloja | G58: tiempo de parada no existente | H58: Žiadne HDO | I58: Antal spærringer | J58: Išjungimo laikų nėra | K58: Bez elektrotīkla atslēgšanas | L58: Senza tempi di spegnimento | M58: Nincs zárásidő | N58: Ingen sperretider
A59: h/day | B59: Stunde pro Tag | C59: h/day | D59: u/Dag | E59: h/jour | F59: h/päivä | G59: horas/día (h/día) | H59: h/deň | I59: timer/dag | J59: Valanda per dieną | K59: stundas dienā | L59: ore/giorno | M59: Óra/nap | N59: Timer daglig
A60: h/day | B60: Stunden pro Tag | C60: h/day | D60: u/Dag | E60: h/jour | F60: h/päivä | G60: horas/día (h/día) | H60: h/deň | I60: timer/dag | J60: Valandos per dieną | K60: stundas dienā | L60: ore/giorno | M60: Óra/nap | N60: Timer pr. dag
A61: Building | B61: Gebäude | C61: Building | D61: Gebouw | E61: bâtiment | F61: Rakennus | G61: construcción / edificio | H61: Budova | I61: Bygning | J61: Pastatas | K61: Ēka | L61: Edificio | M61: Épület | N61: Bygning
A62: Country | B62: Land | C62: Country | D62: Land | E62: Pays | F62: Maa | G62: país | H62: Krajna | I62: Land | J62: Šalis | K62: Valsts | L62: Nazione | M62: Ország | N62: Land
A63: Country selection | B63: Auswahl Land | C63: Country selection | D63: Land selectie | E63: Choix du pays | F63: Maan valinta | G63: selección de país | H63: Výber krajny | I63: Valg af Land | J63: Šalies pasirinkimas | K63: Valsts izvēle | L63: Selezione nazione | M63: Ország kiválasztása | N63: Velg land
A64: Germany | B64: Deutschland | C64: Germany | D64: Duitsland | E64: Allemagne | F64: Saksa | G64: Alemania | H64: Nemecko | I64: Tyskland | J64: Vokietija | K64: Vācija | L64: Germania | M64: Németország | N64: Tyskland
A65: Austria | B65: Österreich | C65: Austria | D65: Oostenrijk | E65: Autriche | F65: Itävalta | G65: Austria | H65: Rakúsko | I65: Østrig | J65: Austrija | K65: Austrija | L65: Austria | M65: Ausztria | N65: Østerrike
A66: Switzerland | B66: Schweiz | C66: Switzerland | D66: Zwitserland | E66: Suisse | F66: Sveitsi | G66: Suiza | H66: Švajčiarsko | I66: Schweiz | J66: Šveicarija | K66: Šveice | L66: Svizzera | M66: Svájc | N66: Sveits
A67: Great Britain | B67: Großbritannien | C67: Great Britain | D67: Engeland | E67: Grande-Bretagne | F67: Iso-Britannia | G67: Gran Bretaña | H67: Veľká Británia | I67: Storbritannien | J67: Didžioji Britanija | K67: Lielbritānija | L67: Gran Bretagna | M67: Anglia | N67: Stor-Britannia
A68: Netherlands | B68: Niederlande | C68: Netherlands | D68: Nederland | E68: Pays-Bas | F68: Alankomaat | G68: Holanda | H68: Holandsko | I68: Holland | J68: Olandija | K68: Nīderlande | L68: Paesi Bassi | M68: Hollandia | N68: Nederland
A69: Italy | B69: Italien | C69: Italy | D69: Italie | E69: Italie | F69: Italia | G69: Italia | H69: Taliansko | I69: Italien | J69: Italija | K69: Itālija | L69: Italia | M69: Olaszország | N69: Italia
A70: Finland | B70: Finnland | C70: Finland | D70: Finland | E70: Finlande | F70: Suomi | G70: Finlandia | H70: Fínsko | I70: Finland | J70: Suomija | K70: Somija | L70: Finlandia | M70: Finnország | N70: Finland
A71: Norway | B71: Norwegen | C71: Norway | D71: Norway | E71: Norway | F71: Norja | G71: Norway | H71: Norway | I71: Norway | J71: Norvegija | K71: Norway | L71: Norway | M71: Norway | N71: Norge
A72: Spain | B72: Spanien | C72: Spain | D72: Spanje | E72: Espagne | F72: Espanja | G72: Espana | H72: Španielsko | I72: Spanien | J72: Ispanija | K72: Spānija | L72: Spagna | M72: Spanyolország | N72: Spania
A73: Near East | B73: Naher Osten | C73: Near East | D73: Midden Oosten | E73: Proche-Orient | F73: Lähi-Itä | G73: Cercano Oriente | H73: Blízky Východ | I73: Mellemøsten | J73: Artimieji rytai | K73: Tuvie austrumi | L73: Vicino Oriente | M73: Közel-kelet | N73: Fjerne Østen
A74: Morocco | B74: Marokko | C74: Morocco | D74: Morocco | E74: Morocco | F74: Marokko | G74: Marruecos | H74: Maroko | I74: Marokko | J74: Marokas | K74: Maroka | L74: Marocco | M74: Marokkó | N74: Marocco
A75: Russia | B75: Russland | C75: Russia | D75: Russia | E75: Russia | F75: Russia | G75: Russia | H75: Rusko | I75: Rusland | J75: Rusija | K75: Krievija | L75: Russia | M75: Oroszország | N75: Russland
A76: Bosnia-Herzegovina | B76: Bosnien-Herzegowina | C76: Bosnia-Herzegovina | D76: Bosnie-Herzegovina | E76: Bosnia-Herzegovina | F76: Bosnia ja Hertsegovina | G76: Bosnia-Herzegovina | H76: Bosna a Hercegovina | I76: Bosnien-Herzegovina | J76: Bosnija-Hercegovina | K76: Bosnija-Hercegovina | L76: Bosnia-Erzegovina | M76: Bosznia-Hercegovina | N76: Bosnia-Herzegovina
A77: Slovakia | B77: Slovakei | C77: Slovakia | D77: Slovakia | E77: Slovaquie | F77: Slovakia | G77: Slovakia | H77: Slovensko | I77: Slovakiet | J77: Slovakija | K77: Slovākija | L77: Repubblica Slovacca | M77: Szlovákia | N77: Slovakia
A78: Latvia | B78: Lettland | C78: Latvia | D78: Letland | E78: Lettonie | F78: Latvia | G78: Letonia | H78: Lotyšsko | I78: Letland | J78: Latvija | K78: Latvija | L78: Lettonia | M78: Lettország | N78: Latvia
A79: Hungary | B79: Ungarn | C79: Hungary | D79: Hongarije | E79: Hongrie | F79: Unkari | G79: Hungria | H79: Mad'arsko | I79: Ungarn | J79: Vengrija | K79: Ungārija | L79: Ungheria | M79: Magyarország | N79: Ungarn
A80: Denmark | B80: Dänemark | C80: Denmark | D80: Denemarken | E80: Danemark | F80: Tanska | G80: Dinamarca | H80: Dánsko | I80: Danmark | J80: Danija | K80: Dānija | L80: Danimarca | M80: Dánia | N80: Danmark
A81: Namibia | B81: Namibia | C81: Namibia | D81: Namibië | E81: Namibia | F81: Namibia | G81: Namibia | H81: Namibia | I81: Namibia | J81: Namibija | K81: Namībija | L81: Namibia | M81: Namíbia | N81: Namibia
A82: Lithuania | B82: Litauen | C82: Lithuania | D82: Litouwen | E82: Lituanie | F82: Liettua | G82: Lituania | H82: Litva | I82: Litauen | J82: Lietuva | K82: Lietuva | L82: Lituania | M82: Litvánia | N82: Litauen
A83: Belgium | B83: Belgien | C83: Belgium | D83: Belgium | E83: Belgium | F83: Belgia | G83: Belgium | H83: Belgicko | I83: Belgien | J83: Belgija | K83: Beļģija | L83: Belgium | M83: Belgium | N83: Belgia
A84: Europe | B84: Europa | C84: Europe | D84: Europa | E84: Europe | F84: Eurooppa | G84: Europa | H84: Európa | I84: Europa | J84: Europa | K84: Eiropa | L84: Europa | M84: Európa | N84: Europa
A85: City | B85: Stadt | C85: City | D85: Locatie | E85: lieu | F85: Sijainti | G85: Ciudad | H85: Mesto | I85: By | J85: Miestas | K85: Pilsēta | L85: Città | M85: Város | N85: By
A87: Heating treshold | B87: Heizgrenze | C87: Heating treshold | D87: Verwarmingsgrens | E87: Limite de chauffage | F87: Lämmityskynnys | G87: umbral de calefacción | H87: Hranice vykurovania | I87: Varmegrænse | J87: Šildymo sezono pradžia | K87: Apkures robeža | L87: Soglia di riscaldamento | M87: Fűtési határhőmérséklet | N87: Start oppvarming
A88: Building type | B88: Gebäudeart | C88: Building type | D88: Gebouwtype | E88: Type de bâtiment | F88: Rakennustyyppi | G88: Construcción tipo | H88: Typ budovy | I88: Bygningstype | J88: Pastato tipas | K88: Ēkas tips | L88: Tipologio di edificio | M88: Épület típusa | N88: Bygningstype
A89: New building | B89: Neubau EnEV 2014 | C89: New building | D89: Nieuwbouw EnEV 2014 | E89: nouvelle construction | F89: Uudisrakennus | G89: Nueva construcción | H89: Nová budova | I89: Ny bygning | J89: Nauja statyba pagal EnEv 2014 | K89: Jaunbūve | L89: Edificio di nuova costruzione | M89: Új építésű EnEV 2014 | N89: Nybygg
A90: Renovated old building | B90: Altbau EnEV 2014 | C90: Renovated old building | D90: Oudbouw EnEV 2014 | E90: rénovation | F90: Saneerattu vanha rakennus | G90: Antigüo edificio renovado | H90: Rekonštruovaná budova | I90: Renoveret ældre bygning | J90: Renovuotas statinys pagal EnEv 2014 | K90: Renovēta ēka | L90: Ristrutturazione | M90: Régi építésű EnEV 2014 | N90: Rehabilitert bygning
A91: Not-renovated building | B91: Altbau unsaniert | C91: Not-renovated building | D91: Oudbouw niet gerenoveerd | E91: non rénové | F91: Saneeraamaton rakennus | G91: construcción no renovada | H91: Nerekonštruovaná budova | I91: Ikke renoveret bygning | J91: Nerenovuotas senas statinys | K91: Nerenovēta ēka | L91: Vecchio edificio non ristrutturato | M91: Régi építésű nem felújított | N91: Eldre bygning
A92: Passive house | B92: Passivhaus | C92: Passive house | D92: Passiefhuis | E92: maison passive | F92: Passiivitalo | G92: casa pasiva | H92: Pasívny dom | I92: Passivhus | J92: Pasyvus namas | K92: Pasīva ēka | L92: Casa passiva | M92: Passzívház | N92: Passivhus
A93: Heating capacity | B93: Gebäude-Heizlast | C93: Heating capacity | D93: Norm-warmteverlies | E93: capacité de chauffage | F93: Lämmöntarve | G93: Capacidad de calefacción | H93: Potreba tepla | I93: Varmeeffekt | J93: Pastato šilumos galia | K93: Siltumslodze | L93: Capacità di riscaldamento | M93: Épület hőszükséglete | N93: Effektbehov bygning
A94: Heating capacity | B94: Norm-Heizlast nach DIN EN 12831 | C94: Heating capacity | D94: Norm-warmteverlies | E94: capacité de chauffage | F94: Lämmöntarve | G94: Capacidad de calefacción | H94: Potreba tepla | I94: Varmeeffekt | J94: Norminė šilumos galia pagal DIN EN 12831 | K94: Siltumslodze | L94: Capacità di riscaldamento | M94: Tervezési hőszükséglet DIN EN 12831 szerint | N94: Effektbehov bygning
A95: Please insert numerical values only | B95: Bitte nur Zahlenwerte eingeben. | C95: Please insert numerical values only | D95: Alleen getallen ingeven a.u.b. | E95: Merci de n'entrer que des nombres | F95: Aseta vain numeerisia arvoja | G95: Por favor, introduzca dígitos numéricos | H95: Prosím vložte len numerickú hodnotu | I95: Venligst kun indtast numeriske værdier | J95: Įvesti tik skaitmenis | K95: Lūdzu ievadiet vērtību | L95: Inserire solo valori numerici | M95: Csak számokat írjon be | N95: Kun tallverdier!
A96: Heat demand | B96: Heizlast | C96: Heat demand | D96: Verwarmingslast | E96: demande de chaleur | F96: Lämmöntarve | G96: demanda de calefacción | H96: Tepelná strata | I96: Effektbehov | J96: Šilumos poreikis | K96: Siltumslodze | L96: Fabbisogno termico | M96: Hőszükséglet | N96: Varmebehov
A97: Heat demand with switch off time and DHW extra amount | B97: Heizlast + Zuschlag Sperrzeiten + Warmwasserzuschlag | C97: Heat demand with switch off time and DHW extra amount | D97: Warmteverlies met spertijd en warmwatertoeslag | E97: Heat demand with switch off time and DHW extra amount | F97: Lämmöntarve keskeytystiloilla ja suurella KV kulutuksella | G97: Heat demand with switch off time and DHW extra amount | H97: Tepelná strata so započítaným HDO a hodnoty TUV navyše | I97: Effektbehov med spærretid og ekstra varmtvandstilskud | J97: Šilumos poreikis+išjungimo laikas+karštas vanduo | K97: Siltumslodze ar elektrotīkla dīkstāvi un karsto ūdeni | L97: Fabbisogno termico con tempi di spegnimento e maggiorazione per ACS | M97: Hőszükséglet+GEO zárásidő pótlék+HMV pótlék | N97: Varmebehov m. sperretider og ekstra varmtvann
A98: Heat demand with switch off time factor | B98: Heizlast + Zuschlag Sperrzeiten | C98: Heat demand with switch off time factor | D98: Warmteverlies met Spertijdfactor | E98: demande de chaleur avec interdiction tarifaire | F98: Lämmöntarve keskeytystilakertoimella | G98: demanda de calefacción con tiempo de parada | H98: Tepelná strata so započítaným HDO faktoru | I98: Effektbehov med spæretid | J98: Šilumos poreikis + išjungimo laiko faktorius | K98: Siltumslodze ar elektrotīkla dīkstāvi | L98: Fabbisogno termico comprensivo di fattore per tempi di spegimento | M98: Hőszükséglet+GEO zárásidő pótlék | N98: Varmebehov med sperretider
A99: Heat demand | Heating capacity [KW] | B99: Heizlast | Heizleistung [KW] | C99: Heat demand | Heating capacity [KW] | D99: Warmteverlies | Verwarmingscapaciteit [KW] | E99: demande de chaleur [KW] | F99: Lämmöntarve | Lämpöteho [kW] | G99: Heat demand | Heating capacity [KW] | H99: Tepelná strata | Potreba tepla [KW] | I99: Effektbehov | Varmeeffekt [kW] | J99: Šilumos poreikis | Šilumos galia (kW) | K99: Siltumslodze | Apkures jauda [kW] | L99: Fabbisogno termico | Capacità di riscaldamento [kW] | M99: Hőszükséglet / Fűtőteljesítmény [kW] | N99: Varmebehov | Varmekapasitet [KW]
A100: Calculated heating-load | B100: Auslegungs-Heizleistung | C100: Calculated heating-load | D100: Auslegungs-Heizleistung | E100: Auslegungs-Heizleistung | F100: Laskettu lämmöntarve | G100: Auslegungs-Heizleistung | H100: Dimenzovanie vykurovania | I100: Beregnet varmebehov | J100: Apskaičiuota šilumos galia | K100: Aprēķinātā siltumslodze | L100: Carico termico calcolato | M100: Szükséges Össz Fűtőteljesítmény | N100: Kalkulert varmebehov
A101: Extra amount for switch off times and DHW | B101: Zuschlag Sperrzeiten und Warmwasser | C101: Extra amount for switch off times and DHW | D101: Zuschlag Sperrzeiten und Warmwasser | E101: Zuschlag Sperrzeiten und Warmwasser | F101: Lisäteho keskeytystiloille ja käyttövedelle | G101: Zuschlag Sperrzeiten und Warmwasser | H101: Prirážka za HDO a TUV | I101: Tillæg for spærretid og varmtvand | J101: Papildomas išjungimo laiko ir karšto vandens faktorius | K101: Papildus elektrotīkla dīkstāve un karstais ūdens | L101: Maggiorazione per tempi di spegnimento e ACS | M101: Zárásidő pótlék és HMV pótlék | N101: Tillegg for sperretider og varmtvann
A102: Extra amount for switch off times | B102: Zuschlag Sperrzeiten | C102: Extra amount for switch off times | D102: Zuschlag Sperrzeiten | E102: Zuschlag Sperrzeiten | F102: Lisäteho keskeytystiloille | G102: Zuschlag Sperrzeiten | H102: Prirážka za HDO | I102: Tillæg for spærretid | J102: Papildomas išjungimo laiko faktorius | K102: Papildus elektrotīkla dīkstāve | L102: Maggiorazione per tempi di spegnimento | M102: Zárásidő pótlék | N102: Tillegg for sperretider
A103: Design temperature [°C] | B103: Außentemperatur [°C] | C103: Design temperature [°C] | D103: Buitentemperatuur [°C] | E103: Norme de température [°C] | F103: Ulkolämpötila [°C] | G103: temperatura de diseño [°C] | H103: Výpočtová teplotná oblasť [°C] | I103: Designtemperatur [°C] | J103: Skaičiuotina lauko temperatūra (˚C) | K103: Ārgaisa temperatūra [°C] | L103: Temperatura di progetto [°C] | M103: Külső hőmérséklet [°C] | N103: Dim. Utetemperaur [°C]
A104: Design temperature | B104: Außentemperatur | C104: Design temperature | D104: Buitentemperatuur | E104: Norme de température | F104: Ulkolämpötila | G104: temperatura de diseño | H104: Výpočtová teplotná oblasť | I104: Designtemperatur | J104: Skaičiuotina lauko temperatūra | K104: Ārgaisa temperatūra | L104: Temperatura di progetto | M104: Külső hőmérséklet | N104: Dim. Utetemperatur
A106: Covering ratio heat pump | B106: Deckungsanteil Wärmepumpe | C106: Covering ratio heat pump | D106: Dekkingsaandeel warmtepomp | E106: % couverture PAC | F106: Lämpöpumpun energiakattavuus | G106: Ratio de cobertura de bomba de calor | H106: Pokrytie tepelným čerpadlom | I106: Varmepumpens dækningsgrad | J106: Dalis, užtikrinama šilumos siurbliu | K106: Siltumsūkņa īpatsvars | L106: Fattore di copertura della pompa di calore | M106: Hőszivattyús fedezet | N106: Dekningsgrad varmepumpe
A107: Results | B107: Ergebnis | C107: Results | D107: Overzicht | E107: Résumé | F107: Yhteenveto | G107: Resultados | H107: Výsledok | I107: Resultat | J107: Rezultatai | K107: Rezultāti | L107: Risultati | M107: Eredmény | N107: Resultat
A108: Dual-mode point | B108: Bivalenzpunkt Wärmepumpe | C108: Dual-mode point | D108: Bivalentiepunt warmtepomp | E108: point de bivalence | F108: Rinnakkaispiste | G108: Punto bivalente | H108: Bivalentný bod tepelného čerpadla | I108: Bivalenspunkt | J108: Bivalentinis šilumos siurblio taškas | K108: Bivalenta darbība | L108: Punto di bivalenza | M108: Hőszivattyú bivalencia pontja | N108: Bivalenspunkt varmepumpe
A109: Switch-Off point | B109: Abschaltpunkt Wärmepumpe | C109: Switch-Off point | D109: Afschakeling | E109: point d'arrêt | F109: Keskeytyspiste | G109: punto de parada | H109: Switch-Off point | I109: Switch-Off point | J109: Išjungimo momentas | K109: Bivalenta darbība | L109: Switch-Off point | M109: Switch-Off point | N109: Grenseverdi varmepumpe
A110: Annual heating power | B110: Jahresheizarbeit | C110: Annual heating power | D110: Jaarlijkse verwarmingsvermogen | E110: Puissance annuelle pour le chauffage | F110: Vuotuinen lämpöenergia | G110: Potencia anual de calefacción | H110: Ročné výkonové číslo | I110: Årlig varmeeffekt | J110: Metinė šildymo trukmė | K110: Gada siltumjauda | L110: Consumi annui per il riscaldamento | M110: Éves megtermelt hőmennyiség | N110: Årsvarmefaktor
A111: Annual heating power [kWh] | B111: Jahresheizarbeit [kWh] | C111: Annual heating power [kWh] | D111: Jaarlijkse verwarmingsvermogen [kWh] | E111: Puissance annuelle pour le chauffage [kWh] | F111: Vuotuinen lämpöenergia [kWh] | G111: Potencia anual de calefacción [kWh] | H111: Ročné výkonové číslo [kWh] | I111: Årlig varmeeffekt [kWh] | J111: Metinis šilumos kiekis (kWh) | K111: Gada siltumjauda [kWh] | L111: Consumi annui per il riscaldamento [kWh] | M111: Éves megtermelt hőmennyiség [kWh] | N111: Årsvarmetall [kWh]
A112: Heating power heat pump | B112: Heizarbeit Wärmepumpe | C112: Heating power heat pump | D112: Vermogen warmtepomp | E112: puissance pompe à chaleur | F112: Lämpöpumpun lämmöntuotto | G112: Potencia de calefacción bomba de calor | H112: Dodané teplo tepelným čerpadlom | I112: Varmeproduktion varmepumpe | J112: Metinė šilumos siurblio šildymo trukmė | K112: Siltumsūkņa saražotā jauda | L112: Consumi annui della pompa di calore per il riscaldamento | M112: Hősziv. által megtermelt hőmenny. | N112: Levert energi varmepumpe
A113: Heating power 2. heat source | B113: Heizarbeit 2. Wärmeerzeuger | C113: Heating power 2. heat source | D113: Vermogen additioneel toestel | E113: 2ième source de chaleur | F113: 2. lämmöntuottajan lämmöntuotto | G113: potencia de calefacción 2. Fuente de calor | H113: Dodané teplo 2. zdrojom | I113: Varmeproduktion 2. varmekilde | J113: Metinė 2-nio šilumos šaltinio šildymo trukmė | K113: 2-ā siltumavota saražotā jauda | L113: Consumi annui del secondo generatore di calore per il riscaldamento | M113: 2. hőtermelő által megtermelt hőmenny. | N113: Levert energi tilskuddsvarme
A114: The determination of the heating power is a calculation of heat demand, heat pump capacity and annual hours for each outside temperature. Internal & solar gains and set-back periods are not considered. | B114: Für die Bestimmung der Heizarbeit werden Heizlast, Wärmepumpen-Leistung und Jahresstunden für jede Außentemperatur in Ansatz gebracht. Interne & solare Wärmegewinne sowie Absenkzeiten sind nicht berücksichtigt. | C114: The determination of the heating power is a calculation of heat demand, heat pump capacity and annual hours for each outside temperature. Internal & solar gains and set-back periods are not considered. | D114: Voor de bepaling van het warmteverlies wordt de warmtelast, Warmtepompen vermogen en draaiuren per jaar voor elke buitentemperatuur benaderd. Interne- en solar-warmtewinning, daluren en spertijden worden niet in beschouwing genomen. | E114: la détermination de la puissance de chauffe est calculée suivant la demande de chauffe et en heures par année pour toutes les températures extérieures. Interne + rapport solairela réduction ne sont pas pris en considération | F114: Lämmitysenergian määrittäminen perustuu lämmöntarpeen laskentaan, lämpöpumpun lämpötehoon ja vuotuisiin käyttötunteihin kullekin ulkolämpötilalle. Sisäisiä- ja aurinkolämmönlähteitä tai keskeytyksiä ei ole huomioitu laskennoissa. | G114: La potencia de la bomba de calor se calcula teniendo en cuenta la demanda térmica, potencia de la bomba de calor y las horas de funcionamiento en cada época del año. Las ganancias solares, períodos de recuperación y ACS no están considerados. | H114: Stanovenie spotreby tepla je na základe vypočitaných tepelných strát, tepelného príkonu tepelného čerpadla a ročných spotrieb pre každú hodnotu vonkajšieho vzduchu. Vnútorné a solárne zisky, útlmy, obdobie HDO a tpela voda nie sú brané v úvahu. | I114: For at bestemme varmeeffekten må man betragte varmebehovet og varmepumpens kapacitet udfra antallet af årlige timer for hver udetemperatur. Bestemmelsen af varmeeffekten er en beregning af varmebehovet, varmepumpe kapacitet og årlige timer for hver udetemperaturen. Varme fra interne apparater og solindfald, temperatur reducering, spærretider og varmtvandsopvarmning er ikke medregnet. | J114: Šildymo galiai nustatyti imami šie parametrai : šilumos poreikis, šilumos siurblio galia, konkrečių lauko temperatūrų reikšmių trukmė metuose. Vidiniai ir saulės pritekėjimai, taupymo režimai neįskaičiuojami. | K114: Siltuma jauda aprēķināta balstoties uz siltumslodzi, siltumsūkņa jaudu un gada klimatoloģijas datiem attiecīgajai pilsētai. Iekšējie siltumizdalījumi, temperatūru pazeminājums telpās un saules ietekme nav ņemti vērā. | L114: Il calcolo dell'energia richiesta per il riscaldamento è dato dal fabbisogno energetico, dalla potenza della pompa di calore e dai dati climatici. Non sono considerati gli apporti interni, gli apporti solari ed i tempi di spegnimento. | M114: A hőszivattyú által megtermelt hőmennyiség megállapításához az épület hőszükségletét, a hőszivattyú teljesítményét és az éves működési órák számát az aktuális külső hőmérséklethez vesszük figyelembe. Belső és szolár hőnyereség valamint a csökkentett üzemmód nincs figyelembe véve. | N114: Beregning av samlet levert varme-energi er en kalkulasjon av varmebehov, varmepumpens kapasitet og årlige timer for utetemperatur. Interne varmekilder og solinnstråling samt sperreperioder er ikke hensyntatt
A116: Climate data | B116: Klimadaten | C116: Climate data | D116: Klimaat data | E116: donnée climatique | F116: Ilmastotiedot | G116: data del clima | H116: Klimatické hodnoty | I116: Klimadata | J116: Klimato duomenys | K116: Klimatiskie dati | L116: Dati climatici | M116: Meterológia | N116: Klimadata
A117: Yearly hours with temperature | B117: Stunden pro Jahr bei Außentemperatur | C117: Yearly hours with temperature | D117: Uren per jaar bij buitentemperatuur | E117: nombre d'heures par an à la température ambiante | F117: Vuotuiset tunnit ulkolämpötilassa | G117: temperaturas anuales por horas | H117: Hodiny ročne s teplotami | I117: Timer pr. år med udetemperatur | J117: Konkrečių lauko temperatūrų reikšmių trukmė metuose | K117: Gada temperatūru stundas | L117: Ore annue con temperature | M117: Éves órák száma adott külső hőmérsékleten | N117: Årlige timer for utetemperatur
A118: Sum of yearly hours with temperatures < outside temperature | B118: Summe Stunden pro Jahr mit Temperaturen < Außentemperatur | C118: Sum of yearly hours with temperatures < outside temperature | D118: Som jaaruren met temperaturen < buitentemperatuur | E118: nombre total d'heures par an avec des températures < température extérieure | F118: Kumulatiiviset tunnit | G118: Suma de temperaturas anuales por horas ^ temperatura exterior | H118: Sumárne hodiny ročne s teplotamy < vonk. teplota | I118: Sum af årlige timer med temperaturer < udetemperaturer | J118: Valandos per metus su temperatūromis<lauko temp. | K118: Gada stundu kopsumma temperatūrām < ārgaisa temperatūras | L118: Somma delle ore annue con temperature inferiori della termperatura esterna | M118: Össz órák száma évente adott hőmérsékletnél < Külső hőmérséklet | N118: Sum årlige timer med temperaturer < utetemperatur
A119: Weather station | B119: Wetterstation | C119: Weather station | D119: Weerstation | E119: zone climatique | F119: Säätiedot | G119: estación meterológica | H119: Meteorologická stanica | I119: Vejrstation | J119: Meteorologinė stotis | K119: Meteoroloģijas stacija | L119: Stazione climatica | M119: Meterológiai állomás | N119: Klimastasjon
A120: Seasonal heating hours | B120: Vollbenutzungsstunden | C120: Seasonal heating hours | D120: Vollasturen | E120: temps de chauffe en heure pleine | F120: Kausittaiset lämmitystunnit | G120: horas de climatización por estaciones | H120: Ročné vykurovacie hodiny | I120: Årlige opvarmningstimer | J120: Šildymo sezono valandos | K120: Sezonas apkures stundas | L120: Ore stagionali di riscaldamento | M120: Éves fűtési órák száma | N120: Sesongvariable timer
A121: Annual heating days | B121: Heiztage pro Jahr | C121: Annual heating days | D121: Verwarmingsdagen per jaar | E121: jour de chauffe annuel | F121: Vuotuiset lämmityspäivät | G121: Días de calefacción por año | H121: Počet vykurovacích dní za rok | I121: Varmedage pr. år | J121: Šildymo sezono dienos per metus | K121: Apkures sezonas dienas | L121: Giorni annui di riscaldamento | M121: Fűtési napok évente | N121: Årsvarmetimer
A122: Yearly hours | B122: Jahresstunden | C122: Yearly hours | D122: Draaiuren per jaar | E122: nombre d'heures annuel | F122: Vuotuiset tunnit | G122: Horas anuales | H122: Hodín ročne | I122: Årlige timer | J122: Valandos per metus | K122: Stundas gadā | L122: Ore annue | M122: Éves óraszám | N122: Årlige timer
A123: Yearly hours < | B123: Jahresstunden unter | C123: Yearly hours < | D123: Draaiuren per jaar < | E123: nombre d'heures annuel < | F123: tuntia vuodessa < | G123: Horas anuales < | H123: Hodín ročne < | I123: Årlige timer < | J123: Valandos per metus < | K123: Stundas gadā < | L123: Ore annue | M123: Éves órák száma ˂ | N123: Årlige timer under
A124: Heating degree days | B124: Heizgradtage | C124: Heating degree days | D124: Heating degree days | E124: Heating degree days | F124: Heating degree days | G124: grados de calefacción al día | H124: Počet vykurocích dní | I124: Varmegraddage | J124: Dienolaipsniai | K124: Heating degree days | L124: Gradi giorno | M124: Fűtési foknap | N124: Graddagstall
A125: Sum of yearly hours [h/a] | B125: Summe Stunden [h/a] | C125: Sum of yearly hours [h/a] | D125: Som jaaruren [h/a] | E125: nombre total d'heures par an [h/a] | F125: Summa vuotuisista tunneista [h/v] | G125: Suma de temperaturas anuales por horas [h/a] | H125: Sumárne hodín ročne [h/a] | I125: Sum af årlige timer [t/år] | J125: Valandų suma (h/a) | K125: Gada stundu kopsumma [h/gadā] | L125: Somma di ore annue (ore/anno) | M125: Össz óra [h/év] | N125: Sum timer år [h/a]
A126: Yearly hours [h/a] | B126: Jahresstunden [h/a] | C126: Yearly hours [h/a] | D126: Draaiuren per jaar [h/a] | E126: nombre d'heures annuel [h/a] | F126: Vuotuiset tunnit [h/v] | G126: Horas anuales [h/a] | H126: Hodín ročne [h/a] | I126: Årlige timer [t/år] | J126: Valandos per metus (h/a) | K126: Stundas gadā [h/gadā] | L126: Ore annue (ore/anno) | M126: Éves órák száma [h/év] | N126: Årstimer [h/a]
A128: Print results | B128: Ergebnisse drucken | C128: Print results | D128: Afdruk | E128: Impresssion | F128: Tulosta | G128: impresión | H128: Vytlač | I128: Udskriv resultater | J128: Spausdinti | K128: Izdruka | L128: Area di stampa | M128: Eredmények nyomtatása | N128: Utskrift
A129: Create PDF | B129: PDF erstellen | C129: Create PDF | D129: PDF afdrukken | E129: Create PDF | F129: Luo PDF | G129: Create PDF | H129: Create PDF | I129: Create PDF | J129: Sukurti PDF | K129: Create PDF | L129: Create PDF | M129: Create PDF | N129: Opprett PDF
A130: Data sheet heatpump | B130: Wärmepumpendaten | C130: Data sheet heatpump | D130: Data sheet heatpump | E130: Data sheet heatpump | F130: Lämpöpumpun tiedot | G130: Data sheet heatpump | H130: Technické info tepelného čerpadla | I130: Datablad varmepumpe | J130: Šilumos siurblio duomenys | K130: Siltumsūkņa specifikācija | L130: Scheda pompa di calore | M130: Hőszivattyú adatlapja | N130: Datablad varmepumpe
A131: Select printout | B131: Druckauswahl | C131: Select printout | D131: Selecteer afdruk | E131: Sélection impression | F131: Valitse tuloste | G131: selccionar impresión | H131: Vyber tlač | I131: Vælg udskrift | J131: Pasirinkti, ką spausdinti | K131: Izvēlēties lapas | L131: Seleziona area di stampa | M131: Nyomtatás kiválasztása | N131: Velg utskrift
A132: Druckoptionen | B132: Druckoptionen | C132: Druckoptionen | D132: Druckoptionen | E132: Druckoptionen | F132: Tulostusvalinnat | G132: Druckoptionen | H132: Druckoptionen | I132: Druckoptionen | J132: Spausdinimo sąranka | K132: Druckoptionen | L132: Druckoptionen | M132: Druckoptionen | N132: Utskriftsvalg
A133: Printout | B133: Auswahl drucken | C133: Printout | D133: Afdrukken | E133: Imprimer | F133: Tulosteen valinta | G133: selección de impresión | H133: Tlač výber | I133: Udskriv valgte | J133: Spausdinti pasirinktą | K133: Drukāt izvēlēto | L133: Stampa selezione | M133: Kiválasztottak nyomtatása | N133: Utskrift utvalg
A134: Select all | B134: Alles drucken | C134: Select all | D134: Alles selecteren | E134: Tout sélectionner | F134: Valitse kaikki | G134: seleccionar todo | H134: Označ všetko | I134: Vælg alle | J134: Pasirinkti viską | K134: Izvēlēties visu | L134: Seleziona tutto | M134: Összes kiválasztása | N134: Utskrift alle
A135: Select none | B135: Nichts auswählen | C135: Select none | D135: Niets selecteren | E135: Ne rien sélectionner | F135: Poista valinnat | G135: no seleccionar ninguna | H135: Žiadny výber | I135: Vælg ingen | J135: Nepasirinkti nieko | K135: Atcelt visu | L135: Deseleziona tutto | M135: Nincs kiválasztás | N135: Ingen utvalg
A136: Mit Ergebnistabellen | B136: Mit Ergebnistabellen | C136: Mit Ergebnistabellen | D136: Mit Ergebnistabellen | E136: Mit Ergebnistabellen | F136: Tulostaulukot | G136: Mit Ergebnistabellen | H136: Mit Ergebnistabellen | I136: Mit Ergebnistabellen | J136: Mit Ergebnistabellen | K136: Mit Ergebnistabellen | L136: Mit Ergebnistabellen | M136: Mit Ergebnistabellen | N136: Med resultatstabeller
A137: Export prinout | B137: Ausdruck exportieren | C137: Export prinout | D137: Ausdruck exportieren | E137: Ausdruck exportieren | F137: Vie tuloste | G137: Ausdruck exportieren | H137: Vytlač výkaz | I137: Eksporter udskrift | J137: Eksportuoti spaudinį | K137: Eksportēt izdruku | L137: Esporta stampa | M137: Nyomtatási kép exportálása | N137: Eksporter utskrift
A138: Legal note | B138: Rechtliche Hinweise | C138: Legal note | D138: Juridische informatie | E138: Clause de non-responsabilité | F138: Oikeudellinen huomautus | G138: nota legal | H138: Poznámka | I138: Juridiske betingelser | J138: Juridinės pastabos | K138: Legālās atsauces | L138: Nota legale | M138: Jogi nyilatkozat | N138: Viktig informasjon
A139: Stiebel Eltron shall not provide any guarantees that the information, values and data provided, or values, information and recommendations determined with the aid or on the basis of such information, values and data, are complete, accurate, correct or current in every respect. Stiebel Eltron shall reserve the right to make changes to the data, values and information provided at any time and without prior notification. Errors excepted. Subject to changes. None of the information, values and data provided or the values, information and recommendations determined with the aid or on the basis of such information, values and data constitutes any basis for a financial decision or for any other purpose, but rather is merely initial non-binding information as an initial guide. Under no circumstances should the following design tool be considered a substitute for consultation with Stiebel Eltron or another authorised expert engineer. Please contact Stiebel Eltron or another authorised expert engineer in relation to specific project design. Stiebel Eltron shall accept no liability for losses of any kind that may arise from the use of information, values and data provided, or values, information and recommendations determined with the aid or on the basis of such information, values and data. This exclusion of liability shall not apply if the loss is due to intent or gross negligence on the part of Stiebel Eltron or in the event of a fatality, physical injury or damage to health. | B139: Stiebel Eltron übernimmt keinerlei Gewährleistung oder Garantie dafür, dass die bereitgestellten Angaben, Werte und Informationen oder die mit Hilfe bzw. anhand dieser Informationen, Werte und Angaben ermittelten Werte und Angaben in jeder Hinsicht vollständig, genau, richtig und aktuell sind. Stiebel Eltron behält sich das Recht vor, jederzeit und ohne vorherige Ankündigung Änderungen der bereitgestellten Angaben, Werte und Informationen vorzunehmen. Irrtum und Änderungen sind ausdrücklich vorbehalten. Keine der bereitgestellten Angaben, Werte und Informationen oder der mit Hilfe bzw. anhand dieser Angaben, Werte und Informationen ermittelten Werte und Angaben sind als Grundlage für eine finanzielle Entscheidung oder für einen sonstigen Zweck anzusehen, sondern dienen vielmehr nur als eine erste unverbindliche Information und als Hilfe zur ersten Orientierung. Unter keinen Umständen ersetzt die Planungshilfe die Beratung durch Stiebel Eltron oder einen autorisierten Fachplaner. Bitte wenden Sie sich für die konkrete Planung des Projektes an Stiebel Eltron oder einen anderen autorisierten Fachplaner. Die Haftung von Stiebel Eltron für Schäden jeglicher Art, die sich möglicherweise aus der Nutzung oder Verwendung der bereitgestellten Informationen, Werte und Angaben oder der mit Hilfe bzw. anhand dieser Angaben, Werte und Informationen ermittelten Werte und Angaben, ergeben, ist ausgeschlossen. Dieser Haftungsausschluss gilt nicht, wenn der Schaden auf Vorsatz oder grobe Fahrlässigkeit von Stiebel Eltron zurückzuführen ist sowie bei einer Verletzung des Lebens, des Körpers oder der Gesundheit. | C139: Stiebel Eltron shall not provide any guarantees that the information, values and data provided, or values, information and recommendations determined with the aid or on the basis of such information, values and data, are complete, accurate, correct or current in every respect. Stiebel Eltron shall reserve the right to make changes to the data, values and information provided at any time and without prior notification. Errors excepted. Subject to changes. None of the information, values and data provided or the values, information and recommendations determined with the aid or on the basis of such information, values and data constitutes any basis for a financial decision or for any other purpose, but rather is merely initial non-binding information as an initial guide. Under no circumstances should the following design tool be considered a substitute for consultation with Stiebel Eltron or another authorised expert engineer. Please contact Stiebel Eltron or another authorised expert engineer in relation to specific project design. Stiebel Eltron shall accept no liability for losses of any kind that may arise from the use of information, values and data provided, or values, information and recommendations determined with the aid or on the basis of such information, values and data. This exclusion of liability shall not apply if the loss is due to intent or gross negligence on the part of Stiebel Eltron or in the event of a fatality, physical injury or damage to health. | D139: Stiebel Eltron geeft geen enkele garantie dat de aangeboden informatie, waarden en gegevens of de met behulp van of aan de hand van deze informatie, waarden en gegevens berekende waarden, informatie en aanbevelingen in elk opzicht volledig, nauwkeurig, juist en actueel zijn. Stiebel Eltron behoudt zich het recht voor om op elk moment zonder voorafgaande kennisgeving wijzigingen aan te brengen in de aangeboden gegevens, waarden en informatie. Vergissingen en wijzigingen worden door Stiebel Eltron uitdrukkelijk voorbehouden. De aangeboden informatie, waarden en gegevens of de met behulp van of aan de hand van deze informatie, waarden en gegevens berekende waarden, informatie en aanbevelingen betreffen een eerste Stiebel Eltron niet-bindende informatie voorziening die niet kan worden gebruikt als basis voor een financiële beslissing of voor andere doeleinden dan een eerste oriëntatie. Deze planningshulp kan in geen geval dienen als vervanging voor het persoonlijke advies van Stiebel Eltron of een andere geautoriseerde systeemadviseur. Voor de concrete planning van uw project dient u zich te allen tijde te wenden tot Stiebel Eltron of een andere geautoriseerde systeemadviseur. Stiebel Eltron aanvaardt op geen enkele wijze aansprakelijkheid voor schade en/of ander nadeel, direct dan wel indirect, die voortvloeit uit het gebruik of de toepassing van de aangeboden informatie, waarden en gegevens of de met behulp van of aan de hand van deze informatie, waarden en gegevens van berekende waarden, informatie en aanbevelingen. De hierboven omschreven uitsluitingen gelden niet in geval van grove nalatigheid, opzet of schade aan leven, lichaam of gezondheid. | E139: STIEBEL ELTRON ne se porte pas garant de l'exactitude, intégralité, actualité et pertinence des informations, valeurs ou données mises à disposition, ni de toute valeur, information ou recommandation établie à l'aide de ces données, valeurs et informations fournies. STIEBEL ELTRON se réserve le droit de modifier, à tout moment et sans avis préalable, les données, valeurs et informations mises à disposition. Sous réserve de modification et d'erreurs. Les informations, valeurs et données, ou les valeurs, informations et recommandations établies à l'aide de ces informations, valeurs et données, ne doivent être utilisées pour aucune prise de décision financière ou autre. Elles sont fournies à titre indicatif uniquement en ne représentent qu'une source approximative d'information. L'assistant de planification et les informations fournies ci-après ne remplacent en aucun cas le conseil direct d'un expert STIEBEL ELTRON ou de tout autre spécialiste autorisé. Pour la planification concrète de votre projet, veuillez contacter STIEBEL ELTRON ou tout autre spécialiste autorisé. STIEBEL ELTRON décline toute responsabilité pour les dommages éventuels découlant de l'utilisation ou du traitement des informations, valeurs et données mises à disposition, ou des valeurs, informations et recommandations établies à l'aide de ces informations, valeurs et données. Cette exclusion de garantie n'est pas valable en cas de dommage intentionnel découlant d'une négligence grave de la part de Stiebel Eltron, ni en cas d'atteinte à la vie, au corps ou à la santé des utilisateurs. | F139: Stiebel Eltron ei takaa, että julkaistut tiedot ja arvot tai niiden avulla aikaansaadut tiedot tai arvot ovat joka suhteessa tarkkoja, oikeellisia ja ajantasaisia. Stiebel Eltron pidättää itsellään oikeuden muuttaa julkaistuja tietoja ja arvoja ilman ennakkoilmoitusta. Valmistaja ei vastaa mahdollisista virheistä tai muutoksista. Mitään julkaistuja arvoja tai niiden pohjalta aikaansaatuja arvoja, tietoja tai suosituksia ei tule käyttää perustana taloudellisille päätöksille tai muuhun vastaavaan tarkoitukseen. Tiedot on tarkoitettu vain ensikäden ei-sitovaksi tietomateriaaliksi ja alkuvaiheen opastukseksi. Tämä suunnitteluapu ei missään tapauksessa korvaa Stiebel Eltronin tai muun valtuutetun ammattisuunnittelijan tarjoamaa neuvontapalvelua. Kehotamme asiakasta konkreettisissa suunnittelukysymyksissä kääntymään Stiebel Eltronin tai muun valtuutetun ammattisuunnittelijan puoleen. Stiebel Eltron ei vastaa julkaistujen tietojen tai arvojen käytöstä tai näiden tietojen nojalla aikaansaaduista arvoista, tiedoista ja suosituksista mahdollisesti aiheutuneista vahingoista. Tämä vastuuvapauslauseke ei päde, mikäli vahinko johtuu Stiebel Eltronin tarkoituksellisesta teosta tai karkeasta huolimattomuudesta tai mikäli seurauksena on ollut hengen, ruumiin tai terveyden loukkaus. | G139: Stiebel Eltron no garantiza que tanto la información proporcionada como los datos sean correctos y precisos, ya que se trata de información genérica. Stiebel Eltron se reserva el derecho en cualquier momento y sin previo aviso de realizar los cambios que se estimen oportunos para el óptimo funcionamiento de las instalaciones. Bajo ninguna circunstacia esta herramienta de diseño será utilizada como consulta para otra instalación o utilizado por otros ingenieros ajenos a Stiebel Eltron. Por favor, póngase en contacto directamente con Stiebel Eltron o con alguna empresa autorizada para la comercialización e instalación de productos Stiebel Eltron para realizar el diseño de un proyecto en concreto. Stiebel Eltron no se hará responsable y exime cualquier responsabilidad a daños y perjuicios derivados de la mala praxis por personas ajenas a la empresa. | H139: Stiebel Eltron nijako nepreberá ručenie alebo záruku zato, že poskytnuté údaje, hodnoty a informácie alebo hodnoty a údaje zistené pomocou, resp. na základe týchto informácií, hodnôt a údajov v každom smere sú úplné, presné, správne a aktuálne. Stiebel Eltron si vyhradzuje právo vykonávať zmeny poskytovaných údajov, hodnôt a informácií kedykoľvek a bez predchádzajúcich oznámení. Omyl a zmeny sú výslovne vyhradené. Žiadne z poskytovaných údajov, hodnôt a informácií alebo hodnôt a údajov zistených pomocou alebo na základe týchto údajov, hodnôt a informácií sa nepovažujú za základ pre finančné rozhodovanie alebo pre nejaký iný účel, ale slúžia skôr len ako prvá nezáväzná informácia a ako pomoc pre prvú orientáciu. Za žiadnych okolností nenahrádza plánovacia pomôcka poradenstvo Stiebel Eltron alebo autorizovaného odborného plánovača. Pre konkrétne plánovanie projektu sa obráťte prosím na Stiebel Eltron alebo iného autorizovaného odborného plánovača. Ručenie Stiebel Eltron za škody akéhokoľvek druhu, ktoré môžu vzniknúť na základe použitia alebo využívania poskytovaných informácií, hodnôt a údajov alebo hodnôt a údajov zistených pomocou alebo na základe týchto údajov, hodnôt a informácií, je vylúčené. Toto vylúčenie záruky neplatí, ak sa škoda vzťahuje na úmysel alebo hrubú nedbanlivosť zo strany Stiebel Eltron ako aj pri poškodení života, organizmu alebo zdravia. | I139: Stiebel Eltron giver ingen garantier for, at de oplysninger, værdier og data, information og anbefalinger der defineres ved hjælp af eller på grundlag af disse oplysninger, værdier og data, er fuldstændige, nøjagtige, korrekte eller anvendelige i enhver henseende. Stiebel Eltron forbeholder sig ret til at foretage ændringer i data, værdier og oplysninger, til en hver tid og uden forudgående varsel. Der tages forbehold for fejl og ændringer. Ingen af de oplysninger, værdier og data der forudsættes, eller værdier, oplysninger og anbefalinger der bestemmes ved hjælp af eller på grundlag af disse oplysninger, værdier og data, bør danne grundlag for økonomiske beslutninger eller til andre formål. Dette må snarere betragtes som en indledende ikke-bindende information, der kan benyttes som en indledende vejledning. Under ingen omstændigheder må følgende designværktøj betragtes som en erstatning for konsultation med Stiebel Eltron eller anden autoriseres ekspertteknikker. Kontakt venligst Stiebel Eltron eller anden autoriseret ekspertteknikker, i forhold til det konkrete projektdesign. Stiebel Eltron påtager sig intet ansvar for tab af nogen art, der måtte opstå som følge af brug af oplysninger, værdier og data der forudsættes eller værdier, oplysninger og anbefalinger bestemt ved hjælp af eller på grundlag af diss oplysninger, værdier og data. Denne udelukkelse af ansvar gælder ikke, hvis tabet skyldes forsæt eller grov uagtsomhed fra Stiebel Eltrons side eller i tilfælde af en dødsulykke, fysisk skade eller skade på helbredet. | J139: Stiebel Eltron neprisiima jokios garantijos, kad pateikti duomenys, vertės ir informacija ar jų pagrindu pateikti paskaičiavimai yra įvairiapusiškai teisingi, tikslūs ir aktualūs . STIEBEL ELTRON pasilieka teisę keisti duomenis, reikšmes ir informaciją be išankstinio įspėjimo. Gali pasitaikyti klaidų, pasiliekama teisė pakeitimams. Tai nėra įpareigojanti informacija , skaičiai ar vertės,kurie galėtų būti laikomi kaip finansinių sprendimų arba kokių nors sprendimų kitais tikslais pagrindu , o tarnauja tik kaip pirminės neįpareigojančios informacijos pagalbinis šaltinis . Jokiomis aplinkybėmis ši pagalbinė priemonė negali atstoti Stiebel Eltron ar jo įgaliotų projektavimo specialistų ar inžinierių patarimų. Prašome susisiekti su Stiebel Eltron ar kitais įgaliotais projektuotojais dėl konkretaus projekto. Stiebel Eltron neprisiima jokios atsakomybės už bet kokio pobūdžio žalą, kuri gali atsirasti kaip šios priemonės verčių, duomenų ir informacijos , arba iš to išplaukiančių rezultatų vartojimo pasekmė. | K139: Stiebel Eltron negarantē, ka informācija un dati ir pietiekami īpašajām klienta vai lietotāja vajadzībām un darbojas kombinācijā ar citu klienta programmatūru un aparatūru. Klients ir atbildīgs par uzstādīšanu, izmantošanu, un paredzēto rezultātu sasniegšanu. Nepastāv garantija par klienta vai lietotāja pārveidotu vai izmainītu programmas versiju vai klientu gatavotu kopiju, ja vien pircējs nepierāda, ka esošie defekti nav saistīti ar izmaiņām, kopiju vai atvasinātiem darbiem. Stiebel Eltron neuzņemas atbildību un garantijas par piedāvāto informāciju, vērtībām, datiem vai ar to palīdzību iegūto rezultātu, datu un ieteikumu kuri noteikti, lai sniegtu informāciju, pilnīgi visos aspektos, kā arī to precizitāti, pareizību un aktualitāti. Stiebel Eltron patur tiesības izdarīt izmaiņas jebkurā laikā un bez brīdinājuma par sniegto informāciju un rezultātiem. Kļūdas un izmaiņas ir skaidri atrunātas. Sniegtie datiem, vērtības un informācija, kā arī no tās atvasinātās vērtības, nevar būt par pamatu finansiāliem lēmumiem vai citiem līdzīgiem mērķiem, bet gan tikai kā pirmā nesaistošā informācija un orientācijas palīgs. Nekādos apstākļos sekojošais plānošanas palīgs neaizstāj Stiebel Eltron vai cita autorizēta partnera konsultāciju. Konkrēta projekta plānošanā, lūdzam, griezieties pie Stiebel Eltron vai cita autorizēta partnera. Stiebel Eltron noraida atbildību par jebkāda veida zaudējumiem, kuri radušies izmantojot vai lietojot sniegto informāciju, vērtības un datus vai ar to palīdzību iegūto informāciju, vērtības, datus un ieteikumus. | L139: Stiebel Eltron non può fornire alcuna garanzia che le informazioni, i valori ed i dati forniti da questo progamma o che i valori, le informazioni e le raccomandazioni determinati con il supporto o sulla base di essi siano completi, accurati, corretti o aggiornati sotto ogni aspetto. Stiebel Eltron si riserva di effettuare variazioni ai dati, ai valori ed alle informazioni forniti in qualsiasi momento e senza alcun preavviso. Salvo errori. Soggetto a cambbiamenti. I valori, i dati, le informazioni e le raccomandazioni determinati con il supporto o sulla base di informazioni, valori e dati forniti da questo progamma non devono in alcun modo costituire la base per una decisione di investimento o per qualsiasi altro scopo, ma piuttosto devono essere considerati una semplice stima preliminare non vincolante, utile come guida iniziale. In nessuna circostanza questo programma di dimensionamento può essere considerato sostitutivo di una consultazione diretta con Stiebel Eltron, con un partner autorizzato Stiebel Eltron o con un tecnico specializzato. Contattare Stiebel Eltron, un partner autorizzato Stiebel Eltron o un tecnico specializzato per avere un dimensionamento esatto del sistema. Stiebel Eltron non si assume alcuna responsabilità per danni o perdite di qualsiasi genere che possano derivare dall'utilizzo di informazioni, valori e dati forniti o da valori, informazioni o raccomandazioni determinati con il supporto o sulla base di essi. Questa esclusione di responsabilità non si applica se la perdita è dovuta a dolo o colpa grave da parte di Stiebel Eltron o in caso di fatalità, lesioni fisiche o danni alla salute. | M139: A Stiebel Eltron nem vállal jótállást, vagy garanciát azért, hogy a rendelkezésre álló információk, értékek és adatok vagy az ezek felhasználásával számított adatok minden tekintetben teljes körű, pontos, korrekt és aktuális értékek. A Stiebel Eltron fenntartja magának a jogot, hogy bármikor, előzetes értesítés nélkül ezeket az adatokat, értékeket és információkat megváltoztathassa. A Stiebel Eltron a tévedés és a módosítás jogát is nyomatékosan fenntartja. A használt információk, értékek és adatok vagy az ezek felhasználásával számított adatok nem pénzügyi döntések vagy egyéb hasonló döntések alapjául szolgáló adatok, hanem csak lényegesen több mint egy kezdeti, nem kötelező erejű információt és támogatást biztosító, első tájékozódásként szolgáló anyag. Ez az alábbi tervezési segédlet semmilyen körülmények között nem helyettesíti a Stiebel Eltron vagy más engedéllyel rendelkező tervezők tervezési tanácsadását. Kérjük, forduljon a konkrét tervezés ügyében a Stiebel Eltronhoz vagy más engedélyezett tervezőhöz. A Stiebel Eltron bármilyen felelőssége a kárért, amely a program használatából származó, vagy használatára vonatkozó adatok, információk vagy értékek, illetve az ezekből számított adatok, információk vagy értékek miatt következett be, nem érvényesíthető. Ez a nyilatkozat nem vonatkozik arra az esetre, ha a kár a Stiebel Eltron szándékosságára vagy súlyos gondatlanságára vezethető vissza, valamint a sérülések és egészségkárosodások esetére sem. | N139: Dimensjonering er estimert på informasjon tilgjengelig og er ikke å betrakte som et endelig og gitt resulltat for installasjon og bruk av et varmepumpeanlegg. Dimensjonering er ment å virke som veiledende for utvalg av varmepumpe med tilhørende utstyr.
A140: Temperature | B140: Temperatur | C140: Temperature | D140: Temperatuur | E140: Température | F140: Lämpötila | G140: Temperatura | H140: Teplota | I140: Temperatur | J140: Temperatūra | K140: Temperatūra | L140: Temperatura | M140: Hőmérséklet | N140: Temperatur
A141: Annual heat demand | B141: Heizwärmebedarf | C141: Annual heat demand | D141: Warmtevraag | E141: demande de chauffe annuelle | F141: Vuotuinen lämmöntarve | G141: demanda de calefacción anual | H141: Ročná tepelná strata | I141: Varmebehov | J141: Metinis šilumos poreikis | K141: Gada siltuma patēriņš | L141: Fabbisogno termico annuo | M141: Fűtési hőmennyiség | N141: Årlig varmebehov
A142: Heating power HP | B142: Heizarbeit WP | C142: Heating power HP | D142: Verwarmingsvermogen WP | E142: puissance de chauffe PAC | F142: Lämmöntuotto, LP | G142: Potencia de calefacción HP | H142: Tepelný príkon TČ | I142: Varmeeffekt VP | J142: Šilumos siurblio galia | K142: Siltuma daudzums ar siltumsūkni | L142: Potenza termica pompa di calore | M142: Megtermelt hőmennyíség HSZ | N142: Levert energi varmepumpe
A143: Heating power 2. HS | B143: Heizarbeit 2. WE | C143: Heating power 2. HS | D143: Verwarmingsvermogen additioneel toestel | E143: puissance de chauffe 2ième source | F143: Lämmöntuotto, 2. lämmönlähde | G143: potencia de calefacción HP 2 | H143: Tepelný príkon 2. zdroja | I143: Varmeeffekt 2. VK | J143: 2-nio šilumos šaltinio galia | K143: Siltuma daudzums ar 2-o siltuma avotu | L143: Potenza termica secondo generatore di calore | M143: Megtermelt hőmennyiség 2. hőtermelő | N143: Levert energi tilskuddsvarme
A144: Hot water generation | B144: Warmwasserbereitung | C144: Hot water generation | D144: Warm waterbereiding | E144: Hot water generation | F144: Käyttöveden käyttö | G144: Hot water generation | H144: Ohrev vody | I144: Varmtvandsopvarmning | J144: Karšto vandens ruošimas | K144: Karstā ūdens ražošana | L144: Produzione di acqua calda | M144: Melegvíz ellátás | N144: Varmtvannsberedning
A145: Number of Persons | B145: Personen | C145: Number of Persons | D145: Aantal personen | E145: Number of Persons | F145: Henkilömäärä | G145: Number of Persons | H145: Počet osôb | I145: Antal personer | J145: Gyventojų skaičius | K145: Iedzīvotāju skaits | L145: Numero di persone | M145: Felhasználok száma | N145: Antall personer
A146: Accommodation unit | B146: Wohneinheiten | C146: Accommodation unit | D146: Accommodation unit | E146: Accommodation unit | F146: Asunnot | G146: Accommodation unit | H146: Počet bytov | I146: Boligenheder | J146: Kambarių kiekis | K146: Dzīvokļu skaits | L146: Unità di alloggio | M146: Lakóegységek | N146: Boenheter
A147: Water consumption per day | B147: Verbrauch pro Tag | C147: Water consumption per day | D147: Waterverbruik per dag | E147: Water consumption per day | F147: Käyttöveden kulutus päivässä | G147: Water consumption per day | H147: Potreba vody za deň | I147: Vandforbrug pr. dag | J147: Karšto vandens sąnaudos per dieną | K147: Ūdens patēriņš dienā | L147: Consumo giornaliero di acqua | M147: Napi igény | N147: Forbruk varmtvann pr. dag
A148: Daily tapping patterns | B148: Zapfprofil DIN EN 15450 | C148: Daily tapping patterns | D148: Tapprofiel | E148: Daily tapping patterns | F148: Päivittäinen kulutusprofiili | G148: Daily tapping patterns | H148: Denné figúry potreby DIN EN 15450 | I148: Daglige forbrugsmønstre | J148: Dienos suvartojimo ypatybės pagal EN 15450 | K148: Ikdienas patēriņš | L148: Modelli di captazione quotidiana | M148: Napi felhasználás DIN EN 15450 szerint | N148: Daglig varmtvannsforbruk
A149: Daily tapping patterns | B149: Zapfprofil | C149: Daily tapping patterns | D149: Tapprofiel | E149: Daily tapping patterns | F149: Päivittäinen kulutusprofiili | G149: Daily tapping patterns | H149: Denné figúry potreby | I149: Daglige forbrugsmønstre | J149: Dienos suvartojimo ypatybės | K149: Ikdienas patēriņš | L149: Modelli di captazione quotidiana | M149: Napi felhasználás | N149: Daglig varmtvannsforbruk
A150: Without DHW | B150: Ohne Warmwasser | C150: Without DHW | D150: Zonder | E150: Without DHW | F150: Ei käyttövettä | G150: Without DHW | H150: Bez TUV | I150: Uden varmtvand | J150: Be | K150: Bez | L150: Senza | M150: Nincs HMV készítés | N150: Uten varmtvann
A151: Single family house without circulation | B151: Einfamilienhaus ohne Zirkulation | C151: Single family house without circulation | D151: Single family house without circulation | E151: Single family house without circulation | F151: Yhden perheen talous, ei käyttövedenkiertoa | G151: Single family house without circulation | H151: Rodinný dom bez cirkulácie | I151: Enfamiliehus uden cirkulation | J151: Šeimos namas be karšto vandens recirkuliacijos | K151: Vienģimenes ēka bez cirkulācijas | L151: Single family house without circulation | M151: Családi ház cirkuláció nélkül | N151: Enebolig u. varmtvann sirkulasjon
A152: Single family house with circulation | B152: Einfamilienhaus mit Zirkulation | C152: Single family house with circulation | D152: Single family house with circulation | E152: Single family house with circulation | F152: Yhden perheen talous, käyttövedenkierto | G152: Single family house with circulation | H152: Rodinný dom s cirkulácie | I152: Enfamiliehus med cirkulation | J152: Šeimos namas su karšto vandens recirkuliacija | K152: Vienģimenes ēka ar cirkulāciju | L152: Single family house with circulation | M152: Családi ház cirkulációval | N152: Enebolig m. varmtvann sirkulasjon
A153: Multi-family house without circulation | B153: Mehrfamilienhaus ohne Zirkulation | C153: Multi-family house without circulation | D153: Multi-family house without circulation | E153: Multi-family house without circulation | F153: Usean perheen talous, ei käyttövedenkiertoa | G153: Multi-family house without circulation | H153: Bytový dom bez cirkulácie | I153: Flerfamiliehus uden cirkulation | J153: Daugiabutis be karšto vandens recirkuliacijos | K153: Daudzģimeņu ēka bez cirkulācijas | L153: Multi-family house without circulation | M153: Társasház cirkuláció nélkül | N153: Leiligheter u. varmtvann sirkulasjon
A154: Multi-family house with circulation | B154: Mehrfamilienhaus mit Zirkulation | C154: Multi-family house with circulation | D154: Multi-family house with circulation | E154: Multi-family house with circulation | F154: Usean perheen talous, käyttövedenkierto | G154: Multi-family house with circulation | H154: Bytový dom s cirkulácie | I154: Flerfamiliehus med cirkulation | J154: Daugiabutis bsu karšto vandens recirkuliacija | K154: Daudzģimeņu ēka ar cirkulāciju | L154: Multi-family house with circulation | M154: Társasház cirkulációval | N154: Leiligheter m. varmtvann sirkulasjon
A155: Single family house | B155: Einfamilienhaus | C155: Single family house | D155: Single family house | E155: Single family house | F155: Yhden perheen talous | G155: Single family house | H155: Rodinný dom | I155: Enfamiliehus | J155: Šeimos namas | K155: Vienģimenes ēka | L155: Single family house | M155: Családi ház | N155: Enebolig
A156: Multi-family house | B156: Mehrfamilienhaus | C156: Multi-family house | D156: Multi-family house | E156: Multi-family house | F156: Usean perheen talous | G156: Multi-family house | H156: Bytový dom | I156: Flerfamiliehus | J156: Daugiabutis namas | K156: Daudzģimeņu ēka | L156: Multi-family house | M156: Társasház | N156: Leilighetsbygg
A157: Very low demand | B157: Sehr geringer Bedarf | C157: Very low demand | D157: Gering verbruik | E157: Very low demand | F157: Erittäin vähäinen tarve | G157: Very low demand | H157: Veľmi nízka spotreba | I157: Meget lavt forbrug | J157: Labai mažas poreikis | K157: Ļoti zems patēriņš | L157: Richiesta molto bassa | M157: Nagyon alacsony igény | N157: Svært lavt behov
A158: Low demand | B158: Geringer Bedarf | C158: Low demand | D158: Gering verbruik | E158: Low demand | F158: Vähäinen tarve | G158: Low demand | H158: Nízka spotreba | I158: Lavt forbrug | J158: Mažas poreikis | K158: Zems patēriņš | L158: Richiesta bassa | M158: Alacsony igény | N158: Moderat behov
A159: Normal demand | B159: Normaler Bedarf | C159: Normal demand | D159: Normaal verbruik | E159: Normal demand | F159: Normaali tarve | G159: Normal demand | H159: Normálna spotreba | I159: Normalt forbrug | J159: Normalus poreikis | K159: Vidējs patēriņš | L159: Richiesta normale | M159: Normál igény | N159: Normalt behov
A160: High demand | B160: Hoher Bedarf | C160: High demand | D160: Hoog verbruik | E160: High demand | F160: Korkea tarve | G160: High demand | H160: Vysoká spotreba | I160: Højt forbrug | J160: Didelis poreikis | K160: Augsts patēriņš | L160: Richiesta elevata | M160: Magas igény | N160: Høyt behov
A161: Very high demand | B161: Sehr hoher Bedarf | C161: Very high demand | D161: Hoog verbruik | E161: Very high demand | F161: Erittäin korkea tarve | G161: Very high demand | H161: Veľmi vysoká spotreba | I161: Meget højt forbrug | J161: Labai didelis poreikis | K161: Ļoti augsts patēriņš | L161: Richiesta molto elevata | M161: Nagyon magas igény | N161: Svært høyt behov
A162: Single person (shower) | B162: 1 Person | Duschen | C162: Single person (shower) | D162: Eenpersoon (douche) | E162: Single person (shower) | F162: 1 henkilöä (suihku) | G162: Single person (shower) | H162: 1 osoba (sprcha) | I162: 1 person (bruser) | J162: 1 asmuo/dušas | K162: 1 person (duša) | L162: 1 persona (doccia) | M162: 1 személy / zuhany | N162: 1 person | Dusjbad
A163: 3 persons (shower) | B163: 3 Personen | Duschen | C163: 3 persons (shower) | D163: 3-Familie (douche) | E163: 3 persons (shower) | F163: 3 henkilöä (suihku) | G163: 3 persons (shower) | H163: 3 osoby (sprcha) | I163: 3 personer (bruser) | J163: 3 asmenys/dušas | K163: 3 personas (duša) | L163: 3 persone (doccia) | M163: 3 személy / zuhany | N163: 3 personer | Dusjbad
A164: 3 persons (shower+bathing) | B164: 3 Personen | Duschen | Baden | C164: 3 persons (shower+bathing) | D164: 3-Familie (douche+bad) | E164: 3 persons (shower+bathing) | F164: 3 henkilöä (suihku+kylpy) | G164: 3 persons (shower+bathing) | H164: 3 osoby (sprcha+vaňa) | I164: 3 personer (bruser+bad) | J164: 3 asmenys/dušas/vonia | K164: 3 personas (duša+vanna) | L164: 3 persone (doccia + vasca da bagno) | M164: 3 személy / zuhany / fürdőkád | N164: 3 personer I Dusj | Badekar
A165: 4 persons (shower+bathing) | B165: 4 Personen | Duschen | Baden | C165: 4 persons (shower+bathing) | D165: 4-Familie (douche+bad) | E165: 4 persons (shower+bathing) | F165: 4 henkilöä (suihku+kylpy) | G165: 4 persons (shower+bathing) | H165: 4 osoby (sprcha+vaňa) | I165: 4 personer (bruser+bad) | J165: 4 asmenys/dušas/vonia | K165: 4 personas (duša+vanna) | L165: 4 persone (doccia + vasca da bagno) | M165: 4 személy /zuhany / fürdőkád | N165: 4 personer | Dusj | Badekar
A166: 6 persons (shower+bathing) | B166: 6 Personen | Duschen | Baden | C166: 6 persons (shower+bathing) | D166: 6-Familie (douche+bad) | E166: 6 persons (shower+bathing) | F166: 6 henkilöä (suihku+kylpy) | G166: 6 persons (shower+bathing) | H166: 6 osôb (sprcha+vaňa) | I166: 6 personer (bruser+bad) | J166: 6 asmenys/dušas/vonia | K166: 6 personas (duša+vanna) | L166: 6 persone (doccia + vasca da bagno) | M166: 6 személy /zuhany / fürdőkád | N166: 6 personer | Dusj | Badekar
A167: cold water | B167: Kaltwassertemperatur | C167: cold water | D167: Koud water | E167: cold water | F167: Kylmän veden lämpötila | G167: cold water | H167: studená voda | I167: Koldtvandstemperatur | J167: Šalto vandens temperatūra | K167: aukstais ūdens | L167: Acqua fredda | M167: Hidegvíz hőmérséklet | N167: Kaldtvannstemperatur
A168: hot water | B168: Warmwassertemperatur | C168: hot water | D168: Warm water | E168: hot water | F168: Käyttöveden lämpötila | G168: hot water | H168: teplá voda | I168: Varmtvandstemperatur | J168: Karšto vandens temperatūra | K168: karstais ūdens | L168: Acqua calda | M168: Melegvíz hőmérséklet | N168: Varmtvannstemperatur
A169: Loss factor distribution | B169: Verlustfaktor Verteilung | C169: Loss factor distribution | D169: Verliesfactor distributie | E169: Loss factor distribution | F169: Jakelun häviökerroin | G169: Loss factor distribution | H169: Koeficient straty cirkuláciou | I169: Distributionstabsfaktor | J169: Karšto vandens recirkuliacijos nuostoliai | K169: Cirkulācijas zudumi | L169: Fattore di perdita per la distribuzione | M169: Rendszer veszteségi tényező | N169: Tapsfaktor fordeling
A170: Up-time DHW | B170: Nutzungsdauer Warmwasser | C170: Up-time DHW | D170: Gebruikstijd warmwater | E170: Up-time DHW | F170: Käyttöveden käyttöaika | G170: Up-time DHW | H170: Doba spotreby TUV | I170: Brugstid varmtvand | J170: Karšto vandens paruošimo trukmė | K170: Karstā ūdens dienas gadā | L170: Tempo di funzionamento ACS | M170: Melegvíz felhasználás | N170: Forbrukstid varmtvann
A171: Days per year | B171: Tage pro Jahr | C171: Days per year | D171: Dagen per jaar | E171: Days per year | F171: päivää vuodessa | G171: Days per year | H171: Dní za rok | I171: Dage pr. år | J171: Dienos per metus | K171: Dienas gadā | L171: Giorni all'anno | M171: Felhasználási napok száma | N171: Dager pr. år
A172: Energy consumption | B172: Energiebedarf Warmwasser | C172: Energy consumption | D172: Energieverbruik warm water | E172: Energy consumption | F172: Energiankulutus, käyttövesi | G172: Energy consumption | H172: Potreba energie | I172: Energiforbrug varmtvand | J172: Energijos poreikis karštam vandeniui | K172: Enerģijas patēriņš | L172: Consumo energetico | M172: Energia szükséglet melegvíz készítéshez | N172: Energibehov varmtvann
A173: Demand DHW [kWh/day] | B173: Warmwasserbedarf [kWh/Tag] | C173: Demand DHW [kWh/day] | D173: Warm water verbruik [kWh/dag] | E173: Demand DHW [kWh/day] | F173: Käyttövedentarve [kWh/päivä] | G173: Demand DHW [kWh/day] | H173: Potreba TUV [kWh/day] | I173: Varmtvandsbehov [kWh/day] | J173: Karšto vandens poreikis (kWh/dienai) | K173: Patēriņš karstajam ūdenim [kWh/dienā] | L173: Fabbisogno di ACS [kWh/giorno] | M173: Melegvíz hőigény [kWh/nap] | N173: Behov varmtvann [kWh/dag]
A174: Energy consumption per year | B174: Energiebedarf pro Jahr | C174: Energy consumption per year | D174: Energie verbruik per jaar | E174: Energy consumption per year | F174: Energiankulutus vuodessa | G174: Energy consumption per year | H174: Potreba energie za rok | I174: Energiforbrug pr. år | J174: Energijos poreikis per metus | K174: Enerģijas patēriņš gadā | L174: Consumo energetico annuo | M174: Éves energia szükséglet | N174: Energibehov årlig
A175: Electricity requirement heat pump | B175: Strombedarf Wärmepumpe | C175: Electricity requirement heat pump | D175: Stroomverbruik warmtepomp | E175: Strombedarf Wärmepumpe | F175: Lämpöpumpun sähkönkulutus | G175: Strombedarf Wärmepumpe | H175: Spotreba elektriky TČ | I175: Elforbrug varmepumpe | J175: Šilumos siurblio elektros galia | K175: Elektrības patēriņš siltumsūknim | L175: Fabbisogno elettrico pompa di calore | M175: Hősziv. által felhasznált villamos energia | N175: kW/h forbruk varmepumpe
A176: Electricitiy heat pump | B176: Strom WP | C176: Electricitiy heat pump | D176: Stroom WP | E176: Strom WP | F176: Sähkönkulutus, LP | G176: Strom WP | H176: Napájanie TČ | I176: El varmepumpe | J176: Šilumos siurblio elektros sunaudojimas | K176: Elektrība siltumsūknim | L176: Elettricità pompa di calore | M176: Hőszivattyús villamos energia | N176: Forbruk kW/h VP
A177: End energy 2. heat source | B177: Endenergie 2. Wärmeerzeuger | C177: End energy 2. heat source | D177: Totaalenergie 2de warmteopwekker | E177: Endenergie 2. Wärmeerzeuger | F177: Energiankulutus, 2. lämmönlähde | G177: Endenergie 2. Wärmeerzeuger | H177: Energia 2. zdroja | I177: Sluteffekt 2. varmekilde | J177: 2-inio šilumos šaltinio tiekiama energija | K177: Papildenerģija 2-ais avots | L177: Energia finale 2° generatore di calore | M177: 2.Hőtermelő által felhasznált energia | N177: Energibehov tilskuddsvarme
A178: Electricity requirement auxiliary heating | B178: Strombedarf Zusatzheizung | C178: Electricity requirement auxiliary heating | D178: Stroomverbruik bijverwarming | E178: Strombedarf Zusatzheizung | F178: 2. lämmöntuottajan sähkönkulutus | G178: Strombedarf Zusatzheizung | H178: Spotreba prídavného vykurovania | I178: Elforbrug tilskudsopvarmning | J178: Elektros poreikis papildomam šildymui | K178: Elektrības patēriņš papildapsildei | L178: Consumi elettrici riscaldamento integrativo | M178: Kieg. fűtés által felhasznált villamos energia | N178: kW/h forbruk tilskuddsvarme
A179: Liter oil | B179: Liter Öl | C179: Liter oil | D179: Liters Olie | E179: Liter Öl | F179: litraa öljyä | G179: Liter Öl | H179: Liter oleja | I179: Liter olie | J179: Skystas kuras, litrai | K179: Litri degvielas | L179: Litro di gasolio | M179: Liter olaj | N179: Liter olje
A180: m³ gas | B180: m³ Gas | C180: m³ gas | D180: m³ Gas | E180: m³ Gas | F180: m³ kaasua | G180: m³ Gas | H180: m³ plynu | I180: m³ gas | J180: Dujos m³ | K180: m³ gāzes | L180: m³ di gas | M180: m³ Gáz | N180: m³ gass
A181: Heat demand | B181: Wärmebedarf | C181: Heat demand | D181: Warmtevraag | E181: Wärmebedarf | F181: Lämmöntarve | G181: Wärmebedarf | H181: Vyrobená energia | I181: Varmebehov | J181: Šilumos poreikis | K181: Siltumslodze | L181: Fabbisogno termico | M181: Hőszükséglet | N181: Varmebehov
A182: Electricity requirement | B182: Strombedarf | C182: Electricity requirement | D182: Stroomverbruik | E182: Strombedarf | F182: Sähkönkulutus | G182: Strombedarf | H182: Spotrebovaná energia | I182: Elforbrug | J182: Elektros poreikis | K182: Elektrības patēriņš | L182: Fabbisogno elettrico | M182: Felhasznált villamos energia | N182: Forbruk i kW/h
A183: End energy | B183: Endenergie | C183: End energy | D183: Totaalenergie | E183: Endenergie | F183: Primäärienergia | G183: Endenergie | H183: Celková energia | I183: Slutenergi | J183: Galutinė energija | K183: Enerģija kopā | L183: Energia Finale | M183: Felhasznált energia | N183: Energibehov
A184: End energy [kWh] | B184: Endenergie [kWh] | C184: End energy [kWh] | D184: Totaal energie [kWh] | E184: Endenergie [kWh] | F184: Primäärienergia [kWh] | G184: Endenergie [kWh] | H184: Celková energia [kWh] | I184: Slutenergi [kWh] | J184: Galutinė energija (kWh) | K184: Enerģija kopā [kWh] | L184: Energia Finale | M184: Felhasznált energia [kWh] | N184: Energibehov [kWh]
A185: Energy costs | B185: Energiekosten | C185: Energy costs | D185: Energiekosten | E185: Energiekosten | F185: Energiakustannus | G185: Energiekosten | H185: Celková cena energie | I185: Energiomkostninger | J185: Energijos kaina | K185: Enerģijas izmaksas | L185: Costi energetici | M185: Energia költségek | N185: Energikostnader
A186: Options | B186: Einstellungen | C186: Options | D186: Opties | E186: Options | F186: Asetukset | G186: Options | H186: Možnosti | I186: Indstillinger | J186: Nustatymai | K186: Iestatījumi | L186: Opzioni | M186: Beállítások | N186: Innstillinger
A187: Energy costs [€/a] | B187: Energiekosten [€/a] | C187: Energy costs [€/a] | D187: Energie kosten [€/a] | E187: Energy costs [€/a] | F187: Energiakustannukset [€/v] | G187: Energy costs [€/a] | H187: Cena energie [€/a] | I187: Energiomkostninger [DKK/år] | J187: Energijos kaina (€/metams) | K187: Enerģijas izmaksas [€/gadā] | L187: Costi energetici [€/anno] | M187: Energia költségek [Ft/év] | N187: Energikostnader [Kr/å]
A188: Ersparnis gegenüber Öl-/Gasheizung | B188: Ersparnis gegenüber Öl-/Gasheizung | C188: Ersparnis gegenüber Öl-/Gasheizung | D188: Ersparnis gegenüber Öl-/Gasheizung | E188: Ersparnis gegenüber Öl-/Gasheizung | F188: Säästöt öljy-/kaasulämmitykseen verrattuna | G188: Ersparnis gegenüber Öl-/Gasheizung | H188: Ersparnis gegenüber Öl-/Gasheizung | I188: Ersparnis gegenüber Öl-/Gasheizung | J188: Ersparnis gegenüber Öl-/Gasheizung | K188: Ersparnis gegenüber Öl-/Gasheizung | L188: Ersparnis gegenüber Öl-/Gasheizung | M188: Ersparnis gegenüber Öl-/Gasheizung | N188: Besparelse ifht. olje/gass
A189: CO2-Emmision | B189: CO2-Emmision | C189: CO2-Emmision | D189: CO2-Emmisie | E189: CO2-Emmision | F189: CO2-päästöt | G189: CO2-Emmision | H189: CO2-emisie | I189: CO2-Emmision | J189: CO2 emisija | K189: CO2 Emisija | L189: Emissioni di CO2 | M189: CO2-Kibocsátás | N189: CO2 utslipp
A190: Oil | B190: Öl | C190: Oil | D190: Olie | E190: Öl | F190: Öljy | G190: Öl | H190: olej | I190: Olie | J190: Skystas kuras | K190: Dīzeļdegviela | L190: Gasolio | M190: Olaj | N190: Olje
A191: Gas | B191: Gas | C191: Gas | D191: Gas | E191: Gas | F191: Kaasu | G191: Gas | H191: plyn | I191: Gas | J191: Dujos | K191: Gāze | L191: Gas metano | M191: Gáz | N191: Gass
A192: Restore to standard values ? | B192: Alle Änderungen werden verworfen. Fortfahren? | C192: Restore to standard values ? | D192: Alle ingegeven waarden worden gereset, doorgaan? | E192: Restore to standard values ? | F192: Haluatko palauttaa oletusarvot? | G192: Restore to standard values ? | H192: Obnoviť štandardné hodnoty? | I192: Gendan til standard værdier ? | J192: Grįžti prie standartinių nustatymų ? | K192: Atjaunot pamatiestatījumus? | L192: Ripristinare i valori standard? | M192: Minden változtatás elvetése. Folytatás ? | N192: Tilbakestille til standard verdier?
A193: Default values | B193: Konfiguration zurücksetzen | C193: Default values | D193: Standaardwaarden | E193: Default values | F193: Oletusarvot | G193: Default values | H193: Predvolené | I193: Standard værdier | J193: Standartiniai parametrai | K193: Pamatiestatījumi | L193: Valori di default | M193: Minden változtatás visszaállítása | N193: Standard verdier
A194: Save & Back | B194: Speichern & Zurück | C194: Save & Back | D194: Terug | E194: Save | F194: Tallenna ja palaa | G194: Save | H194: Späť | I194: Gem & tilbage | J194: Išsaugoti | K194: Saglabāt | L194: Salva | M194: Mentés és vissza | N194: Lagre & retur
A195: Energy prices | B195: Energiepreise | C195: Energy prices | D195: Energieprijzen | E195: Energiepreise | F195: Energianhinnat | G195: Energiepreise | H195: Cena energie | I195: Energipriser | J195: Energijos kainos | K195: Enerģijas cenas | L195: Prezzi dell'energia | M195: Energia árak | N195: Energipriser
A196: Heat pump rate | B196: Wärmepumpentarif | C196: Heat pump rate | D196: Warmtepomptarief | E196: Wärmepumpentarif | F196: Lämpöpumpun sähköenergia | G196: Wärmepumpentarif | H196: Tarif pre tepelné čerpadlá | I196: Varmepumpetarif | J196: Šilumos siurblio elektros tarifas | K196: Siltumsūkņa tarifs | L196: Tariffa pompa di calore | M196: Hőszivattyús tarifa | N196: Varmepumpetariff
A197: Household electricity | B197: Haushaltsstrom | C197: Household electricity | D197: Standaardtarief | E197: Haushaltsstrom | F197: Taloussähkö | G197: Haushaltsstrom | H197: Tarif pre domácnosti | I197: Husholdningsstrøm | J197: Elektros tarifas gyventojams | K197: Mājsaimniecības elektrības tarifs | L197: Elettricità ad uso domestico | M197: Normál tarifa | N197: Tariff kW/h
A198: Oil-/gas price | B198: Öl-/Gaspreis | C198: Oil-/gas price | D198: Olie-/Gasprijs | E198: Öl-/Gaspreis | F198: Öljyn/kaasun hinta | G198: Öl-/Gaspreis | H198: Tarif olej-/plyn | I198: Olie/gaspris | J198: skysto kuro/dujų | K198: Dīzelis | Gāze | L198: Costo del gasolio / gas metano | M198: Olaj / Gáz ár | N198: Olje/gass pris
A199: Boiler efficiency oil/gas | B199: Kesselwirkungsgrad Öl/Gas | C199: Boiler efficiency oil/gas | D199: Ketelrendement Olie/Gas | E199: Kesselwirkungsgrad Öl/Gas | F199: Kattilan hyötysuhde, öljy/kaasu | G199: Kesselwirkungsgrad Öl/Gas | H199: Účinnosť kotla olej/plyn | I199: Keddelvirkningsgrad olie/gas | J199: Skysto kuro/dujų katilo efektyvumas | K199: Apkures katla lietderības koeficients | L199: Rendimento caldaia a gas metano / gasolio | M199: Kazán hatásfoka olaj / gáz | N199: Virkningsgrad kjele
A200: CO2-emmision electricity | B200: CO2-Emmision Strom | C200: CO2-emmision electricity | D200: CO2-Emmisie stroom | E200: CO2-Emmision Strom | F200: CO2-päästöt, sähkö | G200: CO2-Emmision Strom | H200: CO2-emisie elektriky | I200: CO2-Emmision strøm | J200: CO² emisija elektra | K200: CO2 emisijas elektrībai | L200: Emissioni di CO2 dell'elettricità | M200: CO2 Kibocsátás Elektromos energia | N200: CO2 faktor elektrisitet
A201: CO2-emmision oil/gas | B201: CO2-Emmision Öl/Gas | C201: CO2-emmision oil/gas | D201: CO2-Emmisie olie/Gas | E201: CO2-Emmision Öl/Gas | F201: CO2-päästöt, öljy/kaasu | G201: CO2-Emmision Öl/Gas | H201: CO2-emisie oleja/plynu | I201: CO2-Emmision olie/gas | J201: CO² emisija skystas kuras/dujos | K201: CO2 emisijas dīzelim/gāzei | L201: Emissioni di CO2 del gasolio/metano | M201: CO2 Kibocsátás Olaj/Gáz | N201: CO2 utslipp olje/gass
A202: Cold water temperature | B202: Kaltwassertemperatur | C202: Cold water temperature | D202: Koudwatertemperatuur | E202: Kaltwassertemperatur | F202: Kylmän veden lämpötila | G202: Kaltwassertemperatur | H202: studená voda | I202: Koldtvandstemperatur | J202: Šalto vandens temperatūra | K202: aukstais ūdens | L202: Temperatura dell'acqua fredda | M202: Hidegvíz hőmérséklet | N202: Kaldtvannstemperatur
A203: Buffer temperature | B203: Speichertemperatur | C203: Buffer temperature | D203: Boilertemperatuur | E203: Speichertemperatur | F203: Varaajalämpötila | G203: Speichertemperatur | H203: Teplota akumulátora | I203: Beholdertemperatur | J203: Talpos temperatūra | K203: Karstā ūdens temperatūra | L203: Temperatura dell'accumulo | M203: Tároló hőmérséklet | N203: Varmtvannstemperatur
A204: Forward flow heatpump in DHW-mode | B204: WP-Vorlauf im WW-Betrieb | C204: Forward flow heatpump in DHW-mode | D204: Forward flow heatpump in DHW-mode | E204: Forward flow heatpump in DHW-mode | F204: Menovesilämpötila, käyttövesi | G204: Forward flow heatpump in DHW-mode | H204: Výstupný prietok TČ v režime TUV | I204: VP-fremløbstemperatur i VV-drift | J204: Šilumos siurblio temperatūra ruošiant karštą vandenį | K204: Turpgaita siltumsūknim ražojot karsto ūdeni | L204: Forward flow heatpump in DHW-mode | M204: HSZ. előremenő hőmérséklete HMV üzemmódban | N204: Turtemperatur VP f. varmtvann
A205: Heat loss distribution without circulation | B205: Wärmeverluste Verteilung ohne Zirkulation | C205: Heat loss distribution without circulation | D205: Wärmeverluste Verteilung ohne Zirkulation | E205: Wärmeverluste Verteilung ohne Zirkulation | F205: Lämpöhukka, ilman käyttövedenkiertoa | G205: Wärmeverluste Verteilung ohne Zirkulation | H205: Tepelné straty s cirkuláciou | I205: Distributionstab uden cirkulation | J205: Šilumos perdavimo nuostoliai be recirkuliacijos | K205: Sadales siltumzudumi bez cirkulācijas | L205: Wärmeverluste Verteilung ohne Zirkulation | M205: Rendszer hővesztesége cirkuláció nélkül | N205: Varmetap fordeling u. VVC
A206: Heat loss distribution with circulation | B206: Wärmeverluste Verteilung mit Zirkulation | C206: Heat loss distribution with circulation | D206: Wärmeverluste Verteilung mit Zirkulation | E206: Wärmeverluste Verteilung mit Zirkulation | F206: Lämpöhukka, käyttövedenkierrolla | G206: Wärmeverluste Verteilung mit Zirkulation | H206: Tepelné straty bez cirkulácie | I206: Distributionstab med cirkulation | J206: Šilumos perdavimo nuostoliai su recirkuliacija | K206: Sadales siltumzudumi ar cirkulāciju | L206: Wärmeverluste Verteilung mit Zirkulation | M206: Rendszer hővesztesége cirkulációval | N206: Varmetap fordeling m. VVC
A207: Covering ratio 2. heat source | B207: Wirkungsgrad 2. Wärmeerzeuger | C207: Covering ratio 2. heat source | D207: Rendement additioneel toestel | E207: Wirkungsgrad 2. Wärmeerzeuger | F207: 2. lämmöntuottajan hyötysuhde | G207: Wirkungsgrad 2. Wärmeerzeuger | H207: Účinnosť 2. zdroja | I207: Virkningsgrad 2. varmekilde | J207: 2-inio šilumos šaltinio efektyvumas | K207: Saražots ar 2-o avotu | L207: Fattore di copertura 2° generatore di calore in % | M207: 2.Hőtermelő hatásfoka | N207: Dekningsgrad el-tilskudd
A208: kWh per day | B208: kWh pro Tag | C208: kWh per day | D208: kWh per dag | E208: kWh pro Tag | F208: kWh päivässä | G208: kWh pro Tag | H208: kWh za deň | I208: kWh pr. dag | J208: kWh per dieną | K208: kWh dienā | L208: kWh giornalieri | M208: kWh naponta | N208: kWh pr. dag
... 43 more rows

Sheet Schnellauswahl (hidden)
C2: =Translation!A21 -> Heat pump finder
C3: =Translation!A33 -> Selection | O3: =Translation!A37 -> Air | U3: =Translation!A38 -> Brine | AA3: =Translation!A39 -> Water
O8: WPL 12 S Trend | U8: WPF 10 | AA8: WPW 10 Set | AB8: 2 x WPF 40
O9: WPL 13 cool | U9: WPF 10 cool | AA9: WPW 10 basic Set
U10: WPC 10 | AA10: WPC 07
U11: WPC 10 cool
C12: =Translation!A34 -> Heat demand building | L12: =Berechnung!W5&" KW" -> 9 KW | U12: WPF 10 basic
U13: WPF 10 M
C14: =Translation!A104 -> Design temperature | L14: =Berechnung!X7&" °C" -> -14 °C
C16: =Translation!A56 -> Forward flow temperature | L16: =Berechnung!R7&" °C" -> 35 °C
D18: =Translation!A27 -> Installation
D19: =Translation!A31 -> Estimated assumption dosen't replace a detailed calculation,Heating threshold -15°C, Calculation without switch off time, Heat source air: monoenergetic operation, Bivalence point -3°C…-7°C, Heat Source Brine/Well Water monovalent operation

Sheet Klimadaten (hidden)
A1: Norm-Außentemperaturen Deutschland | J1: Deutschland | M1: Österreich | P1: Schweiz | S1: England | V1: Holland | Y1: Belgien | AB1: Finnland | AE1: Dänemark | AH1: Norwegen | AK1: Slowakei | AN1: Lettland | AQ1: Russland | AT1: Litauen | AW1: Ungarn | AZ1: Bosnien-Herzegowina | BC1: Italien | BF1: Spanien | BI1: Marokko | BL1: Namibia | BO1: Europa | BR1: Near East
A2: PLZ | B2: Stadt | C2: Außentemp. | D2: Wetterstation | J2: PLZ | K2: Stadt | L2: Außentemp. | M2: PLZ | N2: Stadt | O2: Außentemp. | P2: PLZ | Q2: Stadt | R2: Außentemp. | S2: PLZ | T2: Stadt | U2: Außentemp. | V2: PLZ | W2: Stadt | X2: Außentemp. | Y2: PLZ | Z2: Stadt | AA2: Außentemp. | AB2: PLZ | AC2: Stadt | AD2: Außentemp. | AE2: PLZ | AF2: Stadt | AG2: Außentemp. | AH2: PLZ | AI2: Stadt | AJ2: Außentemp. | AK2: PLZ | AL2: Stadt | AM2: Außentemp. | AN2: PLZ | AO2: Stadt | AP2: Außentemp. | AQ2: PLZ | AR2: Stadt | AS2: Außentemp. | AT2: PLZ | AU2: Stadt | AV2: Außentemp. | AW2: PLZ | AX2: Stadt | AY2: Außentemp. | AZ2: PLZ | BA2: Stadt | BB2: Außentemp. | BC2: PLZ | BD2: Stadt | BE2: Außentemp. | BF2: PLZ | BG2: Stadt | BH2: Außentemp. | BI2: PLZ | BJ2: Stadt | BK2: Außentemp. | BL2: PLZ | BM2: Stadt | BN2: Außentemp. | BO2: PLZ | BP2: Stadt | BQ2: Außentemp. | BR2: PLZ | BS2: Stadt | BT2: Außentemp.
A3: 1.... | B3: Berlin | C3: -14 °C | D3: Berlin | K3: Aachen | L3: -12 °C | M3: 3300 | N3: Amstetten | O3: -13 °C | P3: 6780 | Q3: Airolo | R3: -8 °C | T3: Aberdeen | U3: -3 °C | V3: 1300 | W3: Almere | X3: -9 °C | Y3: -11 | Z3: Antwerpen | AA3: -11 °C | AB3: 02002 | AC3: Espoo | AD3: -26 °C | AF3: Aalborg | AG3: -12 °C | AI3: Ålesund | AJ3: -11 °C | AL3: Banská Bystrica | AM3: -15 °C | AO3: Ainaži | AP3: -23 °C | AR3: Kaliningrad | AS3: -18 °C | AU3: Alytus | AV3: -23 °C | AX3: Budapest | AY3: -13 °C | BA3: Banja Luka | BB3: -13 °C | BD3: Bari | BE3: 0 °C | BF3: 15000 | BG3: A Coruna | BH3: 5 °C | BJ3: Rabat | BK3: 5 °C | BM3: Keetmanshoop | BN3: -2 °C | BO3: TUR | BP3: Ankara | BQ3: -14 °C | BS3: Aschkeloh | BT3: 6 °C
A4: 22... | B4: Hamburg | C4: -12 °C | D4: Hamburg | K4: Augsburg | L4: -14 °C | M4: 4052 | N4: Ansfelden | O4: -13 °C | P4: 8243 | Q4: Altdorf | R4: -6 °C | T4: Ashfield | U4: -6 °C | V4: 3800 | W4: Amersfoort | X4: -11 °C | Y4: -6 | Z4: Brugge | AA4: -6 °C | AB4: 00100 | AC4: Helsinki | AD4: -26 °C | AF4: Aarhus | AG4: -12 °C | AI4: Asker | AJ4: -16 °C | AL4: Bardejov | AM4: -16 °C | AO4: Alūksne | AP4: -25 °C | AR4: Krasnodar | AS4: -14 °C | AU4: Kaunas | AV4: -22 °C | AX4: Deprecen | AY4: -15 °C | BA4: Doboj | BB4: -12 °C | BD4: Bergamo | BE4: -7 °C | BF4: 03000 | BG4: Alicante | BH4: 2 °C | BJ4: Casablanca | BK4: 5 °C | BM4: Otjiwarongo | BN4: 0 °C | BO4: GRE | BP4: Athen | BQ4: 0 °C | BS4: Dimona | BT4: 5 °C
A5: 8.... | B5: München | C5: -16 °C | D5: München | K5: Bamberg | L5: -16 °C | M5: 4820 | N5: Bad Ischl | O5: -14 °C | P5: 7050 | Q5: Arosa | R5: -16 °C | T5: Aspatria | U5: 0 °C | V5: 1000 | W5: Amsterdam | X5: -8 °C | Y5: -9 | Z5: Bruxelles | AA5: -9 °C | AB5: 99800 | AC5: Ivalo | AD5: -38 °C | AF5: Esbjerg | AG5: -12 °C | AI5: Bærum | AJ5: -11 °C | AL5: Bratislava | AM5: -12 °C | AO5: Daugavpils | AP5: -24 °C | AR5: Kursk | AS5: -20 °C | AU5: Klaipėda | AV5: -20 °C | AX5: Győr | AY5: -13 °C | BA5: Grude | BB5: -4 °C | BD5: Bologna | BE5: -6 °C | BF5: 08000 | BG5: Barcelona | BH5: 0 °C | BJ5: Agadir | BK5: 5 °C | BM5: Swakopmund | BN5: 0 °C | BO5: BEL | BP5: Brüssel | BQ5: -9 °C | BS5: Elat | BT5: 2 °C | CM5: Deutschland
A6: 5.... | B6: Köln | C6: -10 °C | D6: Düsseldorf | K6: Berlin | L6: -14 °C | M6: 2500 | N6: Baden bei Wien | O6: -13 °C | P6: 7310 | Q6: Bad Ragaz | R6: -9 °C | T6: Barnsley | U6: -4 °C | V6: 7300 | W6: Apeldoorn | X6: -11 °C | Y6: -8 | Z6: Charleroi | AA6: -8 °C | AB6: 80100 | AC6: Joensuu | AD6: -32 °C | AF6: Helsingør | AG6: -12 °C | AI6: Bergen | AJ6: -15 °C | AL6: Komárno | AM6: -12 °C | AO6: Dobele | AP6: -22 °C | AR6: Moscow | AS6: -20 °C | AU6: Panevėžys | AV6: -22 °C | AX6: Kecskemét | AY6: -15 °C | BA6: Livno | BB6: -11 °C | BD6: Brescia | BE6: -7 °C | BF6: 48000 | BG6: Bilbao | BH6: 0 °C | BJ6: Marrakech | BK6: 4 °C | BM6: Walvis Bay | BN6: 0 °C | BO6: ROM | BP6: Bukarest | BQ6: -14 °C | BS6: Haifa | BT6: 6 °C | CM6: Österreich
A7: 60... | B7: Frankfurt / Main | C7: -12 °C | D7: Frankfurt am Main | K7: Bremen | L7: -12 °C | M7: 6700 | N7: Bludenz | O7: -15 °C | P7: 4102 | Q7: Basel | R7: -8 °C | T7: Belfast | U7: -2 °C | V7: 6800 | W7: Arnhem | X7: -10 °C | Y7: -11 | Z7: Genk | AA7: -11 °C | AB7: 40100 | AC7: Jyväskylä | AD7: -32 °C | AF7: Herning | AG7: -12 °C | AI7: Bodø | AJ7: -8 °C | AL7: Košice | AM7: -12 °C | AO7: Liepāja | AP7: -18 °C | AR7: Nizhniy Novgorod | AS7: -20 °C | AU7: Šiauliai | AV7: -22 °C | AX7: Miskolc | AY7: -15 °C | BA7: Mostar | BB7: -6 °C | BD7: Firenze | BE7: -5 °C | BF7: 14000 | BG7: Cordoba | BH7: 2 °C | BJ7: Fes | BK7: 0 °C | BM7: Windhoek | BN7: 0 °C | BO7: POR | BP7: Lissabon | BQ7: 2 °C | BS7: Jerusalem | BT7: -2 °C | CM7: Schweiz
A8: 7.... | B8: Stuttgart | C8: -12 °C | D8: Stuttgart | K8: Dortmund | L8: -12 °C | M8: 5280 | N8: Braunau am Inn | O8: -15 °C | P8: 3803 | Q8: Beatenberg | R8: -8 °C | T8: Birmingham | U8: -5 °C | V8: 1940 | W8: Beverwijk | X8: -7 °C | Y8: -7 | Z8: Gent | AA8: -7 °C | AB8: 87100 | AC8: Kajaani | AD8: -32 °C | AF8: Hjørring | AG8: -12 °C | AI8: Drammen | AJ8: -12 °C | AL8: Lučenec | AM8: -16 °C | AO8: Mērsrags | AP8: -20 °C | AR8: Rostov-on-Don | AS8: -15 °C | AU8: Vilnius | AV8: -22 °C | AX8: Nyíregyháza | AY8: -15 °C | BA8: Prijedor | BB8: -13 °C | BD8: Genova | BE8: 0 °C | BF8: 33200 | BG8: Gijon | BH8: 2 °C | BJ8: Oujda | BK8: -2 °C | BO8: NOR | BP8: Oslo | BQ8: -18 °C | BS8: Naharija | BT8: 6 °C | CM8: England
A9: 44... | B9: Dortmund | C9: -12 °C | D9: Dortmund | K9: Dresden | L9: -14 °C | M9: 6900 | N9: Bregenz | O9: -11 °C | P9: 3000 | Q9: Bern | R9: -8 °C | T9: Boulmer | U9: -3 °C | V9: 4800 | W9: Breda | X9: -11 °C | Y9: -8 | Z9: Kortrijk | AA9: -8 °C | AB9: 67100 | AC9: Kokkola | AD9: -29 °C | AF9: Holbæk | AG9: -12 °C | AI9: Florø | AJ9: -13 °C | AL9: Námestovo | AM9: -18 °C | AO9: Priekuļi | AP9: -24 °C | AR9: Saint-Petersburg | AS9: -20 °C | AX9: Pécs | AY9: -11 °C | BA9: Sarajevo | BB9: -15 °C | BD9: Mesina | BE9: 4 °C | BF9: 18000 | BG9: Granada | BH9: -5 °C | BJ9: Bou Anfer | BK9: 5 °C | BO9: FRA | BP9: Paris | BQ9: -8 °C | BS9: Nazareth | BT9: 6 °C | CM9: Holland
A10: 40... | B10: Düsseldorf | C10: -10 °C | D10: Düsseldorf | K10: Düsseldorf | L10: -10 °C | M10: 8600 | N10: Bruck an der Mur | O10: -14 °C | P10: 7502 | Q10: Bever | R10: -16 °C | T10: Bournemouth | U10: -5 °C | V10: 3300 | W10: Dordrecht | X10: -8 °C | Y10: -9 | Z10: La Louvière | AA10: -9 °C | AB10: 70100 | AC10: Kuopio | AD10: -32 °C | AF10: København | AG10: -12 °C | AI10: Hammerfest | AJ10: -8 °C | AL10: Nitra | AM10: -14 °C | AO10: Rīga | AP10: -21 °C | AR10: Smolensk | AS10: -20 °C | AX10: Szeged | AY10: -13 °C | BA10: Slavonski Brod | BB10: -15 °C | BD10: Milano | BE10: -6 °C | BF10: 21000 | BG10: Huelva | BH10: 2 °C | BJ10: Ouarzazate | BK10: 0 °C | BO10: CRO | BP10: Ploče | BQ10: -4 °C | BS10: Tel Aviv | BT10: 6 °C | CM10: Belgien
A11: 45... | B11: Essen | C11: -10 °C | D11: Dortmund | K11: Emden | L11: -10 °C | M11: 6850 | N11: Dornbirn | O11: -12 °C | P11: 1660 | Q11: Château-d'Oex | R11: -11 °C | T11: Bristol | U11: -3 °C | V11: 5600 | W11: Eindhoven | X11: -11 °C | Y11: -10 | Z11: Liège | AA11: -10 °C | AB11: 93600 | AC11: Kuusamo | AD11: -32 °C | AF11: Kolding | AG11: -12 °C | AI11: Kristiansand | AJ11: -16 °C | AL11: Poprad | AM11: -16 °C | AO11: Stende | AP11: -20 °C | AR11: Sochi | AS11: -2 °C | AX11: Székesfehérvár | AY11: -13 °C | BA11: Tuzla | BB11: -12 °C | BD11: Napoli | BE11: 0 °C | BF11: 28000 | BG11: Madrid | BH11: -2 °C | BO11: CZE | BP11: Prag | BQ11: -14 °C | BS11: Ramallah | BT11: 1 °C | CM11: Finnland
A12: 28... | B12: Bremen | C12: -12 °C | D12: Bremen | K12: Erfurt | L12: -14 °C | M12: 6800 | N12: Feldkirch | O12: -13 °C | P12: 3965 | Q12: Chippis | R12: -7 °C | T12: Cardiff | U12: -3 °C | V12: 7500 | W12: Enschede | X12: -11 °C | Y12: -7 | Z12: Mons | AA12: -7 °C | AB12: 15100 | AC12: Lahti | AD12: -29 °C | AF12: Nykøbing | AG12: -12 °C | AI12: Oslo | AJ12: -14 °C | AL12: Žilina | AM12: -15 °C | AO12: Zīlāni | AP12: -24 °C | AR12: Vladivostok | AS12: -20 °C | BA12: Zenica | BB12: -15 °C | BD12: Padova | BE12: -8 °C | BF12: 29000 | BG12: Malaga | BH12: 2 °C | BO12: ITA | BP12: Rom | BQ12: -2 °C | CM12: Dänemark
A13: 30... | B13: Hannover | C13: -14 °C | D13: Hannover | K13: Frankfurt am Main | L13: -12 °C | M13: 9560 | N13: Feldkirchen in Kärnten | O13: -15 °C | P13: 7000 | Q13: Chur | R13: -8 °C | T13: Cork (Irland) | U13: -2 °C | V13: 6160 | W13: Geleen | X13: -10 °C | Y13: -9 | Z13: Namur | AA13: -9 °C | AB13: 90100 | AC13: Oulu | AD13: -32 °C | AF13: Odense | AG13: -12 °C | AI13: Sandnes | AJ13: -16 °C | AR13: Volgograd | AS13: -20 °C | BD13: Palermo | BE13: 4 °C | BF13: 07000 | BG13: Palma de Mallorca | BH13: 0 °C | BO13: BUL | BP13: Sofia | BQ13: -16 °C | CM13: Norwegen
A14: 04... | B14: Leipzig | C14: -14 °C | D14: Leipzig | K14: Fritzlar | L14: -12 °C | M14: 4810 | N14: Gmunden | O14: -14 °C | P14: 7260 | Q14: Davos | R14: -14 °C | T14: Coventry | U14: -5 °C | V14: 9700 | W14: Groningen | X14: -10 °C | Y14: -7 | Z14: Oostende | AA14: -7 °C | AB14: 28100 | AC14: Pori | AD14: -26 °C | AF14: Rønne | AG14: -12 °C | AI14: Sarpsborg | AJ14: -14 °C | AR14: Voronezh | AS14: -20 °C | BD14: Parma | BE14: -7 °C | BF14: 38000 | BG14: Santa Cruz de Tenerife | BH14: 5 °C | BO14: SWE | BP14: Stockholm | BQ14: -18 °C | CM14: Slowakei
A15: 010.. | B15: Dresden | C15: -14 °C | D15: Dresden | K15: Görlitz | L15: -16 °C | M15: 8010 | N15: Graz | O15: -12 °C | P15: 2800 | Q15: Delémont | R15: -7 °C | T15: Dover | U15: -4 °C | V15: 2000 | W15: Haarlem | X15: -6 °C | AB15: 96100 | AC15: Rovaniemi | AD15: -38 °C | AF15: Slagelse | AG15: -12 °C | AI15: Skien | AJ15: -14 °C | BD15: Perugia | BE15: -6 °C | BF15: 39000 | BG15: Santander | BH15: 0 °C | BO15: MON | BP15: Tivat | BQ15: -2 °C | CM15: Lettland
A16: 904.. | B16: Nürnberg | C16: -16 °C | D16: Nürnberg | K16: Greifswald | L16: -12 °C | M16: 5400 | N16: Hallein | O16: -15 °C | P16: 7180 | Q16: Disentis | R16: -9 °C | T16: Dublin (Irland) | U16: -2 °C | V16: 1117 | W16: Haarlemmermeer | X16: -7 °C | AB16: 33002 | AC16: Tampere | AD16: -29 °C | AF16: Sønderburg | AG16: -12 °C | AI16: Stavanger | AJ16: -15 °C | BD16: Pescara | BE16: -3 °C | BF16: 41000 | BG16: Sevilla | BH16: 2 °C | BO16: POL | BP16: Warschau | BQ16: -18 °C | CM16: Russland
A17: 1805. | B17: Rostock | C17: -10 °C | D17: Rostock | K17: Hamburg | L17: -12 °C | M17: 6845 | N17: Hohenems | O17: -13 °C | P17: 8840 | Q17: Einsiedeln | R17: -10 °C | T17: Dundee | U17: -2 °C | V17: 6300 | W17: Heerlen | X17: -10 °C | AB17: 20002 | AC17: Turku | AD17: -26 °C | AF17: Svendborg | AG17: -12 °C | AI17: Tromsø | AJ17: -11 °C | BD17: Piacenza | BE17: -7 °C | BF17: 46000 | BG17: Valencia | BH17: 0 °C | BO17: CRO | BP17: Zagreb | BQ17: -10 °C | CM17: Litauen
A18: 72280 | B18: Aach | C18: -16 °C | D18: Stuttgart | K18: Hannover | L18: -14 °C | M18: 6020 | N18: Innsbruck | O18: -14 °C | P18: 6390 | Q18: Engelberg | R18: -10 °C | T18: Edinburgh | U18: -4 °C | V18: 1200 | W18: Hilversum | X18: -11 °C | AB18: 65100 | AC18: Vaasa | AD18: -29 °C | AI18: Trondheim | AJ18: -15 °C | BD18: Pisa | BE18: -4 °C | BF18: 47000 | BG18: Valladolid | BH18: -5 °C | CM18: Ungarn
A19: 78267 | B19: Aach/Hegau | C19: -14 °C | D19: Konstanz | K19: Hof | L19: -14 °C | M19: 8605 | N19: Kapfenberg | O19: -14 °C | P19: 1996 | Q19: Fey | R19: -9 °C | T19: Enfield | U19: -6 °C | V19: 6460 | W19: Kerkrade | X19: -11 °C | AB19: 01200 | AC19: Vantaa | AD19: -26 °C | AI19: Vardo | AJ19: -17 °C | BD19: Rimini | BE19: -5 °C | BF19: 36200 | BG19: Vigo | BH19: 2 °C | CM19: Bosnien-Herzegowina
A20: 520.. | B20: Aachen | C20: -12 °C | D20: Aachen | K20: Hohenpeißenberg | L20: -16 °C | M20: 9020 | N20: Klagenfurt (Wörthersee) | O20: -16 °C | P20: 1700 | Q20: Fribourg | R20: -9 °C | T20: Glasgow | U20: -6 °C | V20: 2300 | W20: Leiden | X20: -8 °C | AB20: ----- | AC20: Säävyöhyke I | AD20: -26 °C | BD20: Roma | BE20: -2 °C | BF20: 50000 | BG20: Zaragoza | BH20: -5 °C | CM20: Italien
A21: 7343. | B21: Aalen / Württ. | C21: -16 °C | D21: Stuttgart | K21: Karlsruhe | L21: -12 °C | M21: 3400 | N21: Klosterneuburg | O21: -13 °C | P21: 1201 | Q21: Genève | R21: -5 °C | T21: Lancaster | U21: -6 °C | V21: 6200 | W21: Maastricht | X21: -11 °C | AB21: ----- | AC21: Säävyöhyke II | AD21: -29 °C | BD21: Torino | BE21: -7 °C | CM21: Spanien
A22: 65326 | B22: Aarbergen | C22: -14 °C | D22: Nürburg-Barweiler | K22: Kempten | L22: -16 °C | M22: 3500 | N22: Krems an der Donau | O22: -12 °C | P22: 8750 | Q22: Glarus | R22: -9 °C | T22: Leeds | U22: -4 °C | V22: 6500 | W22: Nijmegen | X22: -10 °C | AB22: ----- | AC22: Säävyöhyke III | AD22: -32 °C | BD22: Trieste | BE22: -3 °C | CM22: Marokko
A23: 19322 | B23: Abbendorf | C23: -14 °C | D23: Schwerin | K23: Konstanz | L23: -12 °C | M23: 6330 | N23: Kufstein | O23: -16 °C | P23: 6487 | Q23: Göschenen | R23: -9 °C | T23: Leicester | U23: -6 °C | V23: 3000 | W23: Rotterdam | X23: -8 °C | AB23: ----- | AC23: Säävyöhyke IV | AD23: -38 °C | BD23: Udine | BE23: -7 °C | CM23: Namibia
A24: 30900 | B24: Abbensen | C24: -14 °C | D24: Hannover | K24: Leipzig | L24: -14 °C | M24: 8700 | N24: Leoben | O24: -14 °C | P24: 9410 | Q24: Heiden | R24: -10 °C | T24: Liverpool | U24: -3 °C | W24: s-Gravenhage | X24: -7 °C | BD24: Venezia | BE24: -6 °C | CM24: Europa
A25: 31234 | B25: Abbensen | C25: -14 °C | D25: Hannover | K25: Lindenberg | L25: -14 °C | M25: 4060 | N25: Leonding | O25: -12 °C | P25: 3800 | Q25: Interlaken | R25: -7 °C | T25: London | U25: -3 °C | W25: s-Hertogenbosch | X25: -10 °C | BD25: Verona | BE25: -7 °C | CM25: Near East
A26: 93326 | B26: Abensberg | C26: -18 °C | D26: Straubing | K26: List auf Sylt | L26: -10 °C | M26: 4020 | N26: Linz | O26: -12 °C | P26: 8280 | Q26: Kreuzlingen | R26: -8 °C | T26: Manchester | U26: -5 °C | V26: 6100 | W26: Sittard | X26: -10 °C
A27: 08485 | B27: Abhorn | C27: -16 °C | D27: Erfurt | K27: Magdeburg | L27: -14 °C | M27: 6890 | N27: Lustenau | O27: -12 °C | P27: 2300 | Q27: La Chaux-de-Fonds | R27: -10 °C | T27: Middlesbrough | U27: -4 °C | V27: 5000 | W27: Tilburg | X27: -10 °C
A28: 37290 | B28: Abterode | C28: -16 °C | D28: Fritzlar | K28: Meiningen | L28: -16 °C | M28: 2340 | N28: Mödling | O28: -13 °C | P28: 4438 | Q28: Langenbruck | R28: -9 °C | T28: Northampton | U28: -6 °C | V28: 3500 | W28: Utrecht | X28: -9 °C
A29: 04347 | B29: Abtnaundorf | C29: -14 °C | D29: Leipzig | K29: München | L29: -16 °C | M29: 2380 | N29: Perchtoldsdorf | O29: -13 °C | P29: 3550 | Q29: Langnau/Emmental | R29: -9 °C | T29: Norwich | U29: -3 °C | V29: 1970 | W29: Velsen | X29: -7 °C
A30: 94261 | B30: Abtschlag | C30: -18 °C | D30: Straubing | K30: Neuruppin | L30: -14 °C | M30: 5760 | N30: Saalfelden/Steinernes Meer | O30: -17 °C | P30: 1000 | Q30: Lausanne | R30: -6 °C | T30: Nottingham | U30: -6 °C | V30: 1500 | W30: Zaanstad | X30: -6 °C
A31: 73453 | B31: Abtsgmünd | C31: -16 °C | D31: Stuttgart | K31: Nürburg-Barweiler | L31: -14 °C | M31: 5020 | N31: Salzburg | O31: -15 °C | P31: 1854 | Q31: Leysin | R31: -9 °C | T31: Ogwr | U31: -3 °C | V31: 1519 | W31: Zaanstreek | X31: -6 °C
A32: 69518 | B32: Abtsteinach | C32: -12 °C | D32: Würzburg | K32: Nürnberg | L32: -16 °C | M32: 3100 | N32: Sankt Pölten | O32: -14 °C | P32: 6600 | Q32: Locarno | R32: -2 °C | T32: Oxford | U32: -6 °C | V32: 2700 | W32: Zoetermeer | X32: -7 °C
A33: 83101 | B33: Achenmühle | C33: -18 °C | D33: Hohenpeißenberg | K33: Potsdam | L33: -14 °C | M33: 6130 | N33: Schwaz | O33: -15 °C | P33: 6900 | Q33: Lugano | R33: -2 °C | T33: Plymouth | U33: -3 °C
A34: 77855 | B34: Achern | C34: -12 °C | D34: Karlsruhe | K34: Rostock | L34: -10 °C | M34: 2320 | N34: Schwechat | O34: -13 °C | P34: 6000 | Q34: Luzern | R34: -8 °C | T34: Sheffield | U34: -4 °C
A35: 28832 | B35: Achim | C35: -12 °C | D35: Bremen | K35: Saarbrücken | L35: -12 °C | M35: 9800 | N35: Spittal an der Drau | O35: -14 °C | P35: 1633 | Q35: Marsens | R35: -9 °C | T35: Southampton | U35: -4 °C
A36: 82547 | B36: Achmühle | C36: -16 °C | D36: Kempten | K36: Schleswig | L36: -10 °C | M36: 4400 | N36: Steyr | O36: -14 °C | P36: 3860 | Q36: Meiringen | R36: -7 °C | T36: Swansea | U36: -3 °C
A37: 88480 | B37: Achstetten | C37: -16 °C | D37: Stuttgart | K37: Schwerin | L37: -14 °C | M37: 2000 | N37: Stockerau | O37: -13 °C | P37: 3963 | Q37: Montana | R37: -9 °C | T37: York | U37: -5 °C
A38: 47626 | B38: Achterhoek | C38: -10 °C | D38: Düsseldorf | K38: Straubing | L38: -18 °C | M38: 6410 | N38: Telfs | O38: -15 °C | P38: 1820 | Q38: Montreux | R38: -5 °C
A39: 25917 | B39: Achtrup | C39: -10 °C | D39: Schleswig | K39: Stuttgart | L39: -12 °C | M39: 2630 | N39: Ternitz | O39: -14 °C | P39: 2000 | Q39: Neuchâtel | R39: -7 °C
A40: 37581 | B40: Ackenhausen | C40: -16 °C | D40: Fritzlar | K40: Trier | L40: -10 °C | M40: 2514 | N40: Traiskirchen | O40: -13 °C | P40: 4600 | Q40: Olten | R40: -8 °C
A41: 73099 | B41: Adelberg | C41: -16 °C | D41: Stuttgart | K41: Westermakelsdorf | L41: -10 °C | M41: 4050 | N41: Traun | O41: -14 °C | P41: 8200 | Q41: Schaffhausen | R41: -8 °C
A42: 37139 | B42: Adelebsen | C42: -14 °C | D42: Fritzlar | K42: Würzburg | L42: -12 °C | M42: 3430 | N42: Tulln an der Donau | O42: -13 °C | P42: 1950 | Q42: Sion | R42: -7 °C
A43: 79618 | B43: Adelhausen | C43: -12 °C | D43: Stuttgart | M43: 9500 | N43: Villach | O43: -16 °C | P43: 9000 | Q43: St. Gallen | R43: -10 °C
A44: 73486 | B44: Adelmannsfelden | C44: -16 °C | D44: Stuttgart | M44: 4600 | N44: Wels | O44: -13 °C | P44: 7500 | Q44: St. Moritz | R44: -14 °C
A45: 79669 | B45: Adelsberg | C45: -16 °C | D45: Stuttgart | M45: 1090 | N45: Wien | O45: -13 °C | P45: 3920 | Q45: Zermatt | R45: -12 °C
A46: 97737 | B46: Adelsberg | C46: -14 °C | D46: Würzburg | M46: 2700 | N46: Wiener Neustadt | O46: -13 °C | P46: 8000 | Q46: Zürich | R46: -7 °C
A47: 85111 | B47: Adelschlag | C47: -16 °C | D47: München | M47: 9400 | N47: Wolfsberg (Kärnten) | O47: -15 °C
A48: 74740 | B48: Adelsheim | C48: -14 °C | D48: Stuttgart
A49: 86477 | B49: Adelsried | C49: -16 °C | D49: Augsburg
A50: 04886 | B50: Adelwitz | C50: -16 °C | D50: Leipzig
A51: 21365 | B51: Adendorf | C51: -12 °C | D51: Hamburg
A52: 31171 | B52: Adensen | C52: -14 °C | D52: Hannover
A53: 31079 | B53: Adenstedt | C53: -16 °C | D53: Hannover
A54: 84166 | B54: Adlkofen | C54: -16 °C | D54: Straubing
A55: 08626 | B55: Adorf/Vogtland | C55: -18 °C | D55: Meiningen
A56: 31855 | B56: Aerzen | C56: -14 °C | D56: Hannover
A57: 71563 | B57: Affalterbach | C57: -14 °C | D57: Stuttgart
A58: 74182 | B58: Affaltrach | C58: -14 °C | D58: Stuttgart
A59: 86444 | B59: Affing | C59: -16 °C | D59: Augsburg
A60: 71083 | B60: Affstätt | C60: -16 °C | D60: Stuttgart
A61: 74858 | B61: Aglasterhausen | C61: -12 °C | D61: Stuttgart
A62: 48683 | B62: Ahaus | C62: -10 °C | D62: Hannover
A63: 88697 | B63: Ahausen | C63: -12 °C | D63: Stuttgart
A64: 72160 | B64: Ahldorf | C64: -16 °C | D64: Stuttgart
A65: 5922. | B65: Ahlen/Westf. | C65: -12 °C | D65: Nürburg-Barweiler
A66: 06313 | B66: Ahlsdorf | C66: -14 °C | D66: Leipzig
A67: 32609 | B67: Ahlsen | C67: -12 °C | D67: Fritzlar
A68: 34292 | B68: Ahnatal | C68: -14 °C | D68: Fritzlar
A69: 29353 | B69: Ahnsbeck | C69: -14 °C | D69: Hannover
A70: 94527 | B70: Aholming | C70: -18 °C | D70: Straubing
A71: 96482 | B71: Ahorn | C71: -16 °C | D71: Bamberg
A72: 74744 | B72: Ahorn | C72: -16 °C | D72: Stuttgart
A73: 95491 | B73: Ahorntal | C73: -16 °C | D73: Hof
A74: 38707 | B74: Ahrensberg | C74: -12 °C | D74: Magdeburg
A75: 22926 | B75: Ahrensburg | C75: -12 °C | D75: Hamburg
A76: 16356 | B76: Ahrensfelde | C76: -14 °C | D76: Neuruppin
A77: 18320 | B77: Ahrenshagen | C77: -10 °C | D77: Rostock
A78: 53945 | B78: Ahrhütte | C78: -14 °C | D78: Nürburg-Barweiler
A79: 86551 | B79: Aichach | C79: -16 °C | D79: Augsburg
A80: 92262 | B80: Aichach | C80: -16 °C | D80: Nürnberg
A81: 72539 | B81: Aichelau | C81: -16 °C | D81: Stuttgart
A82: 73101 | B82: Aichelberg | C82: -16 °C | D82: Stuttgart
A83: 75323 | B83: Aichelberg | C83: -16 °C | D83: Stuttgart
A84: 78733 | B84: Aichhalden | C84: -16 °C | D84: Stuttgart
A85: 88317 | B85: Aichstetten | C85: -16 °C | D85: Stuttgart
A86: 72631 | B86: Aichtal | C86: -14 °C | D86: Stuttgart
A87: 73773 | B87: Aichwald | C87: -14 °C | D87: Stuttgart
A88: 84539 | B88: Aidenbach | C88: -16 °C | D88: Straubing
A89: 94501 | B89: Aidenbach | C89: -16 °C | D89: Straubing
A90: 97491 | B90: Aidhausen | C90: -16 °C | D90: Würzburg
A91: 71134 | B91: Aidlingen | C91: -16 °C | D91: Stuttgart
A92: 88448 | B92: Aigendorf | C92: -16 °C | D92: Stuttgart
A93: 88048 | B93: Ailingen | C93: -12 °C | D93: Konstanz
A94: 86447 | B94: Aindling | C94: -16 °C | D94: Augsburg
A95: 83404 | B95: Ainring | C95: -16 °C | D95: Hohenpeißenberg
A96: 83026 | B96: Aising | C96: -18 °C | D96: Hohenpeißenberg
A97: 89344 | B97: Aislingen | C97: -16 °C | D97: Augsburg
A98: 94330 | B98: Aiterhofen | C98: -18 °C | D98: Straubing
A99: 88319 | B99: Aitrach | C99: -16 °C | D99: Stuttgart | M99: Deutschland | BJ99: Wetterdaten dieser Städte kommen mir etwas zu mild vor, E-Kosten zu gering, daher für diese Städte vorerst Wetterdaten von Emden (auch recht mild) hinterlegt
A100: 78554 | B100: Aixheim | C100: -18 °C | D100: Stuttgart | M100: Außentemp | N100: Aachen | O100: Augsburg | P100: Bamberg | Q100: Berlin | R100: Bremen | S100: Dortmund | T100: Dresden | U100: Düsseldorf | V100: Emden | W100: Erfurt | X100: Frankfurt am Main | Y100: Fritzlar | Z100: Görlitz | AA100: Greifswald | AB100: Hamburg | AC100: Hannover | AD100: Hof | AE100: Hohenpeißenberg | AF100: Karlsruhe | AG100: Kempten | AH100: Konstanz | AI100: Leipzig | AJ100: Lindenberg | AK100: List auf Sylt | AL100: Magdeburg | AM100: Meiningen | AN100: München | AO100: Neuruppin | AP100: Nürburg-Barweiler | AQ100: Nürnberg | AR100: Potsdam | AS100: Rostock | AT100: Saarbrücken | AU100: Schleswig | AV100: Schwerin | AW100: Straubing | AX100: Stuttgart | AY100: Trier | AZ100: Westermakelsdorf | BA100: Würzburg | BJ100: Original | BK100: Original | BL100: Original | BM100: Original | BN100: Original
A101: 37671 | B101: Albaxen | C101: -12 °C | D101: Fritzlar | M101: °C | N101: h/a | O101: h/a | P101: h/a | Q101: h/a | R101: h/a | S101: h/a | T101: h/a | U101: h/a | V101: h/a | W101: h/a | X101: h/a | Y101: h/a | Z101: h/a | AA101: h/a | AB101: h/a | AC101: h/a | AD101: h/a | AE101: h/a | AF101: h/a | AG101: h/a | AH101: h/a | AI101: h/a | AJ101: h/a | AK101: h/a | AL101: h/a | AM101: h/a | AN101: h/a | AO101: h/a | AP101: h/a | AQ101: h/a | AR101: h/a | AS101: h/a | AT101: h/a | AU101: h/a | AV101: h/a | AW101: h/a | AX101: h/a | AY101: h/a | AZ101: h/a | BA101: h/a | BJ101: **Aachen** | BK101: **Dortmund** | BL101: **Düseldorf** | BM101: **Bremen** | BN101: **Westermakelsdorf**
A102: 79774 | B102: Albbruck | C102: -12 °C | D102: Stuttgart | M102: <-20 | N102: 0 | O102: 0 | P102: 0 | Q102: 0 | R102: 0 | S102: 0 | T102: 0 | U102: 0 | V102: 0 | W102: 0 | X102: 0 | Y102: 0 | Z102: 0 | AA102: 0 | AB102: 0 | AC102: 0 | AD102: 0 | AE102: 0 | AF102: 0 | AG102: 0 | AH102: 0 | AI102: 0 | AJ102: 0 | AK102: 0 | AL102: 0 | AM102: 0 | AN102: 0 | AO102: 0 | AP102: 0 | AQ102: 0 | AR102: 0 | AS102: 0 | AT102: 0 | AU102: 0 | AV102: 0 | AW102: 0 | AX102: 0 | AY102: 0 | AZ102: 0 | BA102: 0 | BJ102: 0 | BK102: 0 | BL102: 0 | BM102: 0 | BN102: 0
A103: 08280 | B103: Albernau | C103: -16 °C | D103: Meiningen | M103: -20 | N103: 0 | O103: 0 | P103: 0 | Q103: 0 | R103: 0 | S103: 0 | T103: 0 | U103: 0 | V103: 0 | W103: 0 | X103: 0 | Y103: 0 | Z103: 0 | AA103: 0 | AB103: 0 | AC103: 0 | AD103: 0 | AE103: 0 | AF103: 0 | AG103: 0 | AH103: 0 | AI103: 0 | AJ103: 0 | AK103: 0 | AL103: 0 | AM103: 0 | AN103: 0 | AO103: 0 | AP103: 0 | AQ103: 0 | AR103: 0 | AS103: 0 | AT103: 0 | AU103: 0 | AV103: 0 | AW103: 0 | AX103: 0 | AY103: 0 | AZ103: 0 | BA103: 0 | BJ103: 0 | BK103: 0 | BL103: 0 | BM103: 0 | BN103: 0
A104: 08280 | B104: Alberoda | C104: -16 °C | D104: Meiningen | M104: -19 | N104: 0 | O104: 0 | P104: 0 | Q104: 0 | R104: 0 | S104: 0 | T104: 0 | U104: 0 | V104: 0 | W104: 0 | X104: 0 | Y104: 0 | Z104: 0 | AA104: 0 | AB104: 0 | AC104: 0 | AD104: 0 | AE104: 0 | AF104: 0 | AG104: 0 | AH104: 0 | AI104: 0 | AJ104: 0 | AK104: 0 | AL104: 0 | AM104: 0 | AN104: 0 | AO104: 0 | AP104: 0 | AQ104: 0 | AR104: 0 | AS104: 0 | AT104: 0 | AU104: 0 | AV104: 0 | AW104: 0 | AX104: 0 | AY104: 0 | AZ104: 0 | BA104: 0 | BJ104: 0 | BK104: 0 | BL104: 0 | BM104: 0 | BN104: 0
A105: 04420 | B105: Albersdorf | C105: -14 °C | D105: Leipzig | M105: -18 | N105: 0 | O105: 0 | P105: 0 | Q105: 0 | R105: 0 | S105: 0 | T105: 0 | U105: 0 | V105: 0 | W105: 0 | X105: 0 | Y105: 0 | Z105: 0 | AA105: 0 | AB105: 0 | AC105: 0 | AD105: 0 | AE105: 0 | AF105: 0 | AG105: 0 | AH105: 0 | AI105: 0 | AJ105: 0 | AK105: 0 | AL105: 0 | AM105: 0 | AN105: 0 | AO105: 0 | AP105: 0 | AQ105: 0 | AR105: 0 | AS105: 0 | AT105: 0 | AU105: 0 | AV105: 0 | AW105: 0 | AX105: 0 | AY105: 0 | AZ105: 0 | BA105: 0 | BJ105: 0 | BK105: 0 | BL105: 0 | BM105: 0 | BN105: 0
A106: 25767 | B106: Albersdorf, Holst | C106: -12 °C | D106: Schleswig | M106: -17 | N106: 0 | O106: 0 | P106: 0 | Q106: 0 | R106: 0 | S106: 0 | T106: 0 | U106: 0 | V106: 0 | W106: 0 | X106: 0 | Y106: 0 | Z106: 3 | AA106: 0 | AB106: 0 | AC106: 0 | AD106: 0 | AE106: 0 | AF106: 0 | AG106: 0 | AH106: 0 | AI106: 0 | AJ106: 0 | AK106: 0 | AL106: 0 | AM106: 5 | AN106: 0 | AO106: 0 | AP106: 0 | AQ106: 0 | AR106: 0 | AS106: 0 | AT106: 0 | AU106: 0 | AV106: 0 | AW106: 0 | AX106: 0 | AY106: 0 | AZ106: 0 | BA106: 0 | BJ106: 0 | BK106: 0 | BL106: 0 | BM106: 0 | BN106: 0
A107: 73095 | B107: Albershausen | C107: -16 °C | D107: Stuttgart | M107: -16 | N107: 0 | O107: 0 | P107: 0 | Q107: 1 | R107: 0 | S107: 0 | T107: 0 | U107: 0 | V107: 0 | W107: 0 | X107: 0 | Y107: 0 | Z107: 4 | AA107: 0 | AB107: 0 | AC107: 0 | AD107: 0 | AE107: 0 | AF107: 0 | AG107: 4 | AH107: 0 | AI107: 0 | AJ107: 6 | AK107: 0 | AL107: 0 | AM107: 5 | AN107: 0 | AO107: 0 | AP107: 0 | AQ107: 0 | AR107: 0 | AS107: 0 | AT107: 0 | AU107: 0 | AV107: 0 | AW107: 1 | AX107: 0 | AY107: 0 | AZ107: 0 | BA107: 0 | BJ107: 0 | BK107: 0 | BL107: 0 | BM107: 0 | BN107: 0
A108: 76857 | B108: Albersweiler | C108: -12 °C | D108: Saarbrücken | M108: -15 | N108: 0 | O108: 1 | P108: 2 | Q108: 4 | R108: 0 | S108: 0 | T108: 0 | U108: 0 | V108: 0 | W108: 1 | X108: 0 | Y108: 0 | Z108: 7 | AA108: 0 | AB108: 0 | AC108: 0 | AD108: 0 | AE108: 11 | AF108: 0 | AG108: 5 | AH108: 0 | AI108: 5 | AJ108: 5 | AK108: 0 | AL108: 4 | AM108: 10 | AN108: 2 | AO108: 0 | AP108: 0 | AQ108: 0 | AR108: 5 | AS108: 0 | AT108: 0 | AU108: 0 | AV108: 0 | AW108: 7 | AX108: 0 | AY108: 0 | AZ108: 0 | BA108: 0 | BJ108: 0 | BK108: 0 | BL108: 0 | BM108: 0 | BN108: 0
A109: 88433 | B109: Alberweiler | C109: -16 °C | D109: Stuttgart | M109: -14 | N109: 0 | O109: 6 | P109: 7 | Q109: 8 | R109: 0 | S109: 0 | T109: 0 | U109: 0 | V109: 0 | W109: 4 | X109: 0 | Y109: 0 | Z109: 5 | AA109: 0 | AB109: 0 | AC109: 0 | AD109: 1 | AE109: 13 | AF109: 0 | AG109: 13 | AH109: 0 | AI109: 10 | AJ109: 10 | AK109: 0 | AL109: 9 | AM109: 17 | AN109: 5 | AO109: 0 | AP109: 0 | AQ109: 0 | AR109: 8 | AS109: 0 | AT109: 0 | AU109: 0 | AV109: 0 | AW109: 10 | AX109: 0 | AY109: 0 | AZ109: 0 | BA109: 0 | BJ109: 0 | BK109: 0 | BL109: 0 | BM109: 0 | BN109: 0
A110: 72458 | B110: Albstadt | C110: -18 °C | D110: Stuttgart | M110: -13 | N110: 0 | O110: 20 | P110: 8 | Q110: 7 | R110: 0 | S110: 0 | T110: 0 | U110: 0 | V110: 0 | W110: 3 | X110: 0 | Y110: 0 | Z110: 12 | AA110: 0 | AB110: 2 | AC110: 1 | AD110: 20 | AE110: 24 | AF110: 0 | AG110: 9 | AH110: 0 | AI110: 16 | AJ110: 11 | AK110: 0 | AL110: 7 | AM110: 11 | AN110: 11 | AO110: 0 | AP110: 1 | AQ110: 4 | AR110: 13 | AS110: 1 | AT110: 1 | AU110: 0 | AV110: 1 | AW110: 16 | AX110: 0 | AY110: 0 | AZ110: 0 | BA110: 0 | BJ110: 0 | BK110: 0 | BL110: 0 | BM110: 0 | BN110: 0
A111: 72461 | B111: Albstadt | C111: -18 °C | D111: Stuttgart | M111: -12 | N111: 0 | O111: 7 | P111: 11 | Q111: 8 | R111: 0 | S111: 0 | T111: 7 | U111: 0 | V111: 0 | W111: 7 | X111: 3 | Y111: 0 | Z111: 28 | AA111: 1 | AB111: 4 | AC111: 4 | AD111: 22 | AE111: 17 | AF111: 0 | AG111: 20 | AH111: 0 | AI111: 8 | AJ111: 16 | AK111: 0 | AL111: 9 | AM111: 19 | AN111: 24 | AO111: 4 | AP111: 3 | AQ111: 28 | AR111: 11 | AS111: 7 | AT111: 6 | AU111: 1 | AV111: 4 | AW111: 11 | AX111: 1 | AY111: 0 | AZ111: 0 | BA111: 5 | BJ111: 0 | BK111: 0 | BL111: 0 | BM111: 0 | BN111: 0
A112: 57258 | B112: Alchen | C112: -12 °C | D112: Nürburg-Barweiler | M112: -11 | N112: 1 | O112: 16 | P112: 6 | Q112: 6 | R112: 1 | S112: 1 | T112: 7 | U112: 1 | V112: 1 | W112: 7 | X112: 5 | Y112: 6 | Z112: 32 | AA112: 26 | AB112: 6 | AC112: 10 | AD112: 18 | AE112: 26 | AF112: 5 | AG112: 29 | AH112: 2 | AI112: 20 | AJ112: 17 | AK112: 0 | AL112: 21 | AM112: 32 | AN112: 16 | AO112: 8 | AP112: 7 | AQ112: 30 | AR112: 19 | AS112: 15 | AT112: 6 | AU112: 10 | AV112: 7 | AW112: 31 | AX112: 7 | AY112: 0 | AZ112: 1 | BA112: 15 | BJ112: 0 | BK112: 0 | BL112: 2 | BM112: 0 | BN112: 0
A113: 52457 | B113: Aldenhoven | C113: -12 °C | D113: Aachen | M113: -10 | N113: 16 | O113: 36 | P113: 25 | Q113: 28 | R113: 16 | S113: 16 | T113: 9 | U113: 16 | V113: 16 | W113: 17 | X113: 17 | Y113: 32 | Z113: 28 | AA113: 25 | AB113: 17 | AC113: 20 | AD113: 20 | AE113: 40 | AF113: 11 | AG113: 45 | AH113: 13 | AI113: 22 | AJ113: 34 | AK113: 0 | AL113: 42 | AM113: 25 | AN113: 31 | AO113: 18 | AP113: 11 | AQ113: 20 | AR113: 18 | AS113: 18 | AT113: 13 | AU113: 1 | AV113: 22 | AW113: 32 | AX113: 18 | AY113: 0 | AZ113: 16 | BA113: 26 | BJ113: 2 | BK113: 2 | BL113: 3 | BM113: 2 | BN113: 0
A114: 94501 | B114: Aldersbach | C114: -16 °C | D114: Straubing | M114: -9 | N114: 22 | O114: 49 | P114: 38 | Q114: 19 | R114: 22 | S114: 22 | T114: 27 | U114: 22 | V114: 22 | W114: 32 | X114: 12 | Y114: 14 | Z114: 27 | AA114: 43 | AB114: 20 | AC114: 9 | AD114: 16 | AE114: 54 | AF114: 6 | AG114: 61 | AH114: 19 | AI114: 30 | AJ114: 34 | AK114: 0 | AL114: 29 | AM114: 60 | AN114: 30 | AO114: 29 | AP114: 14 | AQ114: 22 | AR114: 24 | AS114: 27 | AT114: 10 | AU114: 14 | AV114: 23 | AW114: 32 | AX114: 8 | AY114: 23 | AZ114: 22 | BA114: 29 | BJ114: 5 | BK114: 9 | BL114: 7 | BM114: 7 | BN114: 0
A115: 78554 | B115: Aldingen | C115: -18 °C | D115: Stuttgart | M115: -8 | N115: 20 | O115: 42 | P115: 41 | Q115: 37 | R115: 20 | S115: 20 | T115: 45 | U115: 20 | V115: 20 | W115: 26 | X115: 16 | Y115: 23 | Z115: 59 | AA115: 20 | AB115: 41 | AC115: 37 | AD115: 53 | AE115: 105 | AF115: 39 | AG115: 54 | AH115: 29 | AI115: 26 | AJ115: 39 | AK115: 18 | AL115: 33 | AM115: 73 | AN115: 34 | AO115: 37 | AP115: 24 | AQ115: 32 | AR115: 44 | AS115: 20 | AT115: 31 | AU115: 20 | AV115: 30 | AW115: 51 | AX115: 22 | AY115: 29 | AZ115: 20 | BA115: 28 | BJ115: 10 | BK115: 9 | BL115: 8 | BM115: 15 | BN115: 0
A116: 86733 | B116: Alerheim | C116: -16 °C | D116: Augsburg | M116: -7 | N116: 20 | O116: 63 | P116: 74 | Q116: 54 | R116: 20 | S116: 20 | T116: 37 | U116: 20 | V116: 20 | W116: 38 | X116: 27 | Y116: 44 | Z116: 61 | AA116: 53 | AB116: 26 | AC116: 39 | AD116: 86 | AE116: 122 | AF116: 31 | AG116: 133 | AH116: 24 | AI116: 48 | AJ116: 54 | AK116: 20 | AL116: 61 | AM116: 112 | AN116: 50 | AO116: 29 | AP116: 26 | AQ116: 68 | AR116: 50 | AS116: 29 | AT116: 34 | AU116: 36 | AV116: 36 | AW116: 43 | AX116: 31 | AY116: 34 | AZ116: 20 | BA116: 50 | BJ116: 12 | BK116: 12 | BL116: 10 | BM116: 37 | BN116: 0
A117: 91793 | B117: Alesheim | C117: -16 °C | D117: Nürnberg | M117: -6 | N117: 39 | O117: 103 | P117: 98 | Q117: 56 | R117: 39 | S117: 39 | T117: 52 | U117: 39 | V117: 39 | W117: 45 | X117: 26 | Y117: 49 | Z117: 111 | AA117: 78 | AB117: 48 | AC117: 49 | AD117: 103 | AE117: 159 | AF117: 53 | AG117: 155 | AH117: 59 | AI117: 101 | AJ117: 118 | AK117: 40 | AL117: 70 | AM117: 134 | AN117: 102 | AO117: 61 | AP117: 56 | AQ117: 108 | AR117: 75 | AS117: 66 | AT117: 49 | AU117: 44 | AV117: 41 | AW117: 77 | AX117: 34 | AY117: 37 | AZ117: 39 | BA117: 56 | BJ117: 32 | BK117: 27 | BL117: 24 | BM117: 44 | BN117: 1
A118: 73553 | B118: Alfdorf | C118: -16 °C | D118: Stuttgart | M118: -5 | N118: 44 | O118: 148 | P118: 126 | Q118: 107 | R118: 44 | S118: 44 | T118: 68 | U118: 44 | V118: 44 | W118: 85 | X118: 56 | Y118: 41 | Z118: 117 | AA118: 95 | AB118: 67 | AC118: 108 | AD118: 128 | AE118: 215 | AF118: 73 | AG118: 154 | AH118: 55 | AI118: 130 | AJ118: 169 | AK118: 53 | AL118: 100 | AM118: 134 | AN118: 151 | AO118: 59 | AP118: 113 | AQ118: 149 | AR118: 126 | AS118: 90 | AT118: 98 | AU118: 55 | AV118: 75 | AW118: 147 | AX118: 70 | AY118: 44 | AZ118: 44 | BA118: 100 | BJ118: 32 | BK118: 26 | BL118: 32 | BM118: 38 | BN118: 45
A119: 31061 | B119: Alfeld | C119: -16 °C | D119: Hannover | M119: -4 | N119: 118 | O119: 187 | P119: 214 | Q119: 155 | R119: 118 | S119: 118 | T119: 109 | U119: 118 | V119: 118 | W119: 133 | X119: 100 | Y119: 89 | Z119: 168 | AA119: 116 | AB119: 119 | AC119: 114 | AD119: 149 | AE119: 210 | AF119: 66 | AG119: 183 | AH119: 137 | AI119: 137 | AJ119: 142 | AK119: 99 | AL119: 179 | AM119: 206 | AN119: 183 | AO119: 123 | AP119: 155 | AQ119: 149 | AR119: 165 | AS119: 90 | AT119: 127 | AU119: 75 | AV119: 106 | AW119: 168 | AX119: 87 | AY119: 104 | AZ119: 118 | BA119: 159 | BJ119: 47 | BK119: 41 | BL119: 50 | BM119: 47 | BN119: 32
A120: 91236 | B120: Alfeld | C120: -16 °C | D120: Nürnberg | M120: -3 | N120: 108 | O120: 231 | P120: 231 | Q120: 219 | R120: 108 | S120: 108 | T120: 153 | U120: 108 | V120: 108 | W120: 163 | X120: 190 | Y120: 161 | Z120: 213 | AA120: 147 | AB120: 175 | AC120: 190 | AD120: 189 | AE120: 220 | AF120: 124 | AG120: 248 | AH120: 222 | AI120: 187 | AJ120: 186 | AK120: 157 | AL120: 209 | AM120: 240 | AN120: 184 | AO120: 120 | AP120: 179 | AQ120: 193 | AR120: 221 | AS120: 164 | AT120: 184 | AU120: 148 | AV120: 144 | AW120: 255 | AX120: 135 | AY120: 197 | AZ120: 108 | BA120: 184 | BJ120: 97 | BK120: 88 | BL120: 113 | BM120: 110 | BN120: 62
A121: 91177 | B121: Alfershausen | C121: -16 °C | D121: Nürnberg | M121: -2 | N121: 184 | O121: 226 | P121: 262 | Q121: 224 | R121: 184 | S121: 184 | T121: 219 | U121: 184 | V121: 184 | W121: 202 | X121: 185 | Y121: 207 | Z121: 225 | AA121: 225 | AB121: 185 | AC121: 216 | AD121: 279 | AE121: 262 | AF121: 169 | AG121: 261 | AH121: 257 | AI121: 249 | AJ121: 264 | AK121: 186 | AL121: 229 | AM121: 304 | AN121: 217 | AO121: 223 | AP121: 205 | AQ121: 240 | AR121: 249 | AS121: 184 | AT121: 183 | AU121: 179 | AV121: 176 | AW121: 228 | AX121: 191 | AY121: 191 | AZ121: 184 | BA121: 234 | BJ121: 88 | BK121: 116 | BL121: 120 | BM121: 186 | BN121: 124
A122: 49594 | B122: Alfhausen | C122: -12 °C | D122: Hannover | M122: -1 | N122: 248 | O122: 273 | P122: 235 | Q122: 288 | R122: 248 | S122: 248 | T122: 261 | U122: 248 | V122: 248 | W122: 205 | X122: 248 | Y122: 248 | Z122: 302 | AA122: 251 | AB122: 263 | AC122: 231 | AD122: 272 | AE122: 316 | AF122: 247 | AG122: 283 | AH122: 253 | AI122: 299 | AJ122: 266 | AK122: 222 | AL122: 272 | AM122: 362 | AN122: 257 | AO122: 285 | AP122: 266 | AQ122: 304 | AR122: 290 | AS122: 299 | AT122: 233 | AU122: 259 | AV122: 220 | AW122: 280 | AX122: 226 | AY122: 240 | AZ122: 248 | BA122: 282 | BJ122: 174 | BK122: 159 | BL122: 154 | BM122: 192 | BN122: 198
A123: 53347 | B123: Alfter | C123: -12 °C | D123: Nürburg-Barweiler | M123: 0 | N123: 224 | O123: 240 | P123: 263 | Q123: 271 | R123: 224 | S123: 224 | T123: 271 | U123: 224 | V123: 224 | W123: 243 | X123: 243 | Y123: 263 | Z123: 308 | AA123: 288 | AB123: 294 | AC123: 262 | AD123: 296 | AE123: 291 | AF123: 259 | AG123: 242 | AH123: 258 | AI123: 236 | AJ123: 289 | AK123: 281 | AL123: 224 | AM123: 304 | AN123: 272 | AO123: 272 | AP123: 250 | AQ123: 263 | AR123: 249 | AS123: 265 | AT123: 212 | AU123: 248 | AV123: 291 | AW123: 284 | AX123: 208 | AY123: 244 | AZ123: 224 | BA123: 256 | BJ123: 165 | BK123: 195 | BL123: 233 | BM123: 216 | BN123: 228
A124: 99310 | B124: Alkersleben | C124: -14 °C | D124: Erfurt | M124: 1 | N124: 310 | O124: 307 | P124: 352 | Q124: 341 | R124: 310 | S124: 310 | T124: 298 | U124: 310 | V124: 310 | W124: 310 | X124: 291 | Y124: 270 | Z124: 305 | AA124: 480 | AB124: 333 | AC124: 300 | AD124: 412 | AE124: 340 | AF124: 274 | AG124: 305 | AH124: 375 | AI124: 276 | AJ124: 326 | AK124: 380 | AL124: 294 | AM124: 296 | AN124: 296 | AO124: 420 | AP124: 360 | AQ124: 330 | AR124: 303 | AS124: 360 | AT124: 277 | AU124: 349 | AV124: 319 | AW124: 303 | AX124: 246 | AY124: 300 | AZ124: 310 | BA124: 311 | BJ124: 242 | BK124: 228 | BL124: 254 | BM124: 264 | BN124: 325
A125: 59846 | B125: Allendorf | C125: -14 °C | D125: Nürburg-Barweiler | M125: 2 | N125: 380 | O125: 308 | P125: 300 | Q125: 300 | R125: 380 | S125: 380 | T125: 356 | U125: 380 | V125: 380 | W125: 358 | X125: 298 | Y125: 328 | Z125: 342 | AA125: 415 | AB125: 399 | AC125: 328 | AD125: 377 | AE125: 350 | AF125: 310 | AG125: 330 | AH125: 322 | AI125: 271 | AJ125: 350 | AK125: 448 | AL125: 311 | AM125: 321 | AN125: 334 | AO125: 397 | AP125: 373 | AQ125: 390 | AR125: 311 | AS125: 405 | AT125: 296 | AU125: 399 | AV125: 383 | AW125: 352 | AX125: 284 | AY125: 350 | AZ125: 380 | BA125: 312 | BJ125: 339 | BK125: 245 | BL125: 268 | BM125: 304 | BN125: 435
A126: 35108 | B126: Allendorf/Eder | C126: -14 °C | D126: Fritzlar | M126: 3 | N126: 358 | O126: 324 | P126: 329 | Q126: 309 | R126: 358 | S126: 358 | T126: 291 | U126: 358 | V126: 358 | W126: 329 | X126: 326 | Y126: 344 | Z126: 373 | AA126: 421 | AB126: 361 | AC126: 323 | AD126: 431 | AE126: 373 | AF126: 305 | AG126: 383 | AH126: 346 | AI126: 358 | AJ126: 335 | AK126: 414 | AL126: 333 | AM126: 370 | AN126: 315 | AO126: 361 | AP126: 364 | AQ126: 336 | AR126: 311 | AS126: 405 | AT126: 336 | AU126: 436 | AV126: 432 | AW126: 347 | AX126: 304 | AY126: 390 | AZ126: 358 | BA126: 389 | BJ126: 318 | BK126: 297 | BL126: 295 | BM126: 326 | BN126: 480
A127: 90584 | B127: Allersberg | C127: -16 °C | D127: Nürnberg | M127: 4 | N127: 391 | O127: 360 | P127: 375 | Q127: 327 | R127: 391 | S127: 391 | T127: 318 | U127: 391 | V127: 391 | W127: 362 | X127: 344 | Y127: 343 | Z127: 306 | AA127: 379 | AB127: 387 | AC127: 320 | AD127: 461 | AE127: 427 | AF127: 279 | AG127: 403 | AH127: 362 | AI127: 379 | AJ127: 379 | AK127: 441 | AL127: 360 | AM127: 403 | AN127: 371 | AO127: 366 | AP127: 379 | AQ127: 322 | AR127: 316 | AS127: 359 | AT127: 340 | AU127: 417 | AV127: 390 | AW127: 338 | AX127: 313 | AY127: 367 | AZ127: 391 | BA127: 378 | BJ127: 335 | BK127: 378 | BL127: 283 | BM127: 397 | BN127: 513
A128: 88422 | B128: Alleshausen | C128: -16 °C | D128: Stuttgart | M128: 5 | N128: 399 | O128: 338 | P128: 335 | Q128: 381 | R128: 399 | S128: 399 | T128: 378 | U128: 399 | V128: 399 | W128: 413 | X128: 343 | Y128: 414 | Z128: 336 | AA128: 373 | AB128: 399 | AC128: 401 | AD128: 387 | AE128: 397 | AF128: 345 | AG128: 394 | AH128: 380 | AI128: 396 | AJ128: 348 | AK128: 525 | AL128: 413 | AM128: 419 | AN128: 341 | AO128: 330 | AP128: 435 | AQ128: 320 | AR128: 394 | AS128: 369 | AT128: 367 | AU128: 385 | AV128: 388 | AW128: 327 | AX128: 378 | AY128: 384 | AZ128: 399 | BA128: 379 | BJ128: 344 | BK128: 402 | BL128: 338 | BM128: 381 | BN128: 462
A129: 82239 | B129: Alling | C129: -16 °C | D129: Kempten | M129: 6 | N129: 412 | O129: 330 | P129: 298 | Q129: 386 | R129: 412 | S129: 412 | T129: 345 | U129: 412 | V129: 412 | W129: 380 | X129: 418 | Y129: 397 | Z129: 374 | AA129: 386 | AB129: 424 | AC129: 454 | AD129: 391 | AE129: 391 | AF129: 403 | AG129: 390 | AH129: 338 | AI129: 375 | AJ129: 372 | AK129: 434 | AL129: 367 | AM129: 368 | AN129: 312 | AO129: 334 | AP129: 404 | AQ129: 342 | AR129: 392 | AS129: 410 | AT129: 468 | AU129: 388 | AV129: 357 | AW129: 344 | AX129: 414 | AY129: 477 | AZ129: 412 | BA129: 335 | BJ129: 366 | BK129: 372 | BL129: 408 | BM129: 415 | BN129: 468
A130: 78464 | B130: Allmannsdorf | C130: -12 °C | D130: Konstanz | M130: 7 | N130: 445 | O130: 353 | P130: 307 | Q130: 353 | R130: 445 | S130: 445 | T130: 305 | U130: 445 | V130: 445 | W130: 404 | X130: 438 | Y130: 406 | Z130: 355 | AA130: 344 | AB130: 359 | AC130: 357 | AD130: 398 | AE130: 386 | AF130: 377 | AG130: 405 | AH130: 382 | AI130: 376 | AJ130: 321 | AK130: 407 | AL130: 354 | AM130: 322 | AN130: 310 | AO130: 341 | AP130: 391 | AQ130: 364 | AR130: 366 | AS130: 444 | AT130: 443 | AU130: 382 | AV130: 399 | AW130: 293 | AX130: 399 | AY130: 398 | AZ130: 445 | BA130: 372 | BJ130: 438 | BK130: 384 | BL130: 450 | BM130: 454 | BN130: 386
A131: 77963 | B131: Allmannsweier | C131: -12 °C | D131: Karlsruhe | M131: 8 | N131: 413 | O131: 352 | P131: 354 | Q131: 327 | R131: 413 | S131: 413 | T131: 287 | U131: 413 | V131: 413 | W131: 392 | X131: 419 | Y131: 378 | Z131: 382 | AA131: 337 | AB131: 378 | AC131: 428 | AD131: 349 | AE131: 389 | AF131: 357 | AG131: 392 | AH131: 354 | AI131: 380 | AJ131: 315 | AK131: 377 | AL131: 344 | AM131: 345 | AN131: 312 | AO131: 346 | AP131: 418 | AQ131: 328 | AR131: 392 | AS131: 398 | AT131: 418 | AU131: 434 | AV131: 379 | AW131: 322 | AX131: 358 | AY131: 368 | AZ131: 413 | BA131: 363 | BJ131: 490 | BK131: 437 | BL131: 472 | BM131: 454 | BN131: 395
A132: 89604 | B132: Allmendingen | C132: -14 °C | D132: Augsburg | M132: 9 | N132: 433 | O132: 314 | P132: 330 | Q132: 349 | R132: 433 | S132: 433 | T132: 336 | U132: 433 | V132: 433 | W132: 393 | X132: 361 | Y132: 409 | Z132: 336 | AA132: 320 | AB132: 379 | AC132: 460 | AD132: 352 | AE132: 378 | AF132: 369 | AG132: 415 | AH132: 322 | AI132: 344 | AJ132: 327 | AK132: 410 | AL132: 386 | AM132: 344 | AN132: 321 | AO132: 362 | AP132: 463 | AQ132: 336 | AR132: 325 | AS132: 356 | AT132: 414 | AU132: 396 | AV132: 432 | AW132: 320 | AX132: 322 | AY132: 410 | AZ132: 433 | BA132: 311 | BJ132: 419 | BK132: 404 | BL132: 425 | BM132: 393 | BN132: 363
A133: 71573 | B133: Allmersbach im Tal | C133: -14 °C | D133: Stuttgart | M133: 10 | N133: 501 | O133: 343 | P133: 384 | Q133: 341 | R133: 501 | S133: 501 | T133: 360 | U133: 501 | V133: 501 | W133: 385 | X133: 393 | Y133: 375 | Z133: 342 | AA133: 344 | AB133: 402 | AC133: 391 | AD133: 351 | AE133: 391 | AF133: 374 | AG133: 413 | AH133: 379 | AI133: 316 | AJ133: 341 | AK133: 397 | AL133: 360 | AM133: 371 | AN133: 316 | AO133: 360 | AP133: 437 | AQ133: 322 | AR133: 322 | AS133: 400 | AT133: 408 | AU133: 425 | AV133: 389 | AW133: 301 | AX133: 328 | AY133: 407 | AZ133: 501 | BA133: 315 | BJ133: 415 | BK133: 355 | BL133: 428 | BM133: 393 | BN133: 337
A134: 06507 | B134: Allrode / Harz | C134: -16 °C | D134: Leipzig | M134: 11 | N134: 449 | O134: 356 | P134: 316 | Q134: 318 | R134: 449 | S134: 449 | T134: 333 | U134: 449 | V134: 449 | W134: 349 | X134: 402 | Y134: 420 | Z134: 363 | AA134: 397 | AB134: 426 | AC134: 444 | AD134: 367 | AE134: 333 | AF134: 373 | AG134: 395 | AH134: 368 | AI134: 354 | AJ134: 347 | AK134: 425 | AL134: 371 | AM134: 351 | AN134: 335 | AO134: 344 | AP134: 367 | AQ134: 323 | AR134: 342 | AS134: 363 | AT134: 413 | AU134: 379 | AV134: 375 | AW134: 324 | AX134: 364 | AY134: 390 | AZ134: 449 | BA134: 371 | BJ134: 419 | BK134: 452 | BL134: 450 | BM134: 398 | BN134: 380
A135: 06542 | B135: Allstedt | C135: -14 °C | D135: Leipzig | M135: 12 | N135: 408 | O135: 352 | P135: 339 | Q135: 312 | R135: 408 | S135: 408 | T135: 361 | U135: 408 | V135: 408 | W135: 343 | X135: 378 | Y135: 378 | Z135: 355 | AA135: 436 | AB135: 374 | AC135: 349 | AD135: 373 | AE135: 349 | AF135: 376 | AG135: 329 | AH135: 342 | AI135: 353 | AJ135: 324 | AK135: 483 | AL135: 338 | AM135: 368 | AN135: 330 | AO135: 343 | AP135: 374 | AQ135: 298 | AR135: 307 | AS135: 366 | AT135: 407 | AU135: 358 | AV135: 328 | AW135: 332 | AX135: 346 | AY135: 392 | AZ135: 408 | BA135: 333 | BJ135: 431 | BK135: 420 | BL135: 427 | BM135: 438 | BN135: 376
A136: 31079 | B136: Almstedt | C136: -16 °C | D136: Hannover | M136: 13 | N136: 383 | O136: 333 | P136: 328 | Q136: 290 | R136: 383 | S136: 383 | T136: 338 | U136: 383 | V136: 383 | W136: 363 | X136: 349 | Y136: 349 | Z136: 327 | AA136: 410 | AB136: 359 | AC136: 391 | AD136: 335 | AE136: 356 | AF136: 360 | AG136: 316 | AH136: 359 | AI136: 323 | AJ136: 327 | AK136: 404 | AL136: 310 | AM136: 370 | AN136: 391 | AO136: 342 | AP136: 398 | AQ136: 372 | AR136: 350 | AS136: 372 | AT136: 348 | AU136: 394 | AV136: 327 | AW136: 358 | AX136: 300 | AY136: 388 | AZ136: 383 | BA136: 353 | BJ136: 416 | BK136: 399 | BL136: 383 | BM136: 403 | BN136: 417
A137: 46519 | B137: Alpen | C137: -10 °C | D137: Düsseldorf | M137: 14 | N137: 425 | O137: 350 | P137: 328 | Q137: 317 | R137: 425 | S137: 425 | T137: 367 | U137: 425 | V137: 425 | W137: 409 | X137: 332 | Y137: 370 | Z137: 316 | AA137: 408 | AB137: 377 | AC137: 353 | AD137: 304 | AE137: 358 | AF137: 376 | AG137: 287 | AH137: 355 | AI137: 327 | AJ137: 296 | AK137: 387 | AL137: 355 | AM137: 351 | AN137: 406 | AO137: 351 | AP137: 376 | AQ137: 379 | AR137: 323 | AS137: 363 | AT137: 325 | AU137: 396 | AV137: 311 | AW137: 329 | AX137: 366 | AY137: 387 | AZ137: 425 | BA137: 329 | BJ137: 400 | BK137: 354 | BL137: 362 | BM137: 387 | BN137: 445
A138: 46519 | B138: Alpen-Bönninghardt | C138: -10 °C | D138: Düsseldorf | M138: 15 | N138: 357 | O138: 315 | P138: 325 | Q138: 340 | R138: 357 | S138: 357 | T138: 339 | U138: 357 | V138: 357 | W138: 335 | X138: 302 | Y138: 333 | Z138: 342 | AA138: 381 | AB138: 350 | AC138: 325 | AD138: 303 | AE138: 283 | AF138: 368 | AG138: 281 | AH138: 355 | AI138: 336 | AJ138: 334 | AK138: 441 | AL138: 325 | AM138: 312 | AN138: 365 | AO138: 341 | AP138: 320 | AQ138: 306 | AR138: 296 | AS138: 346 | AT138: 332 | AU138: 334 | AV138: 324 | AW138: 295 | AX138: 333 | AY138: 356 | AZ138: 357 | BA138: 346 | BJ138: 368 | BK138: 412 | BL138: 337 | BM138: 393 | BN138: 446
A139: 99195 | B139: Alperstedt | C139: -14 °C | D139: Erfurt | M139: 16 | N139: 318 | O139: 300 | P139: 297 | Q139: 303 | R139: 318 | S139: 318 | T139: 338 | U139: 318 | V139: 318 | W139: 314 | X139: 334 | Y139: 310 | Z139: 335 | AA139: 353 | AB139: 345 | AC139: 292 | AD139: 275 | AE139: 226 | AF139: 321 | AG139: 235 | AH139: 314 | AI139: 309 | AJ139: 277 | AK139: 378 | AL139: 302 | AM139: 267 | AN139: 309 | AO139: 331 | AP139: 327 | AQ139: 292 | AR139: 297 | AS139: 321 | AT139: 312 | AU139: 339 | AV139: 317 | AW139: 328 | AX139: 350 | AY139: 335 | AZ139: 318 | BA139: 323 | BJ139: 402 | BK139: 384 | BL139: 362 | BM139: 370 | BN139: 431
A140: 72275 | B140: Alpirsbach | C140: -16 °C | D140: Stuttgart | M140: 17 | N140: 290 | O140: 286 | P140: 277 | Q140: 279 | R140: 290 | S140: 290 | T140: 308 | U140: 290 | V140: 290 | W140: 313 | X140: 290 | Y140: 322 | Z140: 281 | AA140: 293 | AB140: 280 | AC140: 318 | AD140: 254 | AE140: 183 | AF140: 348 | AG140: 237 | AH140: 296 | AI140: 261 | AJ140: 274 | AK140: 312 | AL140: 260 | AM140: 249 | AN140: 312 | AO140: 326 | AP140: 279 | AQ140: 268 | AR140: 263 | AS140: 327 | AT140: 301 | AU140: 300 | AV140: 302 | AW140: 306 | AX140: 323 | AY140: 311 | AZ140: 290 | BA140: 281 | BJ140: 405 | BK140: 327 | BL140: 354 | BM140: 356 | BN140: 340
A141: 52477 | B141: Alsdorf/Rheinl. | C141: -12 °C | D141: Aachen | M141: 18 | N141: 270 | O141: 254 | P141: 248 | Q141: 301 | R141: 270 | S141: 270 | T141: 306 | U141: 270 | V141: 270 | W141: 239 | X141: 267 | Y141: 280 | Z141: 256 | AA141: 224 | AB141: 242 | AC141: 279 | AD141: 211 | AE141: 178 | AF141: 284 | AG141: 213 | AH141: 268 | AI141: 254 | AJ141: 244 | AK141: 207 | AL141: 250 | AM141: 192 | AN141: 274 | AO141: 288 | AP141: 216 | AQ141: 261 | AR141: 261 | AS141: 257 | AT141: 263 | AU141: 255 | AV141: 296 | AW141: 264 | AX141: 296 | AY141: 233 | AZ141: 270 | BA141: 268 | BJ141: 380 | BK141: 294 | BL141: 335 | BM141: 333 | BN141: 280
A142: 67722 | B142: Alsenbrück | C142: -12 °C | D142: Saarbrücken | M142: 19 | N142: 189 | O142: 224 | P142: 249 | Q142: 255 | R142: 189 | S142: 189 | T142: 282 | U142: 189 | V142: 189 | W142: 221 | X142: 247 | Y142: 217 | Z142: 224 | AA142: 204 | AB142: 217 | AC142: 213 | AD142: 200 | AE142: 159 | AF142: 265 | AG142: 173 | AH142: 270 | AI142: 223 | AJ142: 221 | AK142: 137 | AL142: 232 | AM142: 158 | AN142: 250 | AO142: 285 | AP142: 181 | AQ142: 244 | AR142: 242 | AS142: 201 | AT142: 187 | AU142: 214 | AV142: 278 | AW142: 283 | AX142: 278 | AY142: 181 | AZ142: 189 | BA142: 245 | BJ142: 288 | BK142: 290 | BL142: 286 | BM142: 247 | BN142: 238
A143: 36304 | B143: Alsfeld | C143: -14 °C | D143: Fritzlar | M143: 20 | N143: 166 | O143: 200 | P143: 211 | Q143: 222 | R143: 166 | S143: 166 | T143: 255 | U143: 166 | V143: 166 | W143: 231 | X143: 207 | Y143: 196 | Z143: 194 | AA143: 150 | AB143: 162 | AC143: 186 | AD143: 186 | AE143: 128 | AF143: 265 | AG143: 142 | AH143: 197 | AI143: 202 | AJ143: 211 | AK143: 103 | AL143: 206 | AM143: 142 | AN143: 226 | AO143: 196 | AP143: 137 | AQ143: 195 | AR143: 226 | AS143: 182 | AT143: 175 | AU143: 220 | AV143: 226 | AW143: 247 | AX143: 273 | AY143: 153 | AZ143: 166 | BA143: 208 | BJ143: 203 | BK143: 272 | BL143: 236 | BM143: 163 | BN143: 223
A144: 67577 | B144: Alsheim | C144: -12 °C | D144: Saarbrücken | M144: >20 | N144: 419 | O144: 813 | P144: 837 | Q144: 917 | R144: 419 | S144: 419 | T144: 994 | U144: 419 | V144: 419 | W144: 706 | X144: 893 | Y144: 744 | Z144: 606 | AA144: 337 | AB144: 540 | AC144: 558 | AD144: 391 | AE144: 300 | AF144: 948 | AG144: 423 | AH144: 748 | AI144: 823 | AJ144: 831 | AK144: 174 | AL144: 791 | AM144: 388 | AN144: 765 | AO144: 728 | AP144: 451 | AQ144: 822 | AR144: 854 | AS144: 481 | AT144: 743 | AU144: 470 | AV144: 632 | AW144: 774 | AX144: 1147 | AY144: 640 | AZ144: 419 | BA144: 814 | BJ144: 678 | BK144: 970 | BL144: 851 | BM144: 597 | BN144: 330
A145: 57515 | B145: Alsting (Frankreich) | C145: -12 °C | D145: Nürburg-Barweiler
A146: 19303 | B146: Alt Jabel | C146: -12 °C | D146: Schwerin
A147: 18236 | B147: Alt Karin | C147: -10 °C | D147: Rostock
A148: 75365 | B148: Altburg | C148: -16 °C | D148: Stuttgart
A149: 75365 | B149: Altburg | C149: -16 °C | D149: Stuttgart | M149: Österreich
A150: 03229 | B150: Altdöbern | C150: -16 °C | D150: Lindenberg | M150: Außentemp | N150: Amstetten | O150: Ansfelden | P150: Bad Ischl | Q150: Baden bei Wien | R150: Bludenz | S150: Braunau am Inn | T150: Bregenz | U150: Bruck an der Mur | V150: Dornbirn | W150: Feldkirch | X150: Feldkirchen in Kärnten | Y150: Gmunden | Z150: Graz | AA150: Hallein | AB150: Hohenems | AC150: Innsbruck | AD150: Kapfenberg | AE150: Klagenfurt (Wörthersee) | AF150: Klosterneuburg | AG150: Krems an der Donau | AH150: Kufstein | AI150: Leoben | AJ150: Leonding | AK150: Linz | AL150: Lustenau | AM150: Mödling | AN150: Perchtoldsdorf | AO150: Saalfelden/Steinernes Meer | AP150: Salzburg | AQ150: Sankt Pölten | AR150: Schwaz | AS150: Schwechat | AT150: Spittal an der Drau | AU150: Steyr | AV150: Stockerau | AW150: Telfs | AX150: Ternitz | AY150: Traiskirchen | AZ150: Traun | BA150: Tulln an der Donau | BB150: Villach | BC150: Wels | BD150: Wien | BE150: Wiener Neustadt | BF150: Wolfsberg (Kärnten)
A151: 77955 | B151: Altdorf | C151: -12 °C | D151: Karlsruhe | M151: °C | N151: h/a | O151: h/a | P151: h/a | Q151: h/a | R151: h/a | S151: h/a | T151: h/a | U151: h/a | V151: h/a | W151: h/a | X151: h/a | Y151: h/a | Z151: h/a | AA151: h/a | AB151: h/a | AC151: h/a | AD151: h/a | AE151: h/a | AF151: h/a | AG151: h/a | AH151: h/a | AI151: h/a | AJ151: h/a | AK151: h/a | AL151: h/a | AM151: h/a | AN151: h/a | AO151: h/a | AP151: h/a | AQ151: h/a | AR151: h/a | AS151: h/a | AT151: h/a | AU151: h/a | AV151: h/a | AW151: h/a | AX151: h/a | AY151: h/a | AZ151: h/a | BA151: h/a | BB151: h/a | BC151: h/a | BD151: h/a | BE151: h/a | BF151: h/a
A152: 90518 | B152: Altdorf | C152: -16 °C | D152: Nürnberg | M152: <-20 | N152: 0 | O152: 0 | P152: 0 | Q152: 0 | R152: 0 | S152: 0 | T152: 0 | U152: 0 | V152: 0 | W152: 0 | X152: 0 | Y152: 0 | Z152: 0 | AA152: 0 | AB152: 0 | AC152: 0 | AD152: 0 | AE152: 0 | AF152: 0 | AG152: 0 | AH152: 0 | AI152: 0 | AJ152: 0 | AK152: 0 | AL152: 0 | AM152: 0 | AN152: 0 | AO152: 0 | AP152: 0 | AQ152: 0 | AR152: 0 | AS152: 0 | AT152: 0 | AU152: 0 | AV152: 0 | AW152: 0 | AX152: 0 | AY152: 0 | AZ152: 0 | BA152: 0 | BB152: 0 | BC152: 0 | BD152: 0 | BE152: 0 | BF152: 0
A153: 84032 | B153: Altdorf | C153: -16 °C | D153: Straubing | M153: -20 | N153: 0 | O153: 0 | P153: 0 | Q153: 0 | R153: 0 | S153: 0 | T153: 0 | U153: 0 | V153: 0 | W153: 0 | X153: 0 | Y153: 0 | Z153: 0 | AA153: 0 | AB153: 0 | AC153: 0 | AD153: 0 | AE153: 0 | AF153: 0 | AG153: 0 | AH153: 0 | AI153: 0 | AJ153: 0 | AK153: 0 | AL153: 0 | AM153: 0 | AN153: 0 | AO153: 0 | AP153: 0 | AQ153: 0 | AR153: 0 | AS153: 0 | AT153: 0 | AU153: 0 | AV153: 0 | AW153: 0 | AX153: 0 | AY153: 0 | AZ153: 0 | BA153: 0 | BB153: 0 | BC153: 0 | BD153: 0 | BE153: 0 | BF153: 0
A154: 71155 | B154: Altdorf | C154: -16 °C | D154: Stuttgart | M154: -19 | N154: 0 | O154: 0 | P154: 0 | Q154: 0 | R154: 0 | S154: 0 | T154: 0 | U154: 0 | V154: 0 | W154: 0 | X154: 0 | Y154: 0 | Z154: 0 | AA154: 0 | AB154: 0 | AC154: 0 | AD154: 0 | AE154: 0 | AF154: 0 | AG154: 0 | AH154: 0 | AI154: 0 | AJ154: 0 | AK154: 0 | AL154: 0 | AM154: 0 | AN154: 0 | AO154: 0 | AP154: 0 | AQ154: 0 | AR154: 0 | AS154: 0 | AT154: 0 | AU154: 0 | AV154: 0 | AW154: 0 | AX154: 0 | AY154: 0 | AZ154: 0 | BA154: 0 | BB154: 0 | BC154: 0 | BD154: 0 | BE154: 0 | BF154: 0
A155: 72655 | B155: Altdorf | C155: -16 °C | D155: Stuttgart | M155: -18 | N155: 0 | O155: 0 | P155: 0 | Q155: 0 | R155: 0 | S155: 0 | T155: 0 | U155: 0 | V155: 0 | W155: 0 | X155: 0 | Y155: 0 | Z155: 0 | AA155: 0 | AB155: 0 | AC155: 0 | AD155: 0 | AE155: 0 | AF155: 0 | AG155: 0 | AH155: 0 | AI155: 0 | AJ155: 0 | AK155: 0 | AL155: 0 | AM155: 0 | AN155: 0 | AO155: 0 | AP155: 0 | AQ155: 0 | AR155: 0 | AS155: 0 | AT155: 0 | AU155: 0 | AV155: 0 | AW155: 0 | AX155: 0 | AY155: 0 | AZ155: 0 | BA155: 0 | BB155: 0 | BC155: 0 | BD155: 0 | BE155: 0 | BF155: 0
A156: 83549 | B156: Alteiselfing | C156: -16 °C | D156: Hohenpeißenberg | M156: -17 | N156: 2 | O156: 0 | P156: 2 | Q156: 0 | R156: 0 | S156: 0 | T156: 0 | U156: 0 | V156: 0 | W156: 0 | X156: 0 | Y156: 0 | Z156: 0 | AA156: 4 | AB156: 0 | AC156: 0 | AD156: 0 | AE156: 0 | AF156: 0 | AG156: 0 | AH156: 0 | AI156: 0 | AJ156: 0 | AK156: 0 | AL156: 0 | AM156: 0 | AN156: 0 | AO156: 0 | AP156: 0 | AQ156: 0 | AR156: 0 | AS156: 0 | AT156: 0 | AU156: 0 | AV156: 0 | AW156: 0 | AX156: 0 | AY156: 0 | AZ156: 0 | BA156: 0 | BB156: 0 | BC156: 0 | BD156: 0 | BE156: 0 | BF156: 0
A157: 58762 | B157: Altena / Westf. | C157: -12 °C | D157: Nürburg-Barweiler | M157: -16 | N157: 5 | O157: 0 | P157: 10 | Q157: 0 | R157: 0 | S157: 0 | T157: 0 | U157: 0 | V157: 0 | W157: 0 | X157: 0 | Y157: 0 | Z157: 0 | AA157: 19 | AB157: 0 | AC157: 0 | AD157: 0 | AE157: 2 | AF157: 0 | AG157: 0 | AH157: 0 | AI157: 0 | AJ157: 0 | AK157: 0 | AL157: 0 | AM157: 0 | AN157: 0 | AO157: 13 | AP157: 4 | AQ157: 0 | AR157: 1 | AS157: 0 | AT157: 0 | AU157: 0 | AV157: 0 | AW157: 0 | AX157: 0 | AY157: 0 | AZ157: 0 | BA157: 0 | BB157: 0 | BC157: 0 | BD157: 0 | BE157: 0 | BF157: 2
A158: 53505 | B158: Altenahr | C158: -14 °C | D158: Nürburg-Barweiler | M158: -15 | N158: 9 | O158: 0 | P158: 5 | Q158: 0 | R158: 0 | S158: 4 | T158: 0 | U158: 3 | V158: 0 | W158: 0 | X158: 0 | Y158: 0 | Z158: 0 | AA158: 17 | AB158: 0 | AC158: 0 | AD158: 3 | AE158: 6 | AF158: 0 | AG158: 0 | AH158: 8 | AI158: 3 | AJ158: 0 | AK158: 0 | AL158: 0 | AM158: 0 | AN158: 0 | AO158: 60 | AP158: 7 | AQ158: 1 | AR158: 15 | AS158: 0 | AT158: 10 | AU158: 0 | AV158: 1 | AW158: 0 | AX158: 2 | AY158: 0 | AZ158: 0 | BA158: 1 | BB158: 0 | BC158: 0 | BD158: 0 | BE158: 0 | BF158: 16
A159: 38707 | B159: Altenau | C159: -16 °C | D159: Magdeburg | M159: -14 | N159: 21 | O159: 4 | P159: 27 | Q159: 0 | R159: 0 | S159: 5 | T159: 0 | U159: 8 | V159: 0 | W159: 0 | X159: 6 | Y159: 22 | Z159: 0 | AA159: 34 | AB159: 0 | AC159: 0 | AD159: 10 | AE159: 8 | AF159: 0 | AG159: 1 | AH159: 20 | AI159: 5 | AJ159: 0 | AK159: 0 | AL159: 0 | AM159: 0 | AN159: 0 | AO159: 37 | AP159: 8 | AQ159: 4 | AR159: 10 | AS159: 0 | AT159: 2 | AU159: 4 | AV159: 5 | AW159: 1 | AX159: 14 | AY159: 0 | AZ159: 4 | BA159: 7 | BB159: 4 | BC159: 4 | BD159: 0 | BE159: 1 | BF159: 26
A160: 04828 | B160: Altenbach | C160: -14 °C | D160: Leipzig | M160: -13 | N160: 24 | O160: 6 | P160: 27 | Q160: 1 | R160: 0 | S160: 9 | T160: 0 | U160: 14 | V160: 0 | W160: 0 | X160: 11 | Y160: 15 | Z160: 0 | AA160: 32 | AB160: 0 | AC160: 11 | AD160: 15 | AE160: 18 | AF160: 0 | AG160: 5 | AH160: 14 | AI160: 20 | AJ160: 0 | AK160: 0 | AL160: 0 | AM160: 0 | AN160: 0 | AO160: 74 | AP160: 16 | AQ160: 7 | AR160: 23 | AS160: 0 | AT160: 11 | AU160: 8 | AV160: 7 | AW160: 36 | AX160: 14 | AY160: 0 | AZ160: 7 | BA160: 6 | BB160: 10 | BC160: 6 | BD160: 0 | BE160: 9 | BF160: 47
A161: 33184 | B161: Altenbeken | C161: -14 °C | D161: Fritzlar | M161: -12 | N161: 30 | O161: 16 | P161: 42 | Q161: 4 | R161: 4 | S161: 17 | T161: 0 | U161: 11 | V161: 2 | W161: 0 | X161: 14 | Y161: 48 | Z161: 7 | AA161: 24 | AB161: 1 | AC161: 12 | AD161: 27 | AE161: 20 | AF161: 0 | AG161: 12 | AH161: 32 | AI161: 22 | AJ161: 4 | AK161: 4 | AL161: 0 | AM161: 3 | AN161: 3 | AO161: 83 | AP161: 12 | AQ161: 12 | AR161: 50 | AS161: 8 | AT161: 16 | AU161: 11 | AV161: 5 | AW161: 25 | AX161: 8 | AY161: 3 | AZ161: 25 | BA161: 5 | BB161: 17 | BC161: 25 | BD161: 0 | BE161: 25 | BF161: 54
A162: 01773 | B162: Altenberg | C162: -16 °C | D162: Dresden | M162: -11 | N162: 21 | O162: 19 | P162: 40 | Q162: 7 | R162: 37 | S162: 33 | T162: 5 | U162: 52 | V162: 6 | W162: 3 | X162: 31 | Y162: 39 | Z162: 34 | AA162: 35 | AB162: 39 | AC162: 21 | AD162: 34 | AE162: 39 | AF162: 15 | AG162: 20 | AH162: 47 | AI162: 38 | AJ162: 7 | AK162: 7 | AL162: 0 | AM162: 4 | AN162: 4 | AO162: 154 | AP162: 23 | AQ162: 29 | AR162: 40 | AS162: 6 | AT162: 47 | AU162: 24 | AV162: 16 | AW162: 38 | AX162: 6 | AY162: 6 | AZ162: 25 | BA162: 10 | BB162: 19 | BC162: 16 | BD162: 0 | BE162: 11 | BF162: 60
A163: 49733 | B163: Altenberge | C163: -10 °C | D163: Hannover | M163: -10 | N163: 28 | O163: 36 | P163: 72 | Q163: 19 | R163: 38 | S163: 45 | T163: 42 | U163: 49 | V163: 9 | W163: 17 | X163: 37 | Y163: 68 | Z163: 22 | AA163: 46 | AB163: 44 | AC163: 26 | AD163: 47 | AE163: 41 | AF163: 4 | AG163: 17 | AH163: 42 | AI163: 49 | AJ163: 14 | AK163: 14 | AL163: 3 | AM163: 16 | AN163: 14 | AO163: 149 | AP163: 36 | AQ163: 37 | AR163: 51 | AS163: 18 | AT163: 52 | AU163: 47 | AV163: 8 | AW163: 71 | AX163: 30 | AY163: 11 | AZ163: 22 | BA163: 15 | BB163: 32 | BC163: 33 | BD163: 1 | BE163: 17 | BF163: 104
A164: 48341 | B164: Altenbergen | C164: -12 °C | D164: Hannover | M164: -9 | N164: 29 | O164: 25 | P164: 79 | Q164: 23 | R164: 39 | S164: 27 | T164: 42 | U164: 46 | V164: 17 | W164: 24 | X164: 57 | Y164: 71 | Z164: 24 | AA164: 84 | AB164: 28 | AC164: 49 | AD164: 65 | AE164: 60 | AF164: 18 | AG164: 36 | AH164: 45 | AI164: 66 | AJ164: 42 | AK164: 42 | AL164: 8 | AM164: 27 | AN164: 15 | AO164: 150 | AP164: 32 | AQ164: 16 | AR164: 45 | AS164: 14 | AT164: 51 | AU164: 35 | AV164: 10 | AW164: 46 | AX164: 40 | AY164: 26 | AZ164: 26 | BA164: 29 | BB164: 51 | BC164: 36 | BD164: 11 | BE164: 34 | BF164: 125
A165: 34587 | B165: Altenbrunslar | C165: -14 °C | D165: Fritzlar | M165: -8 | N165: 43 | O165: 42 | P165: 176 | Q165: 41 | R165: 60 | S165: 41 | T165: 47 | U165: 68 | V165: 38 | W165: 30 | X165: 92 | Y165: 100 | Z165: 43 | AA165: 117 | AB165: 39 | AC165: 41 | AD165: 66 | AE165: 78 | AF165: 36 | AG165: 34 | AH165: 110 | AI165: 84 | AJ165: 29 | AK165: 29 | AL165: 10 | AM165: 24 | AN165: 41 | AO165: 222 | AP165: 25 | AQ165: 39 | AR165: 123 | AS165: 33 | AT165: 78 | AU165: 39 | AV165: 7 | AW165: 98 | AX165: 36 | AY165: 38 | AZ165: 48 | BA165: 17 | BB165: 79 | BC165: 29 | BD165: 12 | BE165: 56 | BF165: 197
A166: 34587 | B166: Altenburg | C166: -14 °C | D166: Fritzlar | M166: -7 | N166: 42 | O166: 65 | P166: 158 | Q166: 51 | R166: 63 | S166: 33 | T166: 53 | U166: 110 | V166: 51 | W166: 41 | X166: 103 | Y166: 123 | Z166: 71 | AA166: 138 | AB166: 106 | AC166: 43 | AD166: 115 | AE166: 96 | AF166: 33 | AG166: 50 | AH166: 170 | AI166: 115 | AJ166: 33 | AK166: 33 | AL166: 28 | AM166: 44 | AN166: 42 | AO166: 175 | AP166: 38 | AQ166: 68 | AR166: 174 | AS166: 45 | AT166: 137 | AU166: 54 | AV166: 57 | AW166: 136 | AX166: 78 | AY166: 45 | AZ166: 47 | BA166: 45 | BB166: 132 | BC166: 63 | BD166: 38 | BE166: 81 | BF166: 163
A167: 04600 | B167: Altenburg | C167: -14 °C | D167: Leipzig | M167: -6 | N167: 103 | O167: 67 | P167: 184 | Q167: 70 | R167: 99 | S167: 66 | T167: 72 | U167: 152 | V167: 68 | W167: 55 | X167: 123 | Y167: 184 | Z167: 107 | AA167: 221 | AB167: 140 | AC167: 119 | AD167: 178 | AE167: 137 | AF167: 56 | AG167: 91 | AH167: 189 | AI167: 177 | AJ167: 56 | AK167: 58 | AL167: 52 | AM167: 64 | AN167: 58 | AO167: 224 | AP167: 77 | AQ167: 83 | AR167: 151 | AS167: 61 | AT167: 168 | AU167: 53 | AV167: 100 | AW167: 163 | AX167: 90 | AY167: 66 | AZ167: 64 | BA167: 116 | BB167: 135 | BC167: 72 | BD167: 54 | BE167: 127 | BF167: 228
A168: 29574 | B168: Altenebstorf | C168: -14 °C | D168: Hannover | M168: -5 | N168: 96 | O168: 104 | P168: 225 | Q168: 102 | R168: 188 | S168: 110 | T168: 121 | U168: 202 | V168: 102 | W168: 60 | X168: 148 | Y168: 206 | Z168: 136 | AA168: 210 | AB168: 198 | AC168: 164 | AD168: 177 | AE168: 158 | AF168: 67 | AG168: 128 | AH168: 195 | AI168: 176 | AJ168: 91 | AK168: 87 | AL168: 49 | AM168: 85 | AN168: 104 | AO168: 264 | AP168: 125 | AQ168: 114 | AR168: 237 | AS168: 73 | AT168: 169 | AU168: 174 | AV168: 96 | AW168: 256 | AX168: 130 | AY168: 88 | AZ168: 122 | BA168: 89 | BB168: 171 | BC168: 134 | BD168: 56 | BE168: 137 | BF168: 282
A169: 45329 | B169: Altenessen | C169: -10 °C | D169: Düsseldorf | M169: -4 | N169: 145 | O169: 153 | P169: 277 | Q169: 147 | R169: 171 | S169: 184 | T169: 170 | U169: 242 | V169: 110 | W169: 117 | X169: 210 | Y169: 260 | Z169: 203 | AA169: 277 | AB169: 193 | AC169: 183 | AD169: 224 | AE169: 206 | AF169: 107 | AG169: 136 | AH169: 266 | AI169: 223 | AJ169: 99 | AK169: 101 | AL169: 81 | AM169: 139 | AN169: 127 | AO169: 386 | AP169: 179 | AQ169: 187 | AR169: 241 | AS169: 122 | AT169: 202 | AU169: 175 | AV169: 127 | AW169: 253 | AX169: 154 | AY169: 154 | AZ169: 184 | BA169: 128 | BB169: 222 | BC169: 200 | BD169: 90 | BE169: 154 | BF169: 192
A170: 98701 | B170: Altenfeld | C170: -16 °C | D170: Meiningen | M170: -3 | N170: 170 | O170: 189 | P170: 269 | Q170: 166 | R170: 218 | S170: 231 | T170: 207 | U170: 256 | V170: 180 | W170: 142 | X170: 214 | Y170: 251 | Z170: 228 | AA170: 289 | AB170: 232 | AC170: 202 | AD170: 271 | AE170: 238 | AF170: 181 | AG170: 192 | AH170: 270 | AI170: 271 | AJ170: 217 | AK170: 217 | AL170: 104 | AM170: 149 | AN170: 177 | AO170: 304 | AP170: 157 | AQ170: 190 | AR170: 268 | AS170: 191 | AT170: 223 | AU170: 170 | AV170: 185 | AW170: 307 | AX170: 205 | AY170: 159 | AZ170: 186 | BA170: 172 | BB170: 190 | BC170: 203 | BD170: 145 | BE170: 168 | BF170: 284
A171: 66885 | B171: Altenglau | C171: -14 °C | D171: Saarbrücken | M171: -2 | N171: 214 | O171: 246 | P171: 280 | Q171: 219 | R171: 234 | S171: 242 | T171: 227 | U171: 293 | V171: 212 | W171: 211 | X171: 262 | Y171: 285 | Z171: 237 | AA171: 324 | AB171: 253 | AC171: 242 | AD171: 296 | AE171: 284 | AF171: 220 | AG171: 251 | AH171: 313 | AI171: 320 | AJ171: 251 | AK171: 248 | AL171: 146 | AM171: 173 | AN171: 215 | AO171: 320 | AP171: 214 | AQ171: 215 | AR171: 351 | AS171: 204 | AT171: 265 | AU171: 248 | AV171: 196 | AW171: 333 | AX171: 184 | AY171: 197 | AZ171: 224 | BA171: 219 | BB171: 242 | BC171: 228 | BD171: 171 | BE171: 202 | BF171: 287
A172: 36391 | B172: Altengronau | C172: -14 °C | D172: Fritzlar | M172: -1 | N172: 216 | O172: 256 | P172: 306 | Q172: 234 | R172: 280 | S172: 224 | T172: 234 | U172: 348 | V172: 296 | W172: 258 | X172: 295 | Y172: 304 | Z172: 252 | AA172: 326 | AB172: 285 | AC172: 265 | AD172: 315 | AE172: 294 | AF172: 257 | AG172: 244 | AH172: 390 | AI172: 283 | AJ172: 255 | AK172: 258 | AL172: 216 | AM172: 231 | AN172: 221 | AO172: 343 | AP172: 229 | AQ172: 212 | AR172: 331 | AS172: 226 | AT172: 287 | AU172: 234 | AV172: 236 | AW172: 326 | AX172: 260 | AY172: 211 | AZ172: 232 | BA172: 216 | BB172: 243 | BC172: 198 | BD172: 231 | BE172: 215 | BF172: 298
A173: 33729 | B173: Altenhagen | C173: -12 °C | D173: Fritzlar | M173: 0 | N173: 222 | O173: 258 | P173: 333 | Q173: 215 | R173: 250 | S173: 270 | T173: 264 | U173: 323 | V173: 251 | W173: 255 | X173: 295 | Y173: 233 | Z173: 256 | AA173: 287 | AB173: 308 | AC173: 253 | AD173: 327 | AE173: 275 | AF173: 222 | AG173: 240 | AH173: 328 | AI173: 295 | AJ173: 214 | AK173: 213 | AL173: 234 | AM173: 197 | AN173: 191 | AO173: 342 | AP173: 226 | AQ173: 245 | AR173: 333 | AS173: 217 | AT173: 258 | AU173: 290 | AV173: 190 | AW173: 312 | AX173: 250 | AY173: 183 | AZ173: 273 | BA173: 214 | BB173: 275 | BC173: 218 | BD173: 214 | BE173: 189 | BF173: 326
A174: 31558 | B174: Altenhagen | C174: -14 °C | D174: Hannover | M174: 1 | N174: 275 | O174: 303 | P174: 390 | Q174: 294 | R174: 330 | S174: 339 | T174: 316 | U174: 346 | V174: 379 | W174: 312 | X174: 320 | Y174: 330 | Z174: 281 | AA174: 327 | AB174: 335 | AC174: 259 | AD174: 357 | AE174: 297 | AF174: 279 | AG174: 322 | AH174: 366 | AI174: 374 | AJ174: 327 | AK174: 318 | AL174: 281 | AM174: 258 | AN174: 258 | AO174: 398 | AP174: 301 | AQ174: 322 | AR174: 329 | AS174: 259 | AT174: 301 | AU174: 305 | AV174: 268 | AW174: 365 | AX174: 307 | AY174: 272 | AZ174: 303 | BA174: 340 | BB174: 291 | BC174: 333 | BD174: 250 | BE174: 282 | BF174: 298
A175: 85356 | B175: Altenhausen | C175: -16 °C | D175: München | M175: 2 | N175: 273 | O175: 336 | P175: 348 | Q175: 269 | R175: 331 | S175: 308 | T175: 307 | U175: 370 | V175: 344 | W175: 327 | X175: 289 | Y175: 310 | Z175: 317 | AA175: 311 | AB175: 366 | AC175: 344 | AD175: 330 | AE175: 255 | AF175: 313 | AG175: 296 | AH175: 356 | AI175: 356 | AJ175: 361 | AK175: 372 | AL175: 265 | AM175: 291 | AN175: 245 | AO175: 464 | AP175: 297 | AQ175: 385 | AR175: 328 | AS175: 274 | AT175: 294 | AU175: 333 | AV175: 281 | AW175: 311 | AX175: 270 | AY175: 279 | AZ175: 366 | BA175: 277 | BB175: 340 | BC175: 307 | BD175: 297 | BE175: 286 | BF175: 375
A176: 77743 | B176: Altenheim | C176: -12 °C | D176: Karlsruhe | M176: 3 | N176: 356 | O176: 316 | P176: 369 | Q176: 309 | R176: 368 | S176: 336 | T176: 315 | U176: 367 | V176: 341 | W176: 283 | X176: 312 | Y176: 388 | Z176: 298 | AA176: 323 | AB176: 366 | AC176: 340 | AD176: 308 | AE176: 251 | AF176: 320 | AG176: 339 | AH176: 310 | AI176: 344 | AJ176: 344 | AK176: 342 | AL176: 286 | AM176: 290 | AN176: 320 | AO176: 479 | AP176: 288 | AQ176: 326 | AR176: 308 | AS176: 307 | AT176: 293 | AU176: 326 | AV176: 337 | AW176: 329 | AX176: 303 | AY176: 306 | AZ176: 299 | BA176: 309 | BB176: 296 | BC176: 356 | BD176: 324 | BE176: 297 | BF176: 435
A177: 96479 | B177: Altenhof | C177: -16 °C | D177: Bamberg | M177: 4 | N177: 367 | O177: 343 | P177: 324 | Q177: 279 | R177: 321 | S177: 309 | T177: 335 | U177: 339 | V177: 453 | W177: 342 | X177: 257 | Y177: 294 | Z177: 255 | AA177: 344 | AB177: 410 | AC177: 317 | AD177: 285 | AE177: 259 | AF177: 340 | AG177: 311 | AH177: 327 | AI177: 324 | AJ177: 375 | AK177: 369 | AL177: 334 | AM177: 306 | AN177: 340 | AO177: 388 | AP177: 330 | AQ177: 337 | AR177: 312 | AS177: 284 | AT177: 290 | AU177: 319 | AV177: 375 | AW177: 297 | AX177: 323 | AY177: 336 | AZ177: 383 | BA177: 355 | BB177: 259 | BC177: 323 | BD177: 332 | BE177: 352 | BF177: 398
A178: 16244 | B178: Altenhof | C178: -14 °C | D178: Neuruppin | M178: 5 | N178: 336 | O178: 307 | P178: 359 | Q178: 353 | R178: 370 | S178: 338 | T178: 388 | U178: 323 | V178: 359 | W178: 315 | X178: 256 | Y178: 279 | Z178: 298 | AA178: 357 | AB178: 363 | AC178: 295 | AD178: 308 | AE178: 267 | AF178: 302 | AG178: 301 | AH178: 329 | AI178: 327 | AJ178: 293 | AK178: 308 | AL178: 361 | AM178: 362 | AN178: 340 | AO178: 391 | AP178: 332 | AQ178: 299 | AR178: 335 | AS178: 300 | AT178: 258 | AU178: 294 | AV178: 342 | AW178: 315 | AX178: 328 | AY178: 351 | AZ178: 330 | BA178: 300 | BB178: 263 | BC178: 317 | BD178: 287 | BE178: 297 | BF178: 400
A179: 57368 | B179: Altenhundem | C179: -14 °C | D179: Nürburg-Barweiler | M179: 6 | N179: 357 | O179: 305 | P179: 359 | Q179: 328 | R179: 335 | S179: 321 | T179: 371 | U179: 328 | V179: 367 | W179: 316 | X179: 269 | Y179: 275 | Z179: 258 | AA179: 351 | AB179: 424 | AC179: 324 | AD179: 294 | AE179: 247 | AF179: 296 | AG179: 328 | AH179: 362 | AI179: 306 | AJ179: 277 | AK179: 268 | AL179: 394 | AM179: 308 | AN179: 294 | AO179: 396 | AP179: 354 | AQ179: 275 | AR179: 321 | AS179: 295 | AT179: 275 | AU179: 290 | AV179: 311 | AW179: 319 | AX179: 308 | AY179: 309 | AZ179: 317 | BA179: 305 | BB179: 307 | BC179: 280 | BD179: 286 | BE179: 300 | BF179: 477
A180: 57610 | B180: Altenkirchen | C180: -14 °C | D180: Nürburg-Barweiler | M180: 7 | N180: 340 | O180: 295 | P180: 398 | Q180: 297 | R180: 362 | S180: 299 | T180: 364 | U180: 316 | V180: 346 | W180: 348 | X180: 245 | Y180: 288 | Z180: 255 | AA180: 412 | AB180: 415 | AC180: 320 | AD180: 308 | AE180: 280 | AF180: 284 | AG180: 317 | AH180: 360 | AI180: 330 | AJ180: 301 | AK180: 302 | AL180: 377 | AM180: 303 | AN180: 321 | AO180: 355 | AP180: 344 | AQ180: 302 | AR180: 364 | AS180: 301 | AT180: 262 | AU180: 309 | AV180: 253 | AW180: 343 | AX180: 284 | AY180: 313 | AZ180: 296 | BA180: 288 | BB180: 312 | BC180: 331 | BD180: 272 | BE180: 317 | BF180: 437
A181: 66903 | B181: Altenkirchen | C181: -12 °C | D181: Saarbrücken | M181: 8 | N181: 292 | O181: 347 | P181: 381 | Q181: 292 | R181: 387 | S181: 342 | T181: 360 | U181: 332 | V181: 385 | W181: 349 | X181: 304 | Y181: 348 | Z181: 261 | AA181: 374 | AB181: 389 | AC181: 306 | AD181: 362 | AE181: 270 | AF181: 293 | AG181: 287 | AH181: 362 | AI181: 327 | AJ181: 280 | AK181: 282 | AL181: 361 | AM181: 278 | AN181: 306 | AO181: 385 | AP181: 329 | AQ181: 297 | AR181: 337 | AS181: 275 | AT181: 313 | AU181: 296 | AV181: 289 | AW181: 383 | AX181: 306 | AY181: 272 | AZ181: 281 | BA181: 310 | BB181: 279 | BC181: 325 | BD181: 309 | BE181: 299 | BF181: 400
A182: 23730 | B182: Altenkrempe | C182: -10 °C | D182: Schwerin | M182: 9 | N182: 265 | O182: 302 | P182: 350 | Q182: 262 | R182: 350 | S182: 342 | T182: 406 | U182: 341 | V182: 386 | W182: 352 | X182: 285 | Y182: 334 | Z182: 299 | AA182: 307 | AB182: 386 | AC182: 334 | AD182: 355 | AE182: 331 | AF182: 324 | AG182: 324 | AH182: 350 | AI182: 338 | AJ182: 299 | AK182: 301 | AL182: 387 | AM182: 314 | AN182: 294 | AO182: 381 | AP182: 320 | AQ182: 302 | AR182: 353 | AS182: 287 | AT182: 345 | AU182: 311 | AV182: 301 | AW182: 388 | AX182: 301 | AY182: 288 | AZ182: 271 | BA182: 311 | BB182: 286 | BC182: 330 | BD182: 267 | BE182: 328 | BF182: 390
A183: 83352 | B183: Altenmarkt | C183: -16 °C | D183: Hohenpeißenberg | M183: 10 | N183: 311 | O183: 306 | P183: 339 | Q183: 295 | R183: 415 | S183: 325 | T183: 373 | U183: 351 | V183: 371 | W183: 346 | X183: 332 | Y183: 365 | Z183: 311 | AA183: 350 | AB183: 418 | AC183: 330 | AD183: 402 | AE183: 312 | AF183: 271 | AG183: 301 | AH183: 340 | AI183: 360 | AJ183: 307 | AK183: 309 | AL183: 407 | AM183: 345 | AN183: 270 | AO183: 356 | AP183: 339 | AQ183: 308 | AR183: 354 | AS183: 280 | AT183: 367 | AU183: 332 | AV183: 326 | AW183: 427 | AX183: 349 | AY183: 310 | AZ183: 267 | BA183: 290 | BB183: 297 | BC183: 280 | BD183: 312 | BE183: 297 | BF183: 366
A184: 29575 | B184: Altenmedingen | C184: -12 °C | D184: Hannover | M184: 11 | N184: 331 | O184: 309 | P184: 350 | Q184: 324 | R184: 371 | S184: 318 | T184: 431 | U184: 390 | V184: 318 | W184: 383 | X184: 322 | Y184: 343 | Z184: 318 | AA184: 302 | AB184: 445 | AC184: 337 | AD184: 371 | AE184: 315 | AF184: 294 | AG184: 301 | AH184: 353 | AI184: 338 | AJ184: 337 | AK184: 310 | AL184: 373 | AM184: 286 | AN184: 266 | AO184: 360 | AP184: 350 | AQ184: 300 | AR184: 325 | AS184: 329 | AT184: 356 | AU184: 350 | AV184: 320 | AW184: 335 | AX184: 340 | AY184: 254 | AZ184: 324 | BA184: 360 | BB184: 290 | BC184: 303 | BD184: 330 | BE184: 300 | BF184: 338
A185: 26169 | B185: Altenoythe | C185: -12 °C | D185: Emden | M185: 12 | N185: 303 | O185: 333 | P185: 323 | Q185: 313 | R185: 388 | S185: 322 | T185: 433 | U185: 332 | V185: 405 | W185: 362 | X185: 335 | Y185: 333 | Z185: 344 | AA185: 315 | AB185: 407 | AC185: 363 | AD185: 359 | AE185: 316 | AF185: 304 | AG185: 335 | AH185: 323 | AI185: 380 | AJ185: 330 | AK185: 339 | AL185: 394 | AM185: 296 | AN185: 310 | AO185: 239 | AP185: 324 | AQ185: 407 | AR185: 348 | AS185: 329 | AT185: 298 | AU185: 348 | AV185: 338 | AW185: 365 | AX185: 373 | AY185: 311 | AZ185: 339 | BA185: 339 | BB185: 313 | BC185: 292 | BD185: 317 | BE185: 315 | BF185: 375
A186: 95500 | B186: Altenplos | C186: -16 °C | D186: Hof | M186: 13 | N186: 347 | O186: 320 | P186: 313 | Q186: 307 | R186: 340 | S186: 345 | T186: 337 | U186: 332 | V186: 377 | W186: 347 | X186: 347 | Y186: 370 | Z186: 350 | AA186: 332 | AB186: 323 | AC186: 349 | AD186: 320 | AE186: 313 | AF186: 321 | AG186: 315 | AH186: 289 | AI186: 334 | AJ186: 337 | AK186: 338 | AL186: 363 | AM186: 322 | AN186: 338 | AO186: 254 | AP186: 369 | AQ186: 366 | AR186: 348 | AS186: 323 | AT186: 306 | AU186: 325 | AV186: 307 | AW186: 342 | AX186: 350 | AY186: 292 | AZ186: 333 | BA186: 331 | BB186: 339 | BC186: 315 | BD186: 275 | BE186: 329 | BF186: 260
A187: 72657 | B187: Altenriet | C187: -16 °C | D187: Stuttgart | M187: 14 | N187: 341 | O187: 304 | P187: 318 | Q187: 361 | R187: 383 | S187: 340 | T187: 410 | U187: 296 | V187: 334 | W187: 409 | X187: 317 | Y187: 303 | Z187: 346 | AA187: 308 | AB187: 321 | AC187: 327 | AD187: 288 | AE187: 325 | AF187: 404 | AG187: 309 | AH187: 346 | AI187: 345 | AJ187: 353 | AK187: 353 | AL187: 407 | AM187: 333 | AN187: 319 | AO187: 174 | AP187: 354 | AQ187: 330 | AR187: 339 | AS187: 329 | AT187: 323 | AU187: 340 | AV187: 334 | AW187: 259 | AX187: 384 | AY187: 395 | AZ187: 326 | BA187: 369 | BB187: 353 | BC187: 311 | BD187: 365 | BE187: 324 | BF187: 263
A188: 06642 | B188: Altenrode | C188: -14 °C | D188: Leipzig | M188: 15 | N188: 301 | O188: 329 | P188: 281 | Q188: 362 | R188: 369 | S188: 327 | T188: 342 | U188: 285 | V188: 359 | W188: 381 | X188: 332 | Y188: 366 | Z188: 312 | AA188: 298 | AB188: 310 | AC188: 299 | AD188: 277 | AE188: 304 | AF188: 390 | AG188: 318 | AH188: 308 | AI188: 309 | AJ188: 356 | AK188: 363 | AL188: 366 | AM188: 367 | AN188: 383 | AO188: 147 | AP188: 311 | AQ188: 308 | AR188: 314 | AS188: 374 | AT188: 309 | AU188: 341 | AV188: 341 | AW188: 236 | AX188: 317 | AY188: 367 | AZ188: 351 | BA188: 321 | BB188: 335 | BC188: 334 | BD188: 347 | BE188: 310 | BF188: 233
A189: 89281 | B189: Altenstadt | C189: -16 °C | D189: Augsburg | M189: 16 | N189: 334 | O189: 294 | P189: 243 | Q189: 372 | R189: 348 | S189: 333 | T189: 280 | U189: 277 | V189: 332 | W189: 321 | X189: 327 | Y189: 319 | Z189: 338 | AA189: 248 | AB189: 279 | AC189: 330 | AD189: 289 | AE189: 311 | AF189: 295 | AG189: 307 | AH189: 246 | AI189: 289 | AJ189: 355 | AK189: 371 | AL189: 358 | AM189: 298 | AN189: 331 | AO189: 100 | AP189: 325 | AQ189: 300 | AR189: 246 | AS189: 385 | AT189: 279 | AU189: 322 | AV189: 348 | AW189: 254 | AX189: 321 | AY189: 363 | AZ189: 319 | BA189: 282 | BB189: 341 | BC189: 355 | BD189: 367 | BE189: 313 | BF189: 163
A190: 92665 | B190: Altenstadt | C190: -16 °C | D190: Nürnberg | M190: 17 | N190: 316 | O190: 298 | P190: 202 | Q190: 335 | R190: 276 | S190: 309 | T190: 277 | U190: 274 | V190: 307 | W190: 294 | X190: 321 | Y190: 272 | Z190: 317 | AA190: 207 | AB190: 220 | AC190: 291 | AD190: 249 | AE190: 303 | AF190: 304 | AG190: 321 | AH190: 220 | AI190: 263 | AJ190: 335 | AK190: 339 | AL190: 313 | AM190: 305 | AN190: 364 | AO190: 92 | AP190: 310 | AQ190: 321 | AR190: 229 | AS190: 328 | AT190: 285 | AU190: 317 | AV190: 344 | AW190: 232 | AX190: 317 | AY190: 309 | AZ190: 316 | BA190: 333 | BB190: 309 | BC190: 369 | BD190: 347 | BE190: 312 | BF190: 141
A191: 72213 | B191: Altensteig | C191: -16 °C | D191: Stuttgart | M191: 18 | N191: 296 | O191: 308 | P191: 163 | Q191: 297 | R191: 255 | S191: 286 | T191: 270 | U191: 203 | V191: 345 | W191: 328 | X191: 274 | Y191: 236 | Z191: 303 | AA191: 180 | AB191: 205 | AC191: 291 | AD191: 221 | AE191: 322 | AF191: 309 | AG191: 323 | AH191: 172 | AI191: 226 | AJ191: 305 | AK191: 290 | AL191: 321 | AM191: 348 | AN191: 355 | AO191: 52 | AP191: 312 | AQ191: 324 | AR191: 183 | AS191: 318 | AT191: 240 | AU191: 306 | AV191: 322 | AW191: 180 | AX191: 290 | AY191: 366 | AZ191: 282 | BA191: 292 | BB191: 282 | BC191: 357 | BD191: 358 | BE191: 306 | BF191: 124
A192: 17087 | B192: Altentreptow | C192: -14 °C | D192: Greifswald | M192: 19 | N192: 259 | O192: 291 | P192: 114 | Q192: 319 | R192: 211 | S192: 296 | T192: 235 | U192: 204 | V192: 243 | W192: 317 | X192: 251 | Y192: 250 | Z192: 249 | AA192: 145 | AB192: 137 | AC192: 279 | AD192: 214 | AE192: 300 | AF192: 335 | AG192: 275 | AH192: 167 | AI192: 172 | AJ192: 285 | AK192: 276 | AL192: 266 | AM192: 339 | AN192: 354 | AO192: 25 | AP192: 279 | AQ192: 293 | AR192: 165 | AS192: 331 | AT192: 238 | AU192: 264 | AV192: 285 | AW192: 165 | AX192: 288 | AY192: 322 | AZ192: 252 | BA192: 276 | BB192: 254 | BC192: 299 | BD192: 312 | BE192: 282 | BF192: 86
A193: 97327 | B193: Altertheim | C193: -14 °C | D193: Würzburg | M193: 20 | N193: 259 | O193: 289 | P193: 87 | Q193: 288 | R193: 142 | S193: 240 | T193: 209 | U193: 135 | V193: 152 | W193: 252 | X193: 220 | Y193: 171 | Z193: 282 | AA193: 128 | AB193: 116 | AC193: 230 | AD193: 187 | AE193: 235 | AF193: 291 | AG193: 316 | AH193: 132 | AI193: 132 | AJ193: 258 | AK193: 258 | AL193: 245 | AM193: 274 | AN193: 303 | AO193: 15 | AP193: 252 | AQ193: 254 | AR193: 139 | AS193: 277 | AT193: 247 | AU193: 258 | AV193: 239 | AW193: 153 | AX193: 254 | AY193: 297 | AZ193: 248 | BA193: 279 | BB193: 245 | BC193: 250 | BD193: 291 | BE193: 245 | BF193: 55
A194: 66802 | B194: Altforweiler | C194: -12 °C | D194: Saarbrücken | M194: >20 | N194: 1081 | O194: 1039 | P194: 237 | Q194: 1205 | R194: 427 | S194: 844 | T194: 517 | U194: 442 | V194: 515 | W194: 863 | X194: 947 | Y194: 377 | Z194: 1148 | AA194: 357 | AB194: 259 | AC194: 864 | AD194: 506 | AE194: 987 | AF194: 1275 | AG194: 1057 | AH194: 303 | AI194: 439 | AJ194: 1033 | AK194: 1041 | AL194: 970 | AM194: 1381 | AN194: 1237 | AO194: 9 | AP194: 932 | AQ194: 945 | AR194: 339 | AS194: 1357 | AT194: 905 | AU194: 908 | AV194: 1253 | AW194: 361 | AX194: 946 | AY194: 1261 | AZ194: 1068 | BA194: 1204 | BB194: 947 | BC194: 928 | BD194: 1492 | BE194: 1243 | BF194: 55
A195: 01462 | B195: Altfranken | C195: -14 °C | D195: Dresden
A196: 84169 | B196: Altfraunhofen | C196: -16 °C | D196: Straubing
A197: 09326 | B197: Altgeringswalde | C197: -14 °C | D197: Erfurt
A198: 89174 | B198: Altheim | C198: -16 °C | D198: Augsburg
A199: 89195 | B199: Altheim | C199: -16 °C | D199: Augsburg | M199: Schweiz
A200: 89605 | B200: Altheim | C200: -14 °C | D200: Augsburg | M200: Außentemp | N200: Airolo | O200: Altdorf | P200: Arosa | Q200: Bad Ragaz | R200: Basel | S200: Beatenberg | T200: Bern | U200: Bever | V200: Bern | W200: Château-d'Oex | X200: Chippis | Y200: Chur | Z200: Davos | AA200: Delémont | AB200: Disentis | AC200: Einsiedeln | AD200: Engelberg | AE200: Fey | AF200: Fribourg | AG200: Genève | AH200: Glarus | AI200: Göschenen | AJ200: Heiden | AK200: Interlaken | AL200: Kreuzlingen | AM200: La Chaux-de-Fonds | AN200: Langenbruck | AO200: Langnau/Emmental | AP200: Lausanne | AQ200: Leysin | AR200: Locarno | AS200: Lugano | AT200: Luzern | AU200: Marsens | AV200: Meiringen | AW200: Montana | AX200: Montreux | AY200: Neuchâtel | AZ200: Olten | BA200: Schaffhausen | BB200: Sion | BC200: St. Gallen | BD200: St. Moritz | BE200: Zermatt | BF200: Zürich
... 7960 more rows

Sheet Leistungsdaten (hidden)
A2: WP-Typ | B2: DHC | C2: Kaskadierbar | D2: Monoenergetisch | E2: Bivalent Öl/Gas? | F2: Max-Vorlauf | G2: Ventilatoren | H2: Max-VL WWB | I2: Mit SBP-Gas ? | J2: Direktverdampfer ? | K2: Artikelnr. | L2: mediando | M2: Mit WWB ? | N2: Biv. Strom? | P2: Luft-Wasser-Wärmepumpen Heizleistung | AJ2: Luft-Wasser-Wärmepumpen COP | BM2: Sole-Wasser-WP - Heizleistungen bei Bo | CI2: Wasser-Wasser-WP - Heizleistungen bei W7
A3: WPL 10 AC | B3: 8.8 | C3: TRUE | D3: TRUE | E3: TRUE | F3: 55 | G3: 0 | H3: 55 | I3: 2 | J3: FALSE | K3: 230236 | L3: 8427 | M3: FALSE | N3: TRUE | Q3: WPL 10 AC | AA3: Heizlast | AK3: WPL 10 AC | BM3: WP-Typ | BN3: =Berechnung!H7 -> 30 °C | BO3: =Berechnung!H8 -> 35 °C | BP3: =Berechnung!H9 -> 40 °C | BQ3: =Berechnung!H10 -> 45 °C | BR3: =Berechnung!H11 -> 50 °C | BS3: =Berechnung!H12 -> 55 °C | BT3: =Berechnung!H13 -> 60 °C | BU3: =Berechnung!H14 -> 65 °C | BV3: =Berechnung!H15 -> 70 °C | BW3: =Berechnung!H16 -> 75 °C | BX3: Gewählt | CI3: WP-Typ | CJ3: =BN3 -> 30 °C | CK3: 35 °C | CL3: 40 °C | CM3: 45 °C | CN3: 50 °C | CO3: 55 °C | CP3: 60 °C | CQ3: 65 °C | CR3: 70 °C | CS3: 75 °C | CT3: Gewählt
A4: WPL 10 I / IK | B4: 8.8 | C4: FALSE | D4: TRUE | E4: TRUE | F4: 55 | G4: 0 | H4: 55 | I4: 2 | J4: FALSE | K4: 234655 | L4: 5969 | M4: FALSE | N4: TRUE | P4: Außentemp | Q4: 30 °C | R4: 35 °C | S4: 40 °C | T4: 45 °C | U4: 50 °C | V4: 55 °C | W4: 60 °C | X4: 65 °C | Y4: 70 °C | Z4: 75 °C | AA4: Min | AJ4: Außentemp | AK4: 30 °C | AL4: 35 °C | AM4: 40 °C | AN4: 45 °C | AO4: 50 °C | AP4: 55 °C | AQ4: 60 °C | AR4: 65 °C | AS4: 70 °C | AT4: 75 °C
A5: WPL 15 ACS | B5: 6.2 | C5: FALSE | D5: TRUE | E5: TRUE | F5: 60 | G5: 0 | H5: 60 | I5: FALSE | J5: FALSE | K5: 234759 | L5: 8725 | M5: FALSE | N5: TRUE | P5: -20 | Q5: =R5+(R5-S5) -> 3.05 | R5: 2.4 | S5: =AVERAGE(R5,T5) -> 1.75 | T5: 1.1 | U5: =AVERAGE(T5,V5) -> 0.9 | V5: 0.7 | AA5: -1 | AJ5: -20 | AK5: 2.423076923 | AL5: 2.230769231 | AM5: 2.038461538 | AN5: 1.846153846 | AO5: 1.756410256 | AP5: 1.666666667 | BM5: =A51 -> WPC 04 / WPC 04 cool | BN5: =BO5+(BO5-BS5)/4 -> 4.9125 | BO5: 4.77 | BP5: =AVERAGE(BO5,BQ5) -> 4.585 | BQ5: 4.4 | BR5: =AVERAGE(BQ5,BS5) -> 4.3 | BS5: 4.2 | BT5: 4.15 | BU5: 4.1 | BX5: =INDEX(BN5:BW75,MATCH(Berechnung!$D$5,BM5:BM75,0),MATCH(Berechnung!$H$5,BN3:BW3,0)) ->  | CI5: =A101 -> WPW 06 Set | CJ5: =CK5+(CK5-CO5)/4 -> 5.75 | CK5: 5.6 | CL5: =AVERAGE(CK5,CM5) -> 5.425 | CM5: 5.25 | CN5: =AVERAGE(CM5,CO5) -> 5.125 | CO5: 5 | CP5: 4.875 | CQ5: 4.75 | CT5: =INDEX(CJ5:CS75,MATCH(Berechnung!$D$5,CI5:CI75,0),MATCH(Berechnung!$H$5,CJ3:CS3,0)) -> 
A6: WPL 25 AC | B6: 8.8 | C6: FALSE | D6: TRUE | E6: TRUE | F6: 60 | G6: 0 | H6: 60 | I6: FALSE | J6: FALSE | K6: 234760 | L6: 8725 | M6: FALSE | N6: TRUE | P6: -17.5 | Q6: =R6+(R6-S6) -> 3.65 | R6: 3 | S6: =AVERAGE(R6,T6) -> 2.35 | T6: 1.7 | U6: 1.5 | V6: 1.3 | AA6: -1 | AJ6: -17.5 | AK6: 2.801470588 | AL6: 2.529411765 | AM6: 2.257352941 | AN6: 1.985294118 | AO6: 1.825980392 | AP6: 1.666666667 | BM6: =A52 -> WPC 05 / WPC 05 cool | BN6: =BO6+(BO6-BS6)/4 -> 5.975 | BO6: 5.82 | BP6: 5.66 | BQ6: 5.5 | BR6: 5.35 | BS6: 5.2 | BT6: 5.1 | BU6: 5 | CI6: WPW 07 Set | CJ6: =CK6+(CK6-CO6)/4 -> 6.9475 | CK6: 6.8 | CL6: 6.675 | CM6: 6.55 | CN6: 6.38 | CO6: 6.21 | CP6: 6.04 | CQ6: 5.87
A7: WPL 15 IS | B7: 6.2 | C7: FALSE | D7: TRUE | E7: FALSE | F7: 60 | G7: 0 | H7: 60 | I7: FALSE | J7: FALSE | K7: 231888 | L7: 8726 | M7: FALSE | N7: FALSE | P7: -15 | Q7: 4.15 | R7: 3.5 | S7: 2.85 | T7: 2.2 | U7: 2 | V7: 1.8 | AA7: -1 | AJ7: -15 | AK7: 3.035714286 | AL7: 2.714285714 | AM7: 2.392857143 | AN7: 2.071428571 | AO7: 1.869047619 | AP7: 1.666666667 | BM7: WPC 07 / WPC 07 cool | BN7: 7.7 | BO7: 7.5 | BP7: 7.225 | BQ7: 6.95 | BR7: 6.825 | BS7: 6.7 | BT7: 6.65 | BU7: 6.6 | CI7: WPW 10 Set | CJ7: 9.1875 | CK7: 9 | CL7: 8.65 | CM7: 8.3 | CN7: 8.275 | CO7: 8.25 | CP7: 8.225 | CQ7: 8.2
A8: WPL 25 I | B8: 8.8 | C8: FALSE | D8: TRUE | E8: FALSE | F8: 60 | G8: 0 | H8: 60 | I8: FALSE | J8: FALSE | K8: 231889 | L8: 8726 | M8: FALSE | N8: FALSE | P8: -12.5 | Q8: 4.6 | R8: 3.95 | S8: 3.3 | T8: 2.65 | U8: 2.45 | V8: 2.25 | AA8: -1 | AJ8: -12.5 | AK8: 3.116089274 | AL8: 2.815789474 | AM8: 2.515489674 | AN8: 2.215189873 | AO8: 2.06438506 | AP8: 1.913580247 | BM8: WPC 10 / WPC 10 cool | BN8: 10.5625 | BO8: 10.26 | BP8: 10.03 | BQ8: 9.8 | BR8: 9.425 | BS8: 9.05 | BT8: 10.075 | BU8: 11.1 | CI8: WPW 13 Set | CJ8: 12.5125 | CK8: 12.2 | CL8: 11.95 | CM8: 11.7 | CN8: 11.325 | CO8: 10.95 | CP8: 10.575 | CQ8: 10.2
